Workbook

Sheet MAYO 2021 SNS (3)
A3: SERVICIO NACIONAL DE SALUD
A4: Informe Mensual de Almacén General, Despensa y Medicina
A5: ALMACEN | B5: LABORATORIO
A6: ESTABLECIMIENTO | B6: CENTRO DE GASTROENTEROLOGIA | E6: REGION | F6: 0
A7: AREA DE SALUD | E7: MES | F7: MAYO | G7: AÑO | H7: 2021
A9: ARTICULO | B9: UNIDAD | C9: EXISTENCIA ANTERIOR | D9: ENTRADA | E9: EXISTENCIA | F9: TOTAL CONSUMIDOS (3+4)-5 | G9: VALOR UNITARIO | H9: VALOR TOTAL
C10: ANTERIOR | E10: FINAL | F10: CONSUMIDO | G10: UNITARIO | H10: TOTAL
A11: -1- | C11: 3 | D11: -4- | E11: -5- | F11: (3+4)-5 | G11: -7- | H11: (6X7)
A12: AB CONTROL NORMAL SUERO | B12: SET | C12: 0 | D12: 0 | E12: =C12+D12-F12 -> 0 | F12: 0 | G12: 27,284.22 | H12: =F12*G12 -> 0
A13: ABX TONER PARA IMPRESORA | B13: UNID | C13: 0 | D13: 0 | E13: =C13+D13-F13 -> 0 | F13: 0 | G13: 866.25 | H13: =F13*G13 -> 0
A14: ABX DIFFTROL 2H | B14: SET | C14: 0 | D14: 0 | E14: 0 | F14: 0 | G14: 14,720.00 | H14: 0
A15: ABX DIFFTROL 2L | B15: SET | C15: 0 | D15: 0 | E15: 0 | F15: 0 | G15: 14,720.00 | H15: 0
A16: ABX DIFFTROL 2N | B16: SET | C16: 0 | D16: 0 | E16: 0 | F16: 0 | G16: 14,720.00 | H16: 0
A17: ABX CONTROL HEMATOLOGICO 3/1 | B17: SET | C17: 2 | D17: 3 | E17: 3 | F17: 2 | G17: 12,476.00 | H17: 24,952.00
A18: ABX MINOLYSE | B18: FCO. | C18: 0 | D18: 5 | E18: 4 | F18: 1 | G18: 23,552.00 | H18: 23,552.00
A19: ABX LISEBIO | B19: FCO. | C19: 0 | D19: 0 | E19: 0 | F19: 0 | G19: 16,200.00 | H19: 0
A20: ABX MINOTON | B20: Caja | C20: 2 | D20: 5 | E20: 5 | F20: 2 | G20: 17,028.00 | H20: 34,056.00
A21: ACIDO PERIODICO 100 G | B21: FCO. | C21: 1 | D21: 0 | E21: 1 | F21: 0 | G21: 58,200.00 | H21: 0
A22: AC. PHOSPHOTUNGSTICO HYDRATE 25mg | B22: FCO. | C22: 1 | D22: 0 | E22: 1 | F22: 0 | G22: 6,720.00 | H22: 0
A23: ACCESS FERRITIN 2X50 | B23: SET | C23: 0 | D23: 0 | E23: 0 | F23: 0 | G23: 19,405.10 | H23: 0
A24: ACCESS AFP 2X50 | B24: SET | C24: 0 | D24: 0 | E24: 0 | F24: 0 | G24: 20,031.00 | H24: 0
A25: ACCESS B12 2X50 | B25: SET | C25: 0 | D25: 0 | E25: 0 | F25: 0 | G25: 16,465.00 | H25: 0
A26: ACCESS BOLSA DESECHABLES | B26: CAJA | C26: 0 | D26: 0 | E26: 0 | F26: 0 | G26: 6,680.70 | H26: 0
A27: ACCESS CA 125 2X50 | B27: SET | C27: 0 | D27: 0 | E27: 0 | F27: 0 | G27: 26,708.50 | H27: 0
A28: ACCESS CA 19-9 2X50 | B28: SET | C28: 0 | D28: 0 | E28: 0 | F28: 0 | G28: 28,043.60 | H28: 0
A29: ACCESS CONTRAD 70 | B29: SET | C29: 1 | D29: 0 | E29: 1 | F29: 0 | G29: 6,227.00 | H29: 0
A30: ACCESS CEA 2X50 | B30: SET | C30: 0 | D30: 0 | E30: 0 | F30: 0 | G30: 24,811.02 | H30: 0
A31: ACCESS CONTROL TUMORAL1 | B31: SET | C31: 0 | D31: 0 | E31: 0 | F31: 0 | G31: 10,382.40 | H31: 0
A32: ACCESS CONTROL TUMORAL2 | B32: SET | C32: 0 | D32: 0 | E32: 0 | F32: 0 | G32: 10,382.40 | H32: 0
A33: ACCESS FOLATE 2X50 | B33: SET | C33: 0 | D33: 0 | E33: 0 | F33: 0 | G33: 16,499.60 | H33: 0
A34: ACCESS HAV AB 2X50 | B34: SET | C34: 0 | D34: 1 | E34: 1 | F34: 0 | G34: 28,043.60 | H34: 0
A35: ACCESS HAV IGM 2X50 | B35: SET | C35: 0 | D35: 1 | E35: 1 | F35: 0 | G35: 25,873.90 | H35: 0
A36: ACCESS HBC AB 2X50 | B36: SET | C36: 0 | D36: 1 | E36: 0 | F36: 1 | G36: 28,043.60 | H36: 28,043.60
A37: ACCESS HBC IGM 2X50 | B37: SET | C37: 0 | D37: 1 | E37: 0 | F37: 1 | G37: 28,043.60 | H37: 28,043.60
A38: ACCESS HCG 2X50 | B38: SET | C38: 0 | D38: 0 | E38: 0 | F38: 0 | G38: 14,658.80 | H38: 0
A39: ACCESS IGE 2X50 | B39: SET | C39: 0 | D39: 0 | E39: 0 | F39: 0 | G39: 16,465.80 | H39: 0
A40: ACCESS PROGESTERON 2X50 | B40: SET | C40: 0 | D40: 0 | E40: 0 | F40: 0 | G40: 12,827.10 | H40: 0
A41: ACCESS PROLACTIN 2X50 | B41: SET | C41: 0 | D41: 0 | E41: 0 | F41: 0 | G41: 13,525.20 | H41: 0
A42: ACCESS PSA LIBRE 2X50 | B42: SET | C42: 0 | D42: 0 | E42: 0 | F42: 0 | G42: 26,708.50 | H42: 0
A43: ACCESS PSA TOTAL | B43: SET | C43: 1 | D43: 0 | E43: 1 | F43: 0 | G43: 17,032.60 | H43: 0
A44: ACCESS REACTION VESSEL 16X98 | B44: Caja | C44: 0 | D44: 0 | E44: 0 | F44: 0 | G44: 8,622.90 | H44: 0
A45: ACCESS SAMPLE CUP 2 ML | B45: PAQ. | C45: 0 | D45: 0 | E45: 0 | F45: 0 | G45: 2,421.90 | H45: 0
A46: ACCESS SUSTRATO 600T 1X30ML | B46: FCO. | C46: 5 | D46: 0 | E46: 2 | F46: 3 | G46: 7,874.10 | H46: 23,622.30
A47: ACCESS SYSTEM CHECK 6X4 ML | B47: SET | C47: 1 | D47: 1 | E47: 1 | F47: 1 | G47: 10,926.50 | H47: 10,926.50
A48: ACCESS T3 2X50 | B48: SET | C48: 0 | D48: 0 | E48: 0 | F48: 0 | G48: 12,147.20 | H48: 0
A49: ACCESS T4 2X50 | B49: SET | C49: 0 | D49: 0 | E49: 0 | F49: 0 | G49: 12,147.20 | H49: 0
A50: ACCESS T4 LIBRE | B50: SET | C50: 0 | D50: 0 | E50: 0 | F50: 0 | G50: 13,962.00 | H50: 0
A51: ACCESS TOXO 2X50 | B51: SET | C51: 0 | D51: 0 | E51: 0 | F51: 0 | G51: 21,032.70 | H51: 0
A52: ACCESS TOXO IGM | B52: SET | C52: 0 | D52: 0 | E52: 0 | F52: 0 | G52: 17,846.40 | H52: 0
A53: ACCESS TSH 2X50 | B53: SET | C53: 0 | D53: 0 | E53: 0 | F53: 0 | G53: 12,147.20 | H53: 0
A54: ACCESS WASH BUFFER ll 4x1.9L | B54: FCO. | C54: 2 | D54: 0 | E54: 1 | F54: 1 | G54: 5,623.80 | H54: 5,623.80
A55: ACEITE DE INMERSION | B55: FCO. | C55: 1 | D55: 0 | E55: 1 | F55: 0 | G55: 1,380.00 | H55: 0
A56: ACETONA | B56: Galon | C56: 0 | D56: 0 | E56: 0 | F56: 0 | G56: 975.00 | H56: 0
A57: ACETONA GRADO REACTIVO | B57: Galon | C57: 0 | D57: 0 | E57: 0 | F57: 0 | G57: 1,210.00 | H57: 0
A58: ACIDO PERIODICO | B58: FCO. | C58: 0 | D58: 0 | E58: 0 | F58: 0 | G58: 17,600.00 | H58: 0
A59: ACID ALCOHOL 3% -DONADO | B59: LT. | C59: 0 | D59: 0 | E59: 0 | F59: 0 | G59: 0.00 | H59: 0
A60: ACIDO ACETICO GLACIAL | B60: LT. | C60: 0 | D60: 0 | E60: 0 | F60: 0 | G60: 2,125.00 | H60: 0
A61: ACIDO CLORHIDRICO | B61: Galon | C61: 0 | D61: 0 | E61: 0 | F61: 0 | G61: 4,800.00 | H61: 0
A62: ACIDO NITRICO | B62: Galon | C62: 0 | D62: 0 | E62: 0 | F62: 0 | G62: 4,750.00 | H62: 0
A63: ACIDO SULFURICO 4N 1000 ML | B63: LT. | C63: 0 | D63: 0 | E63: 0 | F63: 0 | G63: 518.40 | H63: 0
A64: ACIDO URICO 300T Q.C.A. | B64: SET | C64: 0 | D64: 0 | E64: 0 | F64: 0 | G64: 1,864.50 | H64: 0
A65: ACIDO URICO MANUAL | B65: SET | C65: 0 | D65: 0 | E65: 0 | F65: 0 | G65: 2,780.00 | H65: 0
A66: ACIDO URICO MANUAL | B66: SET | C66: 0 | D66: 0 | E66: 0 | F66: 0 | G66: 522.00 | H66: 0
A67: ACL DILUYENTE FACTORES 100ML | B67: FCO. | C67: 1 | D67: 0 | E67: 0 | F67: 1 | G67: 744.00 | H67: 744.00
A68: ACL HIGH ABNORMAL CONT 10X1ML | B68: Caja | C68: 2 | D68: 0 | E68: 0 | F68: 2 | G68: 4,055.57 | H68: 8,111.14
A69: ACL RECOMBOPLASTIN | B69: SET | C69: 0 | D69: 0 | E69: 0 | F69: 0 | G69: 5,865.35 | H69: 0
A70: ACL. WASH EMULSION | B70: FCO. | C70: 2 | D70: 0 | E70: 0 | F70: 2 | G70: 1,066.00 | H70: 2,132.00
A71: ACL. APTT. 5+5X5X8 | B71: Caja | C71: 1 | D71: 3 | E71: 1 | F71: 3 | G71: 4,724.20 | H71: 14,172.60
A72: ACL. CALIBRADOR PLASMA | B72: Caja | C72: 1 | D72: 0 | E72: 0 | F72: 1 | G72: 4,101.30 | H72: 4,101.30
A73: ACL. CLEANING SOLUTION 500ML | B73: SET | C73: 2 | D73: 0 | E73: 1 | F73: 1 | G73: 1,687.00 | H73: 1,687.00
A74: ACL. COPAS 4 ML C/100 | B74: SET | C74: 0 | D74: 0 | E74: 0 | F74: 0 | G74: 3,454.10 | H74: 0
A75: ACL. COPAS 0.5ML C/1000 | B75: Caja | C75: 1 | D75: 0 | E75: 0 | F75: 1 | G75: 2,717.00 | H75: 2,717.00
A76: ACL. COPAS 2ML 1000/PK | B76: Caja | C76: 0 | D76: 0 | E76: 0 | F76: 0 | G76: 4,702.80 | H76: 0
A77: ACL. EMULCION DE REFERENCIA | B77: SET | C77: 0 | D77: 0 | E77: =C77+D77-F77 -> 0 | F77: 0 | G77: 3,510.00 | H77: =F77*G77 -> 0
A78: ACL. LOW ABNORMAL CONT. 10X1ML | B78: SET | C78: 1 | D78: 0 | E78: 0 | F78: 1 | G78: 3,949.40 | H78: 3,949.40
A79: ACL. PLASMA CONTROL NORM 10X1ML | B79: Caja | C79: 1 | D79: 0 | E79: 0 | F79: 1 | G79: 3,577.60 | H79: 3,577.60
A80: ACL. PT RGT-FIBRINOGENO 5+5X8ML | B80: Caja | C80: 2 | D80: 3 | E80: 3 | F80: 2 | G80: 5,411.90 | H80: 10,823.80
A81: ACL. ROTORES C/100 | B81: Caja | C81: 1 | D81: 1 | E81: 1 | F81: 1 | G81: 14,352.00 | H81: 14,352.00
A82: AGAR BIGGY | B82: FCO. | C82: 0 | D82: 0 | E82: 0 | F82: 0 | G82: 4,391.00 | H82: 0
A83: AGAR SANGRE | B83: FCO. | C83: 1 | D83: 0 | E83: 0 | F83: 1 | G83: 5,120.00 | H83: 5,120.00
A84: AGAR BILI ESCULINA | B84: SET | C84: 0 | D84: 0 | E84: 0 | F84: 0 | G84: 7,650.00 | H84: 0
A85: AGAR CITRATO DE SIMMONS | B85: FCO. | C85: 0 | D85: 0 | E85: 0 | F85: 0 | G85: 5,475.00 | H85: 0
A86: AGAR COLUMBIA | B86: FCO. | C86: 0 | D86: 0 | E86: 0 | F86: 0 | G86: 2,658.00 | H86: 0
A87: AGAR EOSIN AZUL METILENO-- EAM | B87: FCO. | C87: 0 | D87: 0 | E87: 0 | F87: 0 | G87: 3,660.00 | H87: 0
A88: AGAR GC | B88: FCO. | C88: 1 | D88: 0 | E88: 1 | F88: 0 | G88: 4,965.00 | H88: 0
A89: AGAR HECTOEN | B89: FCO. | C89: 0 | D89: 0 | E89: 0 | F89: 0 | G89: 9,136.00 | H89: 0
A90: AGAR HEMOGLOVINA BOVINA | B90: FCO. | C90: 0 | D90: 0 | E90: 0 | F90: 0 | G90: 4,356.00 | H90: 0
A91: AGAR LYSINE IRON (LIA) 100G | B91: FCO. | C91: 0 | D91: 0 | E91: 0 | F91: 0 | G91: 5,005.00 | H91: 0
A92: AGAR MACCONKEY | B92: FCO. | C92: 1 | D92: 0 | E92: 0 | F92: 1 | G92: 4,990.00 | H92: 4,990.00
A93: AGAR MANITOL SALT | B93: FCO. | C93: 1 | D93: 0 | E93: 1 | F93: 0 | G93: 4,435.00 | H93: 0
A94: AGAR MULLER HILTON | B94: FCO. | C94: 1 | D94: 0 | E94: 0 | F94: 1 | G94: 5,500.00 | H94: 5,500.00
A95: AGAR SABOURAUD CON CLORANFENICOL | B95: FCO. | C95: 1 | D95: 0 | E95: 0 | F95: 1 | G95: 7,415.00 | H95: 7,415.00
A96: AGAR SALMONELLA SCHIGUELLA | B96: FCO. | C96: 0 | D96: 0 | E96: 0 | F96: 0 | G96: 4,630.00 | H96: 0
A97: AGAR SIM MEDIUM | B97: FCO. | C97: 0 | D97: 0 | E97: 0 | F97: 0 | G97: 2,849.00 | H97: 0
A98: AGAR TIOGLICOLATO FLUID | B98: FCO. | C98: 0 | D98: 0 | E98: 0 | F98: 0 | G98: 5,605.00 | H98: 0
A99: AGAR TRIPLE SUGAR IRON | B99: FCO. | C99: 0 | D99: 0 | E99: 0 | F99: 0 | G99: 3,575.00 | H99: 0
A100: AGAR TSA TRICTICASA SUGAR | B100: FCO. | C100: 0 | D100: 0 | E100: 0 | F100: 0 | G100: 3,650.00 | H100: 0
A101: AGUA BIDESTILADA | B101: Galon | C101: 0 | D101: 0 | E101: 0 | F101: 0 | G101: 120.00 | H101: 0
A102: AGUA DESTILADA | B102: Galon | C102: 44 | D102: 60 | E102: 45 | F102: 59 | G102: 80.00 | H102: 4,720.00
A103: AGUA STERIL AMPOLLA | B103: FCO. | C103: 0 | D103: 0 | E103: 0 | F103: 0 | G103: 2.17 | H103: 0
A104: AGUJA BACTERIOLOGICA | B104: UNID. | C104: 2 | D104: 0 | E104: 1 | F104: 1 | G104: 4,320.00 | H104: 4,320.00
A105: AGUJA P/VACUTANIER | B105: Caja | C105: 50 | D105: 0 | E105: 0 | F105: 50 | G105: 672.00 | H105: 33,600.00
A106: AU480 ALBUMINA | B106: SET | C106: 0 | D106: 1 | E106: 0 | F106: 1 | G106: 13,608.00 | H106: 13,608.00
A107: AU480 ACIDO URICO | B107: SET | C107: 0 | D107: 3 | E107: 1 | F107: 2 | G107: 13,608.00 | H107: 27,216.00
A108: AU480 ALT | B108: SET | C108: 3 | D108: 3 | E108: 3 | F108: 3 | G108: 21,772.80 | H108: 65,318.40
A109: AU480 AMILASA | B109: SET | C109: 3 | D109: 2 | E109: 3 | F109: 2 | G109: 4,536.00 | H109: 9,072.00
A110: AU480 AST | B110: SET | C110: 3 | D110: 3 | E110: 3 | F110: 3 | G110: 21,772.80 | H110: 65,318.40
A111: AU480 BECKMAN COULTER QUIMICA | B111: SET | C111: 0 | D111: 0 | E111: 0 | F111: 0 | G111: 0.00 | H111: 0
A112: AU480 BILIRRUBINA DIRECTA | B112: SET | C112: 3 | D112: 2 | E112: 3 | F112: 2 | G112: 4,536.00 | H112: 9,072.00
A113: AU480 BILIRRUBINA TOTAL | B113: SET | C113: 4 | D113: 2 | E113: 4 | F113: 2 | G113: 12,000.00 | H113: 24,000.00
A114: AU480 CALCIO | B114: FCO. | C114: 1 | D114: 0 | E114: 0 | F114: 1 | G114: 15,649.00 | H114: 15,649.00
A115: AU480 COLESTEROL | B115: SET | C115: 3 | D115: 2 | E115: 3 | F115: 2 | G115: 20,298.60 | H115: 40,597.20
A116: AU480 CONTROL HEMOGLOBINA GLICOCILADA | B116: S0T | C116: 1 | D116: 0 | E116: 1 | F116: 0 | G116: 7,452.00 | H116: 0
A117: AU480 CREATININA | B117: SET | C117: 3 | D117: 3 | E117: 4 | F117: 2 | G117: 22,680.00 | H117: 45,360.00
A118: AU480 FOSTATASA ALCALINA | B118: SET | C118: 3 | D118: 0 | E118: 0 | F118: 3 | G118: 6,804.00 | H118: 20,412.00
A119: AU480 FOSFORO | B119: SET | C119: 1 | D119: 0 | E119: 0 | F119: 1 | G119: 12,700.00 | H119: 12,700.00
A120: AU480 GGT | B120: SET | C120: 3 | D120: 0 | E120: 0 | F120: 3 | G120: 6,350.00 | H120: 19,050.00
A121: AU480 GLUCOSA | B121: SET | C121: 4 | D121: 2 | E121: 3 | F121: 3 | G121: 13,608.00 | H121: 40,824.00
A122: AU480 HB GLICOSILADA | B122: SET | C122: 1 | D122: 3 | E122: 2 | F122: 2 | G122: 56,250.00 | H122: 112,500.00
A123: AU480 HDL | B123: SET | C123: 1 | D123: 5 | E123: 0 | F123: 6 | G123: 11,844.00 | H123: 71,064.00
A124: AU480 LDH | B124: SET | C124: 1 | D124: 0 | E124: 0 | F124: 1 | G124: 13,948.20 | H124: 13,948.20
A125: AU480 MAGNESIO | B125: SET | C125: 0 | D125: 1 | E125: 0 | F125: 1 | G125: 5,443.20 | H125: 5,443.20
A126: AU480 LIPASA | B126: SET | C126: 3 | D126: 3 | E126: 4 | F126: 2 | G126: 16,632.00 | H126: 33,264.00
A127: AU480 PROTEINA TOTAL | B127: SET | C127: 1 | D127: 0 | E127: 0 | F127: 1 | G127: 16,443.00 | H127: 16,443.00
A128: AU480 SOLUCION CLORHIDRICO | B128: FCO. | C128: 1 | D128: 0 | E128: 0 | F128: 1 | G128: 759.00 | H128: 759.00
A129: AU480 TIGLICERIDOS | B129: SET | C129: 4 | D129: 0 | E129: 2 | F129: 2 | G129: 15,309.00 | H129: 30,618.00
A130: AU480 UREA BUN | B130: SET | C130: 3 | D130: 2 | E130: 3 | F130: 2 | G130: 13,608.00 | H130: 27,216.00
A131: AHBC ELISA-CORE | B131: SET | C131: 0 | D131: 0 | E131: 0 | F131: 0 | G131: 10,238.40 | H131: 0
A132: ALBUMINA 100 TEST, Q.C.A | B132: SET | C132: 0 | D132: 0 | E132: 0 | F132: 0 | G132: 1,364.00 | H132: 0
A133: ALBUMINA BOVINA 22% DONADA | B133: FCO. | C133: 0 | D133: 0 | E133: 0 | F133: 0 | G133: 0.00 | H133: 0
A134: ALBUMINA BOVINA 22% | B134: FCO. | C134: 3 | D134: 0 | E134: 1 | F134: 2 | G134: 900.00 | H134: 1,800.00
A135: ALBUMINA MANUAL | B135: SET | C135: 0 | D135: 0 | E135: 0 | F135: 0 | G135: 780.00 | H135: 0
A136: ALCOHOL ISOPROPILICO 70% (Galon) | B136: Galon | C136: 0 | D136: 8 | E136: 0 | F136: 8 | G136: 324.50 | H136: 2,596.00
A137: ALCOGOL AL 70% LITRO | B137: Galon | C137: 0 | D137: 4 | E137: 0 | F137: 4 | G137: 80.00 | H137: 320.00
A138: ALCOHOL ABSOLUTO --ETANOL | B138: Galon | C138: 0 | D138: 0 | E138: 0 | F138: 0 | G138: 5,715.00 | H138: 0
A139: ALCOHOL EN TOALLAS | B139: Caja | C139: 0 | D139: 0 | E139: 0 | F139: 0 | G139: 0.00 | H139: 0
A140: ALCOHOL ETILICO 95% | B140: Galon | C140: 0 | D140: 0 | E140: 0 | F140: 0 | G140: 4,172.00 | H140: 0
A141: ALCOHOL ISOPROPILICO 70 | B141: Galon | C141: 0 | D141: 0 | E141: =C141+D141-F141 -> 0 | F141: 0 | G141: 324.50 | H141: =F141*G141 -> 0
A142: ALCOHOL METILICO (METANOL) | B142: Galon | C142: 0 | D142: 0 | E142: 0 | F142: 0 | G142: 1,440.00 | H142: 0
A143: ALCOHOL PROPANO (PROPANOL II) | B143: Galon | C143: 4 | D143: 0 | E143: 0 | F143: 4 | G143: 4,178.00 | H143: 16,712.00
A144: ALGODON | B144: ROLLO | C144: 0 | D144: 0 | E144: 0 | F144: 0 | G144: 525.00 | H144: 0
A145: ALGODON ABSORVENTE ( ROLLO) | B145: ROLLO | C145: 2 | D145: 10 | E145: 2 | F145: 10 | G145: 75.90 | H145: 759.00
A146: ALUMINIUM POTASSIUM SULFATE | B146: FCO. | C146: 0 | D146: 0 | E146: 0 | F146: 0 | G146: 9,700.00 | H146: 0
A147: BIOCHEMISTRY CONTROL SERRUM 1 | B147: FCO. | C147: 0 | D147: 0 | E147: 0 | F147: 0 | G147: 497.90 | H147: 0
A148: BIOCHEMISTRY CONTROL SERRUM II | B148: FCO. | C148: 0 | D148: 0 | E148: 0 | F148: 0 | G148: 497.90 | H148: 0
A149: AMILASA LIQUIDA 1X120, Q.C.A. | B149: SET | C149: 0 | D149: 0 | E149: 0 | F149: 0 | G149: 4,543.00 | H149: 0
A150: AMILASA MANUAL | B150: SET | C150: 0 | D150: 0 | E150: 0 | F150: 0 | G150: 1,147.70 | H150: 0
A151: ANTI A DONADA | B151: FCO. | C151: 0 | D151: 0 | E151: 0 | F151: 0 | G151: 0.00 | H151: 0
A152: ANTI A | B152: FCO. | C152: 8 | D152: 0 | E152: 4 | F152: 4 | G152: 634.00 | H152: 2,536.00
A153: ANTI B DONADA | B153: FCO. | C153: 0 | D153: 0 | E153: 0 | F153: 0 | G153: 0.00 | H153: 0
A154: ANTI A-B | B154: FCO. | C154: 4 | D154: 0 | E154: 4 | F154: 0 | G154: 832.00 | H154: 0
A155: ANTI A-B-D | B155: SET | C155: 0 | D155: 0 | E155: 0 | F155: 0 | G155: 335.00 | H155: 0
A156: ANTI B | B156: FCO. | C156: 13 | D156: 0 | E156: 10 | F156: 3 | G156: 634.00 | H156: 1,902.00
A157: ANTI D DONADA | B157: FCO. | C157: 0 | D157: 0 | E157: 0 | F157: 0 | G157: 0.00 | H157: 0
A158: ANTI D | B158: FCO. | C158: 5 | D158: 0 | E158: 0 | F158: 5 | G158: 1,126.00 | H158: 5,630.00
A159: ANTI HUMANO COOMBS DONADO | B159: FCO. | C159: 0 | D159: 0 | E159: 0 | F159: 0 | G159: 0.00 | H159: 0
A160: ANTI HUMANO COOMBS | B160: FCO. | C160: 4 | D160: 0 | E160: 2 | F160: 2 | G160: 986.00 | H160: 1,972.00
A161: ANTICOAGULANTE | B161: FCO. | C161: 0 | D161: 0 | E161: 0 | F161: 0 | G161: 170.00 | H161: 0
A162: ANTIGENO FEBRILES | B162: SET | C162: 2 | D162: 0 | E162: 1 | F162: 1 | G162: 3,227.00 | H162: 3,227.00
A163: APLICADORES MADERA | B163: Caja | C163: 5 | D163: 0 | E163: 0 | F163: 5 | G163: 618.00 | H163: 3,090.00
A164: ASA BACTERIOLOGICA 0.001 | B164: UNID. | C164: 5 | D164: 0 | E164: 5 | F164: 0 | G164: 4,320.00 | H164: 0
A165: ASA BACTERIOLOGICA 0.01 | B165: UNID. | C165: 5 | D165: 0 | E165: 5 | F165: 0 | G165: 4,880.00 | H165: 0
A166: ASO LATEX | B166: SET | C166: 5 | D166: 0 | E166: 3 | F166: 2 | G166: 1,792.00 | H166: 3,584.00
A167: AZUL DE METILENO | B167: FCO. | C167: 0 | D167: 0 | E167: 0 | F167: 0 | G167: 3,800.00 | H167: 0
A168: AUTION MAX CONTROL DE ORINA | B168: SET | C168: 0 | D168: 0 | E168: 0 | F168: 0 | G168: 7,861.20 | H168: 0
A169: AUTION MAX CONTROL ORINA P/TIRAS | B169: SET | C169: 0 | D169: 0 | E169: 0 | F169: 0 | G169: 7,861.20 | H169: 0
A170: AUTION MAX TIRAS ARKRAY (73591) | B170: FCO. | C170: 7 | D170: 20 | E170: 7 | F170: 20 | G170: 2,600.00 | H170: 52,000.00
A171: AUTION HIBRID DILUEN BAD | B171: FCO. | C171: 2 | D171: 0 | E171: 2 | F171: 0 | G171: 8,759.00 | H171: 0
A172: AUTION HIBRID DILUEN SED | B172: FCO. | C172: 2 | D172: 0 | E172: 2 | F172: 0 | G172: 11,986.00 | H172: 0
A173: AUTION HYBRID STANIG SOLUTION BAC | B173: FCO. | C173: 2 | D173: 0 | E173: 0 | F173: 2 | G173: 8,759.00 | H173: 17,518.00
A174: AUTION HYBRID STANIG SOLUTION SED | B174: FCO. | C174: 1 | D174: 0 | E174: 0 | F174: 1 | G174: 16,904.00 | H174: 16,904.00
A175: AUTION HYBRID SHEATH SOLUTION | B175: Caja | C175: 0 | D175: 0 | E175: 0 | F175: 0 | G175: 8,759.00 | H175: 0
A176: AUTION SOLUTION DE LAVADO | B176: Galon | C176: 9 | D176: 0 | E176: 5 | F176: 4 | G176: 2,400.00 | H176: 9,600.00
A177: AUTION TIRA ORINA HYBRID URIFLEX | B177: FCO. | C177: 40 | D177: 0 | E177: 20 | F177: 20 | G177: 2,182.00 | H177: 43,640.00
A178: ATCC27853 PSEUDOMONA AEROGINOS | B178: SET | C178: 0 | D178: 0 | E178: 0 | F178: 0 | G178: 2,115.15 | H178: 0
A179: ATCC29212 ENTEROC. FECALIS | B179: SET | C179: 0 | D179: 0 | E179: 0 | F179: 0 | G179: 2,360.13 | H179: 0
A180: AURAMINA O 25mg | B180: FCO. | C180: 0 | D180: 0 | E180: 0 | F180: 0 | G180: 5,160.00 | H180: 0
A181: AUTOCLAVE M4 15/3 48L 110V | B181: UNID. | C181: 0 | D181: 0 | E181: 0 | F181: 0 | G181: 108,650.00 | H181: 0
A182: BAJANTE DE SANGRE BAXTER | B182: UNID. | C182: 0 | D182: 0 | E182: 0 | F182: 0 | G182: 304.00 | H182: 0
A183: BAJANTE DE SANGRE | B183: UNID. | C183: 0 | D183: 0 | E183: 0 | F183: 0 | G183: 7.30 | H183: 0
A184: BALSAMO PARA PATOLOGIA | B184: FCO. | C184: 0 | D184: 0 | E184: 0 | F184: 0 | G184: 4,200.00 | H184: 0
A185: BASE MOLDS METAL 15X15X5 C/30 | B185: UNID. | C185: 0 | D185: 0 | E185: 0 | F185: 0 | G185: 32,500.00 | H185: 0
A186: BANDEJA DE TINCION | B186: UNID. | C186: 0 | D186: 0 | E186: 0 | F186: 0 | G186: 1,338.00 | H186: 0
A187: BANDEJA PARA TOMA DE MUESTRA | B187: UNID. | C187: 1 | D187: 0 | E187: 1 | F187: 0 | G187: 7,808.00 | H187: 0
A188: BAÑO DE COPRINS CON TAPA CRISTAL | B188: UNID. | C188: 0 | D188: 0 | E188: 0 | F188: 0 | G188: 4,060.00 | H188: 0
A189: BAÑO DE MARIA | B189: UNID. | C189: 0 | D189: 0 | E189: 0 | F189: 0 | G189: 11,116.38 | H189: 0
A190: BFTII + BOARD | B190: UNID. | C190: 0 | D190: 0 | E190: 0 | F190: 0 | G190: 22,176.00 | H190: 0
A191: BATA STERIL | B191: UNID. | C191: 0 | D191: 0 | E191: 0 | F191: 0 | G191: 0.00 | H191: 0
A192: BFT-II CUBETAS COAGULACION | B192: Caja | C192: 2 | D192: 1 | E192: 2 | F192: 1 | G192: 17,767.50 | H192: 17,767.50
A193: BILIRRUBINA 100 TEST, Q.C.A. | B193: SET | C193: 0 | D193: 0 | E193: 0 | F193: 0 | G193: 1,474.00 | H193: 0
A194: BILIRRUBINA MANUAL | B194: SET | C194: 0 | D194: 0 | E194: 0 | F194: 0 | G194: 1,708.80 | H194: 0
A195: BILIRRUBINA MANUAL | B195: SET | C195: 0 | D195: 0 | E195: 0 | F195: 0 | G195: 264.00 | H195: 0
A196: BIO WRIGHT 1 | B196: Galon | C196: 0 | D196: 0 | E196: 0 | F196: 0 | G196: 1,988.35 | H196: 0
A197: BIO WRIGHT 2 | B197: Galon | C197: 1 | D197: 0 | E197: 1 | F197: 0 | G197: 1,890.00 | H197: 0
A198: BIO WRIGHT 3 | B198: Galon | C198: 1 | D198: 0 | E198: 1 | F198: 0 | G198: 1,890.00 | H198: 0
A199: BOLSA DE DESECHO | B199: Galon | C199: 0 | D199: 0 | E199: 0 | F199: 0 | G199: 5,846.10 | H199: 0
A200: BOLSA COLECTORAS DE SANGRE | B200: UNID. | C200: 0 | D200: 0 | E200: 0 | F200: 0 | G200: 36.80 | H200: 0
A201: BOLSA DE SANGRE TRIPLE-DONADA | B201: UNID. | C201: 0 | D201: 0 | E201: 0 | F201: 0 | G201: 0.00 | H201: 0
A202: BOLSAS DE SANGRE DOBLE 10/1 | B202: FDA | C202: 0 | D202: 0 | E202: 0 | F202: 0 | G202: 2,400.00 | H202: 0
A203: BOLSAS DE SANGRE DOBLE 13/1 | B203: PAQ. | C203: 0 | D203: 0 | E203: 0 | F203: 0 | G203: 0.00 | H203: 0
... 621 more rows

Sheet SEPTIEMBRE 2021 (4)
A3: SERVICIO NACIONAL DE SALUD
A4: Informe Mensual de Almacén General, Despensa y Medicina
A5: ALMACEN | B5: LABORATORIO
A6: ESTABLECIMIENTO | B6: CENTRO DE GASTROENTEROLOGIA | E6: REGION | F6: 0
A7: AREA DE SALUD | E7: MES | F7: SEPTIEMBRE | G7: AÑO | H7: 2021
A9: ARTICULO | B9: UNIDAD | C9: EXISTENCIA ANTERIOR | D9: ENTRADA | E9: EXISTENCIA | F9: TOTAL CONSUMIDOS (3+4)-5 | G9: VALOR UNITARIO | H9: VALOR TOTAL
C10: ANTERIOR | E10: FINAL | F10: CONSUMIDO | G10: UNITARIO | H10: TOTAL
A11: -1- | C11: 3 | D11: -4- | E11: -5- | F11: (3+4)-5 | G11: -7- | H11: (6X7)
A12: AB CONTROL NORMAL SUERO | B12: SET | C12: 0 | D12: 0 | E12: =C12+D12-F12 -> 0 | F12: 0 | G12: 27,284.22 | H12: =F12*G12 -> 0
A13: ABX TONER PARA IMPRESORA | B13: UNID | C13: 0 | D13: 0 | E13: =C13+D13-F13 -> 0 | F13: 0 | G13: 866.25
A14: ABX DIFFTROL 2H | B14: SET | C14: 0 | D14: 0 | E14: 0 | F14: 0 | G14: 14,720.00 | H14: =F14*G14 -> 0
A15: ABX DIFFTROL 2L | B15: SET | C15: 0 | D15: 0 | E15: 0 | F15: 0 | G15: 14,720.00 | H15: 0
A16: ABX DIFFTROL 2N | B16: SET | C16: 0 | D16: 0 | E16: 0 | F16: 0 | G16: 14,720.00 | H16: 0
A17: ABX CONTROL HEMATOLOGICO 3/1 | B17: SET | C17: 3 | D17: 2 | E17: 2 | F17: 3 | G17: 12,476.00 | H17: 37,428.00
A18: ABX MINOLYSE | B18: FCO. | C18: 5 | D18: 0 | E18: 3 | F18: 2 | G18: 23,552.00 | H18: 47,104.00
A19: ABX LISEBIO | B19: FCO. | C19: 0 | D19: 0 | E19: 0 | F19: 0 | G19: 16,200.00 | H19: 0
A20: ABX MINOTON | B20: Caja | C20: 3 | D20: 1 | E20: 1 | F20: 3 | G20: 17,028.00 | H20: 51,084.00
A21: ACIDO PERIODICO 100 G | B21: FCO. | C21: 0 | D21: 0 | E21: 0 | F21: 0 | G21: 58,200.00 | H21: 0
A22: AC. PHOSPHOTUNGSTICO HYDRATE 25mg | B22: FCO. | C22: 0 | D22: 0 | E22: 0 | F22: 0 | G22: 6,720.00 | H22: 0
A23: ACCESS FERRITIN 2X50 | B23: SET | C23: 0 | D23: 0 | E23: 0 | F23: 0 | G23: 19,405.10 | H23: 0
A24: ACCESS AFP 2X50 | B24: SET | C24: 0 | D24: 0 | E24: 0 | F24: 0 | G24: 20,031.00 | H24: 0
A25: ACCESS B12 2X50 | B25: SET | C25: 0 | D25: 0 | E25: 0 | F25: 0 | G25: 16,465.00 | H25: 0
A26: ACCESS BOLSA DESECHABLES | B26: CAJA | C26: 0 | D26: 0 | E26: 0 | F26: 0 | G26: 6,680.70 | H26: 0
A27: ACCESS CA 125 2X50 | B27: SET | C27: 0 | D27: 0 | E27: 0 | F27: 0 | G27: 26,708.50 | H27: 0
A28: ACCESS CA 19-9 2X50 | B28: SET | C28: 0 | D28: 0 | E28: 0 | F28: 0 | G28: 28,043.60 | H28: 0
A29: ACCESS CONTRAD 70 | B29: SET | C29: 1 | D29: 0 | E29: 1 | F29: 0 | G29: 6,227.00 | H29: 0
A30: ACCESS CEA 2X50 | B30: SET | C30: 0 | D30: 0 | E30: 0 | F30: 0 | G30: 24,811.02 | H30: 0
A31: ACCESS CONTROL TUMORAL1 | B31: SET | C31: 0 | D31: 0 | E31: 0 | F31: 0 | G31: 10,382.40 | H31: 0
A32: ACCESS CONTROL TUMORAL2 | B32: SET | C32: 0 | D32: 0 | E32: 0 | F32: 0 | G32: 10,382.40 | H32: 0
A33: ACCESS FOLATE 2X50 | B33: SET | C33: 0 | D33: 0 | E33: 0 | F33: 0 | G33: 16,499.60 | H33: 0
A34: ACCESS HAV AB 2X50 | B34: SET | C34: 1 | D34: 0 | E34: 0 | F34: 1 | G34: 28,043.60 | H34: 28,043.60
A35: ACCESS HAV IGM 2X50 | B35: SET | C35: 1 | D35: 0 | E35: 0 | F35: 1 | G35: 25,873.90 | H35: 25,873.90
A36: ACCESS HBC AB 2X50 | B36: SET | C36: 0 | D36: 1 | E36: 0 | F36: 1 | G36: 28,043.60 | H36: 28,043.60
A37: ACCESS HBC IGM 2X50 | B37: SET | C37: 0 | D37: 1 | E37: 0 | F37: 1 | G37: 28,043.60 | H37: 28,043.60
A38: ACCESS HCG 2X50 | B38: SET | C38: 0 | D38: 0 | E38: 0 | F38: 0 | G38: 14,658.80 | H38: 0
A39: ACCESS IGE 2X50 | B39: SET | C39: 0 | D39: 0 | E39: 0 | F39: 0 | G39: 16,465.80 | H39: 0
A40: ACCESS PROGESTERON 2X50 | B40: SET | C40: 0 | D40: 0 | E40: 0 | F40: 0 | G40: 12,827.10 | H40: 0
A41: ACCESS PROLACTIN 2X50 | B41: SET | C41: 0 | D41: 0 | E41: 0 | F41: 0 | G41: 13,525.20 | H41: 0
A42: ACCESS PSA LIBRE 2X50 | B42: SET | C42: 0 | D42: 0 | E42: 0 | F42: 0 | G42: 26,708.50 | H42: 0
A43: ACCESS PSA TOTAL | B43: SET | C43: 0 | D43: 0 | E43: 0 | F43: 0 | G43: 17,032.60 | H43: 0
A44: ACCESS REACTION VESSEL 16X98 | B44: Caja | C44: 0 | D44: 0 | E44: 0 | F44: 0 | G44: 8,622.90 | H44: 0
A45: ACCESS SAMPLE CUP 2 ML | B45: PAQ. | C45: 1 | D45: 0 | E45: 1 | F45: 0 | G45: 2,421.90 | H45: 0
A46: ACCESS SUSTRATO 600T 1X30ML | B46: FCO. | C46: 0 | D46: 5 | E46: 3 | F46: 2 | G46: 7,874.10 | H46: 15,748.20
A47: ACCESS SYSTEM CHECK 6X4 ML | B47: SET | C47: 1 | D47: 0 | E47: 1 | F47: 0 | G47: 10,926.50 | H47: 0
A48: ACCESS T3 2X50 | B48: SET | C48: 0 | D48: 0 | E48: 0 | F48: 0 | G48: 12,147.20 | H48: 0
A49: ACCESS T4 2X50 | B49: SET | C49: 0 | D49: 0 | E49: 0 | F49: 0 | G49: 12,147.20 | H49: 0
A50: ACCESS T4 LIBRE | B50: SET | C50: 0 | D50: 0 | E50: 0 | F50: 0 | G50: 13,962.00 | H50: 0
A51: ACCESS TOXO 2X50 | B51: SET | C51: 0 | D51: 0 | E51: 0 | F51: 0 | G51: 21,032.70 | H51: 0
A52: ACCESS TOXO IGM | B52: SET | C52: 0 | D52: 0 | E52: 0 | F52: 0 | G52: 17,846.40 | H52: 0
A53: ACCESS TSH 2X50 | B53: SET | C53: 0 | D53: 0 | E53: 0 | F53: 0 | G53: 12,147.20 | H53: 0
A54: ACCESS WASH BUFFER ll 4x1.9L | B54: FCO. | C54: 0 | D54: 4 | E54: 3 | F54: 1 | G54: 5,623.80 | H54: 5,623.80
A55: ACEITE DE INMERSION | B55: FCO. | C55: 0 | D55: 0 | E55: 0 | F55: 0 | G55: 1,380.00 | H55: 0
A56: ACETONA | B56: Galon | C56: 0 | D56: 0 | E56: 0 | F56: 0 | G56: 975.00 | H56: 0
A57: ACETONA GRADO REACTIVO | B57: Galon | C57: 0 | D57: 3 | E57: 0 | F57: 3 | G57: 1,210.00 | H57: 3,630.00
A58: ACIDO PERIODICO | B58: FCO. | C58: 0 | D58: 0 | E58: 0 | F58: 0 | G58: 17,600.00 | H58: 0
A59: ACID ALCOHOL 3% -DONADO | B59: LT. | C59: 0 | D59: 0 | E59: 0 | F59: 0 | G59: 0.00 | H59: 0
A60: ACIDO ACETICO GLACIAL | B60: LT. | C60: 0 | D60: 0 | E60: 0 | F60: 0 | G60: 2,125.00 | H60: 0
A61: ACIDO CLORHIDRICO | B61: Galon | C61: 0 | D61: 0 | E61: 0 | F61: 0 | G61: 4,800.00 | H61: 0
A62: ACIDO NITRICO | B62: Galon | C62: 0 | D62: 0 | E62: 0 | F62: 0 | G62: 4,750.00 | H62: 0
A63: ACIDO SULFURICO 4N 1000 ML | B63: LT. | C63: 0 | D63: 0 | E63: 0 | F63: 0 | G63: 518.40 | H63: 0
A64: ACIDO URICO 300T Q.C.A. | B64: SET | C64: 0 | D64: 0 | E64: 0 | F64: 0 | G64: 1,864.50 | H64: 0
A65: ACIDO URICO MANUAL | B65: SET | C65: 0 | D65: 0 | E65: 0 | F65: 0 | G65: 2,780.00 | H65: 0
A66: ACIDO URICO MANUAL | B66: SET | C66: 0 | D66: 0 | E66: 0 | F66: 0 | G66: 522.00 | H66: 0
A67: ACL DILUYENTE FACTORES 100ML | B67: FCO. | C67: 0 | D67: 0 | E67: 0 | F67: 0 | G67: 744.00 | H67: 0
A68: ACL HIGH ABNORMAL CONT 10X1ML | B68: Caja | C68: 1 | D68: 2 | E68: 1 | F68: 2 | G68: 4,055.57 | H68: 8,111.14
A69: ACL RECOMBOPLASTIN | B69: SET | C69: 0 | D69: 0 | E69: 0 | F69: 0 | G69: 5,865.35 | H69: 0
A70: ACL. WASH EMULSION | B70: FCO. | C70: 8 | D70: 0 | E70: 2 | F70: 6 | G70: 1,066.00 | H70: 6,396.00
A71: ACL. APTT. 5+5X5X8 | B71: Caja | C71: 6 | D71: 0 | E71: 4 | F71: 2 | G71: 4,724.20 | H71: 9,448.40
A72: ACL. CALIBRADOR PLASMA | B72: Caja | C72: 0 | D72: 0 | E72: 0 | F72: 0 | G72: 4,101.30 | H72: 0
A73: ACL. CLEANING SOLUTION 500ML | B73: SET | C73: 1 | D73: 1 | E73: 1 | F73: 1 | G73: 1,687.00 | H73: 1,687.00
A74: ACL. COPAS 4 ML C/100 | B74: SET | C74: 0 | D74: 0 | E74: 0 | F74: 0 | G74: 3,454.10 | H74: 0
A75: ACL. COPAS 0.5ML C/1000 | B75: Caja | C75: 2 | D75: 0 | E75: 1 | F75: 1 | G75: 2,717.00 | H75: 2,717.00
A76: ACL. COPAS 2ML 1000/PK | B76: Caja | C76: 0 | D76: 0 | E76: 0 | F76: 0 | G76: 4,702.80 | H76: 0
A77: ACL. EMULCION DE REFERENCIA | B77: SET | C77: 0 | D77: 0 | E77: =C77+D77-F77 -> 0 | F77: 0 | G77: 3,510.00 | H77: 0
A78: ACL. LOW ABNORMAL CONT. 10X1ML | B78: SET | C78: 2 | D78: 0 | E78: 1 | F78: 1 | G78: 3,949.40 | H78: =F78*G78 -> 3,949.40
A79: ACL. PLASMA CONTROL NORM 10X1ML | B79: Caja | C79: 2 | D79: 0 | E79: 1 | F79: 1 | G79: 3,577.60 | H79: 3,577.60
A80: ACL. PT RGT-FIBRINOGENO 5+5X8ML | B80: Caja | C80: 2 | D80: 4 | E80: 2 | F80: 4 | G80: 5,411.90 | H80: 21,647.60
A81: ACL. ROTORES C/100 | B81: Caja | C81: 1 | D81: 2 | E81: 1 | F81: 2 | G81: 14,352.00 | H81: 28,704.00
A82: AGAR BIGGY | B82: FCO. | C82: 0 | D82: 0 | E82: 0 | F82: 0 | G82: 4,391.00 | H82: 0
A83: AGAR SANGRE | B83: FCO. | C83: 1 | D83: 1 | E83: 1 | F83: 1 | G83: 5,120.00 | H83: 5,120.00
A84: AGAR BILI ESCULINA | B84: SET | C84: 0 | D84: 0 | E84: 0 | F84: 0 | G84: 7,650.00 | H84: 0
A85: AGAR CITRATO DE SIMMONS | B85: FCO. | C85: 0 | D85: 0 | E85: 0 | F85: 0 | G85: 5,475.00 | H85: 0
A86: AGAR COLUMBIA | B86: FCO. | C86: 0 | D86: 0 | E86: 0 | F86: 0 | G86: 2,658.00 | H86: 0
A87: AGAR EOSIN AZUL METILENO-- EAM | B87: FCO. | C87: 0 | D87: 0 | E87: 0 | F87: 0 | G87: 3,660.00 | H87: 0
A88: AGAR GC | B88: FCO. | C88: 2 | D88: 0 | E88: 2 | F88: 0 | G88: 4,965.00 | H88: 0
A89: AGAR HECTOEN | B89: FCO. | C89: 0 | D89: 0 | E89: 0 | F89: 0 | G89: 9,136.00 | H89: 0
A90: AGAR HEMOGLOVINA BOVINA | B90: FCO. | C90: 0 | D90: 0 | E90: 0 | F90: 0 | G90: 4,356.00 | H90: 0
A91: AGAR LYSINE IRON (LIA) 100G | B91: FCO. | C91: 2 | D91: 0 | E91: 2 | F91: 0 | G91: 5,005.00 | H91: 0
A92: AGAR MACCONKEY | B92: FCO. | C92: 0 | D92: 2 | E92: 1 | F92: 1 | G92: 4,990.00 | H92: 4,990.00
A93: AGAR MANITOL SALT | B93: FCO. | C93: 1 | D93: 1 | E93: 1 | F93: 1 | G93: 4,435.00 | H93: 4,435.00
A94: AGAR MULLER HILTON | B94: FCO. | C94: 2 | D94: 0 | E94: 1 | F94: 1 | G94: 5,500.00 | H94: 5,500.00
A95: AGAR SABOURAUD CON CLORANFENICOL | B95: FCO. | C95: 0 | D95: 0 | E95: 0 | F95: 0 | G95: 7,415.00 | H95: 0
A96: AGAR SALMONELLA SCHIGUELLA | B96: FCO. | C96: 0 | D96: 0 | E96: 0 | F96: 0 | G96: 4,630.00 | H96: 0
A97: AGAR SIM MEDIUM | B97: FCO. | C97: 0 | D97: 0 | E97: 0 | F97: 0 | G97: 2,849.00 | H97: 0
A98: AGAR TIOGLICOLATO FLUID | B98: FCO. | C98: 0 | D98: 0 | E98: 0 | F98: 0 | G98: 5,605.00 | H98: 0
A99: AGAR TRIPLE SUGAR IRON | B99: FCO. | C99: 0 | D99: 0 | E99: 0 | F99: 0 | G99: 3,575.00 | H99: 0
A100: AGAR TSA TRICTICASA SUGAR | B100: FCO. | C100: 0 | D100: 0 | E100: 0 | F100: 0 | G100: 3,650.00 | H100: 0
A101: AGUA BIDESTILADA | B101: Galon | C101: 0 | D101: 0 | E101: 0 | F101: 0 | G101: 120.00 | H101: 0
A102: AGUA DESTILADA | B102: Galon | C102: 38 | D102: 80 | E102: 53 | F102: 65 | G102: 80.00 | H102: 5,200.00
A103: AGUA STERIL AMPOLLA | B103: FCO. | C103: 0 | D103: 0 | E103: 0 | F103: 0 | G103: 2.17 | H103: 0
A104: AGUJA BACTERIOLOGICA | B104: UNID. | C104: 1 | D104: 0 | E104: 1 | F104: 0 | G104: 4,320.00 | H104: 0
A105: AGUJA P/VACUTANIER | B105: Caja | C105: 50 | D105: 50 | E105: 50 | F105: 50 | G105: 672.00 | H105: 33,600.00
A106: AU480 ALBUMINA | B106: SET | C106: 2 | D106: 0 | E106: 1 | F106: 1 | G106: 13,608.00 | H106: 13,608.00
A107: AU480 ACIDO URICO | B107: SET | C107: 2 | D107: 1 | E107: 1 | F107: 2 | G107: 13,608.00 | H107: 27,216.00
A108: AU480 ALT | B108: SET | C108: 3 | D108: 2 | E108: 1 | F108: 4 | G108: 21,772.80 | H108: 87,091.20
A109: AU480 AMILASA | B109: SET | C109: 2 | D109: 2 | E109: 2 | F109: 2 | G109: 4,536.00 | H109: 9,072.00
A110: AU480 AST | B110: SET | C110: 4 | D110: 2 | E110: 3 | F110: 3 | G110: 21,772.80 | H110: 65,318.40
A111: AU480 BECKMAN COULTER QUIMICA | B111: SET | C111: 0 | D111: 0 | E111: 0 | F111: 0 | G111: 0.00 | H111: 0
A112: AU480 BILIRRUBINA DIRECTA | B112: SET | C112: 3 | D112: 2 | E112: 3 | F112: 2 | G112: 4,536.00 | H112: 9,072.00
A113: AU480 BILIRRUBINA TOTAL | B113: SET | C113: 3 | D113: 1 | E113: 2 | F113: 2 | G113: 12,000.00 | H113: 24,000.00
A114: AU480 CALCIO | B114: FCO. | C114: 1 | D114: 0 | E114: 1 | F114: 0 | G114: 15,649.00 | H114: 0
A115: AU480 COLESTEROL | B115: SET | C115: 3 | D115: 2 | E115: 2 | F115: 3 | G115: 20,298.60 | H115: 60,895.80
A116: AU480 CONTROL HEMOGLOBINA GLICOCILADA | B116: S0T | C116: 2 | D116: 0 | E116: 2 | F116: 0 | G116: 7,452.00 | H116: 0
A117: AU480 CREATININA | B117: SET | C117: 4 | D117: 3 | E117: 5 | F117: 2 | G117: 22,680.00 | H117: 45,360.00
A118: AU480 FOSTATASA ALCALINA | B118: SET | C118: 0 | D118: 3 | E118: 0 | F118: 3 | G118: 6,804.00 | H118: 20,412.00
A119: AU480 FOSFORO | B119: SET | C119: 1 | D119: 0 | E119: 1 | F119: 0 | G119: 12,700.00 | H119: 0
A120: AU480 GGT | B120: SET | C120: 1 | D120: 2 | E120: 0 | F120: 3 | G120: 6,350.00 | H120: 19,050.00
A121: AU480 GLUCOSA | B121: SET | C121: 4 | D121: 3 | E121: 3 | F121: 4 | G121: 13,608.00 | H121: 54,432.00
A122: AU480 HB GLICOSILADA | B122: SET | C122: 3 | D122: 2 | E122: 2 | F122: 3 | G122: 18,700.00 | H122: 56,100.00
A123: AU480 HDL | B123: SET | C123: 0 | D123: 5 | E123: 2 | F123: 3 | G123: 11,844.00 | H123: 35,532.00
A124: AU480 LDH | B124: SET | C124: 1 | D124: 1 | E124: 2 | F124: 0 | G124: 13,948.20 | H124: 0
A125: AU480 MAGNESIO | B125: SET | C125: 0 | D125: 2 | E125: 0 | F125: 2 | G125: 5,443.20 | H125: 10,886.40
A126: AU480 LIPASA | B126: SET | C126: 2 | D126: 3 | E126: 4 | F126: 1 | G126: 16,632.00 | H126: 16,632.00
A127: AU480 PROTEINA TOTAL | B127: SET | C127: 1 | D127: 0 | E127: 1 | F127: 0 | G127: 16,443.00 | H127: 0
A128: AU480 SOLUCION CLORHIDRICO | B128: FCO. | C128: 1 | D128: 0 | E128: 1 | F128: 0 | G128: 759.00 | H128: 0
A129: AU480 TIGLICERIDOS | B129: SET | C129: 1 | D129: 3 | E129: 2 | F129: 2 | G129: 15,309.00 | H129: 30,618.00
A130: AU480 UREA BUN | B130: SET | C130: 3 | D130: 3 | E130: 3 | F130: 3 | G130: 13,608.00 | H130: 40,824.00
A131: AHBC ELISA-CORE | B131: SET | C131: 0 | D131: 0 | E131: 0 | F131: 0 | G131: 10,238.40 | H131: 0
A132: ALBUMINA 100 TEST, Q.C.A | B132: SET | C132: 0 | D132: 0 | E132: 0 | F132: 0 | G132: 1,364.00 | H132: 0
A133: ALBUMINA BOVINA 22% DONADA | B133: FCO. | C133: 0 | D133: 0 | E133: 0 | F133: 0 | G133: 0.00 | H133: 0
A134: ALBUMINA BOVINA 22% | B134: FCO. | C134: 5 | D134: 0 | E134: 3 | F134: 2 | G134: 900.00 | H134: 1,800.00
A135: ALBUMINA MANUAL | B135: SET | C135: 0 | D135: 0 | E135: 0 | F135: 0 | G135: 780.00 | H135: 0
A136: ALCOHOL ISOPROPILICO 70% (Galon) | B136: Galon | C136: 0 | D136: 0 | E136: 0 | F136: 0 | G136: 324.50 | H136: 0
A137: ALCOGOL AL 70% LITRO | B137: Galon | C137: 0 | D137: 0 | E137: 0 | F137: 0 | G137: 80.00 | H137: 0
A138: ALCOHOL ABSOLUTO --ETANOL | B138: Galon | C138: 0 | D138: 5 | E138: 0 | F138: 5 | G138: 5,715.00 | H138: 28,575.00
A139: ALCOHOL EN TOALLAS | B139: Caja | C139: 0 | D139: 0 | E139: 0 | F139: 0 | G139: 0.00 | H139: 0
A140: ALCOHOL ETILICO 95% | B140: Galon | C140: 0 | D140: 5 | E140: 0 | F140: 5 | G140: 4,172.00 | H140: 20,860.00
A141: ALCOHOL ISOPROPILICO 70 | B141: Galon | C141: 3 | D141: 4 | E141: =C141+D141-F141 -> 4 | F141: 3 | G141: 790.00 | H141: 2,370.00
A142: ALCOHOL METILICO (METANOL) | B142: Galon | C142: 0 | D142: 0 | E142: 0 | F142: 0 | G142: 1,440.00 | H142: =F142*G142 -> 0
A143: ALCOHOL PROPANO (PROPANOL II) | B143: Galon | C143: 0 | D143: 0 | E143: 0 | F143: 0 | G143: 4,178.00 | H143: 0
A144: ALGODON | B144: ROLLO | C144: 0 | D144: 0 | E144: 0 | F144: 0 | G144: 525.00 | H144: 0
A145: ALGODON ABSORVENTE ( ROLLO) | B145: ROLLO | C145: 7 | D145: 10 | E145: 6 | F145: 11 | G145: 75.90 | H145: 834.90
A146: ALUMINIUM POTASSIUM SULFATE | B146: FCO. | C146: 0 | D146: 0 | E146: 0 | F146: 0 | G146: 9,700.00 | H146: 0
A147: BIOCHEMISTRY CONTROL SERRUM 1 | B147: FCO. | C147: 0 | D147: 0 | E147: 0 | F147: 0 | G147: 497.90 | H147: 0
A148: BIOCHEMISTRY CONTROL SERRUM II | B148: FCO. | C148: 0 | D148: 0 | E148: 0 | F148: 0 | G148: 497.90 | H148: 0
A149: AMILASA LIQUIDA 1X120, Q.C.A. | B149: SET | C149: 0 | D149: 0 | E149: 0 | F149: 0 | G149: 4,543.00 | H149: 0
A150: AMILASA MANUAL | B150: SET | C150: 0 | D150: 0 | E150: 0 | F150: 0 | G150: 1,147.70 | H150: 0
A151: ANTI A DONADA | B151: FCO. | C151: 0 | D151: 0 | E151: 0 | F151: 0 | G151: 0.00 | H151: 0
A152: ANTI A | B152: FCO. | C152: 15 | D152: 0 | E152: 4 | F152: 11 | G152: 634.00 | H152: 6,974.00
A153: ANTI B DONADA | B153: FCO. | C153: 0 | D153: 0 | E153: 0 | F153: 0 | G153: 0.00 | H153: 0
A154: ANTI A-B | B154: FCO. | C154: 2 | D154: 0 | E154: 2 | F154: 0 | G154: 832.00 | H154: 0
A155: ANTI A-B-D | B155: SET | C155: 0 | D155: 0 | E155: 0 | F155: 0 | G155: 335.00 | H155: 0
A156: ANTI B | B156: FCO. | C156: 9 | D156: 0 | E156: 4 | F156: 5 | G156: 634.00 | H156: 3,170.00
A157: ANTI D DONADA | B157: FCO. | C157: 0 | D157: 0 | E157: 0 | F157: 0 | G157: 0.00 | H157: 0
A158: ANTI D | B158: FCO. | C158: 13 | D158: 8 | E158: 11 | F158: 10 | G158: 1,126.00 | H158: 11,260.00
A159: ANTI HUMANO COOMBS DONADO | B159: FCO. | C159: 0 | D159: 0 | E159: 0 | F159: 0 | G159: 0.00 | H159: 0
A160: ANTI HUMANO COOMBS | B160: FCO. | C160: 5 | D160: 5 | E160: 5 | F160: 5 | G160: 986.00 | H160: 4,930.00
A161: ANTICOAGULANTE | B161: FCO. | C161: 0 | D161: 0 | E161: 0 | F161: 0 | G161: 170.00 | H161: 0
A162: ANTIGENO FEBRILES | B162: SET | C162: 0 | D162: 0 | E162: 0 | F162: 0 | G162: 3,227.00 | H162: 0
A163: APLICADORES MADERA | B163: Caja | C163: 4 | D163: 10 | E163: 6 | F163: 8 | G163: 618.00 | H163: 4,944.00
A164: ASA BACTERIOLOGICA 0.001 | B164: UNID. | C164: 5 | D164: 0 | E164: 5 | F164: 0 | G164: 4,320.00 | H164: 0
A165: ASA BACTERIOLOGICA 0.01 | B165: UNID. | C165: 5 | D165: 0 | E165: 4 | F165: 1 | G165: 4,880.00 | H165: 4,880.00
A166: ASO LATEX | B166: SET | C166: 6 | D166: 3 | E166: 6 | F166: 3 | G166: 1,792.00 | H166: 5,376.00
A167: AZUL DE METILENO | B167: FCO. | C167: 1 | D167: 0 | E167: 0 | F167: 1 | G167: 3,800.00 | H167: 3,800.00
A168: AUTION MAX CONTROL DE ORINA | B168: SET | C168: 0 | D168: 0 | E168: 0 | F168: 0 | G168: 7,861.20 | H168: 0
A169: AUTION MAX CONTROL ORINA P/TIRAS | B169: SET | C169: 0 | D169: 0 | E169: 0 | F169: 0 | G169: 7,861.20 | H169: 0
A170: AUTION MAX TIRAS ARKRAY (73591) | B170: FCO. | C170: 29 | D170: 20 | E170: 20 | F170: 29 | G170: 2,600.00 | H170: 75,400.00
A171: AUTION HIBRID DILUEN BAD | B171: FCO. | C171: 1 | D171: 0 | E171: 1 | F171: 0 | G171: 8,759.00 | H171: 0
A172: AUTION HIBRID DILUEN SED | B172: FCO. | C172: 1 | D172: 0 | E172: 1 | F172: 0 | G172: 11,986.00 | H172: 0
A173: AUTION HYBRID STANIG SOLUTION BAC | B173: FCO. | C173: 3 | D173: 0 | E173: 3 | F173: 0 | G173: 8,759.00 | H173: 0
A174: AUTION HYBRID STANIG SOLUTION SED | B174: FCO. | C174: 2 | D174: 0 | E174: 2 | F174: 0 | G174: 16,904.00 | H174: 0
A175: AUTION HYBRID SHEATH SOLUTION | B175: Caja | C175: 0 | D175: 2 | E175: 0 | F175: 2 | G175: 8,759.00 | H175: 17,518.00
A176: AUTION SOLUTION DE LAVADO | B176: Galon | C176: 4 | D176: 0 | E176: 2 | F176: 2 | G176: 2,400.00 | H176: 4,800.00
A177: AUTION TIRA ORINA HYBRID URIFLEX | B177: FCO. | C177: 20 | D177: 0 | E177: 20 | F177: 0 | G177: 2,182.00 | H177: 0
A178: ATCC27853 PSEUDOMONA AEROGINOS | B178: SET | C178: 0 | D178: 0 | E178: 0 | F178: 0 | G178: 2,115.15 | H178: 0
A179: ATCC29212 ENTEROC. FECALIS | B179: SET | C179: 0 | D179: 0 | E179: 0 | F179: 0 | G179: 2,360.13 | H179: 0
A180: AURAMINA O 25mg | B180: FCO. | C180: 0 | D180: 0 | E180: 0 | F180: 0 | G180: 5,160.00 | H180: 0
A181: AUTOCLAVE M4 15/3 48L 110V | B181: UNID. | C181: 0 | D181: 0 | E181: 0 | F181: 0 | G181: 108,650.00 | H181: 0
A182: BAJANTE DE SANGRE BAXTER | B182: UNID. | C182: 0 | D182: 0 | E182: 0 | F182: 0 | G182: 304.00 | H182: 0
A183: BAJANTE DE SANGRE | B183: UNID. | C183: 0 | D183: 0 | E183: 0 | F183: 0 | G183: 7.30 | H183: 0
A184: BALSAMO PARA PATOLOGIA | B184: FCO. | C184: 0 | D184: 0 | E184: 0 | F184: 0 | G184: 4,200.00 | H184: 0
A185: BASE MOLDS METAL 15X15X5 C/30 | B185: UNID. | C185: 0 | D185: 0 | E185: 0 | F185: 0 | G185: 32,500.00 | H185: 0
A186: BANDEJA DE TINCION | B186: UNID. | C186: 0 | D186: 0 | E186: 0 | F186: 0 | G186: 1,338.00 | H186: 0
A187: BANDEJA PARA TOMA DE MUESTRA | B187: UNID. | C187: 0 | D187: 0 | E187: 0 | F187: 0 | G187: 7,808.00 | H187: 0
A188: BAÑO DE COPRINS CON TAPA CRISTAL | B188: UNID. | C188: 0 | D188: 0 | E188: 0 | F188: 0 | G188: 4,060.00 | H188: 0
A189: BAÑO DE MARIA | B189: UNID. | C189: 0 | D189: 0 | E189: 0 | F189: 0 | G189: 11,116.38 | H189: 0
A190: BFTII + BOARD | B190: UNID. | C190: 0 | D190: 0 | E190: 0 | F190: 0 | G190: 22,176.00 | H190: 0
A191: BATA STERIL | B191: UNID. | C191: 0 | D191: 0 | E191: 0 | F191: 0 | G191: 0.00 | H191: 0
A192: BFT-II CUBETAS COAGULACION | B192: Caja | C192: 1 | D192: 3 | E192: 1 | F192: 3 | G192: 17,767.50 | H192: 53,302.50
A193: BILIRRUBINA 100 TEST, Q.C.A. | B193: SET | C193: 0 | D193: 0 | E193: 0 | F193: 0 | G193: 1,474.00 | H193: 0
A194: BILIRRUBINA MANUAL | B194: SET | C194: 0 | D194: 0 | E194: 0 | F194: 0 | G194: 1,708.80 | H194: 0
A195: BILIRRUBINA MANUAL | B195: SET | C195: 0 | D195: 0 | E195: 0 | F195: 0 | G195: 264.00 | H195: 0
A196: BIO WRIGHT 1 | B196: Galon | C196: 0 | D196: 0 | E196: 0 | F196: 0 | G196: 1,988.35 | H196: 0
A197: BIO WRIGHT 2 | B197: Galon | C197: 1 | D197: 0 | E197: 1 | F197: 0 | G197: 1,890.00 | H197: 0
A198: BIO WRIGHT 3 | B198: Galon | C198: 1 | D198: 0 | E198: 1 | F198: 0 | G198: 1,890.00 | H198: 0
A199: BOLSA DE DESECHO | B199: Galon | C199: 0 | D199: 0 | E199: 0 | F199: 0 | G199: 5,846.10 | H199: 0
A200: BOLSA COLECTORAS DE SANGRE | B200: UNID. | C200: 0 | D200: 0 | E200: 0 | F200: 0 | G200: 36.80 | H200: 0
A201: BOLSA DE SANGRE TRIPLE-DONADA | B201: UNID. | C201: 0 | D201: 0 | E201: 0 | F201: 0 | G201: 0.00 | H201: 0
A202: BOLSAS DE SANGRE DOBLE 10/1 | B202: FDA | C202: 0 | D202: 0 | E202: 0 | F202: 0 | G202: 2,400.00 | H202: 0
A203: BOLSAS DE SANGRE DOBLE 13/1 | B203: PAQ. | C203: 0 | D203: 0 | E203: 0 | F203: 0 | G203: 0.00 | H203: 0
... 622 more rows

Sheet FEBRERO2019 ADM (7)
A3: SERVICIO NACIONAL DE SALUD
A4: Informe Mensual de Almacén General, Despensa y Medicina
A5: ALMACEN | B5: LABORATORIO
A6: ESTABLECIMIENTO | B6: CENTRO DE GASTROENTEROLOGIA | E6: REGION | F6: 0
A7: AREA DE SALUD | E7: MES | F7: MAYO | G7: AÑO | H7: 2019
A9: ARTICULO | B9: UNIDAD | C9: EXISTENCIA ANTERIOR | D9: ENTRADA | E9: EXISTENCIA | F9: TOTAL CONSUMIDOS (3+4)-5 | G9: VALOR UNITARIO | H9: VALOR TOTAL
C10: ANTERIOR | E10: FINAL | F10: CONSUMIDO | G10: UNITARIO | H10: TOTAL
A11: -1- | C11: 3 | D11: -4- | E11: -5- | F11: (3+4)-5 | G11: -7- | H11: (6X7)
A12: AB CONTROL NORMAL SUERO | B12: SET | C12: 0 | D12: 0 | E12: =C12+D12-F12 -> 0 | F12: 0 | G12: 27,284.22 | H12: =E12*G12 -> 0
A13: ABX TONER PARA IMPRESORA | B13: UNID | C13: 2 | D13: 0 | E13: =C13+D13-F13 -> 2 | F13: 0 | G13: 866.25 | H13: =E13*G13 -> 1,732.50
A14: ABX DIFFTROL 2H | B14: SET | C14: 0 | D14: 0 | E14: 0 | F14: 0 | G14: 14,720.00 | H14: 0
A15: ABX DIFFTROL 2L | B15: SET | C15: 0 | D15: 0 | E15: 0 | F15: 0 | G15: 14,720.00 | H15: 0
A16: ABX DIFFTROL 2N | B16: SET | C16: 0 | D16: 0 | E16: 0 | F16: 0 | G16: 14,720.00 | H16: 0
A17: ABX CONTROL HEMATOLOGICO 3/1 | B17: SET | C17: 1 | D17: 2 | E17: 3 | F17: 0 | G17: 12,476.00 | H17: 37,428.00
A18: ABX MINOLYSE | B18: FCO. | C18: 7 | D18: 0 | E18: 6 | F18: 1 | G18: 23,552.00 | H18: 141,312.00
A19: ABX LISEBIO | B19: FCO. | C19: 0 | D19: 0 | E19: 0 | F19: 0 | G19: 16,200.00 | H19: 0
A20: ABX MINOTON | B20: Caja | C20: 3 | D20: 2 | E20: 2 | F20: 3 | G20: 17,028.00 | H20: 34,056.00
A21: AC. PHOSPHOTUNGSTICO HYDRATE 25mg | B21: FCO. | C21: 1 | D21: 0 | E21: 1 | F21: 0 | G21: 6,720.00 | H21: 6,720.00
A22: ACCESS FERRITIN 2X50 | B22: SET | C22: 0 | D22: 0 | E22: 0 | F22: 0 | G22: 19,405.10 | H22: 0
A23: ACCESS AFP 2X50 | B23: SET | C23: 0 | D23: 0 | E23: 0 | F23: 0 | G23: 20,031.00 | H23: 0
A24: ACCESS B12 2X50 | B24: SET | C24: 0 | D24: 0 | E24: 0 | F24: 0 | G24: 16,465.00 | H24: 0
A25: ACCESS BOLSA DESECHABLES | B25: CAJA | C25: 1 | D25: 0 | E25: 1 | F25: 0 | G25: 6,680.70 | H25: 6,680.70
A26: ACCESS CA 125 2X50 | B26: SET | C26: 1 | D26: 1 | E26: 2 | F26: 0 | G26: 26,708.50 | H26: 53,417.00
A27: ACCESS CA 19-9 2X50 | B27: SET | C27: 1 | D27: 0 | E27: 0 | F27: 1 | G27: 28,043.60 | H27: 0
A28: ACCESS CONTRAD 70 | B28: SET | C28: 1 | D28: 0 | E28: 1 | F28: 0 | G28: 6,227.00 | H28: 6,227.00
A29: ACCESS CEA 2X50 | B29: SET | C29: 0 | D29: 0 | E29: 0 | F29: 0 | G29: 28,043.60 | H29: 0
A30: ACCESS CONTROL TUMORAL1 | B30: SET | C30: 0 | D30: 0 | E30: 0 | F30: 0 | G30: 10,382.40 | H30: 0
A31: ACCESS CONTROL TUMORAL2 | B31: SET | C31: 0 | D31: 0 | E31: 0 | F31: 0 | G31: 10,382.40 | H31: 0
A32: ACCESS FOLATE 2X50 | B32: SET | C32: 0 | D32: 0 | E32: 0 | F32: 0 | G32: 16,499.60 | H32: 0
A33: ACCESS HAV AB 2X50 | B33: SET | C33: 1 | D33: 0 | E33: 0 | F33: 1 | G33: 28,043.60 | H33: 0
A34: ACCESS HAV IGM 2X50 | B34: SET | C34: 2 | D34: 0 | E34: 1 | F34: 1 | G34: 25,873.90 | H34: 25,873.90
A35: ACCESS HBC AB 2X50 | B35: SET | C35: 1 | D35: 0 | E35: 0 | F35: 1 | G35: 28,043.60 | H35: 0
A36: ACCESS HBC IGM 2X50 | B36: SET | C36: 1 | D36: 0 | E36: 0 | F36: 1 | G36: 28,043.60 | H36: 0
A37: ACCESS HCG 2X50 | B37: SET | C37: 2 | D37: 0 | E37: 0 | F37: 2 | G37: 14,658.80 | H37: 0
A38: ACCESS IGE 2X50 | B38: SET | C38: 0 | D38: 0 | E38: 0 | F38: 0 | G38: 16,465.80 | H38: 0
A39: ACCESS PROGESTERON 2X50 | B39: SET | C39: 0 | D39: 0 | E39: 0 | F39: 0 | G39: 12,827.10 | H39: 0
A40: ACCESS PROLACTIN 2X50 | B40: SET | C40: 0 | D40: 0 | E40: 0 | F40: 0 | G40: 13,525.20 | H40: 0
A41: ACCESS PSA LIBRE 2X50 | B41: SET | C41: 2 | D41: 0 | E41: 1 | F41: 1 | G41: 26,708.50 | H41: 26,708.50
A42: ACCESS PSA TOTAL | B42: SET | C42: 3 | D42: 1 | E42: 2 | F42: 2 | G42: 17,032.60 | H42: 34,065.20
A43: ACCESS REACTION VESSEL 16X98 | B43: Caja | C43: 0 | D43: 3 | E43: 1 | F43: 2 | G43: 8,622.90 | H43: 8,622.90
A44: ACCESS SAMPLE CUP 2 ML | B44: PAQ. | C44: 2 | D44: 0 | E44: 2 | F44: 0 | G44: 2,421.90 | H44: 4,843.80
A45: ACCESS SUSTRATO 600T 1X30ML | B45: FCO. | C45: 10 | D45: 10 | E45: 12 | F45: 8 | G45: 7,874.10 | H45: 94,489.20
A46: ACCESS SYSTEM CHECK 6X4 ML | B46: SET | C46: 2 | D46: 0 | E46: 1 | F46: 1 | G46: 10,926.50 | H46: 10,926.50
A47: ACCESS T3 2X50 | B47: SET | C47: 1 | D47: 2 | E47: 0 | F47: 3 | G47: 12,147.20 | H47: 0
A48: ACCESS T4 2X50 | B48: SET | C48: 2 | D48: 2 | E48: 2 | F48: 2 | G48: 12,147.20 | H48: 24,294.40
A49: ACCESS T4 LIBRE | B49: SET | C49: 4 | D49: 0 | E49: 1 | F49: 3 | G49: 13,962.00 | H49: 13,962.00
A50: ACCESS TOXO 2X50 | B50: SET | C50: 1 | D50: 0 | E50: 0 | F50: 1 | G50: 21,032.70 | H50: 0
A51: ACCESS TOXO IGM | B51: SET | C51: 4 | D51: 0 | E51: 4 | F51: 0 | G51: 17,846.40 | H51: 71,385.60
A52: ACCESS TSH 2X50 | B52: SET | C52: 3 | D52: 3 | E52: 3 | F52: 3 | G52: 12,147.20 | H52: 36,441.60
A53: ACCESS WASH BUFFER ll 4x1.9L | B53: FCO. | C53: 2 | D53: 8 | E53: 6 | F53: 4 | G53: 5,623.80 | H53: 33,742.80
A54: ACEITE DE INMERSION | B54: FCO. | C54: 2 | D54: 0 | E54: 2 | F54: 0 | G54: 1,380.00 | H54: 2,760.00
A55: ACETONA | B55: Galon | C55: 0 | D55: 0 | E55: 0 | F55: 0 | G55: 975.00 | H55: 0
A56: ACETONA GRADO REACTIVO | B56: Galon | C56: 4 | D56: 4 | E56: 8 | F56: 0 | G56: 1,152.00 | H56: 9,216.00
A57: ACIDO PERIODICO | B57: FCO. | C57: 0 | D57: 2 | E57: 2 | F57: 0 | G57: 17,600.00 | H57: 35,200.00
A58: ACID ALCOHOL 3% -DONADO | B58: LT. | C58: 0 | D58: 0 | E58: 0 | F58: 0 | G58: 0.00 | H58: 0
A59: ACIDO ACETICO GLACIAL | B59: LT. | C59: 0 | D59: 0 | E59: 0 | F59: 0 | G59: 2,125.00 | H59: 0
A60: ACIDO CLORHIDRICO | B60: Galon | C60: 1 | D60: 0 | E60: 1 | F60: 0 | G60: 4,800.00 | H60: 4,800.00
A61: ACIDO NITRICO | B61: Galon | C61: 0 | D61: 0 | E61: 0 | F61: 0 | G61: 4,750.00 | H61: 0
A62: ACIDO SULFURICO 4N 1000 ML | B62: LT. | C62: 0 | D62: 0 | E62: 0 | F62: 0 | G62: 518.40 | H62: 0
A63: ACIDO URICO 300T Q.C.A. | B63: SET | C63: 0 | D63: 0 | E63: 0 | F63: 0 | G63: 1,864.50 | H63: 0
A64: ACIDO URICO MANUAL | B64: SET | C64: 0 | D64: 0 | E64: 0 | F64: 0 | G64: 2,780.00 | H64: 0
A65: ACIDO URICO MANUAL | B65: SET | C65: 0 | D65: 0 | E65: 0 | F65: 0 | G65: 522.00 | H65: 0
A66: ACL DILUYENTE FACTORES 100ML | B66: FCO. | C66: 0 | D66: 0 | E66: 0 | F66: 0 | G66: 744.00 | H66: 0
A67: ACL HIGH ABNORMAL CONT 10X1ML | B67: Caja | C67: 2 | D67: 0 | E67: 1 | F67: 1 | G67: 3,949.40 | H67: 3,949.40
A68: ACL RECOMBOPLASTIN | B68: SET | C68: 0 | D68: 0 | E68: 0 | F68: 0 | G68: 5,865.35 | H68: 0
A69: ACL. WASH EMULSION | B69: FCO. | C69: 1 | D69: 0 | E69: 0 | F69: 1 | G69: 964.60 | H69: 0
A70: ACL. APTT. 5+5X5X8 | B70: Caja | C70: 5 | D70: 0 | E70: 3 | F70: 2 | G70: 4,724.20 | H70: 14,172.60
A71: ACL. CALIBRADOR PLASMA | B71: Caja | C71: 1 | D71: 0 | E71: 1 | F71: 0 | G71: 4,101.30 | H71: 4,101.30
A72: ACL. CLEANING SOLUTION 500ML | B72: SET | C72: 2 | D72: 1 | E72: 3 | F72: 0 | G72: 1,687.00 | H72: 5,061.00
A73: ACL. COPAS 4 ML C/100 | B73: SET | C73: 0 | D73: 0 | E73: 0 | F73: 0 | G73: 3,454.10 | H73: 0
A74: ACL. COPAS 0.5ML C/1000 | B74: Caja | C74: 0 | D74: 0 | E74: 0 | F74: 0 | G74: 2,717.00 | H74: 0
A75: ACL. COPAS 2ML 1000/PK | B75: Caja | C75: 0 | D75: 0 | E75: 0 | F75: 0 | G75: 4,702.80 | H75: 0
A76: ACL. EMULCION DE REFERENCIA | B76: SET | C76: 2 | D76: 0 | E76: 2 | F76: 0 | G76: 3,510.00 | H76: 7,020.00
A77: ACL. LOW ABNORMAL CONT. 10X1ML | B77: SET | C77: 2 | D77: 0 | E77: =C77+D77-F77 -> 1 | F77: 1 | G77: 3,949.40 | H77: 3,949.40
A78: ACL. PLASMA CONTROL NORM 10X1ML | B78: Caja | C78: 1 | D78: 2 | E78: 2 | F78: 1 | G78: 3,577.60 | H78: =E78*G78 -> 7,155.20
A79: ACL. PT RGT-FIBRINOGENO 5+5X8ML | B79: Caja | C79: 4 | D79: 3 | E79: 2 | F79: 5 | G79: 5,411.90 | H79: 10,823.80
A80: ACL. ROTORES C/100 | B80: Caja | C80: 1 | D80: 1 | E80: 1 | F80: 1 | G80: 14,352.00 | H80: 14,352.00
A81: AGAR BIGGY | B81: FCO. | C81: 2 | D81: 0 | E81: 0 | F81: 2 | G81: 4,391.00 | H81: 0
A82: AGAR SANGRE | B82: FCO. | C82: 2 | D82: 0 | E82: 0 | F82: 2 | G82: 5,120.00 | H82: 0
A83: AGAR BILI ESCULINA | B83: SET | C83: 0 | D83: 0 | E83: 0 | F83: 0 | G83: 7,650.00 | H83: 0
A84: AGAR CITRATO DE SIMMONS | B84: FCO. | C84: 0 | D84: 0 | E84: 0 | F84: 0 | G84: 5,475.00 | H84: 0
A85: AGAR COLUMBIA | B85: FCO. | C85: 0 | D85: 0 | E85: 0 | F85: 0 | G85: 2,658.00 | H85: 0
A86: AGAR EOSIN AZUL METILENO-- EAM | B86: FCO. | C86: 0 | D86: 0 | E86: 0 | F86: 0 | G86: 3,660.00 | H86: 0
A87: AGAR GC | B87: FCO. | C87: 0 | D87: 0 | E87: 0 | F87: 0 | G87: 4,965.00 | H87: 0
A88: AGAR HECTOEN | B88: FCO. | C88: 1 | D88: 0 | E88: 0 | F88: 1 | G88: 9,136.00 | H88: 0
A89: AGAR HEMOGLOVINA BOVINA | B89: FCO. | C89: 0 | D89: 0 | E89: 0 | F89: 0 | G89: 4,356.00 | H89: 0
A90: AGAR LYSINE IRON (LIA) 100G | B90: FCO. | C90: 0 | D90: 0 | E90: 0 | F90: 0 | G90: 5,005.00 | H90: 0
A91: AGAR MACCONKEY | B91: FCO. | C91: 2 | D91: 0 | E91: 0 | F91: 2 | G91: 4,752.00 | H91: 0
A92: AGAR MANITOL SALT | B92: FCO. | C92: 0 | D92: 0 | E92: 0 | F92: 0 | G92: 4,435.00 | H92: 0
A93: AGAR MULLER HILTON | B93: FCO. | C93: 2 | D93: 0 | E93: 2 | F93: 0 | G93: 5,500.00 | H93: 11,000.00
A94: AGAR SABOURAUD CON CLORANFENICOL | B94: FCO. | C94: 1 | D94: 0 | E94: 1 | F94: 0 | G94: 7,415.00 | H94: 7,415.00
A95: AGAR SALMONELLA SCHIGUELLA | B95: FCO. | C95: 0 | D95: 0 | E95: 0 | F95: 0 | G95: 4,630.00 | H95: 0
A96: AGAR SIM MEDIUM | B96: FCO. | C96: 0 | D96: 0 | E96: 0 | F96: 0 | G96: 2,849.00 | H96: 0
A97: AGAR TIOGLICOLATO FLUID | B97: FCO. | C97: 0 | D97: 0 | E97: 0 | F97: 0 | G97: 5,605.00 | H97: 0
A98: AGAR TRIPLE SUGAR IRON | B98: FCO. | C98: 0 | D98: 0 | E98: 0 | F98: 0 | G98: 3,575.00 | H98: 0
A99: AGAR TSA TRICTICASA SUGAR | B99: FCO. | C99: 1 | D99: 0 | E99: 1 | F99: 0 | G99: 3,650.00 | H99: 3,650.00
A100: AGUA BIDESTILADA | B100: Galon | C100: 0 | D100: 0 | E100: 0 | F100: 0 | G100: 120.00 | H100: 0
A101: AGUA DESTILADA | B101: Galon | C101: 106 | D101: 0 | E101: 27 | F101: 79 | G101: 80.00 | H101: 2,160.00
A102: AGUA STERIL AMPOLLA | B102: FCO. | C102: 0 | D102: 0 | E102: 0 | F102: 0 | G102: 2.17 | H102: 0
A103: AGUJA BACTERIOLOGICA | B103: UNID. | C103: 0 | D103: 0 | E103: 0 | F103: 0 | G103: 4,320.00 | H103: 0
A104: AGUJA P/VACUTANIER | B104: Caja | C104: 30 | D104: 50 | E104: 30 | F104: 50 | G104: 672.00 | H104: 20,160.00
A105: AHBC ELISA-CORE | B105: SET | C105: 0 | D105: 0 | E105: 0 | F105: 0 | G105: 10,238.40 | H105: 0
A106: ALBUMINA 100 TEST, Q.C.A | B106: SET | C106: 0 | D106: 0 | E106: 0 | F106: 0 | G106: 1,364.00 | H106: 0
A107: ALBUMINA BOVINA 22% | B107: FCO. | C107: 3 | D107: 0 | E107: 1 | F107: 2 | G107: 780.00 | H107: 780.00
A108: ALBUMINA MANUAL | B108: SET | C108: 0 | D108: 0 | E108: 0 | F108: 0 | G108: 780.00 | H108: 0
A109: ALCOHOL ISOPROPILICO 70% (Galon) | B109: Galon | C109: 1 | D109: 0 | E109: 1 | F109: 0 | G109: 324.50 | H109: 324.50
A110: ALCOGOL AL 70% LITRO | B110: Galon | C110: 0 | D110: 0 | E110: 0 | F110: 0 | G110: 87.40 | H110: 0
A111: ALCOHOL ABSOLUTO --ETANOL | B111: Galon | C111: 4 | D111: 3 | E111: 7 | F111: 0 | G111: 4,930.00 | H111: 34,510.00
A112: ALCOHOL EN TOALLAS | B112: Caja | C112: 2 | D112: 0 | E112: 2 | F112: 0 | G112: 0.00 | H112: 0
A113: ALCOHOL ETILICO 95% | B113: Galon | C113: 17 | D113: 3 | E113: 20 | F113: 0 | G113: 2,980.00 | H113: 59,600.00
A114: ALCOHOL ISOPROPILICO 70 | B114: Galon | C114: 0 | D114: 0 | E114: 0 | F114: 0 | G114: 324.50 | H114: 0
A115: ALCOHOL METILICO (METANOL) | B115: Galon | C115: 0 | D115: 0 | E115: 0 | F115: 0 | G115: 1,440.00 | H115: 0
A116: ALCOHOL PROPANO (PROPANOL II) | B116: Galon | C116: 0 | D116: 4 | E116: 4 | F116: 0 | G116: 4,178.00 | H116: 16,712.00
A117: ALGODON | B117: ROLLO | C117: 0 | D117: 0 | E117: 0 | F117: 0 | G117: 396.00 | H117: 0
A118: ALGODON ABSORVENTE ( ROLLO) | B118: ROLLO | C118: 0 | D118: 20 | E118: 6 | F118: 14 | G118: 75.00 | H118: 450.00
A119: ALUMINIUM POTASSIUM SULFATE | B119: FCO. | C119: 1 | D119: 0 | E119: 1 | F119: 0 | G119: 9,700.00 | H119: 9,700.00
A120: BIOCHEMISTRY CONTROL SERRUM 1 | B120: FCO. | C120: 0 | D120: 0 | E120: 0 | F120: 0 | G120: 497.90 | H120: 0
A121: BIOCHEMISTRY CONTROL SERRUM II | B121: FCO. | C121: 0 | D121: 0 | E121: 0 | F121: 0 | G121: 497.90 | H121: 0
A122: AMILASA LIQUIDA 1X120, Q.C.A. | B122: SET | C122: 0 | D122: 0 | E122: 0 | F122: 0 | G122: 4,543.00 | H122: 0
A123: AMILASA MANUAL | B123: SET | C123: 0 | D123: 0 | E123: 0 | F123: 0 | G123: 1,147.70 | H123: 0
A124: ANTI A | B124: FCO. | C124: 36 | D124: 0 | E124: 31 | F124: 5 | G124: 338.00 | H124: 10,478.00
A125: ANTI A-B | B125: FCO. | C125: 4 | D125: 0 | E125: 4 | F125: 0 | G125: 1,450.00 | H125: 5,800.00
A126: ANTI A-B-D | B126: SET | C126: 0 | D126: 0 | E126: 0 | F126: 0 | G126: 335.00 | H126: 0
A127: ANTI B | B127: FCO. | C127: 33 | D127: 0 | E127: 28 | F127: 5 | G127: 338.00 | H127: 9,464.00
A128: ANTI D | B128: FCO. | C128: 45 | D128: 0 | E128: 35 | F128: 10 | G128: 663.00 | H128: 23,205.00
A129: ANTI HUMANO COOMBS | B129: FCO. | C129: 4 | D129: 0 | E129: 1 | F129: 3 | G129: 890.00 | H129: 890.00
A130: ANTICOAGULANTE | B130: FCO. | C130: 0 | D130: 0 | E130: 0 | F130: 0 | G130: 170.00 | H130: 0
A131: ANTIGENO FEBRILES | B131: SET | C131: 3 | D131: 0 | E131: 2 | F131: 1 | G131: 3,227.00 | H131: 6,454.00
A132: APLICADORES MADERA | B132: Caja | C132: 0 | D132: 15 | E132: 7 | F132: 8 | G132: 618.00 | H132: 4,326.00
A133: ASA BACTERIOLOGICA 0.001 | B133: UNID. | C133: 5 | D133: 0 | E133: 5 | F133: 0 | G133: 4,320.00 | H133: 21,600.00
A134: ASA BACTERIOLOGICA 0.01 | B134: UNID. | C134: 5 | D134: 0 | E134: 5 | F134: 0 | G134: 4,880.00 | H134: 24,400.00
A135: ASO LATEX | B135: SET | C135: 0 | D135: 11 | E135: 8 | F135: 3 | G135: 2,750.00 | H135: 22,000.00
A136: AZUL DE METILENO | B136: FCO. | C136: 0 | D136: 0 | E136: 0 | F136: 0 | G136: 3,800.00 | H136: 0
A137: AUTION MAX CONTROL DE ORINA | B137: SET | C137: 0 | D137: 0 | E137: 0 | F137: 0 | G137: 7,861.20 | H137: 0
A138: AUTION MAX CONTROL ORINA P/TIRAS | B138: SET | C138: 0 | D138: 0 | E138: 0 | F138: 0 | G138: 7,861.20 | H138: 0
A139: AUTION MAX TIRAS ARKRAY (73591) | B139: FCO. | C139: 5 | D139: 0 | E139: 0 | F139: 5 | G139: 2,600.00 | H139: 0
A140: AUTION HIBRID DILUEN BAD | B140: FCO. | C140: 1 | D140: 2 | E140: 0 | F140: 3 | G140: 8,759.00 | H140: 0
A141: AUTION HIBRID DILUEN SED | B141: FCO. | C141: 0 | D141: 3 | E141: =C141+D141-F141 -> 0 | F141: 3 | G141: 11,986.00 | H141: 0
A142: AUTION HYBRID STANIG SOLUTION BAC | B142: FCO. | C142: 1 | D142: 2 | E142: 1 | F142: 2 | G142: 8,759.00 | H142: =E142*G142 -> 8,759.00
A143: AUTION HYBRID STANIG SOLUTION SED | B143: FCO. | C143: 1 | D143: 2 | E143: 0 | F143: 3 | G143: 16,904.00 | H143: 0
A144: AUTION HYBRID SHEATH SOLUTION | B144: Caja | C144: 1 | D144: 7 | E144: 1 | F144: 7 | G144: 8,759.00 | H144: 8,759.00
A145: AUTION SOLUTION DE LAVADO | B145: Galon | C145: 2 | D145: 2 | E145: 0 | F145: 4 | G145: 2,400.00 | H145: 0
A146: AUTION TIRA ORINA HYBRID URIFLEX | B146: FCO. | C146: 10 | D146: 40 | E146: 10 | F146: 40 | G146: 2,182.00 | H146: 21,820.00
A147: ATCC27853 PSEUDOMONA AEROGINOS | B147: SET | C147: 0 | D147: 0 | E147: 0 | F147: 0 | G147: 2,115.15 | H147: 0
A148: ATCC29212 ENTEROC. FECALIS | B148: SET | C148: 0 | D148: 0 | E148: 0 | F148: 0 | G148: 2,360.13 | H148: 0
A149: AURAMINA O 25mg | B149: FCO. | C149: 0 | D149: 0 | E149: 0 | F149: 0 | G149: 5,160.00 | H149: 0
A150: AUTOCLAVE M4 15/3 48L 110V | B150: UNID. | C150: 0 | D150: 0 | E150: 0 | F150: 0 | G150: 108,650.00 | H150: 0
A151: BAJANTE DE SANGRE BAXTER | B151: UNID. | C151: 0 | D151: 0 | E151: 0 | F151: 0 | G151: 304.00 | H151: 0
A152: BAJANTE DE SANGRE | B152: UNID. | C152: 0 | D152: 0 | E152: 0 | F152: 0 | G152: 7.30 | H152: 0
A153: BALSAMO PARA PATOLOGIA | B153: FCO. | C153: 1 | D153: 1 | E153: 2 | F153: 0 | G153: 4,200.00 | H153: 8,400.00
A154: BASE MOLDS METAL 15X15X5 C/30 | B154: UNID. | C154: 0 | D154: 1 | E154: 1 | F154: 0 | G154: 32,500.00 | H154: 32,500.00
A155: BANDEJA DE TINCION | B155: UNID. | C155: 0 | D155: 0 | E155: 0 | F155: 0 | G155: 1,338.00 | H155: 0
A156: BANDEJA PARA TOMA DE MUESTRA | B156: UNID. | C156: 0 | D156: 0 | E156: 0 | F156: 0 | G156: 2,000.00 | H156: 0
A157: BAÑO DE COPRINS CON TAPA CRISTAL | B157: UNID. | C157: 0 | D157: 0 | E157: 0 | F157: 0 | G157: 4,060.00 | H157: 0
A158: BAÑO DE MARIA | B158: UNID. | C158: 0 | D158: 0 | E158: 0 | F158: 0 | G158: 11,116.38 | H158: 0
A159: BFTII + BOARD | B159: UNID. | C159: 0 | D159: 0 | E159: 0 | F159: 0 | G159: 22,176.00 | H159: 0
A160: BFT-II CUBETAS COAGULACION | B160: Caja | C160: 0 | D160: 3 | E160: 3 | F160: 0 | G160: 16,068.00 | H160: 48,204.00
A161: BILIRRUBINA 100 TEST, Q.C.A. | B161: SET | C161: 0 | D161: 0 | E161: 0 | F161: 0 | G161: 1,474.00 | H161: 0
A162: BILIRRUBINA MANUAL | B162: SET | C162: 0 | D162: 0 | E162: 0 | F162: 0 | G162: 1,708.80 | H162: 0
A163: BILIRRUBINA MANUAL | B163: SET | C163: 0 | D163: 0 | E163: 0 | F163: 0 | G163: 264.00 | H163: 0
A164: BIO WRIGHT 1 | B164: Galon | C164: 1 | D164: 0 | E164: 1 | F164: 0 | G164: 372.00 | H164: 372.00
A165: BIO WRIGHT 2 | B165: Galon | C165: 1 | D165: 0 | E165: 1 | F165: 0 | G165: 1,890.00 | H165: 1,890.00
A166: BIO WRIGHT 3 | B166: Galon | C166: 1 | D166: 0 | E166: 1 | F166: 0 | G166: 1,890.00 | H166: 1,890.00
A167: BOLSA DE DESECHO | B167: Galon | C167: 0 | D167: 0 | E167: 0 | F167: 0 | G167: 5,846.10 | H167: 0
A168: BOLSA COLECTORAS DE SANGRE | B168: UNID. | C168: 0 | D168: 0 | E168: 0 | F168: 0 | G168: 36.80 | H168: 0
A169: BOLSA DE SANGRE TRIPLE-DONADA | B169: UNID. | C169: 0 | D169: 0 | E169: 0 | F169: 0 | G169: 0.00 | H169: 0
A170: BOLSAS DE SANGRE DOBLE 10/1 | B170: FDA | C170: 0 | D170: 0 | E170: 0 | F170: 0 | G170: 2,400.00 | H170: 0
A171: BOLSAS DE SANGRE DOBLE 13/1 | B171: PAQ. | C171: 0 | D171: 0 | E171: 0 | F171: 0 | G171: 0.00 | H171: 0
A172: BOLSAS DE SANGRE DOBLE 6/1 | B172: UNID. | C172: 0 | D172: 0 | E172: 0 | F172: 0 | G172: 1,965.00 | H172: 0
A173: BOLSAS DE SANGRE DOBLES | B173: UNID. | C173: 0 | D173: 0 | E173: 0 | F173: 0 | G173: 4,266.00 | H173: 0
A174: BOLSAS DE SANGRE SIMPLE | B174: UNID. | C174: 0 | D174: 0 | E174: 0 | F174: 0 | G174: 4,170.00 | H174: 0
A175: BOLSAS DE SANGRE SIMPLE 10/1 | B175: PAQ. | C175: 0 | D175: 0 | E175: 0 | F175: 0 | G175: 0.00 | H175: 0
A176: BOLSAS DE SANGRE SIMPLE 12/1 | B176: FDA | C176: 0 | D176: 0 | E176: 0 | F176: 0 | G176: 1,810.00 | H176: 0
A177: BOLSAS DE SANGRE SIMPLE 13/1 | B177: FDA | C177: 0 | D177: 0 | E177: 0 | F177: 0 | G177: 1,742.00 | H177: 0
A178: BOLSAS DE SANGRE SIMPLE 5/1 | B178: PAQ. | C178: 0 | D178: 0 | E178: 0 | F178: 0 | G178: 1,810.00 | H178: 0
A179: BOMBILLO P/ ESPECTROFOTOMETRO | B179: UNID. | C179: 1 | D179: 0 | E179: 1 | F179: 0 | G179: 1,079.92 | H179: 1,079.92
A180: BOMBILLO P/ MICROSCOPIO 60/20W | B180: UNID. | C180: 0 | D180: 0 | E180: 0 | F180: 0 | G180: 950.00 | H180: 0
A181: BOMBILLO P/MICROSCOPIO 120V 20W | B181: UNID. | C181: 1 | D181: 0 | E181: 1 | F181: 0 | G181: 950.00 | H181: 950.00
A182: BOTELLAS DE CRISTAL GRADUADAS C/TAPA | B182: UNID. | C182: 0 | D182: 0 | E182: 0 | F182: 0 | G182: 0.00 | H182: 0
A183: CALPROTENTINA | B183: SET | C183: 1 | D183: 0 | E183: 1 | F183: 0 | G183: 5,081.08 | H183: 5,081.08
A184: CAMARA HEM NEW BAUER | B184: UNID. | C184: 0 | D184: 0 | E184: 0 | F184: 0 | G184: 3,680.00 | H184: 0
A185: CAPSULAS PYTESL --PRUEBA DE ALIENTO | B185: UNID. | C185: 100 | D185: 200 | E185: 100 | F185: 200 | G185: 1,316.30 | H185: 131,630.00
A186: CARPETA PORTA LAMINAS P/20 PORTA | B186: Caja | C186: 2 | D186: 0 | E186: 2 | F186: 0 | G186: 2,035.00 | H186: 4,070.00
A187: CARTUCHO IRMA | B187: UNID. | C187: 0 | D187: 0 | E187: 0 | F187: 0 | G187: 522.00 | H187: 0
A188: CASSETTE CON TAPA BLANCO | B188: Caja | C188: 0 | D188: 4 | E188: 4 | F188: 0 | G188: 4,179.00 | H188: 16,716.00
A189: CASSETTE CON TAPA COLORES | B189: Caja | C189: 0 | D189: 6 | E189: 6 | F189: 0 | G189: 4,179.00 | H189: 25,074.00
A190: CASSETTE SIN TAPA | B190: Caja | C190: 0 | D190: 0 | E190: 0 | F190: 0 | G190: 5,868.00 | H190: 0
A191: CIBA CORNING PAPEL TERM 4 7/16 | B191: ROLLO | C191: 0 | D191: 0 | E191: 0 | F191: 0 | G191: 144.00 | H191: 0
A192: CILINDRO DE MEDIDA 250ML | B192: UNID. | C192: 0 | D192: 0 | E192: 0 | F192: 0 | G192: 0.00 | H192: 0
A193: CILINDRO DE MEDIDAS 1000 ML | B193: UNID. | C193: 1 | D193: 0 | E193: 1 | F193: 0 | G193: 1,350.00 | H193: 1,350.00
A194: CILINDRO 25ML | B194: UNID. | C194: 1 | D194: 0 | E194: 1 | F194: 0 | G194: 0.00 | H194: 0
A195: CILINDRO DE MEDIDAS 50 ML | B195: UNID. | C195: 0 | D195: 0 | E195: 0 | F195: 0 | G195: 980.00 | H195: 0
A196: CILINDRO DE MEDIDAS 500 ML | B196: UNID. | C196: 0 | D196: 0 | E196: 0 | F196: 0 | G196: 0.00 | H196: 0
A197: CLIPS DE ALUMINIO P/ BOLSAS DE SANGRE | B197: Caja | C197: 2 | D197: 0 | E197: 2 | F197: 0 | G197: 3,700.00 | H197: 7,400.00
A198: CLORURO CALCIO 6/1 | B198: Caja | C198: 0 | D198: 0 | E198: 0 | F198: 0 | G198: 2,000.00 | H198: 0
A199: CLORURO DE CALCIO 10/1 | B199: Caja | C199: 0 | D199: 0 | E199: 0 | F199: 0 | G199: 4,280.00 | H199: 0
A200: CLORURO DE CALCIO 15 ML | B200: FCO. | C200: 13 | D200: 0 | E200: 7 | F200: 6 | G200: 590.20 | H200: 4,131.40
A201: CLORURO DE CALCIO 30ML | B201: FCO. | C201: 0 | D201: 0 | E201: 0 | F201: 0 | G201: 813.00 | H201: 0
A202: CLORURO DE SODIO 1000G | B202: FCO. | C202: 0 | D202: 0 | E202: 0 | F202: 0 | G202: 2,875.00 | H202: 0
A203: CLORURO DE SODIO 250G | B203: FCO. | C203: 0 | D203: 0 | E203: 0 | F203: 0 | G203: 753.00 | H203: 0
... 613 more rows

Sheet JULIO ADM 2018 (7)
A3: SERVICIO NACIONAL DE SALUD
A4: Informe Mensual de Almacén General, Despensa y Medicina
A5: ALMACEN | B5: LABORATORIO
A6: ESTABLECIMIENTO | B6: CENTRO DE GASTROENTEROLOGIA | E6: REGION | F6: 0
A7: AREA DE SALUD | E7: MES | F7: AGOSTO | G7: AÑO | H7: 2018
A9: ARTICULO | B9: UNIDAD | C9: EXISTENCIA ANTERIOR | D9: ENTRADA | E9: EXISTENCIA | F9: TOTAL CONSUMIDOS (3+4)-5 | G9: VALOR UNITARIO | H9: VALOR TOTAL
C10: ANTERIOR | E10: FINAL | F10: CONSUMIDO | G10: UNITARIO | H10: TOTAL
A11: -1- | C11: 3 | D11: -4- | E11: -5- | F11: (3+4)-5 | G11: -7- | H11: (6X7)
A12: AB CONTROL NORMAL SUERO | B12: SET | C12: 0 | D12: 0 | E12: =C12+D12-F12 -> 0 | F12: 0 | G12: 27,284.22 | H12: =E12*G12 -> 0
A13: ABX TONER PARA IMPRESORA | B13: UNID | C13: 2 | D13: 0 | E13: =C13+D13-F13 -> 2 | F13: 0 | G13: 866.25 | H13: =E13*G13 -> 1,732.50
A14: ABX DIFFTROL 2H | B14: SET | C14: 0 | D14: 0 | E14: 0 | F14: 0 | G14: 14,720.00 | H14: 0
A15: ABX DIFFTROL 2L | B15: SET | C15: 0 | D15: 0 | E15: 0 | F15: 0 | G15: 14,720.00 | H15: 0
A16: ABX DIFFTROL 2N | B16: SET | C16: 0 | D16: 0 | E16: 0 | F16: 0 | G16: 14,720.00 | H16: 0
A17: ABX CONTROL HEMATOLOGICO 3/1 | B17: SET | C17: 1 | D17: 0 | E17: 1 | F17: 0 | G17: 12,476.00 | H17: 12,476.00
A18: ABX MINOLYSE | B18: FCO. | C18: 5 | D18: 0 | E18: 5 | F18: 0 | G18: 23,552.00 | H18: 117,760.00
A19: ABX LISEBIO | B19: FCO. | C19: 2 | D19: 0 | E19: 2 | F19: 0 | G19: 16,200.00 | H19: 32,400.00
A20: ABX MINOTON | B20: Caja | C20: 1 | D20: 0 | E20: 0 | F20: 1 | G20: 17,028.00 | H20: 0
A21: AC. PHOSPHOTUNGSTICO HYDRATE 25mg | B21: FCO. | C21: 1 | D21: 0 | E21: 1 | F21: 0 | G21: 6,720.00 | H21: 6,720.00
A22: ACCESS FERRITIN 2X50 | B22: SET | C22: 0 | D22: 0 | E22: 0 | F22: 0 | G22: 19,405.10 | H22: 0
A23: ACCESS AFP 2X50 | B23: SET | C23: 0 | D23: 0 | E23: 0 | F23: 0 | G23: 20,031.00 | H23: 0
A24: ACCESS B12 2X50 | B24: SET | C24: 0 | D24: 0 | E24: 0 | F24: 0 | G24: 16,465.00 | H24: 0
A25: ACCESS BOLSA DESECHABLES | B25: CAJA | C25: 0 | D25: 0 | E25: 0 | F25: 0 | G25: 6,363.50 | H25: 0
A26: ACCESS CA 125 2X50 | B26: SET | C26: 0 | D26: 1 | E26: 1 | F26: 0 | G26: 26,708.50 | H26: 26,708.50
A27: ACCESS CA 19-9 2X50 | B27: SET | C27: 1 | D27: 1 | E27: 1 | F27: 1 | G27: 28,043.60 | H27: 28,043.60
A28: ACCESS CONTRAD 70 | B28: SET | C28: 1 | D28: 0 | E28: 1 | F28: 0 | G28: 6,227.00 | H28: 6,227.00
A29: ACCESS CEA 2X50 | B29: SET | C29: 0 | D29: 1 | E29: 1 | F29: 0 | G29: 28,043.60 | H29: 28,043.60
A30: ACCESS CONTROL TUMORAL1 | B30: SET | C30: 0 | D30: 0 | E30: 0 | F30: 0 | G30: 10,382.40 | H30: 0
A31: ACCESS CONTROL TUMORAL2 | B31: SET | C31: 0 | D31: 0 | E31: 0 | F31: 0 | G31: 10,382.40 | H31: 0
A32: ACCESS FOLATE 2X50 | B32: SET | C32: 0 | D32: 0 | E32: 0 | F32: 0 | G32: 16,499.60 | H32: 0
A33: ACCESS HAV AB 2X50 | B33: SET | C33: 1 | D33: 1 | E33: 2 | F33: 0 | G33: 28,043.60 | H33: 56,087.20
A34: ACCESS HAV IGM 2X50 | B34: SET | C34: 1 | D34: 0 | E34: 1 | F34: 0 | G34: 25,873.90 | H34: 25,873.90
A35: ACCESS HBC AB 2X50 | B35: SET | C35: 0 | D35: 1 | E35: 0 | F35: 1 | G35: 28,043.60 | H35: 0
A36: ACCESS HBC IGM 2X50 | B36: SET | C36: 1 | D36: 0 | E36: 1 | F36: 0 | G36: 28,043.60 | H36: 28,043.60
A37: ACCESS HCG 2X50 | B37: SET | C37: 1 | D37: 0 | E37: 1 | F37: 0 | G37: 14,658.80 | H37: 14,658.80
A38: ACCESS IGE 2X50 | B38: SET | C38: 0 | D38: 0 | E38: 0 | F38: 0 | G38: 16,465.80 | H38: 0
A39: ACCESS PROGESTERON 2X50 | B39: SET | C39: 0 | D39: 0 | E39: 0 | F39: 0 | G39: 12,827.10 | H39: 0
A40: ACCESS PROLACTIN 2X50 | B40: SET | C40: 0 | D40: 0 | E40: 0 | F40: 0 | G40: 13,525.20 | H40: 0
A41: ACCESS PSA LIBRE 2X50 | B41: SET | C41: 1 | D41: 0 | E41: 1 | F41: 0 | G41: 26,708.50 | H41: 26,708.50
A42: ACCESS PSA TOTAL | B42: SET | C42: 1 | D42: 1 | E42: 2 | F42: 0 | G42: 17,032.60 | H42: 34,065.20
A43: ACCESS REACTION VESSEL 16X98 | B43: Caja | C43: 1 | D43: 2 | E43: 0 | F43: 3 | G43: 8,622.90 | H43: 0
A44: ACCESS SAMPLE CUP 2 ML | B44: PAQ. | C44: 1 | D44: 0 | E44: 1 | F44: 0 | G44: 2,421.90 | H44: 2,421.90
A45: ACCESS SUSTRATO 600T 1X30ML | B45: FCO. | C45: 5 | D45: 5 | E45: 5 | F45: 5 | G45: 7,874.10 | H45: 39,370.50
A46: ACCESS SYSTEM CHECK 6X4 ML | B46: SET | C46: 1 | D46: 0 | E46: 1 | F46: 0 | G46: 10,926.50 | H46: 10,926.50
A47: ACCESS T3 2X50 | B47: SET | C47: 1 | D47: 1 | E47: 2 | F47: 0 | G47: 12,147.20 | H47: 24,294.40
A48: ACCESS T4 2X50 | B48: SET | C48: 0 | D48: 2 | E48: 2 | F48: 0 | G48: 12,147.20 | H48: 24,294.40
A49: ACCESS T4 LIBRE | B49: SET | C49: 0 | D49: 0 | E49: 0 | F49: 0 | G49: 13,962.00 | H49: 0
A50: ACCESS TOXO 2X50 | B50: SET | C50: 1 | D50: 0 | E50: 1 | F50: 0 | G50: 21,032.70 | H50: 21,032.70
A51: ACCESS TOXO IGM | B51: SET | C51: 1 | D51: 0 | E51: 0 | F51: 1 | G51: 17,846.40 | H51: 0
A52: ACCESS TSH 2X50 | B52: SET | C52: 1 | D52: 1 | E52: 2 | F52: 0 | G52: 12,147.20 | H52: 24,294.40
A53: ACCESS WASH BUFFER ll 4x1.9L | B53: FCO. | C53: 5 | D53: 2 | E53: 2 | F53: 5 | G53: 5,623.80 | H53: 11,247.60
A54: ACEITE DE INMERSION | B54: FCO. | C54: 0 | D54: 0 | E54: 0 | F54: 0 | G54: 1,380.00 | H54: 0
A55: ACETONA | B55: Galon | C55: 0 | D55: 0 | E55: 0 | F55: 0 | G55: 975.00 | H55: 0
A56: ACETONA GRADO REACTIVO | B56: Galon | C56: 3 | D56: 0 | E56: 3 | F56: 0 | G56: 1,152.00 | H56: 3,456.00
A57: ACID ALCOHOL 3% -DONADO | B57: LT. | C57: 0 | D57: 0 | E57: 0 | F57: 0 | G57: 0.00 | H57: 0
A58: ACIDO ACETICO GLACIAL | B58: LT. | C58: 0 | D58: 0 | E58: 0 | F58: 0 | G58: 2,125.00 | H58: 0
A59: ACIDO NITRICO | B59: Galon | C59: 0 | D59: 0 | E59: 0 | F59: 0 | G59: 4,750.00 | H59: 0
A60: ACIDO SULFURICO 4N 1000 ML | B60: LT. | C60: 0 | D60: 0 | E60: 0 | F60: 0 | G60: 518.40 | H60: 0
A61: ACIDO URICO 300T Q.C.A. | B61: SET | C61: 0 | D61: 0 | E61: 0 | F61: 0 | G61: 1,864.50 | H61: 0
A62: ACIDO URICO MANUAL | B62: SET | C62: 0 | D62: 0 | E62: 0 | F62: 0 | G62: 2,780.00 | H62: 0
A63: ACIDO URICO MANUAL | B63: SET | C63: 0 | D63: 0 | E63: 0 | F63: 0 | G63: 522.00 | H63: 0
A64: ACL DILUYENTE FACTORES 100ML | B64: FCO. | C64: 0 | D64: 0 | E64: 0 | F64: 0 | G64: 744.00 | H64: 0
A65: ACL HIGH ABNORMAL CONT 10X1ML | B65: Caja | C65: 2 | D65: 0 | E65: 2 | F65: 0 | G65: 3,949.40 | H65: 7,898.80
A66: ACL RECOMBOPLASTIN | B66: SET | C66: 0 | D66: 0 | E66: 0 | F66: 0 | G66: 5,865.35 | H66: 0
A67: ACL. WASH EMULSION | B67: FCO. | C67: 1 | D67: 8 | E67: 3 | F67: 6 | G67: 964.60 | H67: 2,893.80
A68: ACL. APTT. 5+5X5X8 | B68: Caja | C68: 0 | D68: 2 | E68: 0 | F68: 2 | G68: 4,724.20 | H68: 0
A69: ACL. CALIBRADOR PLASMA | B69: Caja | C69: 1 | D69: 0 | E69: 1 | F69: 0 | G69: 4,101.30 | H69: 4,101.30
A70: ACL. CLEANING SOLUTION 500ML | B70: SET | C70: 2 | D70: 0 | E70: 1 | F70: 1 | G70: 1,687.00 | H70: 1,687.00
A71: ACL. COPAS 4 ML C/100 | B71: SET | C71: 0 | D71: 0 | E71: 0 | F71: 0 | G71: 3,454.10 | H71: 0
A72: ACL. COPAS 0.5ML C/1000 | B72: Caja | C72: 0 | D72: 2 | E72: 2 | F72: 0 | G72: 2,717.00 | H72: 5,434.00
A73: ACL. COPAS 2ML 1000/PK | B73: Caja | C73: 0 | D73: 0 | E73: 0 | F73: 0 | G73: 4,702.80 | H73: 0
A74: ACL. EMULCION DE REFERENCIA | B74: SET | C74: 0 | D74: 0 | E74: 0 | F74: 0 | G74: 3,510.00 | H74: 0
A75: ACL. LOW ABNORMAL CONT. 10X1ML | B75: SET | C75: 2 | D75: 0 | E75: 2 | F75: 0 | G75: 3,949.40 | H75: 7,898.80
A76: ACL. PLASMA CONTROL NORM 10X1ML | B76: Caja | C76: 0 | D76: 2 | E76: 2 | F76: 0 | G76: 3,577.60 | H76: 7,155.20
A77: ACL. PT RGT-FIBRINOGENO 5+5X8ML | B77: Caja | C77: 1 | D77: 4 | E77: =C77+D77-F77 -> 1 | F77: 4 | G77: 5,411.90 | H77: =E77*G77 -> 5,411.90
A78: ACL. ROTORES C/100 | B78: Caja | C78: 1 | D78: 0 | E78: 1 | F78: 0 | G78: 14,352.00 | H78: 14,352.00
A79: AGAR BIGGY | B79: FCO. | C79: 0 | D79: 0 | E79: 0 | F79: 0 | G79: 4,391.00 | H79: 0
A80: AGAR SANGRE | B80: FCO. | C80: 0 | D80: 0 | E80: 0 | F80: 0 | G80: 5,120.00 | H80: 0
A81: AGAR BILI ESCULINA | B81: SET | C81: 0 | D81: 0 | E81: 0 | F81: 0 | G81: 7,650.00 | H81: 0
A82: AGAR CITRATO DE SIMMONS | B82: FCO. | C82: 0 | D82: 0 | E82: 0 | F82: 0 | G82: 5,475.00 | H82: 0
A83: AGAR COLUMBIA | B83: FCO. | C83: 0 | D83: 0 | E83: 0 | F83: 0 | G83: 2,658.00 | H83: 0
A84: AGAR EOSIN AZUL METILENO-- EAM | B84: FCO. | C84: 0 | D84: 0 | E84: 0 | F84: 0 | G84: 3,660.00 | H84: 0
A85: AGAR GC | B85: FCO. | C85: 0 | D85: 0 | E85: 0 | F85: 0 | G85: 4,965.00 | H85: 0
A86: AGAR HEMOGLOVINA BOVINA | B86: FCO. | C86: 0 | D86: 0 | E86: 0 | F86: 0 | G86: 4,356.00 | H86: 0
A87: AGAR LYSINE IRON (LIA) 100G | B87: FCO. | C87: 0 | D87: 0 | E87: 0 | F87: 0 | G87: 5,005.00 | H87: 0
A88: AGAR MACCONKEY | B88: FCO. | C88: 0 | D88: 0 | E88: 0 | F88: 0 | G88: 4,752.00 | H88: 0
A89: AGAR MANITOL SALT | B89: FCO. | C89: 1 | D89: 0 | E89: 0 | F89: 1 | G89: 4,435.00 | H89: 0
A90: AGAR MULLER HILTON | B90: FCO. | C90: 2 | D90: 0 | E90: 0 | F90: 2 | G90: 5,500.00 | H90: 0
A91: AGAR SABOURAUD CON CLORANFENICOL | B91: FCO. | C91: 0 | D91: 0 | E91: 0 | F91: 0 | G91: 7,415.00 | H91: 0
A92: AGAR SALMONELLA SCHIGUELLA | B92: FCO. | C92: 0 | D92: 0 | E92: 0 | F92: 0 | G92: 4,630.00 | H92: 0
A93: AGAR SIM MEDIUM | B93: FCO. | C93: 0 | D93: 0 | E93: 0 | F93: 0 | G93: 2,849.00 | H93: 0
A94: AGAR TIOGLICOLATO FLUID | B94: FCO. | C94: 0 | D94: 0 | E94: 0 | F94: 0 | G94: 5,605.00 | H94: 0
A95: AGAR TRIPLE SUGAR IRON | B95: FCO. | C95: 0 | D95: 0 | E95: 0 | F95: 0 | G95: 3,575.00 | H95: 0
A96: AGAR TSA TRICTICASA SUGAR | B96: FCO. | C96: 1 | D96: 0 | E96: 1 | F96: 0 | G96: 3,650.00 | H96: 3,650.00
A97: AGUA BIDESTILADA | B97: Galon | C97: 0 | D97: 0 | E97: 0 | F97: 0 | G97: 120.00 | H97: 0
A98: AGUA DESTILADA | B98: Galon | C98: 28 | D98: 150 | E98: 87 | F98: 91 | G98: 80.00 | H98: 6,960.00
A99: AGUA STERIL AMPOLLA | B99: FCO. | C99: 0 | D99: 0 | E99: 0 | F99: 0 | G99: 2.17 | H99: 0
A100: AGUJA BACTERIOLOGICA | B100: UNID. | C100: 0 | D100: 0 | E100: 0 | F100: 0 | G100: 4,320.00 | H100: 0
A101: AGUJA P/VACUTANIER | B101: Caja | C101: 90 | D101: 0 | E101: 30 | F101: 60 | G101: 950.00 | H101: 28,500.00
A102: AHBC ELISA-CORE | B102: SET | C102: 0 | D102: 0 | E102: 0 | F102: 0 | G102: 10,238.40 | H102: 0
A103: ALBUMINA 100 TEST, Q.C.A | B103: SET | C103: 0 | D103: 0 | E103: 0 | F103: 0 | G103: 1,364.00 | H103: 0
A104: ALBUMINA BOVINA 22% | B104: FCO. | C104: 8 | D104: 0 | E104: 8 | F104: 0 | G104: 780.00 | H104: 6,240.00
A105: ALBUMINA MANUAL | B105: SET | C105: 0 | D105: 0 | E105: 0 | F105: 0 | G105: 780.00 | H105: 0
A106: ALCOHOL ISOPROPILICO 70% (Galon) | B106: Galon | C106: 0 | D106: 4 | E106: 0 | F106: 4 | G106: 324.50 | H106: 0
A107: ALCOGOL AL 70% LITRO | B107: Galon | C107: 0 | D107: 0 | E107: 0 | F107: 0 | G107: 87.40 | H107: 0
A108: ALCOHOL ABSOLUTO --ETANOL | B108: Galon | C108: 12 | D108: 0 | E108: 12 | F108: 0 | G108: 4,930.00 | H108: 59,160.00
A109: ALCOHOL EN TOALLAS | B109: Caja | C109: 2 | D109: 0 | E109: 2 | F109: 0 | G109: 0.00 | H109: 0
A110: ALCOHOL ETILICO 95% | B110: Galon | C110: 2 | D110: 0 | E110: 2 | F110: 0 | G110: 2,980.00 | H110: 5,960.00
A111: ALCOHOL ISOPROPILICO 70 | B111: Galon | C111: 0 | D111: 0 | E111: 0 | F111: 0 | G111: 324.50 | H111: 0
A112: ALCOHOL ISOPROPILICO 70% | B112: Galon | C112: 8 | D112: 0 | E112: 8 | F112: 0 | G112: 890.00 | H112: 7,120.00
A113: ALCOHOL METILICO (METANOL) | B113: Galon | C113: 0 | D113: 0 | E113: 0 | F113: 0 | G113: 1,440.00 | H113: 0
A114: ALCOHOL PROPANO (PROPANOL II) | B114: Galon | C114: 0 | D114: 0 | E114: 0 | F114: 0 | G114: 4,178.00 | H114: 0
A115: ALGODON | B115: ROLLO | C115: 0 | D115: 0 | E115: 0 | F115: 0 | G115: 396.00 | H115: 0
A116: ALGODON ABSORVENTE ( ROLLO) | B116: ROLLO | C116: 2 | D116: 0 | E116: 1 | F116: 1 | G116: 90.17 | H116: 90.17
A117: ALUMINIUM POTASSIUM SULFATE | B117: FCO. | C117: 1 | D117: 0 | E117: 1 | F117: 0 | G117: 9,700.00 | H117: 9,700.00
A118: BIOCHEMISTRY CONTROL SERRUM 1 | B118: FCO. | C118: 0 | D118: 0 | E118: 0 | F118: 0 | G118: 497.90 | H118: 0
A119: BIOCHEMISTRY CONTROL SERRUM II | B119: FCO. | C119: 0 | D119: 0 | E119: 0 | F119: 0 | G119: 497.90 | H119: 0
A120: AMILASA LIQUIDA 1X120, Q.C.A. | B120: SET | C120: 0 | D120: 0 | E120: 0 | F120: 0 | G120: 4,543.00 | H120: 0
A121: AMILASA MANUAL | B121: SET | C121: 0 | D121: 0 | E121: 0 | F121: 0 | G121: 1,147.70 | H121: 0
A122: ANTI A | B122: FCO. | C122: 6 | D122: 10 | E122: 16 | F122: 0 | G122: 338.00 | H122: 5,408.00
A123: ANTI A-B | B123: FCO. | C123: 3 | D123: 0 | E123: 3 | F123: 0 | G123: 1,450.00 | H123: 4,350.00
A124: ANTI A-B-D | B124: SET | C124: 0 | D124: 0 | E124: 0 | F124: 0 | G124: 335.00 | H124: 0
A125: ANTI B | B125: FCO. | C125: 11 | D125: 10 | E125: 21 | F125: 0 | G125: 338.00 | H125: 7,098.00
A126: ANTI D | B126: FCO. | C126: 28 | D126: 10 | E126: 38 | F126: 0 | G126: 663.00 | H126: 25,194.00
A127: ANTI HUMANO COOMBS | B127: FCO. | C127: 7 | D127: 0 | E127: 7 | F127: 0 | G127: 890.00 | H127: 6,230.00
A128: ANTICOAGULANTE | B128: FCO. | C128: 0 | D128: 0 | E128: 0 | F128: 0 | G128: 170.00 | H128: 0
A129: ANTIGENO FEBRILES | B129: SET | C129: 0 | D129: 0 | E129: 0 | F129: 0 | G129: 3,227.00 | H129: 0
A130: APLICADORES MADERA | B130: Caja | C130: 7 | D130: 0 | E130: 1 | F130: 6 | G130: 618.00 | H130: 618.00
A131: ASA BACTERIOLOGICA 0.001 | B131: UNID. | C131: 0 | D131: 0 | E131: 0 | F131: 0 | G131: 4,320.00 | H131: 0
A132: ASA BACTERIOLOGICA 0.01 | B132: UNID. | C132: 0 | D132: 0 | E132: 0 | F132: 0 | G132: 4,880.00 | H132: 0
A133: ASO LATEX | B133: SET | C133: 10 | D133: 0 | E133: 7 | F133: 3 | G133: 2,750.00 | H133: 19,250.00
A134: AZUL DE METILENO | B134: FCO. | C134: 0 | D134: 0 | E134: 0 | F134: 0 | G134: 3,800.00 | H134: 0
A135: AUTION MAX CONTROL DE ORINA | B135: SET | C135: 1 | D135: 0 | E135: 1 | F135: 0 | G135: 7,861.20 | H135: 7,861.20
A136: AUTION MAX CONTROL ORINA P/TIRAS | B136: SET | C136: 0 | D136: 0 | E136: 0 | F136: 0 | G136: 7,861.20 | H136: 0
A137: AUTION MAX TIRAS ARKRAY (73591) | B137: FCO. | C137: 1 | D137: 10 | E137: 1 | F137: 10 | G137: 2,600.00 | H137: 2,600.00
A138: AUTION HIBRID DILUEN BAD | B138: FCO. | C138: 0 | D138: 4 | E138: 0 | F138: 4 | G138: 8,759.00 | H138: 0
A139: AUTION HIBRID DILUEN SED | B139: FCO. | C139: 1 | D139: 2 | E139: 0 | F139: 3 | G139: 11,986.00 | H139: 0
A140: AUTION HYBRID STANIG SOLUTION BAC | B140: FCO. | C140: 1 | D140: 1 | E140: 1 | F140: 1 | G140: 8,759.00 | H140: 8,759.00
A141: AUTION HYBRID STANIG SOLUTION SED | B141: FCO. | C141: 0 | D141: 3 | E141: =C141+D141-F141 -> 2 | F141: 1 | G141: 16,904.00 | H141: =E141*G141 -> 33,808.00
A142: AUTION HYBRID SHEATH SOLUTION | B142: Caja | C142: 5 | D142: 4 | E142: 4 | F142: 5 | G142: 8,759.00 | H142: 35,036.00
A143: AUTION SOLUTION DE LAVADO | B143: Galon | C143: 0 | D143: 8 | E143: 5 | F143: 3 | G143: 2,400.00 | H143: 12,000.00
A144: AUTION TIRA ORINA HYBRID URIFLEX | B144: FCO. | C144: 25 | D144: 10 | E144: 11 | F144: 24 | G144: 2,182.00 | H144: 24,002.00
A145: ATCC27853 PSEUDOMONA AEROGINOS | B145: SET | C145: 0 | D145: 0 | E145: 0 | F145: 0 | G145: 2,115.15 | H145: 0
A146: ATCC29212 ENTEROC. FECALIS | B146: SET | C146: 0 | D146: 0 | E146: 0 | F146: 0 | G146: 2,360.13 | H146: 0
A147: AURAMINA O 25mg | B147: FCO. | C147: 0 | D147: 0 | E147: 0 | F147: 0 | G147: 5,160.00 | H147: 0
A148: AUTOCLAVE M4 15/3 48L 110V | B148: UNID. | C148: 0 | D148: 0 | E148: 0 | F148: 0 | G148: 108,650.00 | H148: 0
A149: BAJANTE DE SANGRE BAXTER | B149: UNID. | C149: 0 | D149: 0 | E149: 0 | F149: 0 | G149: 304.00 | H149: 0
A150: BAJANTE DE SANGRE | B150: UNID. | C150: 0 | D150: 0 | E150: 0 | F150: 0 | G150: 7.30 | H150: 0
A151: BALSAMO PARA PATOLOGIA | B151: FCO. | C151: 0 | D151: 0 | E151: 0 | F151: 0 | G151: 4,200.00 | H151: 0
A152: BANDEJA DE TINCION | B152: UNID. | C152: 0 | D152: 0 | E152: 0 | F152: 0 | G152: 1,338.00 | H152: 0
A153: BANDEJA PARA TOMA DE MUESTRA | B153: UNID. | C153: 0 | D153: 0 | E153: 0 | F153: 0 | G153: 2,000.00 | H153: 0
A154: BAÑO DE COPRINS CON TAPA CRISTAL | B154: UNID. | C154: 0 | D154: 0 | E154: 0 | F154: 0 | G154: 4,060.00 | H154: 0
A155: BAÑO DE MARIA | B155: UNID. | C155: 0 | D155: 0 | E155: 0 | F155: 0 | G155: 11,116.38 | H155: 0
A156: BFTII + BOARD | B156: UNID. | C156: 0 | D156: 0 | E156: 0 | F156: 0 | G156: 22,176.00 | H156: 0
A157: BFT-II CUBETAS COAGULACION | B157: Caja | C157: 3 | D157: 0 | E157: 2 | F157: 1 | G157: 16,068.00 | H157: 32,136.00
A158: BILIRRUBINA 100 TEST, Q.C.A. | B158: SET | C158: 0 | D158: 0 | E158: 0 | F158: 0 | G158: 1,474.00 | H158: 0
A159: BILIRRUBINA MANUAL | B159: SET | C159: 0 | D159: 0 | E159: 0 | F159: 0 | G159: 1,708.80 | H159: 0
A160: BILIRRUBINA MANUAL | B160: SET | C160: 0 | D160: 0 | E160: 0 | F160: 0 | G160: 264.00 | H160: 0
A161: BIO WRIGHT 1 | B161: Galon | C161: 0 | D161: 0 | E161: 0 | F161: 0 | G161: 1,815.00 | H161: 0
A162: BIO WRIGHT 2 | B162: Galon | C162: 1 | D162: 0 | E162: 1 | F162: 0 | G162: 1,890.00 | H162: 1,890.00
A163: BIO WRIGHT 3 | B163: Galon | C163: 1 | D163: 0 | E163: 1 | F163: 0 | G163: 1,890.00 | H163: 1,890.00
A164: BOLSA DE DESECHO | B164: Galon | C164: 0 | D164: 0 | E164: 0 | F164: 0 | G164: 5,846.10 | H164: 0
A165: BOLSA COLECTORAS DE SANGRE | B165: UNID. | C165: 0 | D165: 0 | E165: 0 | F165: 0 | G165: 36.80 | H165: 0
A166: BOLSA DE SANGRE TRIPLE-DONADA | B166: UNID. | C166: 0 | D166: 0 | E166: 0 | F166: 0 | G166: 0.00 | H166: 0
A167: BOLSAS DE SANGRE DOBLE 10/1 | B167: FDA | C167: 0 | D167: 0 | E167: 0 | F167: 0 | G167: 2,400.00 | H167: 0
A168: BOLSAS DE SANGRE DOBLE 13/1 | B168: PAQ. | C168: 0 | D168: 0 | E168: 0 | F168: 0 | G168: 0.00 | H168: 0
A169: BOLSAS DE SANGRE DOBLE 6/1 | B169: UNID. | C169: 0 | D169: 0 | E169: 0 | F169: 0 | G169: 1,965.00 | H169: 0
A170: BOLSAS DE SANGRE DOBLES | B170: UNID. | C170: 0 | D170: 0 | E170: 0 | F170: 0 | G170: 4,266.00 | H170: 0
A171: BOLSAS DE SANGRE SIMPLE | B171: UNID. | C171: 1 | D171: 0 | E171: 1 | F171: 0 | G171: 4,170.00 | H171: 4,170.00
A172: BOLSAS DE SANGRE SIMPLE 10/1 | B172: PAQ. | C172: 0 | D172: 0 | E172: 0 | F172: 0 | G172: 0.00 | H172: 0
A173: BOLSAS DE SANGRE SIMPLE 12/1 | B173: FDA | C173: 0 | D173: 0 | E173: 0 | F173: 0 | G173: 1,810.00 | H173: 0
A174: BOLSAS DE SANGRE SIMPLE 13/1 | B174: FDA | C174: 0 | D174: 0 | E174: 0 | F174: 0 | G174: 1,742.00 | H174: 0
A175: BOLSAS DE SANGRE SIMPLE 5/1 | B175: PAQ. | C175: 0 | D175: 0 | E175: 0 | F175: 0 | G175: 1,810.00 | H175: 0
A176: BOMBILLO P/ ESPECTROFOTOMETRO | B176: UNID. | C176: 1 | D176: 0 | E176: 1 | F176: 0 | G176: 1,079.92 | H176: 1,079.92
A177: BOMBILLO P/ MICROSCOPIO 60/20W | B177: UNID. | C177: 0 | D177: 0 | E177: 0 | F177: 0 | G177: 950.00 | H177: 0
A178: BOMBILLO P/MICROSCOPIO 120V 20W | B178: UNID. | C178: 1 | D178: 0 | E178: 1 | F178: 0 | G178: 950.00 | H178: 950.00
A179: BOTELLAS DE CRISTAL GRADUADAS C/TAPA | B179: UNID. | C179: 0 | D179: 0 | E179: 0 | F179: 0 | G179: 0.00 | H179: 0
A180: CALPROTENTINA | B180: SET | C180: 0 | D180: 1 | E180: 1 | F180: 0 | G180: 5,081.08 | H180: 5,081.08
A181: CAMARA HEM NEW BAUER | B181: UNID. | C181: 0 | D181: 0 | E181: 0 | F181: 0 | G181: 3,680.00 | H181: 0
A182: CAPSULAS PYTESL --PRUEBA DE ALIENTO | B182: UNID. | C182: 100 | D182: 100 | E182: 0 | F182: 200 | G182: 1,316.30 | H182: 0
A183: CARPETA PORTA LAMINAS P/20 PORTA | B183: Caja | C183: 2 | D183: 0 | E183: 2 | F183: 0 | G183: 2,035.00 | H183: 4,070.00
A184: CARTUCHO IRMA | B184: UNID. | C184: 0 | D184: 0 | E184: 0 | F184: 0 | G184: 522.00 | H184: 0
A185: CASSETTE CON TAPA BLANCO | B185: Caja | C185: 10 | D185: 0 | E185: 10 | F185: 0 | G185: 4,179.00 | H185: 41,790.00
A186: CASSETTE CON TAPA COLORES | B186: Caja | C186: 11 | D186: 0 | E186: 11 | F186: 0 | G186: 4,179.00 | H186: 45,969.00
A187: CASSETTE SIN TAPA | B187: Caja | C187: 0 | D187: 0 | E187: 0 | F187: 0 | G187: 5,868.00 | H187: 0
A188: CIBA CORNING PAPEL TERM 4 7/16 | B188: ROLLO | C188: 0 | D188: 0 | E188: 0 | F188: 0 | G188: 144.00 | H188: 0
A189: CILINDRO DE MEDIDA 250ML | B189: UNID. | C189: 0 | D189: 0 | E189: 0 | F189: 0 | G189: 0.00 | H189: 0
A190: CILINDRO DE MEDIDAS 1000 ML | B190: UNID. | C190: 1 | D190: 0 | E190: 1 | F190: 0 | G190: 1,350.00 | H190: 1,350.00
A191: CILINDRO 25ML | B191: UNID. | C191: 1 | D191: 0 | E191: 1 | F191: 0 | G191: 0.00 | H191: 0
A192: CILINDRO DE MEDIDAS 50 ML | B192: UNID. | C192: 0 | D192: 0 | E192: 0 | F192: 0 | G192: 980.00 | H192: 0
A193: CILINDRO DE MEDIDAS 500 ML | B193: UNID. | C193: 0 | D193: 0 | E193: 0 | F193: 0 | G193: 0.00 | H193: 0
A194: CLIPS DE ALUMINIO P/ BOLSAS DE SANGRE | B194: Caja | C194: 2 | D194: 0 | E194: 2 | F194: 0 | G194: 3,700.00 | H194: 7,400.00
A195: CLORURO CALCIO 6/1 | B195: Caja | C195: 0 | D195: 0 | E195: 0 | F195: 0 | G195: 2,000.00 | H195: 0
A196: CLORURO DE CALCIO 10/1 | B196: Caja | C196: 0 | D196: 0 | E196: 0 | F196: 0 | G196: 4,280.00 | H196: 0
A197: CLORURO DE CALCIO 15 ML | B197: FCO. | C197: 3 | D197: 0 | E197: 1 | F197: 2 | G197: 590.20 | H197: 590.20
A198: CLORURO DE CALCIO 30ML | B198: FCO. | C198: 0 | D198: 0 | E198: 0 | F198: 0 | G198: 813.00 | H198: 0
A199: CLORURO DE SODIO 1000G | B199: FCO. | C199: 0 | D199: 0 | E199: 0 | F199: 0 | G199: 2,875.00 | H199: 0
A200: CLORURO DE SODIO 250G | B200: FCO. | C200: 0 | D200: 0 | E200: 0 | F200: 0 | G200: 753.00 | H200: 0
A201: CLORURO DE SODIO 500G | B201: FCO. | C201: 3 | D201: 0 | E201: 1 | F201: 2 | G201: 2,875.00 | H201: 2,875.00
A202: COAGULASA PLASMA | B202: SET | C202: 0 | D202: 0 | E202: 0 | F202: 0 | G202: 4,226.00 | H202: 0
A203: CONTENEDOR D/BIOSEGURIDAD 5 L | B203: UNID. | C203: 0 | D203: 0 | E203: 0 | F203: 0 | G203: 1,400.00 | H203: 0
... 630 more rows

Sheet NOVIEMBRE ADM 2017 (3)
A3: SERVICIO NACIONAL DE SALUD
A4: Informe Mensual de Almacén General, Despensa y Medicina
A5: ALMACEN | B5: LABORATORIO
A6: ESTABLECIMIENTO | B6: CENTRO DE GASTROENTEROLOGIA | E6: REGION | F6: 0
A7: AREA DE SALUD | E7: MES | F7: NOVIEMBRE | G7: AÑO | H7: 2017
A9: ARTICULO | B9: UNIDAD | C9: EXISTENCIA ANTERIOR | D9: ENTRADA | E9: EXISTENCIA | F9: TOTAL CONSUMIDOS (3+4)-5 | G9: VALOR UNITARIO | H9: VALOR TOTAL
C10: ANTERIOR | E10: FINAL | F10: CONSUMIDO | G10: UNITARIO | H10: TOTAL
A11: -1- | C11: 3 | D11: -4- | E11: -5- | F11: (3+4)-5 | G11: -7- | H11: (6X7)
A12: AB CONTROL NORMAL SUERO | B12: SET | C12: 0 | D12: 0 | E12: =C12+D12-F12 -> 0 | F12: 0 | G12: 27,284.22 | H12: =F12*G12 -> 0
A13: ABX TONER PARA IMPRESORA | B13: UNID | C13: 2 | D13: 0 | E13: =C13+D13-F13 -> 2 | F13: 0 | G13: 866.25 | H13: =F13*G13 -> 0
A14: ABX DIFFTROL 2H | B14: SET | C14: 0 | D14: 0 | E14: 0 | F14: 0 | G14: 14,720.00 | H14: 0
A15: ABX DIFFTROL 2L | B15: SET | C15: 0 | D15: 0 | E15: 0 | F15: 0 | G15: 14,720.00 | H15: 0
A16: ABX DIFFTROL 2N | B16: SET | C16: 0 | D16: 0 | E16: 0 | F16: 0 | G16: 14,720.00 | H16: 0
A17: ABX CONTROL HEMATOLOGICO 3/1 | B17: SET | C17: 3 | D17: 0 | E17: 1 | F17: 2 | G17: 12,476.00 | H17: 24,952.00
A18: ABX MINOLYSE | B18: FCO. | C18: 2 | D18: 0 | E18: 2 | F18: 0 | G18: 23,552.00 | H18: 0
A19: ABX LISEBIO | B19: FCO. | C19: 2 | D19: 0 | E19: 2 | F19: 0 | G19: 16,200.00 | H19: 0
A20: ABX MINOTON | B20: Caja | C20: 1 | D20: 0 | E20: 1 | F20: 0 | G20: 17,028.00 | H20: 0
A21: AC. PHOSPHOTUNGSTICO HYDRATE 25mg | B21: FCO. | C21: 1 | D21: 0 | E21: 1 | F21: 0 | G21: 6,720.00 | H21: 0
A22: ACCESS FERRITIN 2X50 | B22: SET | C22: 3 | D22: 0 | E22: 3 | F22: 0 | G22: 19,405.10 | H22: 0
A23: ACCESS AFP 2X50 | B23: SET | C23: 0 | D23: 2 | E23: 0 | F23: 2 | G23: 20,031.00 | H23: 40,062.00
A24: ACCESS B12 2X50 | B24: SET | C24: 0 | D24: 0 | E24: 0 | F24: 0 | G24: 16,465.00 | H24: 0
A25: ACCESS BOLSA DESECHABLES | B25: CAJA | C25: 1 | D25: 0 | E25: 0 | F25: 1 | G25: 6,363.50 | H25: 6,363.50
A26: ACCESS CA 125 2X50 | B26: SET | C26: 2 | D26: 0 | E26: 1 | F26: 1 | G26: 26,708.50 | H26: 26,708.50
A27: ACCESS CA 19-9 2X50 | B27: SET | C27: 0 | D27: 1 | E27: 0 | F27: 1 | G27: 26,708.50 | H27: 26,708.50
A28: ACCESS CONTRAD 70 | B28: SET | C28: 0 | D28: 0 | E28: 0 | F28: 0 | G28: 6,227.00 | H28: 0
A29: ACCESS CEA 2X50 | B29: SET | C29: 1 | D29: 0 | E29: 1 | F29: 0 | G29: 26,708.50 | H29: 0
A30: ACCESS CONTROL TUMORAL1 | B30: SET | C30: 0 | D30: 0 | E30: 0 | F30: 0 | G30: 10,382.40 | H30: 0
A31: ACCESS CONTROL TUMORAL2 | B31: SET | C31: 0 | D31: 0 | E31: 0 | F31: 0 | G31: 10,382.40 | H31: 0
A32: ACCESS FOLATE 2X50 | B32: SET | C32: 0 | D32: 0 | E32: 0 | F32: 0 | G32: 16,499.60 | H32: 0
A33: ACCESS HAV AB 2X50 | B33: SET | C33: 2 | D33: 0 | E33: 2 | F33: 0 | G33: 25,873.90 | H33: 0
A34: ACCESS HAV IGM 2X50 | B34: SET | C34: 0 | D34: 1 | E34: 1 | F34: 0 | G34: 25,873.90 | H34: 0
A35: ACCESS HBC AB 2X50 | B35: SET | C35: 0 | D35: 0 | E35: 0 | F35: 0 | G35: 25,873.90 | H35: 0
A36: ACCESS HBC IGM 2X50 | B36: SET | C36: 1 | D36: 0 | E36: 1 | F36: 0 | G36: 25,873.90 | H36: 0
A37: ACCESS HCG 2X50 | B37: SET | C37: 1 | D37: 1 | E37: 2 | F37: 0 | G37: 13,962.00 | H37: 0
A38: ACCESS IGE 2X50 | B38: SET | C38: 0 | D38: 0 | E38: 0 | F38: 0 | G38: 16,465.80 | H38: 0
A39: ACCESS PROGESTERON 2X50 | B39: SET | C39: 0 | D39: 0 | E39: 0 | F39: 0 | G39: 12,827.10 | H39: 0
A40: ACCESS PROLACTIN 2X50 | B40: SET | C40: 0 | D40: 0 | E40: 0 | F40: 0 | G40: 13,525.20 | H40: 0
A41: ACCESS PSA LIBRE 2X50 | B41: SET | C41: 1 | D41: 2 | E41: 2 | F41: 1 | G41: 26,708.50 | H41: 26,708.50
A42: ACCESS PSA TOTAL | B42: SET | C42: 1 | D42: 2 | E42: 3 | F42: 0 | G42: 17,032.60 | H42: 0
A43: ACCESS REACTION VESSEL 16X98 | B43: Caja | C43: 3 | D43: 2 | E43: 2 | F43: 3 | G43: 7,956.00 | H43: 23,868.00
A44: ACCESS SAMPLE CUP 2 ML | B44: PAQ. | C44: 1 | D44: 0 | E44: 1 | F44: 0 | G44: 2,421.90 | H44: 0
A45: ACCESS SUSTRATO 600T 1X30ML | B45: FCO. | C45: 10 | D45: 0 | E45: 6 | F45: 4 | G45: 7,264.40 | H45: 29,057.60
A46: ACCESS SYSTEM CHECK 6X4 ML | B46: SET | C46: 0 | D46: 0 | E46: 0 | F46: 0 | G46: 10,926.50 | H46: 0
A47: ACCESS T3 2X50 | B47: SET | C47: 0 | D47: 3 | E47: 2 | F47: 1 | G47: 11,568.70 | H47: 11,568.70
A48: ACCESS T4 2X50 | B48: SET | C48: 1 | D48: 2 | E48: 2 | F48: 1 | G48: 11,568.70 | H48: 11,568.70
A49: ACCESS T4 LIBRE | B49: SET | C49: 2 | D49: 2 | E49: 2 | F49: 2 | G49: 13,962.00 | H49: 27,924.00
A50: ACCESS TOXO 2X50 | B50: SET | C50: 0 | D50: 0 | E50: 0 | F50: 0 | G50: 16,996.20 | H50: 0
A51: ACCESS TOXO IGM | B51: SET | C51: 0 | D51: 0 | E51: 0 | F51: 0 | G51: 20,031.70 | H51: 0
A52: ACCESS TSH 2X50 | B52: SET | C52: 1 | D52: 3 | E52: 1 | F52: 3 | G52: 11,568.70 | H52: 34,706.10
A53: ACCESS WASH BUFFER ll 4x1.9L | B53: FCO. | C53: 4 | D53: 2 | E53: 3 | F53: 3 | G53: 5,356.00 | H53: 16,068.00
A54: ACEITE DE INMERSION | B54: FCO. | C54: 0 | D54: 0 | E54: 0 | F54: 0 | G54: 1,380.00 | H54: 0
A55: ACETONA | B55: Galon | C55: 0 | D55: 0 | E55: 0 | F55: 0 | G55: 975.00 | H55: 0
A56: ACETONA GRADO REACTIVO | B56: Galon | C56: 0 | D56: 2 | E56: 2 | F56: 0 | G56: 1,152.00 | H56: 0
A57: ACID ALCOHOL 3% -DONADO | B57: LT. | C57: 0 | D57: 0 | E57: 0 | F57: 0 | G57: 0.00 | H57: 0
A58: ACIDO ACETICO GLACIAL | B58: LT. | C58: 0 | D58: 0 | E58: 0 | F58: 0 | G58: 2,125.00 | H58: 0
A59: ACIDO NITRICO | B59: Galon | C59: 0 | D59: 0 | E59: 0 | F59: 0 | G59: 4,750.00 | H59: 0
A60: ACIDO SULFURICO 4N 1000 ML | B60: LT. | C60: 0 | D60: 0 | E60: 0 | F60: 0 | G60: 518.40 | H60: 0
A61: ACIDO URICO 300T Q.C.A. | B61: SET | C61: 0 | D61: 0 | E61: 0 | F61: 0 | G61: 1,864.50 | H61: 0
A62: ACIDO URICO MANUAL | B62: SET | C62: 0 | D62: 0 | E62: 0 | F62: 0 | G62: 2,780.00 | H62: 0
A63: ACIDO URICO MANUAL | B63: SET | C63: 0 | D63: 0 | E63: 0 | F63: 0 | G63: 522.00 | H63: 0
A64: ACL DILUYENTE FACTORES 100ML | B64: FCO. | C64: 0 | D64: 0 | E64: 0 | F64: 0 | G64: 744.00 | H64: 0
A65: ACL HIGH ABNORMAL CONT 10X1ML | B65: Caja | C65: 0 | D65: 0 | E65: 0 | F65: 0 | G65: 3,949.40 | H65: 0
A66: ACL. WASH EMULSION | B66: FCO. | C66: 0 | D66: 3 | E66: 3 | F66: 0 | G66: 964.60 | H66: 0
A67: ACL. APTT. 5+5X5X8 | B67: Caja | C67: 1 | D67: 1 | E67: 2 | F67: 0 | G67: 4,724.20 | H67: 0
A68: ACL. CALIBRADOR PLASMA | B68: Caja | C68: 1 | D68: 0 | E68: 1 | F68: 0 | G68: 4,101.30 | H68: 0
A69: ACL. CLEANING SOLUTION 500ML | B69: SET | C69: 1 | D69: 0 | E69: 1 | F69: 0 | G69: 1,687.00 | H69: 0
A70: ACL. COPAS 4 ML C/100 | B70: SET | C70: 0 | D70: 0 | E70: 0 | F70: 0 | G70: 3,454.10 | H70: 0
A71: ACL. COPAS 0.5ML C/1000 | B71: Caja | C71: 0 | D71: 0 | E71: 0 | F71: 0 | G71: 2,717.00 | H71: 0
A72: ACL. COPAS 2ML 1000/PK | B72: Caja | C72: 0 | D72: 0 | E72: 0 | F72: 0 | G72: 4,702.80 | H72: 0
A73: ACL. EMULCION DE REFERENCIA | B73: SET | C73: 0 | D73: 0 | E73: 0 | F73: 0 | G73: 3,510.00 | H73: 0
A74: ACL. LOW ABNORMAL CONT. 10X1ML | B74: SET | C74: 0 | D74: 0 | E74: 0 | F74: 0 | G74: 3,949.40 | H74: 0
A75: ACL. PLASMA CONTROL NORM 10X1ML | B75: Caja | C75: 0 | D75: 0 | E75: 0 | F75: 0 | G75: 3,577.60 | H75: 0
A76: ACL. PT RGT-FIBRINOGENO 5+5X8ML | B76: Caja | C76: 0 | D76: 2 | E76: 2 | F76: 0 | G76: 5,411.90 | H76: 0
A77: ACL. ROTORES C/100 | B77: Caja | C77: 1 | D77: 0 | E77: =C77+D77-F77 -> 1 | F77: 0 | G77: 14,352.00 | H77: =F77*G77 -> 0
A78: AGAR BIGGY | B78: FCO. | C78: 1 | D78: 0 | E78: 1 | F78: 0 | G78: 4,391.00 | H78: 0
A79: AGAR SANGRE | B79: FCO. | C79: 0 | D79: 0 | E79: 0 | F79: 0 | G79: 5,120.00 | H79: 0
A80: AGAR BILI ESCULINA | B80: SET | C80: 1 | D80: 0 | E80: 1 | F80: 0 | G80: 7,650.00 | H80: 0
A81: AGAR CITRATO DE SIMMONS | B81: FCO. | C81: 0 | D81: 0 | E81: 0 | F81: 0 | G81: 5,475.00 | H81: 0
A82: AGAR COLUMBIA | B82: FCO. | C82: 0 | D82: 0 | E82: 0 | F82: 0 | G82: 2,658.00 | H82: 0
A83: AGAR EOSIN AZUL METILENO-- EAM | B83: FCO. | C83: 0 | D83: 0 | E83: 0 | F83: 0 | G83: 3,660.00 | H83: 0
A84: AGAR GC | B84: FCO. | C84: 0 | D84: 0 | E84: 0 | F84: 0 | G84: 4,965.00 | H84: 0
A85: AGAR HEMOGLOVINA BOVINA | B85: FCO. | C85: 0 | D85: 0 | E85: 0 | F85: 0 | G85: 4,356.00 | H85: 0
A86: AGAR LYSINE IRON (LIA) 100G | B86: FCO. | C86: 0 | D86: 0 | E86: 0 | F86: 0 | G86: 5,005.00 | H86: 0
A87: AGAR MACCONKEY | B87: FCO. | C87: 1 | D87: 0 | E87: 1 | F87: 0 | G87: 4,752.00 | H87: 0
A88: AGAR MANITOL SALT | B88: FCO. | C88: 0 | D88: 0 | E88: 0 | F88: 0 | G88: 4,435.00 | H88: 0
A89: AGAR MULLER HILTON | B89: FCO. | C89: 1 | D89: 0 | E89: 0 | F89: 1 | G89: 5,500.00 | H89: 5,500.00
A90: AGAR SABOURAUD CON CLORANFENICOL | B90: FCO. | C90: 1 | D90: 0 | E90: 1 | F90: 0 | G90: 7,415.00 | H90: 0
A91: AGAR SALMONELLA SCHIGUELLA | B91: FCO. | C91: 0 | D91: 0 | E91: 0 | F91: 0 | G91: 4,630.00 | H91: 0
A92: AGAR SIM MEDIUM | B92: FCO. | C92: 0 | D92: 0 | E92: 0 | F92: 0 | G92: 2,849.00 | H92: 0
A93: AGAR TIOGLICOLATO FLUID | B93: FCO. | C93: 0 | D93: 0 | E93: 0 | F93: 0 | G93: 5,605.00 | H93: 0
A94: AGAR TRIPLE SUGAR IRON | B94: FCO. | C94: 0 | D94: 0 | E94: 0 | F94: 0 | G94: 3,575.00 | H94: 0
A95: AGAR TSA TRICTICASA SUGAR | B95: FCO. | C95: 1 | D95: 0 | E95: 1 | F95: 0 | G95: 3,650.00 | H95: 0
A96: AGUA BIDESTILADA | B96: Galon | C96: 0 | D96: 0 | E96: 0 | F96: 0 | G96: 120.00 | H96: 0
A97: AGUA DESTILADA | B97: Galon | C97: 139 | D97: 12 | E97: 93 | F97: 58 | G97: 116.00 | H97: 6,728.00
A98: AGUA STERIL AMPOLLA | B98: FCO. | C98: 0 | D98: 0 | E98: 0 | F98: 0 | G98: 2.17 | H98: 0
A99: AGUJA BACTERIOLOGICA | B99: UNID. | C99: 0 | D99: 0 | E99: 0 | F99: 0 | G99: 4,320.00 | H99: 0
A100: AGUJA P/VACUTANIER | B100: Caja | C100: 80 | D100: 0 | E100: 80 | F100: 0 | G100: 950.00 | H100: 0
A101: AHBC ELISA-CORE | B101: SET | C101: 0 | D101: 0 | E101: 0 | F101: 0 | G101: 10,238.40 | H101: 0
A102: ALBUMINA 100 TEST, Q.C.A | B102: SET | C102: 0 | D102: 0 | E102: 0 | F102: 0 | G102: 1,364.00 | H102: 0
A103: ALBUMINA BOVINA 22% | B103: FCO. | C103: 9 | D103: 0 | E103: 9 | F103: 0 | G103: 780.00 | H103: 0
A104: ALBUMINA MANUAL | B104: SET | C104: 0 | D104: 0 | E104: 0 | F104: 0 | G104: 780.00 | H104: 0
A105: ALCOHOL ISOPROPILICO 70% (Galon) | B105: Galon | C105: 1 | D105: 0 | E105: 1 | F105: 0 | G105: 385.00 | H105: 0
A106: ALCOGOL AL 70% LITRO | B106: Galon | C106: 0 | D106: 0 | E106: 0 | F106: 0 | G106: 87.40 | H106: 0
A107: ALCOHOL ABSOLUTO --ETANOL | B107: Galon | C107: 14 | D107: 0 | E107: 14 | F107: 0 | G107: 4,930.00 | H107: 0
A108: ALCOHOL EN TOALLAS | B108: Caja | C108: 2 | D108: 0 | E108: 2 | F108: 0 | G108: 0.00 | H108: 0
A109: ALCOHOL ETILICO 95% | B109: Galon | C109: 0 | D109: 0 | E109: 0 | F109: 0 | G109: 2,980.00 | H109: 0
A110: ALCOHOL ISOPROPILICO 70 | B110: Galon | C110: 0 | D110: 0 | E110: 0 | F110: 0 | G110: 324.50 | H110: 0
A111: ALCOHOL ISOPROPILICO 70% | B111: Galon | C111: 0 | D111: 0 | E111: 0 | F111: 0 | G111: 890.00 | H111: 0
A112: ALCOHOL METILICO (METANOL) | B112: Galon | C112: 0 | D112: 0 | E112: 0 | F112: 0 | G112: 1,440.00 | H112: 0
A113: ALCOHOL PROPANO (PROPANOL II) | B113: Galon | C113: 0 | D113: 0 | E113: 0 | F113: 0 | G113: 4,178.00 | H113: 0
A114: ALGODON | B114: ROLLO | C114: 0 | D114: 0 | E114: 0 | F114: 0 | G114: 396.00 | H114: 0
A115: ALGODON ABSORVENTE ( ROLLO) | B115: ROLLO | C115: 3 | D115: 0 | E115: 0 | F115: 3 | G115: 134.55 | H115: 403.65
A116: ALUMINIUM POTASSIUM SULFATE | B116: FCO. | C116: 0 | D116: 1 | E116: 1 | F116: 0 | G116: 9,700.00 | H116: 0
A117: BIOCHEMISTRY CONTROL SERRUM 1 | B117: FCO. | C117: 0 | D117: 0 | E117: 0 | F117: 0 | G117: 497.90 | H117: 0
A118: BIOCHEMISTRY CONTROL SERRUM II | B118: FCO. | C118: 0 | D118: 0 | E118: 0 | F118: 0 | G118: 497.90 | H118: 0
A119: AMILASA LIQUIDA 1X120, Q.C.A. | B119: SET | C119: 0 | D119: 0 | E119: 0 | F119: 0 | G119: 4,543.00 | H119: 0
A120: AMILASA MANUAL | B120: SET | C120: 0 | D120: 0 | E120: 0 | F120: 0 | G120: 1,147.70 | H120: 0
A121: ANTI A | B121: FCO. | C121: 0 | D121: 0 | E121: 0 | F121: 0 | G121: 338.00 | H121: 0
A122: ANTI A-B | B122: FCO. | C122: 2 | D122: 0 | E122: 2 | F122: 0 | G122: 1,450.00 | H122: 0
A123: ANTI A-B-D | B123: SET | C123: 0 | D123: 0 | E123: 0 | F123: 0 | G123: 335.00 | H123: 0
A124: ANTI B | B124: FCO. | C124: 5 | D124: 0 | E124: 5 | F124: 0 | G124: 338.00 | H124: 0
A125: ANTI D | B125: FCO. | C125: 13 | D125: 0 | E125: 13 | F125: 0 | G125: 663.00 | H125: 0
A126: ANTI HUMANO COOMBS | B126: FCO. | C126: 3 | D126: 0 | E126: 3 | F126: 0 | G126: 890.00 | H126: 0
A127: ANTICOAGULANTE | B127: FCO. | C127: 0 | D127: 0 | E127: 0 | F127: 0 | G127: 170.00 | H127: 0
A128: ANTIGENO FEBRILES | B128: SET | C128: 2 | D128: 0 | E128: 2 | F128: 0 | G128: 3,227.00 | H128: 0
A129: APLICADORES MADERA | B129: Caja | C129: 2 | D129: 0 | E129: 2 | F129: 0 | G129: 618.00 | H129: 0
A130: ASA BACTERIOLOGICA 0.001 | B130: UNID. | C130: 0 | D130: 0 | E130: 0 | F130: 0 | G130: 4,320.00 | H130: 0
A131: ASA BACTERIOLOGICA 0.01 | B131: UNID. | C131: 0 | D131: 0 | E131: 0 | F131: 0 | G131: 4,880.00 | H131: 0
A132: ASO LATEX | B132: SET | C132: 2 | D132: 0 | E132: 0 | F132: 2 | G132: 2,150.00 | H132: 4,300.00
A133: AZUL DE METILENO | B133: FCO. | C133: 0 | D133: 0 | E133: 0 | F133: 0 | G133: 3,800.00 | H133: 0
A134: AUTION MAX CONTROL DE ORINA | B134: SET | C134: 2 | D134: 0 | E134: 1 | F134: 1 | G134: 7,861.20 | H134: 7,861.20
A135: AUTION MAX CONTROL ORINA P/TIRAS | B135: SET | C135: 0 | D135: 0 | E135: 0 | F135: 0 | G135: 7,861.20 | H135: 0
A136: AUTION MAX TIRAS ARKRAY (73591) | B136: FCO. | C136: 0 | D136: 0 | E136: 0 | F136: 0 | G136: 2,600.00 | H136: 0
A137: AUTION HIBRID DILUEN BAD | B137: FCO. | C137: 2 | D137: 2 | E137: 2 | F137: 2 | G137: 8,759.00 | H137: 17,518.00
A138: AUTION HIBRID DILUEN SED | B138: FCO. | C138: 1 | D138: 2 | E138: 3 | F138: 0 | G138: 11,986.00 | H138: 0
A139: AUTION HYBRID STANIG SOLUTION BAC | B139: FCO. | C139: 2 | D139: 2 | E139: 3 | F139: 1 | G139: 8,759.00 | H139: 8,759.00
A140: AUTION HYBRID STANIG SOLUTION SED | B140: FCO. | C140: 2 | D140: 2 | E140: 1 | F140: 3 | G140: 16,904.00 | H140: 50,712.00
A141: AUTION HYBRID SHEATH SOLUTION | B141: Caja | C141: 0 | D141: 15 | E141: =C141+D141-F141 -> 7 | F141: 8 | G141: 8,759.00 | H141: =F141*G141 -> 70,072.00
A142: AUTION SOLUTION DE LAVADO | B142: Galon | C142: 0 | D142: 5 | E142: 3 | F142: 2 | G142: 2,400.00 | H142: 4,800.00
A143: AUTION TIRA ORINA HYBRID URIFLEX | B143: FCO. | C143: 0 | D143: 40 | E143: 16 | F143: 24 | G143: 2,182.00 | H143: 52,368.00
A144: ATCC27853 PSEUDOMONA AEROGINOS | B144: SET | C144: 0 | D144: 0 | E144: 0 | F144: 0 | G144: 2,115.15 | H144: 0
A145: ATCC29212 ENTEROC. FECALIS | B145: SET | C145: 0 | D145: 0 | E145: 0 | F145: 0 | G145: 2,360.13 | H145: 0
A146: AURAMINA O 25mg | B146: FCO. | C146: 0 | D146: 0 | E146: 0 | F146: 0 | G146: 5,160.00 | H146: 0
A147: AUTOCLAVE M4 15/3 48L 110V | B147: UNID. | C147: 0 | D147: 0 | E147: 0 | F147: 0 | G147: 108,650.00 | H147: 0
A148: BAJANTE DE SANGRE BAXTER | B148: UNID. | C148: 0 | D148: 0 | E148: 0 | F148: 0 | G148: 304.00 | H148: 0
A149: BAJANTE DE SANGRE | B149: UNID. | C149: 0 | D149: 0 | E149: 0 | F149: 0 | G149: 7.30 | H149: 0
A150: BALSAMO PARA PATOLOGIA | B150: FCO. | C150: 0 | D150: 3 | E150: 3 | F150: 0 | G150: 4,200.00 | H150: 0
A151: BANDEJA DE TINCION | B151: UNID. | C151: 0 | D151: 0 | E151: 0 | F151: 0 | G151: 1,338.00 | H151: 0
A152: BANDEJA PARA TOMA DE MUESTRA | B152: UNID. | C152: 0 | D152: 0 | E152: 0 | F152: 0 | G152: 2,000.00 | H152: 0
A153: BAÑO DE COPRINS CON TAPA CRISTAL | B153: UNID. | C153: 0 | D153: 0 | E153: 0 | F153: 0 | G153: 4,060.00 | H153: 0
A154: BAÑO DE MARIA | B154: UNID. | C154: 0 | D154: 0 | E154: 0 | F154: 0 | G154: 11,116.38 | H154: 0
A155: BFTII + BOARD | B155: UNID. | C155: 0 | D155: 0 | E155: 0 | F155: 0 | G155: 22,176.00 | H155: 0
A156: BFT-II CUBETAS COAGULACION | B156: Caja | C156: 2 | D156: 0 | E156: 2 | F156: 0 | G156: 16,068.00 | H156: 0
A157: BILIRRUBINA 100 TEST, Q.C.A. | B157: SET | C157: 0 | D157: 0 | E157: 0 | F157: 0 | G157: 1,474.00 | H157: 0
A158: BILIRRUBINA MANUAL | B158: SET | C158: 0 | D158: 0 | E158: 0 | F158: 0 | G158: 1,708.80 | H158: 0
A159: BILIRRUBINA MANUAL | B159: SET | C159: 0 | D159: 0 | E159: 0 | F159: 0 | G159: 264.00 | H159: 0
A160: BIO WRIGHT 1 | B160: Galon | C160: 0 | D160: 0 | E160: 0 | F160: 0 | G160: 1,815.00 | H160: 0
A161: BIO WRIGHT 2 | B161: Galon | C161: 2 | D161: 0 | E161: 2 | F161: 0 | G161: 1,890.00 | H161: 0
A162: BIO WRIGHT 3 | B162: Galon | C162: 2 | D162: 0 | E162: 2 | F162: 0 | G162: 1,890.00 | H162: 0
A163: BOLSA DE DESECHO | B163: Galon | C163: 0 | D163: 0 | E163: 0 | F163: 0 | G163: 5,846.10 | H163: 0
A164: BOLSA COLECTORAS DE SANGRE | B164: UNID. | C164: 0 | D164: 0 | E164: 0 | F164: 0 | G164: 36.80 | H164: 0
A165: BOLSA DE SANGRE TRIPLE-DONADA | B165: UNID. | C165: 0 | D165: 0 | E165: 0 | F165: 0 | G165: 0.00 | H165: 0
A166: BOLSAS DE SANGRE DOBLE 10/1 | B166: FDA | C166: 0 | D166: 0 | E166: 0 | F166: 0 | G166: 2,400.00 | H166: 0
A167: BOLSAS DE SANGRE DOBLE 13/1 | B167: PAQ. | C167: 0 | D167: 0 | E167: 0 | F167: 0 | G167: 0.00 | H167: 0
A168: BOLSAS DE SANGRE DOBLE 6/1 | B168: UNID. | C168: 0 | D168: 0 | E168: 0 | F168: 0 | G168: 1,965.00 | H168: 0
A169: BOLSAS DE SANGRE DOBLES | B169: UNID. | C169: 0 | D169: 0 | E169: 0 | F169: 0 | G169: 4,266.00 | H169: 0
A170: BOLSAS DE SANGRE SIMPLE | B170: UNID. | C170: 1 | D170: 0 | E170: 1 | F170: 0 | G170: 4,170.00 | H170: 0
A171: BOLSAS DE SANGRE SIMPLE 10/1 | B171: PAQ. | C171: 0 | D171: 0 | E171: 0 | F171: 0 | G171: 0.00 | H171: 0
A172: BOLSAS DE SANGRE SIMPLE 12/1 | B172: FDA | C172: 0 | D172: 0 | E172: 0 | F172: 0 | G172: 1,810.00 | H172: 0
A173: BOLSAS DE SANGRE SIMPLE 13/1 | B173: FDA | C173: 0 | D173: 0 | E173: 0 | F173: 0 | G173: 1,742.00 | H173: 0
A174: BOLSAS DE SANGRE SIMPLE 5/1 | B174: PAQ. | C174: 0 | D174: 0 | E174: 0 | F174: 0 | G174: 1,810.00 | H174: 0
A175: BOMBILLO P/ ESPECTROFOTOMETRO | B175: UNID. | C175: 1 | D175: 0 | E175: 1 | F175: 0 | G175: 1,079.92 | H175: 0
A176: BOMBILLO P/ MICROSCOPIO 60/20W | B176: UNID. | C176: 0 | D176: 0 | E176: 0 | F176: 0 | G176: 950.00 | H176: 0
A177: BOMBILLO P/MICROSCOPIO 120V 20W | B177: UNID. | C177: 1 | D177: 0 | E177: 1 | F177: 0 | G177: 950.00 | H177: 0
A178: BOTELLAS DE CRISTAL GRADUADAS C/TAPA | B178: UNID. | C178: 0 | D178: 0 | E178: 0 | F178: 0 | G178: 0.00 | H178: 0
A179: CAMARA HEM NEW BAUER | B179: UNID. | C179: 0 | D179: 0 | E179: 0 | F179: 0 | G179: 3,680.00 | H179: 0
A180: CAPSULAS PYTESL --PRUEBA DE ALIENTO | B180: UNID. | C180: 0 | D180: 200 | E180: 100 | F180: 100 | G180: 1,316.30 | H180: 131,630.00
A181: CARPETA PORTA LAMINAS P/20 PORTA | B181: Caja | C181: 2 | D181: 0 | E181: 2 | F181: 0 | G181: 2,035.00 | H181: 0
A182: CARTUCHO IRMA | B182: UNID. | C182: 10 | D182: 0 | E182: 10 | F182: 0 | G182: 522.00 | H182: 0
A183: CASSETTE CON TAPA BLANCO | B183: Caja | C183: 0 | D183: 4 | E183: 4 | F183: 0 | G183: 4,179.00 | H183: 0
A184: CASSETTE CON TAPA COLORES | B184: Caja | C184: 0 | D184: 4 | E184: 4 | F184: 0 | G184: 4,179.00 | H184: 0
A185: CASSETTE SIN TAPA | B185: Caja | C185: 0 | D185: 0 | E185: 0 | F185: 0 | G185: 5,868.00 | H185: 0
A186: CIBA CORNING PAPEL TERM 4 7/16 | B186: ROLLO | C186: 0 | D186: 0 | E186: 0 | F186: 0 | G186: 144.00 | H186: 0
A187: CILINDRO DE MEDIDA 250ML | B187: UNID. | C187: 0 | D187: 0 | E187: 0 | F187: 0 | G187: 0.00 | H187: 0
A188: CILINDRO DE MEDIDAS 1000 ML | B188: UNID. | C188: 1 | D188: 0 | E188: 1 | F188: 0 | G188: 1,350.00 | H188: 0
A189: CILINDRO 25ML | B189: UNID. | C189: 1 | D189: 0 | E189: 1 | F189: 0 | G189: 0.00 | H189: 0
A190: CILINDRO DE MEDIDAS 50 ML | B190: UNID. | C190: 0 | D190: 0 | E190: 0 | F190: 0 | G190: 980.00 | H190: 0
A191: CILINDRO DE MEDIDAS 500 ML | B191: UNID. | C191: 0 | D191: 0 | E191: 0 | F191: 0 | G191: 0.00 | H191: 0
A192: CLIPS DE ALUMINIO P/ BOLSAS DE SANGRE | B192: Caja | C192: 2 | D192: 0 | E192: 2 | F192: 0 | G192: 3,700.00 | H192: 0
A193: CLORURO CALCIO 6/1 | B193: Caja | C193: 0 | D193: 0 | E193: 0 | F193: 0 | G193: 2,000.00 | H193: 0
A194: CLORURO DE CALCIO 10/1 | B194: Caja | C194: 0 | D194: 0 | E194: 0 | F194: 0 | G194: 4,280.00 | H194: 0
A195: CLORURO DE CALCIO 15 ML | B195: FCO. | C195: 21 | D195: 0 | E195: 21 | F195: 0 | G195: 590.20 | H195: 0
A196: CLORURO DE CALCIO 30ML | B196: FCO. | C196: 0 | D196: 0 | E196: 0 | F196: 0 | G196: 813.00 | H196: 0
A197: CLORURO DE SODIO 1000G | B197: FCO. | C197: 0 | D197: 0 | E197: 0 | F197: 0 | G197: 2,875.00 | H197: 0
A198: CLORURO DE SODIO 250G | B198: FCO. | C198: 0 | D198: 0 | E198: 0 | F198: 0 | G198: 753.00 | H198: 0
A199: CLORURO DE SODIO 500G | B199: FCO. | C199: 4 | D199: 0 | E199: 2 | F199: 2 | G199: 2,875.00 | H199: 5,750.00
A200: COAGULASA PLASMA | B200: SET | C200: 1 | D200: 0 | E200: 1 | F200: 0 | G200: 4,226.00 | H200: 0
A201: CONTENEDOR D/BIOSEGURIDAD 5 L | B201: UNID. | C201: 0 | D201: 0 | E201: 0 | F201: 0 | G201: 1,400.00 | H201: 0
A202: CONTENEDOR D/FLEBOTOMIA 3L | B202: UNID. | C202: 0 | D202: 0 | E202: 0 | F202: 0 | G202: 1,250.00 | H202: 0
A203: CONTEO EOSINOFILOS | B203: SET | C203: 0 | D203: 0 | E203: 0 | F203: 0 | G203: 464.00 | H203: 0
... 624 more rows

Sheet INV MARZO
A4: República Dominicana
A5: Ministerio de Salud Pública y Asistencia Social
A6: Informe Mensual de Almacén General, Despensa y Medicina
A7: ALMACEN
A8: ESTABLECIMIENTO | E8: REGION
A9: AREA DE SALUD | E9: MES | G9: AÑO
A11: ARTICULO | B11: UNIDAD | C11: EXISTENCIA ANTERIOR | D11: ENTRADA | E11: EXISTENCIA | F11: TOTAL CONSUMIDOS (3+4)-5 | G11: VALOR UNITARIO | H11: VALOR TOTAL
C12: ANTERIOR | E12: FINAL | F12: CONSUMIDO | G12: UNITARIO | H12: TOTAL
A13: -1- | C13: 3 | D13: -4- | E13: -5- | F13: (3+4)-5 | G13: -7- | H13: 8
A14: ABX CONTROL HEMATOLOGICO | B14: SET | C14: 0 | D14: 2 | E14: 2 | F14: 0 | G14: 11,728.00 | H14: =F14*G14 -> 0
A15: ABX MINOLYSE | B15: FCO. | C15: 11 | E15: 6 | F15: 5.00 | G15: 20,481.00 | H15: 102405
A16: ABX MINOTON | B16: CJA. | C16: 3 | D16: 5 | E16: 3 | F16: 5.00 | G16: 15,130.00 | H16: =F16*G16 -> 75650
A17: ABXPENTRA ALBUMINA | B17: FCO. | C17: 3 | G17: 12,456.00 | H17: 0
A18: ABXPENTRA ALT | B18: FCO. | C18: 0 | D18: 3 | E18: 1 | F18: 2.00 | G18: 8,000.00 | H18: 16000
A19: ABXPENTRA AMILASA | B19: FCO. | C19: 0 | F19: 1.00 | G19: 4,000.00 | H19: 4000
A20: ABXPENTRA ALP | B20: FCO. | C20: 4 | G20: 4,620.00 | H20: 0
A21: ABXPENTRA AST | B21: FCO. | C21: 2 | D21: 2 | E21: 3 | F21: 1.00 | G21: 9,240.00 | H21: 9240
A22: ABXPENTRA BILIRRUBINA DIRECTA | B22: FCO. | C22: 2 | F22: 0 | G22: 3,696.00 | H22: 0
A23: ABXPENTRA BILIRRUBINA TOTAL | B23: FCO. | C23: 0 | D23: 2 | E23: 0 | F23: 0 | G23: 6,400.00 | H23: 0
A24: ABXPENTRA CALCIO | B24: FCO. | C24: 1 | F24: 0 | G24: 9,240.00 | H24: 0
A25: ABXPENTRA COLESTEROL | B25: FCO. | C25: 1 | D25: 2 | G25: 12,416.00 | H25: 0
A26: ABXPENTRA CREATININA | B26: FCO. | C26: 3 | D26: 3 | E26: 3 | F26: 3.00 | G26: 4,436.00 | H26: 13308
A27: ABXPENTRA FOSFORO | B27: FCO. | C27: 0 | D27: 2 | E27: 1 | F27: 1.00 | G27: 3,696.00 | H27: 3696
A28: ABXPENTRA GLUCOSA | B28: FCO. | C28: 3 | F28: =(C28+D28)-E28 -> 3.00 | G28: 10,688.00 | H28: 32064
A29: ABXPENTRA LIPASA | B29: FCO. | C29: 2 | D29: 1 | E29: 2 | F29: 1.00 | G29: 3,200.00 | H29: 3200
A30: ABXPENTRA HDL | B30: SET | C30: 4 | G30: 7,680.00 | H30: 0
A31: ABXPENTRA PROTEINA TOTAL | B31: SET | C31: 1 | D31: 1 | E31: 0 | F31: 2.00 | G31: 11,088.00 | H31: 22176
A32: ABXPENTRA TRIGLICERIDO | B32: SET | C32: 1 | G32: 12,344.00 | H32: 0
A33: ABXPENTRA UREA/BUN | B33: SET | C33: 4 | F33: 1.00 | G33: 8,132.00 | H33: 8132
A34: ACEITE DE INMERSION | B34: FCO. | C34: 1 | G34: 1,380.00 | H34: 0
A35: ACIDO URICO MANUAL | B35: SET | C35: 3 | G35: 2,780.00 | H35: 0
A36: ACIDO URICO MANUAL | B36: SET | C36: 3 | G36: 522.00 | H36: 0
A37: ACL DILUYENTE FACTORES 100ML | B37: FCO. | C37: 4 | F37: 1.00 | G37: 744.00 | H37: 744
A38: ACL HIGH ABNORMAL CONT 10X1ML | B38: CJA. | C38: 4 | G38: 3,060.00 | H38: 0
A39: ACL. WASH EMULSION | B39: FCO. | C39: 3 | F39: 3.00 | G39: 778.80 | H39: 2336.4
A40: ACL. APTT. 5+5X5X8 | B40: CJA. | C40: 7 | F40: 1.00 | G40: 3,646.80 | H40: 3646.8
A41: ACL. EMULSION DE REFERENCIA | B41: SET | C41: 0 | D41: 4 | E41: 4 | G41: 3,115.20 | H41: 0
A42: ACL. CALIBRADOR PLASMA | B42: CJA. | C42: 4 | G42: 3,541.20 | H42: 0
A43: ACL. CLEANING SOLUTION 500ML | B43: SET | C43: 3 | G43: 2,100.00 | H43: 0
A44: ACL. COPAS 0.5ML C/1000 | B44: CJA. | C44: 1 | G44: 2,097.60 | H44: 0
A45: ACL. COPAS 2ML 1000/PK | B45: CJA. | C45: 1 | G45: 4,702.80 | H45: 0
A46: ACL. LOW ABNORMAL CONT. 10X1ML | B46: SET | C46: 4 | G46: 2,799.60 | H46: 0
A47: ACL. PLASMA CONTROL NORM 10X1ML | B47: CJA. | C47: 4 | G47: 2,704.80 | H47: 0
A48: ACL. PT RGT-FIBRINOGENO 5+5X8ML | B48: CJA. | C48: 4 | D48: 3 | E48: 1 | F48: 3.00 | G48: 4,177.20 | H48: 12531.6
A49: ACL. ROTORES C/100 | B49: CJA. | C49: 2 | D49: 3 | E49: 4 | F49: 1.00 | G49: 9,004.80 | H49: 9004.8
A50: AGAR CITRATO DE SIMMONS | B50: FCO. | C50: 1 | G50: 1,650.00 | H50: 0
A51: AGAR MACCONKEY | B51: FCO. | C51: 2 | D51: 2 | E51: 3 | F51: 1.00 | G51: 2,820.00 | H51: 2820
A52: AGAR MANITOL SALT | B52: FCO. | C52: 2 | D52: 2 | E52: 3 | F52: 1.00 | G52: 2,325.00 | H52: 2325
A53: AGAR MULLER HILTON | B53: FCO. | C53: 2 | D53: 2 | E53: 2 | F53: 2.00 | G53: 2,985.00 | H53: 5970
A54: AGAR SABORAUD CON CLORANFENICOL | B54: FCO. | C54: 0 | D54: 1 | E54: 1 | G54: 5,900.00 | H54: 0
A55: AGAR SALMONELLA SCHIGUELLA | B55: FCO. | C55: 1 | G55: 4,871.00 | H55: 0
A56: AGAR TRIPLE SUGAR IRON | B56: FCO. | C56: 1 | G56: 3,575.00 | H56: 0
A57: AGAR TSA TRICTICASA SUGAR | B57: FCO. | C57: 1 | G57: 3,650.00 | H57: 0
A58: AGUA BIDESTILADA | B58: GLN. | C58: 75 | F58: 104.00 | G58: 95.00 | H58: 9880
A59: AGUA DESTILADA | B59: GLN. | C59: 0 | F59: 15.00 | G59: 85.00 | H59: 1275
A60: AGUJA P/VACUTANIER | B60: CJA. | C60: 4 | F60: 17.00 | G60: 950.00 | H60: 16150
A61: AHBC ELISA-CORE | B61: SET | C61: 1 | G61: 10,238.40 | H61: 0
A62: ALBUMINA BOVINA 22% | B62: FCO. | C62: 5 | G62: 485.00 | H62: 0
A63: ALCOHOL ISOPROPILICO 70 | B63: GLN. | C63: 20 | G63: 293.25 | H63: 0
A64: ALCOHOL ISOPROPILICO 70% | B64: GLN. | C64: 8 | F64: 8.00 | G64: 380.00 | H64: 3040
A65: ALGODON | B65: ROLLO | C65: 0 | F65: 18.00 | G65: 51.64 | H65: 929.52
A66: ALGODON | B66: ROLLO | G66: 160.00 | H66: 0
A67: AMILASA MANUAL | B67: SET | C67: 5 | G67: 1,147.70 | H67: 0
A68: ANTI A | B68: FCO. | C68: 8 | F68: 9.00 | G68: 231.00 | H68: 2079
A69: ANTI A-B | B69: FCO. | C69: 3 | G69: 332.00 | H69: 0
A70: ANTI A-B-D | B70: SET | C70: 14 | F70: 11.00 | G70: 333.50 | H70: 3668.5
A71: ANTI B | B71: FCO. | C71: 12 | F71: 9.00 | G71: 231.00 | H71: 2079
A72: ANTI D | B72: FCO. | C72: 7 | F72: 10.00 | G72: 275.00 | H72: 2750
A73: ANTIGENOS FEBRILES | B73: SET | C73: 0 | F73: 1.00 | G73: 2,950.00 | H73: 2950
A74: ANTICUAGULANTE | B74: FCO. | C74: 32.5 | G74: 170.00 | H74: 0
A75: APLICADORES MADERA | B75: CJA. | C75: 15 | F75: 15.00 | G75: 493.00 | H75: 7395
A76: ASA BACTERIOLOGICA 0.01 | B76: UNID. | C76: 3 | G76: 4,210.00 | H76: 0
A77: ASO LATEX 150P | B77: SET | C77: 6 | F77: 2.00 | G77: 396.75 | H77: 793.5
A78: BAJANTE DE SANGRE | B78: UNID. | C78: 770 | F78: 29.00 | G78: 7.30 | H78: 211.7
A79: BECKMAN ALBUMINA | B79: SET | C79: 1 | G79: 5,479.28 | H79: 0
A80: BECKMAN ALT | B80: SET | C80: 1 | G80: 7,773.00 | H80: =F80*G80 -> 0
A81: BECKMAN AMILASA | B81: CJA. | C81: 1 | G81: 14,085.14 | H81: 0
A82: BECKMAN AST | B82: SET | C82: 1 | G82: 7,874.75 | H82: 0
A83: BECKMAN BIL-DIRECTA | B83: SET | C83: 1 | G83: 6,062.75 | H83: 0
A84: BECKMAN CK-MB | B84: SET | C84: 1 | G84: 32,368.31 | H84: 0
A85: BECKMAN COPA ADULTO 2.0 ML | B85: FDA. | C85: 2 | G85: 2,290.45 | H85: 0
A86: BECKMAN COPA PEDIATRICAS 0.5 ML | B86: FDA. | C86: 1 | G86: 2,893.21 | H86: 0
A87: BECKMAN CREATININA | B87: SET | C87: 2 | G87: 5,601.80 | H87: 0
A88: BECKMAN ELECTROLITE REFERENCE | B88: CJA. | C88: 1 | G88: 6,001.98 | H88: 0
A89: BECKMAN GLUCOSA | B89: SET | C89: 1 | G89: 9,028.92 | H89: 0
A90: BECKMAN HIERRO | B90: SET | C90: 1 | G90: 12,409.93 | H90: 0
A91: BECKMAN PROTEINA TOTAL | B91: SET | C91: 1 | G91: 6,974.00 | H91: 0
A92: BECKMAN WASH CONCENTRADO II | B92: CJA. | C92: 1 | G92: 11,905.00 | H92: 0
A93: BFT-II CUBETAS COAGULACION | B93: CJA. | C93: 3 | F93: 1.00 | G93: 11,776.80 | H93: 11776.8
A94: BILIRRUBINA MANUAL | B94: SET | C94: 2 | G94: 1,708.80 | H94: 0
A95: BIO WRIGHT 1 | B95: GLN. | C95: 2 | G95: 1,382.00 | H95: 0
A96: BIO WRIGHT 2 | B96: GLN. | C96: 1 | G96: 1,382.00 | H96: 0
A97: BIO WRIGHT 3 | B97: GLN. | C97: 1 | G97: 1,382.00 | H97: 0
A98: BOLSA COLECTORAS DE SANGRE | B98: UNID. | C98: 375 | F98: 90.00 | G98: 38.69 | H98: 3482.1
A99: BOLSAS DE SANGRE DOBLE 6/1 | B99: UNID. | C99: 0 | F99: 0 | G99: 1,965.00 | H99: 0
A100: BOLSAS DE SANGRE DOBLES | B100: UNID. | C100: 40 | G100: 240.00 | H100: 0
A101: CAPSULAS PYTESL --PRUEBA DE ALIENTO | B101: CJA. | C101: 1 | F101: 2.00 | G101: 104,000.00 | H101: 208000
A102: CASSETTE CON TAPA BLANCO | B102: CJA. | C102: 2 | G102: 3,880.00 | H102: 0
A103: CASSETTE CON TAPA COLORES | B103: CJA. | C103: 3 | G103: 3,880.00 | H103: 0
A104: CIBA CORNING DESPROTEINIZANTE | B104: SET | C104: 1 | G104: 1,800.00 | H104: 0
A105: CIBA CORNING EXP TUNGSTEN LAMP | B105: UNID. | C105: 0 | G105: 2,640.00 | H105: 0
A106: CIBA CORNING MULTICALIBRADOR | B106: SET | C106: 1 | G106: 8,800.00 | H106: 0
A107: CIBA CORNING PAPEL TERM 4 7/16 | B107: ROLLO | C107: 25 | G107: 144.00 | H107: 0
A108: CLIPS DE ALUMINIO P/ BOLSAS DE SANGRE | B108: CJA. | C108: 2 | G108: 3,700.00 | H108: 0
A109: CLORURO DE CALCIO 15 ML | B109: FCO. | C109: 22 | F109: 2.00 | G109: 418.80 | H109: 837.6
A110: CLORURO DE SODIO 500G | B110: FCO. | C110: 1 | F110: 1.00 | G110: 2,485.00 | H110: 2485
A111: COAGULASA PLASMA | B111: SET | C111: 2 | F111: 1.00 | G111: 3,180.00 | H111: 3180
A112: CONTENEDOR D/BIOSEGURIDAD 3 L | B112: UNID. | C112: 1 | F112: 5.00 | G112: 1,400.00 | H112: 7000
A113: CONTROL PARA COAGULACION | B113: FCO. | C113: 20 | F113: 4.00 | G113: 182.40 | H113: 729.6
A114: CONTROL QUIMICA 15ML | B114: FCO. | C114: 12 | F114: 12.00 | G114: 785.00 | H114: 9420
A115: CORE ELISA IGM | B115: SET | C115: 3 | F115: 2.00 | G115: 9,818.00 | H115: 19636
A116: CORE-HBC-Ab TOTAL | B116: SET | C116: 1 | F116: 2.00 | G116: 9,818.00 | H116: 19636
A117: CREATININA 120 TEST, Q.C.A. | B117: SET | C117: 1 | F117: 3.00 | G117: 1,017.50 | H117: 3052.5
A118: CREATININA MANUAL | B118: SET | C118: 2 | F118: 1.00 | G118: 2,134.00 | H118: 2134
A119: CUBRE OBJETO 22 X 22 (100UD) | B119: OZ | C119: 2 | F119: 5.00 | G119: 170.00 | H119: 850
A120: CUBRE OBJETO 22X22 (100 UDS) | B120: OZ | C120: 0 | F120: 22.00 | G120: 185.00 | H120: 4070
A121: CURITA REDONDA | B121: CJA. | C121: 0 | F121: 70.00 | G121: 145.00 | H121: 10150
A122: DIMENSION ABS/ABSORBANCE | B122: SET | C122: 4 | G122: 1,500.00 | H122: 0
A123: DIMENSION ACIDO URICO | B123: SET | C123: 1 | F123: 1.00 | G123: 8,700.00 | H123: 8700
A124: DIMENSION ALBUMINA | B124: SET | C124: 1 | F124: 1.00 | G124: 8,700.00 | H124: 8700
A125: DIMENSION ALP-FOSFATASA ALCALINA | B125: SET | C125: 3 | F125: 1.00 | G125: 6,530.00 | H125: 6530
A126: DIMENSION ALT/TGP | B126: SET | C126: 1 | F126: 5.00 | G126: 4,350.00 | H126: 21750
A127: DIMENSION AMILASA | B127: SET | C127: 2 | F127: 2.00 | G127: 4,350.00 | H127: 8700
A128: DIMENSION AST/GOT | B128: SET | C128: 5 | F128: 4.00 | G128: 6,530.00 | H128: 26120
A129: DIMENSION BILIRRUBINA DIRECTA | B129: SET | C129: 3 | F129: 1.00 | G129: 5,800.00 | H129: 5800
A130: DIMENSION BILIRRUBINA TOTAL | B130: SET | C130: 2 | F130: 1.00 | G130: 8,700.00 | H130: 8700
A131: DIMENSION CALCIO | B131: SET | C131: 1 | F131: 1.00 | G131: 8,700.00 | H131: 8700
A132: DIMENSION CK | B132: SET | C132: 1 | G132: 8,700.00 | H132: 0
A133: DIMENSION COLESTEROL | B133: SET | C133: 2 | F133: 3.00 | G133: 8,700.00 | H133: 26100
A134: DIMENSION CREATININA | B134: SET | C134: 3 | F134: 3.00 | G134: 8,700.00 | H134: 26100
A135: DIMENSION GLUCOSA | B135: SET | C135: 4 | G135: 26,100.00 | H135: 0
A136: DIMENSION HDL-C DIRECTO | B136: SET | C136: 2 | F136: 3.00 | G136: 11,880.00 | H136: 35640
A137: DIMENSION LIPASA | B137: SET | C137: 3 | F137: 2.00 | G137: 2,178.00 | H137: 4356
A138: DIMENSION PROTEINA EN ORINA-LCF/UCFP | B138: SET | C138: 1 | G138: 1,450.00 | H138: 0
A139: DIMENSION PROTEINA TOTAL | B139: SET | C139: 1 | F139: 1.00 | G139: 8,700.00 | H139: 8700
A140: DIMENSION TRIGLICERIDO | B140: SET | C140: 0 | F140: 1.00 | G140: 8,700.00 | H140: 8700
A141: DIMENSION UREA/BUN | B141: SET | C141: 3 | F141: 2.00 | G141: 8,700.00 | H141: 17400
A142: DS AMIKACINA | B142: FCO. | C142: 3 | F142: 1.00 | G142: 148.00 | H142: 148
A143: DS AMOXICILINA | B143: FCO. | C143: 2 | F143: 3.00 | G143: 148.00 | H143: 444
A144: DS AMOXICILINA CON ACIDO CLAVULANICO | B144: UNID. | C144: 0 | F144: 1.00 | G144: 160.00 | H144: =F144*G144 -> 160
A145: DS AMPICILINA | B145: UNID. | C145: 3 | F145: 1.00 | G145: 151.00 | H145: 151
A146: DS CEFEPIME | B146: UNID. | C146: 2 | F146: 2.00 | G146: 160.00 | H146: 320
A147: DS CEFOTAXIMA | B147: UNID. | C147: 3 | F147: 2.00 | G147: 160.00 | H147: 320
A148: DS CEFTAXIDIME | B148: UNID. | C148: 6 | F148: 2.00 | G148: 160.00 | H148: 320
A149: DS CEFUROXIME | B149: UNID. | C149: 1 | G149: 148.00 | H149: 0
A150: DS CETRIAZONE | B150: UNID. | C150: 1 | F150: 1.00 | G150: 148.00 | H150: 148
A151: DS CIPROFLOXACINA | B151: UNID. | C151: 4 | G151: 148.00 | H151: 0
A152: DS CLINDAMICINA | B152: UNID. | C152: 2 | G152: 151.00 | H152: 0
A153: DS ERITROMICINA | B153: UNID. | C153: 1 | G153: 148.00 | H153: 0
A154: DS FURADANTINA | B154: UNID. | C154: 3 | F154: 1.00 | G154: 148.00 | H154: 148
A155: DS GENTAMICINA | B155: UNID. | C155: 1 | F155: 1.00 | G155: 148.00 | H155: 148
A156: DS GENTAMICIMA | B156: UNID. | C156: 0 | F156: 2.00 | G156: 160.00 | H156: 320
A157: DS IMIPENEN | B157: UNID. | C157: 3 | F157: 1.00 | G157: 151.00 | H157: 151
A158: DS LEVOFLOXACIN VOL. 50 | B158: UNID. | C158: 5 | F158: 1.00 | G158: 160.00 | H158: 160
A159: DS NITROFURADANTINA | B159: UNID. | C159: 1 | F159: 1.00 | G159: 151.00 | H159: 151
A160: DS NORFLOXACIN | B160: UNID. | C160: 3 | F160: 1.00 | G160: 148.00 | H160: 148
A161: DS OXALACIN | B161: UNID. | C161: 1 | G161: 120.00 | H161: 0
A162: DS OXIDASA | B162: UNID. | C162: 1 | G162: 148.00 | H162: 0
A163: DS PENICILINA | B163: UNID. | C163: 1 | F163: 1.00 | G163: 148.00 | H163: 148
A164: DS PIPERACILINA | B164: UNID. | C164: 0 | F164: 1.00 | G164: 160.00 | H164: 160
A165: DS TETRACICLINA | B165: UNID. | C165: 3 | G165: 151.00 | H165: 0
A166: DS TOBRAMICINA | B166: UNID. | C166: 1 | F166: 3.00 | G166: 160.00 | H166: 480
A167: DS TRIMETROPIN SULFA | B167: UNID. | C167: 3 | F167: 1.00 | G167: 148.00 | H167: 148
A168: DS TRIMETROPIN SULFA | B168: UNID. | C168: 0 | F168: 1.00 | G168: 160.00 | H168: 160
A169: DS VANCOMYCINA | B169: UNID. | C169: 0 | F169: 1.00 | G169: 292.00 | H169: 292
A170: DT ACIDO URICO | B170: SET | C170: 0 | F170: 0 | G170: 601.00 | H170: 0
A171: DT ALT | B171: SET | C171: 0 | F171: 0 | G171: 601.00 | H171: 0
A172: DT AST | B172: SET | C172: 0 | F172: 0 | G172: 601.00 | H172: 0
A173: DT CREATININA | B173: SET | C173: 0 | F173: 0 | G173: 601.00 | H173: 0
A174: DT GLUCOSA | B174: SET | C174: 0 | F174: 0 | G174: 599.99 | H174: 0
A175: DT PROTEINA TOTAL | B175: SET | C175: 0 | F175: 0 | G175: 601.00 | H175: 0
A176: EASY MEDICA NA/K/CL 400 ML | B176: SET | C176: 0 | D176: 5 | E176: 3 | F176: 2.00 | G176: 13,650.00 | H176: 27300
A177: EASYLYTE MEDICA CALC.RINSE (CLEANING) | B177: SET | C177: 1 | G177: 2,304.00 | H177: 0
A178: EASYLYTE PAPEL BTS 2x3 | B178: UNID. | C178: 2 | F178: 3.00 | G178: 157.20 | H178: 471.6
A179: ELERMEYER 2000 ML | B179: UNID. | C179: 3 | F179: 1.00 | G179: 1,750.00 | H179: 1750
A180: ENVASES ESTERILES 100/1 | B180: CJA. | C180: 5 | G180: 1,300.00 | H180: 0
A181: ENVASES ESTERILES P/ CULTIVO | B181: UNID. | C181: 0 | F181: 0 | G181: 6.50 | H181: 0
A182: ESCOBILLAS P/LAVAR TUBOS PEQUEÑA | B182: UNID. | C182: 10 | G182: 60.00 | H182: 0
A183: FACTOR REUMATOIDE | B183: SET | C183: 0 | D183: 3 | E183: 2 | F183: 1.00 | G183: 1,606.80 | H183: 1606.8
A184: FACTOR REUMATOIDE | B184: SET | C184: 0 | F184: 1.00 | G184: 398.40 | H184: 398.4
A185: FIBRINOGENO | B185: FCO. | C185: 2 | G185: 2,925.60 | H185: 0
A186: FORMOL | B186: GLN. | C186: 1 | F186: 1.00 | G186: 1,158.00 | H186: 1158
A187: FRASCO DE 60ML | B187: UNID. | C187: 100 | G187: 8.60 | H187: 0
A188: FRASCO HEMOCULTIVO ADULTO | B188: UNID. | C188: 80 | D188: 100 | E188: 150 | F188: 30.00 | G188: 155.00 | H188: 4650
A189: FRASCO HEMOCULTIVO PEDIATRICO | B189: UNID. | C189: 110 | D189: 200 | E189: 200 | F189: 110.00 | G189: 130.00 | H189: 14300
A190: FRASCOS P/ CITOLOGIA | B190: PAQ. | C190: 2 | G190: 950.00 | H190: 0
A191: FRASCOS P/COPROLOGICOS | B191: UNID. | C191: 9,000 | F191: 5,000.00 | G191: 5.90 | H191: 29500
A192: GASA | B192: ROLLO | C192: 14 | F192: 9.00 | G192: 925.00 | H192: 8325
A193: GASA | B193: PAQ. | C193: 7 | F193: 6.00 | G193: 366.85 | H193: 2201.1
A194: GLICEMIA MANUAL | B194: SET | C194: 0 | F194: 0 | G194: 408.00 | H194: 0
A195: GLOBOS P/MUESTRA-PRUEBA DE ALIENTO | B195: CJA. | C195: 1 | F195: 2.00 | G195: 5,675.00 | H195: 11350
A196: GLUCOLA | B196: FCO. | C196: 43 | F196: 34.00 | G196: 203.50 | H196: 6919
A197: GLUCOSA LIQUIDA 300P Q.C.A | B197: SET | C197: 3 | F197: 1.00 | G197: 1,530.10 | H197: 1530.1
A198: GLUCOSA MANUAL | B198: SET | C198: 6 | G198: 2,272.00 | H198: 0
A199: GOTEROS PLASTICO | B199: CJA. | C199: 8 | F199: 4.00 | G199: 850.00 | H199: 3400
A200: GUANTES | B200: CJA. | C200: 0 | F200: 9.00 | G200: 380.00 | H200: 3420
A201: GUANTES M-L-S | B201: CJA. | C201: 56 | F201: 82.00 | G201: 177.16 | H201: 14527.12
A202: HBSAG ELISA BIOKIT 480T | B202: SET | C202: 1 | D202: 6 | E202: 1 | F202: 4.00 | G202: 36,000.00 | H202: 144000
A203: HBSAG ELISA BIOKIT 96T | B203: SET | C203: 0 | F203: 0 | G203: 8,880.00 | H203: 0
A204: HBSAG ELISA MICROWELL | B204: SET | C204: 0 | F204: 0 | G204: 7,100.00 | H204: 0
... 167 more rows

Sheet ABRIL
A4: República Dominicana
A5: Ministerio de Salud Pública y Asistencia Social
A6: Informe Mensual de Almacén General, Despensa y Medicina
A7: ALMACEN | B7: LABORATORIO
A8: ESTABLECIMIENTO | B8: CENTRO DE GASTROENTEROLOGIA | E8: REGION | F8: 0
A9: AREA DE SALUD | E9: MES | F9: ABRIL | G9: AÑO | H9: 2012
A11: ARTICULO | B11: UNIDAD | C11: EXISTENCIA ANTERIOR | D11: ENTRADA | E11: EXISTENCIA | F11: TOTAL CONSUMIDOS (3+4)-5 | G11: VALOR UNITARIO | H11: VALOR TOTAL
C12: ANTERIOR | E12: FINAL | F12: CONSUMIDO | G12: UNITARIO | H12: TOTAL
A13: -1- | C13: 3 | D13: -4- | E13: -5- | F13: (3+4)-5 | G13: -7- | H13: (6X7)
A14: ABX CONTROL HEMATOLOGICO 3/1 | B14: SET | C14: 2 | D14: 4 | E14: =C14+D14-F14 -> 5 | F14: 1 | G14: 10,143.00 | H14: =F14*G14 -> 10,143.00
A15: ABX MINOLYSE | B15: FCO. | C15: 5 | E15: =C15+D15-F15 -> 2 | F15: 3 | G15: 20,481.00 | H15: =F15*G15 -> 61,443.00
A16: ABX MINOTON | B16: CJA. | C16: 1 | D16: 10 | E16: =C16+D16-F16 -> 4 | F16: 7 | G16: 15,130.00 | H16: 105,910.00
A17: ABXPENTRA ACIDO URICO | B17: FCO. | C17: 0 | D17: 2 | E17: 0 | F17: 2 | G17: 8,132.00 | H17: 16,264.00
A18: ABXPENTRA ALBUMINA | B18: FCO. | C18: 2 | E18: 0 | F18: 2 | G18: 12,456.00 | H18: 24,912.00
A19: ABXPENTRA ALP | B19: FCO. | C19: 4 | E19: 1 | F19: 3 | G19: 4,620.00 | H19: 13,860.00
A20: ABXPENTRA ALT | B20: FCO. | C20: 1 | D20: 2 | E20: 0 | F20: 3 | G20: 8,000.00 | H20: 24,000.00
A21: ABXPENTRA AMILASA | B21: FCO. | C21: 0 | D21: 2 | E21: 1 | F21: 1 | G21: 4,000.00 | H21: 4,000.00
A22: ABXPENTRA AST | B22: FCO. | C22: 3 | D22: 2 | E22: 2 | F22: 3 | G22: 9,240.00 | H22: 27,720.00
A23: ABXPENTRA BILIRRUBINA DIRECTA | B23: FCO. | C23: 2 | E23: 0 | F23: 2 | G23: 3,696.00 | H23: 7,392.00
A24: ABXPENTRA BILIRRUBINA TOTAL | B24: FCO. | C24: 2 | E24: 1 | F24: 1 | G24: 6,400.00 | H24: 6,400.00
A25: ABXPENTRA CALCIO | B25: FCO. | C25: 1 | E25: 1 | F25: 0 | G25: 9,240.00 | H25: 0.00
A26: ABXPENTRA COLESTEROL | B26: FCO. | C26: 3 | D26: 2 | E26: 2 | F26: 3 | G26: 12,416.00 | H26: 37,248.00
A27: ABXPENTRA CREATININA | B27: FCO. | C27: 2 | D27: 5 | E27: 2 | F27: 5 | G27: 4,436.00 | H27: 22,180.00
A28: ABXPENTRA DESPROTEINIZANTE | B28: FCO. | C28: 1 | D28: 2 | E28: 2 | F28: 1 | G28: 2,500.00 | H28: 2,500.00
A29: ABXPENTRA FOSFORO | B29: FCO. | C29: 1 | D29: 2 | E29: 2 | F29: 1 | G29: 3,696.00 | H29: 3,696.00
A30: ABXPENTRA GGT | B30: FCO. | C30: 1 | D30: 1 | E30: 1 | F30: 1 | G30: 9,240.00 | H30: 9,240.00
A31: ABXPENTRA GLUCOSA | B31: FCO. | C31: 0 | D31: 3 | E31: 1 | F31: 2 | G31: 10,688.00 | H31: 21,376.00
A32: ABXPENTRA HDL | B32: FCO. | C32: 3 | E32: -1 | F32: 4 | G32: 7,680.00 | H32: 30,720.00
A33: ABXPENTRA LDH | B33: FCO. | C33: 2 | E33: 1 | F33: 1 | G33: 4,000.00 | H33: 4,000.00
A34: ABXPENTRA LIPASA | B34: FCO. | C34: 2 | D34: 1 | E34: 2 | F34: 1 | G34: 3,200.00 | H34: 3,200.00
A35: ABXPENTRA PROTEINA TOTAL | B35: FCO. | C35: 0 | D35: 2 | E35: 1 | F35: 1 | G35: 11,088.00 | H35: 11,088.00
A36: ABXPENTRA TRIGLICERIDO | B36: FCO. | C36: 1 | E36: 0 | F36: 1 | G36: 12,344.00 | H36: 12,344.00
A37: ABXPENTRA UREA/BUN | B37: FCO. | C37: 3 | D37: 2 | E37: 2 | F37: 3 | G37: 8,132.00 | H37: 24,396.00
A38: ACEITE DE INMERSION | B38: FCO. | C38: 1 | E38: 1 | G38: 1,380.00 | H38: 0.00
A39: ACETONA | B39: GLN. | C39: 6 | E39: 0 | F39: 6 | G39: 950.00 | H39: 5,700.00
A40: ACIDO URICO MANUAL | B40: SET | C40: 3 | E40: 3 | G40: 2,780.00 | H40: 0.00
A41: ACIDO URICO MANUAL | B41: SET | C41: 3 | E41: 3 | G41: 522.00 | H41: 0.00
A42: ACL DILUYENTE FACTORES 100ML | B42: FCO. | C42: 3 | E42: 2 | F42: 1 | G42: 744.00 | H42: 744.00
A43: ACL HIGH ABNORMAL CONT 10X1ML | B43: CJA. | C43: 4 | E43: 3 | F43: 1 | G43: 3,060.00 | H43: 3,060.00
A44: ACL. WASH EMULSION | B44: FCO. | C44: 4 | E44: 1 | F44: 3 | G44: 778.80 | H44: 2,336.40
A45: ACL. APTT. 5+5X5X8 | B45: CJA. | C45: 6 | E45: 5 | F45: 1 | G45: 3,646.80 | H45: 3,646.80
A46: ACL. CALIBRADOR PLASMA | B46: CJA. | C46: 4 | E46: 4 | G46: 3,541.20 | H46: 0.00
A47: ACL. CLEANING SOLUTION 500ML | B47: SET | C47: 3 | E47: 3 | G47: 2,100.00 | H47: 0.00
A48: ACL. COPAS 0.5ML C/1000 | B48: CJA. | C48: 1 | E48: 1 | G48: 2,097.60 | H48: 0.00
A49: ACL. COPAS 2ML 1000/PK | B49: CJA. | C49: 1 | E49: 1 | G49: 4,702.80 | H49: 0.00
A50: ACL. LOW ABNORMAL CONT. 10X1ML | B50: SET | C50: 4 | E50: 3 | F50: 1 | G50: 2,799.60 | H50: 2,799.60
A51: ACL. PLASMA CONTROL NORM 10X1ML | B51: CJA. | C51: 4 | E51: 3 | F51: 1 | G51: 2,704.80 | H51: 2,704.80
A52: ACL. PT RGT-FIBRINOGENO 5+5X8ML | B52: CJA. | C52: 5 | E52: 4 | F52: 1 | G52: 4,177.20 | H52: 4,177.20
A53: ACL. ROTORES C/100 | B53: CJA. | C53: 4 | E53: 3 | F53: 1 | G53: 9,004.80 | H53: 9,004.80
A54: AGAR CITRATO DE SIMMONS | B54: FCO. | C54: 1 | E54: 1 | G54: 1,650.00 | H54: 0.00
A55: AGAR MACCONKEY | B55: FCO. | C55: 3 | E55: 3 | G55: 2,820.00 | H55: 0.00
A56: AGAR MANITOL SALT | B56: FCO. | C56: 3 | E56: 2 | F56: 1 | G56: 2,325.00 | H56: 2,325.00
A57: AGAR MULLER HILTON | B57: FCO. | C57: 2 | E57: 0 | F57: 2 | G57: 2,985.00 | H57: 5,970.00
A58: AGAR SABOURAUD CON CLORANFENICOL | B58: FCO. | C58: 1 | E58: 0 | F58: 1 | G58: 4,890.00 | H58: 4,890.00
A59: AGAR SALMONELLA SCHIGUELLA | B59: FCO. | C59: 1 | E59: 1 | G59: 4,871.00 | H59: 0.00
A60: AGAR TRIPLE SUGAR IRON | B60: FCO. | C60: 1 | E60: 1 | G60: 3,575.00 | H60: 0.00
A61: AGAR TSA TRICTICASA SUGAR | B61: FCO. | C61: 1 | E61: 1 | G61: 3,650.00 | H61: 0.00
A62: AGUA BIDESTILADA | B62: GLN. | C62: 16 | E62: 16 | G62: 95.00 | H62: 0.00
A63: AGUA DESTILADA | B63: GLN. | C63: 122 | E63: 24 | F63: 98 | G63: 95.00 | H63: 9,310.00
A64: AGUJA P/VACUTANIER | B64: CJA. | C64: 23 | E64: 11 | F64: 12 | G64: 950.00 | H64: 11,400.00
A65: AHBC ELISA-CORE | B65: SET | C65: 1 | E65: 1 | G65: 10,238.40 | H65: 0.00
A66: ALBUMINA BOVINA 22% | B66: FCO. | C66: 5 | E66: 5 | G66: 485.00 | H66: 0.00
A67: ALCOHOL ABSOLUTO --ETANOL | B67: GLN. | C67: 8 | E67: 0 | F67: 8 | G67: 3,526.00 | H67: 28,208.00
A68: ALCOHOL ETILICO 95% | B68: GLN. | C68: 6 | E68: 0 | F68: 6 | G68: 2,384.00 | H68: 14,304.00
A69: ALCOHOL ISOPROPILICO 70 | B69: GLN. | C69: 20 | E69: 10 | F69: 10 | G69: 293.25 | H69: 2,932.50
A70: ALCOHOL ISOPROPILICO 70% | B70: GLN. | C70: 4 | E70: -2 | F70: 6 | G70: 380.00 | H70: 2,280.00
A71: ALCOHOL PROPANO (PROPANOL II) | B71: GLN. | C71: 10 | E71: 0 | F71: 10 | G71: 2,650.00 | H71: 26,500.00
A72: ALGODON | B72: ROLLO | C72: 26 | D72: 20 | E72: 32 | F72: 14 | G72: 51.64 | H72: 722.96
A73: AMILASA MANUAL | B73: SET | C73: 5 | E73: 5 | G73: 1,147.70 | H73: 0.00
A74: ANTI A | B74: FCO. | C74: 2 | E74: 2 | G74: 231.00 | H74: 0.00
A75: ANTI A-B | B75: FCO. | C75: 3 | E75: 3 | G75: 332.00 | H75: 0.00
A76: ANTI A-B-D | B76: SET | C76: 15 | E76: 1 | F76: 14 | G76: 333.50 | H76: 4,669.00
A77: ANTI HUMANO COOMBS | B77: FCO. | C77: 5 | E77: 5 | G77: 840.00 | H77: 0.00
A78: ANTICUAGULANTE | B78: FCO. | C78: 32.5 | E78: 32 | F78: 1 | G78: 170.00 | H78: 170.00
A79: ANTIGENO FEBRILES | B79: SET | C79: 2 | E79: 2 | G79: 2,950.00 | H79: =F79*G79 -> 0.00
A80: APLICADORES MADERA | B80: CJA. | C80: 18 | E80: =C80+D80-F80 -> 8 | F80: 10 | G80: 493.00 | H80: 4,930.00
A81: ASA BACTERIOLOGICA 0.001 | B81: UNID. | C81: 5 | E81: 5 | G81: 4,210.00 | H81: 0.00
A82: ASA BACTERIOLOGICA 0.01 | B82: UNID. | C82: 3 | E82: 3 | G82: 4,210.00 | H82: 0.00
A83: ASO LATEX 150P | B83: SET | C83: 7 | E83: 6 | F83: 1 | G83: 396.75 | H83: 396.75
A84: BAJANTE DE SANGRE | B84: UNID. | C84: 770 | E84: 770 | G84: 7.30 | H84: 0.00
A85: BECKMAN ALBUMINA | B85: SET | C85: 1 | E85: 1 | G85: 5,479.28 | H85: 0.00
A86: BECKMAN ALT | B86: SET | C86: 1 | E86: 1 | G86: 7,773.00 | H86: 0.00
A87: BECKMAN AMILASA | B87: CJA. | C87: 1 | E87: 1 | G87: 14,085.14 | H87: 0.00
A88: BECKMAN AST | B88: SET | C88: 1 | E88: 1 | G88: 7,874.75 | H88: 0.00
A89: BECKMAN BIL-DIRECTA | B89: SET | C89: 1 | E89: 1 | G89: 6,062.75 | H89: 0.00
A90: BECKMAN CK-MB | B90: SET | C90: 1 | E90: 1 | G90: 32,368.31 | H90: 0.00
A91: BECKMAN COPA ADULTO 2.0 ML | B91: FDA. | C91: 2 | E91: 2 | G91: 2,290.45 | H91: 0.00
A92: BECKMAN COPA PEDIATRICAS 0.5 ML | B92: FDA. | C92: 1 | E92: 1 | G92: 2,893.21 | H92: 0.00
A93: BECKMAN CREATININA | B93: SET | C93: 2 | E93: 2 | G93: 5,601.80 | H93: 0.00
A94: BECKMAN ELECTROLITE REFERENCE | B94: CJA. | C94: 1 | E94: 1 | G94: 6,001.98 | H94: 0.00
A95: BECKMAN GLUCOSA | B95: SET | C95: 1 | E95: 1 | G95: 9,028.92 | H95: 0.00
A96: BECKMAN HIERRO | B96: SET | C96: 1 | E96: 1 | G96: 12,409.93 | H96: 0.00
A97: BECKMAN PROTEINA TOTAL | B97: SET | C97: 1 | E97: 1 | G97: 6,974.00 | H97: 0.00
A98: BECKMAN WASH CONCENTRADO II | B98: CJA. | C98: 1 | E98: 1 | G98: 11,905.00 | H98: 0.00
A99: BFT-II CUBETAS COAGULACION | B99: CJA. | C99: 2 | E99: 2 | G99: 11,776.80 | H99: 0.00
A100: BILIRRUBINA MANUAL | B100: SET | C100: 2 | E100: 2 | G100: 1,708.80 | H100: 0.00
A101: BIO WRIGHT 1 | B101: GLN. | C101: 2 | E101: 2 | G101: 1,382.00 | H101: 0.00
A102: BIO WRIGHT 2 | B102: GLN. | C102: 1 | E102: 1 | G102: 1,382.00 | H102: 0.00
A103: BIO WRIGHT 3 | B103: GLN. | C103: 1 | E103: 1 | G103: 1,382.00 | H103: 0.00
A104: BOLSA COLECTORAS DE SANGRE | B104: UNID. | C104: 470 | E104: 380 | F104: 90 | G104: 38.69 | H104: 3,482.10
A105: BOLSAS DE SANGRE DOBLES | B105: UNID. | C105: 40 | E105: 40 | G105: 240.00 | H105: 0.00
A106: CASSETTE CON TAPA BLANCO | B106: CJA. | C106: 3 | E106: 0 | F106: 3 | G106: 3,980.00 | H106: 11,940.00
A107: CASSETTE CON TAPA COLORES | B107: CJA. | C107: 9 | E107: 0 | F107: 9 | G107: 3,880.00 | H107: 34,920.00
A108: CAPSULA P/PRUEBA DE ALIENTO C/100 | B108: CJA. | C108: 0 | D108: 1 | E108: 0 | F108: 1 | G108: 104,000.00 | H108: 104,000.00
A109: GLOBO P/PUEBA DE ALIENTO | B109: CJA. | C109: 0 | D109: 1 | E109: 0 | F109: 1 | G109: 5,675.00 | H109: 5,675.00
A110: CIBA CORNING DESPROTEINIZANTE | B110: SET | C110: 1 | E110: 1 | G110: 1,800.00 | H110: 0.00
A111: CIBA CORNING MULTICALIBRADOR | B111: SET | C111: 1 | E111: 1 | G111: 8,800.00 | H111: 0.00
A112: CLIPS DE ALUMINIO P/ BOLSAS DE SANGRE | B112: CJA. | C112: 2 | E112: 2 | G112: 3,700.00 | H112: 0.00
A113: CLORURO DE CALCIO 15 ML | B113: FCO. | C113: 20 | E113: 18 | F113: 2 | G113: 418.80 | H113: 837.60
A114: CLORURO DE SODIO 500G | B114: FCO. | C114: 4 | E114: 4 | G114: 2,485.00 | H114: 0.00
A115: COAGULASA PLASMA | B115: SET | C115: 1 | E115: 1 | G115: 3,180.00 | H115: 0.00
A116: CONTENEDOR D/BIOSEGURIDAD 3 L | B116: UNID. | C116: 11 | E116: 5 | F116: 6 | G116: 1,400.00 | H116: 8,400.00
A117: CONTROL PARA COAGULACION | B117: FCO. | C117: 16 | E117: 12 | F117: 4 | G117: 182.40 | H117: 729.60
A118: CONTROL EQAS | B118: SET | C118: 0 | E118: 0 | G118: 2,800.00 | H118: 0.00
A119: CORE ELISA IGM | B119: SET | C119: 1 | E119: 0 | F119: 1 | G119: 9,818.00 | H119: 9,818.00
A120: CREATININA MANUAL | B120: SET | C120: 1 | E120: 0 | F120: 1 | G120: 2,134.00 | H120: 2,134.00
A121: CREATININA MANUAL | B121: SET | C121: 1 | E121: 1 | G121: 317.40 | H121: 0.00
A122: CREATININA TECO | B122: SET | C122: 0 | D122: 3 | E122: 2 | F122: 1 | G122: 1,017.50 | H122: 1,017.50
A123: CUBRE OBJETO 22 X 22 (100UD) | B123: OZ | C123: 45 | E123: 0 | F123: 45 | G123: 185.00 | H123: 8,325.00
A124: CUBRE OBJETO 22 X 40 | B124: OZ | C124: 30 | E124: 0 | F124: 30 | G124: 185.00 | H124: 5,550.00
A125: CUBRE OBJETO 22 X 60 | B125: CJA. | C125: 40 | E125: 0 | F125: 40 | G125: 185.00 | H125: 7,400.00
A126: CUBRE OBJETO 24 X 50 | B126: OZ | C126: 30 | E126: 0 | F126: 30 | G126: 185.00 | H126: 5,550.00
A127: CUCHILLA P/MICROTOMO | B127: CJA. | C127: 3 | E127: 0 | F127: 3 | G127: 12,150.00 | H127: 36,450.00
A128: CURITA REDONDA | B128: CJA. | C128: 74 | E128: 41 | F128: 33 | G128: 145.00 | H128: 4,785.00
A129: DIMENSION ABS/ABSORBANCE | B129: SET | C129: 4 | E129: 3 | F129: 1 | G129: 1,500.00 | H129: 1,500.00
A130: DIMENSION ACIDO URICO | B130: SET | C130: 1 | D130: 1 | E130: 1 | F130: 1 | G130: 8,700.00 | H130: 8,700.00
A131: DIMENSION ALBUMINA | B131: SET | C131: 2 | E131: 2 | G131: 8,700.00 | H131: 0.00
A132: DIMENSION ALT | B132: SET | C132: 0 | D132: 6 | E132: 4 | F132: 2 | G132: 4,350.00 | H132: 8,700.00
A133: DIMENSION ALP-FOSFATASA ALCALINA | B133: SET | C133: 2 | D133: 2 | E133: 3 | F133: 1 | G133: 6,530.00 | H133: 6,530.00
A134: DIMENSION AMILASA | B134: SET | C134: 0 | D134: 2 | E134: 2 | G134: 5,250.00 | H134: 0.00
A135: DIMENSION AST/GOT | B135: SET | C135: 1 | D135: 5 | E135: 4 | F135: 2 | G135: 6,530.00 | H135: 13,060.00
A136: DIMENSION BILIRRUBINA DIRECTA | B136: SET | C136: 2 | D136: 2 | E136: 1 | F136: 3 | G136: 5,800.00 | H136: 17,400.00
A137: DIMENSION BILIRRUBINA TOTAL | B137: SET | C137: 1 | D137: 2 | E137: 3 | G137: 8,700.00 | H137: 0.00
A138: DIMENSION CALCIO | B138: SET | C138: 1 | D138: 1 | E138: 2 | G138: 8,700.00 | H138: 0.00
A139: DIMENSION CK | B139: SET | C139: 1 | E139: 1 | G139: 8,700.00 | H139: 0.00
A140: DIMENSION COLESTEROL | B140: SET | C140: 0 | D140: 2 | E140: 1 | F140: 1 | G140: 8,700.00 | H140: 8,700.00
A141: DIMENSION CREATININA | B141: SET | C141: 1 | D141: 4 | E141: 2 | F141: 3 | G141: 8,700.00 | H141: 26,100.00
A142: DIMENSION FOSFORO | B142: SET | C142: 1 | E142: 1 | G142: 9,902.50 | H142: 0.00
A143: DIMENSION HBA1C+CAL | B143: SET | C143: 1 | E143: 0 | F143: 1 | G143: 18,000.00 | H143: =F143*G143 -> 18,000.00
A144: DIMENSION HDL C DIRECTO | B144: SET | C144: 0 | D144: 3 | E144: =C144+D144-F144 -> 1 | F144: 2 | G144: 16,500.00 | H144: 33,000.00
A145: DIMENSION GLUCOSA | B145: SET | C145: 3 | E145: 1 | F145: 2 | G145: 26,100.00 | H145: 52,200.00
A146: DIMENSION LDH | B146: SET | C146: 1 | E146: 0 | F146: 1 | G146: 9,902.50 | H146: 9,902.50
A147: DIMENSION LIPASA | B147: SET | C147: 1 | D147: 2 | E147: 1 | F147: 2 | G147: 2,178.00 | H147: 4,356.00
A148: DIMENSION PROTEINA TOTAL | B148: SET | C148: 2 | E148: 1 | F148: 1 | G148: 8,700.00 | H148: 8,700.00
A149: DIMENSION PROTEINA EN ORINA-LCF/UCFP | B149: SET | C149: 1 | E149: 1 | G149: 1,450.00 | H149: 0.00
A150: DIMENSION TRIGLICERIDO | B150: SET | C150: 2 | D150: 3 | E150: 2 | F150: 3 | G150: 8,700.00 | H150: 26,100.00
A151: DIMENSION UREA/BUN | B151: SET | C151: 2 | D151: 3 | E151: 1 | F151: 4 | G151: 8,700.00 | H151: 34,800.00
A152: DS ACIDO NALIDIXICO | B152: FCO. | C152: 4 | E152: 3 | F152: 1 | G152: 148.00 | H152: 148.00
A153: DS AMIKACINA | B153: FCO. | C153: 5 | E153: 4 | F153: 1 | G153: 160.00 | H153: 160.00
A154: DS AMOXICILINA CON ACIDO CLAVULANICO | B154: FCO. | C154: 2 | E154: 1 | F154: 1 | G154: 160.00 | H154: 160.00
A155: DS AMPICILINA | B155: FCO. | C155: 2 | E155: 2 | G155: 151.00 | H155: 0.00
A156: DS CEFEPIME | B156: FCO. | C156: 4 | E156: 4 | G156: 160.00 | H156: 0.00
A157: DS CEFOTAXIMA | B157: FCO. | C157: 4 | E157: 2 | F157: 2 | G157: 160.00 | H157: 320.00
A158: DS CEFTAXIDIME | B158: FCO. | C158: 6 | E158: 5 | F158: 1 | G158: 160.00 | H158: 160.00
A159: DS CEFUROXIME | B159: FCO. | C159: 8 | E159: 7 | F159: 1 | G159: 160.00 | H159: 160.00
A160: DS CETRIAZONE | B160: FCO. | C160: 4 | E160: 4 | G160: 160.00 | H160: 0.00
A161: DS CIPROFLOXACINA | B161: FCO. | C161: 4 | E161: 3 | F161: 1 | G161: 148.00 | H161: 148.00
A162: DS CLINDAMICINA | B162: FCO. | C162: 2 | E162: 2 | G162: 151.00 | H162: 0.00
A163: DS ERITROMICINA | B163: FCO. | C163: 4 | E163: 3 | F163: 1 | G163: 160.00 | H163: 160.00
A164: DS FURADANTINA | B164: FCO. | C164: 2 | E164: 1 | F164: 1 | G164: 148.00 | H164: 148.00
A165: DS GENTAMICINA | B165: FCO. | C165: 3 | E165: 2 | F165: 1 | G165: 160.00 | H165: 160.00
A166: DS IMIPENEN | B166: FCO. | C166: 2 | E166: 2 | G166: 151.00 | H166: 0.00
A167: DS LEVOFLOXACIN VOL. 50 | B167: UNID. | C167: 4 | E167: 3 | F167: 1 | G167: 160.00 | H167: 160.00
A168: DS NORFLOXACIN | B168: FCO. | C168: 2 | E168: 1 | F168: 1 | G168: 148.00 | H168: 148.00
A169: DS OXALACIN | B169: FCO. | C169: 1 | E169: 1 | G169: 120.00 | H169: 0.00
A170: DS OXIDASA | B170: FCO. | C170: 1 | E170: 1 | G170: 148.00 | H170: 0.00
A171: DS PIPERACILINA | B171: FCO. | C171: 4 | E171: 3 | F171: 1 | G171: 160.00 | H171: 160.00
A172: DS TETRACICLINA | B172: FCO. | C172: 3 | E172: 2 | F172: 1 | G172: 151.00 | H172: 151.00
A173: DS TOBRAMICINA | B173: FCO. | C173: 8 | E173: 6 | F173: 2 | G173: 160.00 | H173: 320.00
A174: DS TRIMETROPIN SULFA | B174: FCO. | C174: 5 | E174: 4 | F174: 1 | G174: 160.00 | H174: 160.00
A175: EASYLYTE MEDICA CALC.RINSE (CLEANING) | B175: SET | C175: 1 | E175: 1 | G175: 2,304.00 | H175: 0.00
A176: EASYLYTE MEDICA NA/K/CL 400 ML | B176: SET | C176: 3 | E176: 3 | G176: 13,650.00 | H176: 0.00
A177: EASYLYTE PAPEL BTS 2x3 | B177: UNID. | C177: 2 | E177: 2 | G177: 157.20 | H177: 0.00
A178: ELERMEYER 2000 ML | B178: UNID. | C178: 2 | E178: 2 | G178: 1,750.00 | H178: 0.00
A179: ENVASES ESTERILES 100/1 | B179: CJA. | C179: 13 | E179: 13 | G179: 1,300.00 | H179: 0.00
A180: ESCOBILLAS P/LAVAR TUBOS PEQUEÑA | B180: UNID. | C180: 10 | E180: 10 | G180: 60.00 | H180: 0.00
A181: FACTOR REUMATOIDE | B181: SET | C181: 5 | E181: 3 | F181: 2 | G181: 1,606.80 | H181: 3,213.60
A182: FACTOR REUMATOIDE | B182: SET | C182: 2 | E182: 2 | G182: 398.40 | H182: 0.00
A183: FIBRINOGENO | B183: FCO. | C183: 2 | E183: 2 | G183: 2,925.60 | H183: 0.00
A184: FRASCO DE 60ML | B184: UNID. | C184: 100 | E184: 100 | G184: 8.60 | H184: 0.00
A185: FRASCO HEMOCULTIVO ADULTO | B185: UNID. | C185: 140 | E185: 100 | F185: 40 | G185: 155.00 | H185: 6,200.00
A186: FRASCO HEMOCULTIVO PEDIATRICO | B186: UNID. | C186: 190 | E186: 130 | F186: 60 | G186: 130.00 | H186: 7,800.00
A187: FRASCOS P/ CITOLOGIA | B187: PAQ. | C187: 2 | E187: 2 | G187: 950.00 | H187: 0.00
A188: FRASCOS P/COPROLOGICOS | B188: UNID. | C188: 9,000 | E188: 5,000 | F188: 4000 | G188: 5.90 | H188: 23,600.00
A189: FUSINA | B189: FCO. | C189: 2 | E189: 0 | F189: 2 | G189: 6,500.00 | H189: 13,000.00
A190: GASA | B190: ROLLO | C190: 3 | E190: -2 | F190: 5 | G190: 925.00 | H190: 4,625.00
A191: GASA | B191: PAQ. | C191: 12 | D191: 20 | E191: 26 | F191: 6 | G191: 366.85 | H191: 2,201.10
A192: GLUCOLA | B192: FCO. | C192: 27 | E192: 3 | F192: 24 | G192: 203.50 | H192: 4,884.00
A193: GLUCOSA LIQUIDA 300P Q.C.A | B193: SET | C193: 2 | E193: 2 | G193: 1,530.10 | H193: 0.00
A194: GLUCOSA MANUAL | B194: SET | C194: 6 | E194: 3 | F194: 3 | G194: 2,272.00 | H194: 6,816.00
A195: GOTEROS PLASTICO | B195: CJA. | C195: 5 | E195: 2 | F195: 3 | G195: 850.00 | H195: 2,550.00
A196: GUANTES | B196: CJA. | C196: 20 | E196: 15 | F196: 5 | G196: 380.00 | H196: 1,900.00
A197: GUANTES | E197: -14 | F197: 14 | G197: 340.00 | H197: 4,760.00
A198: GUANTES M-L-S | B198: CJA. | C198: 79 | D198: 50 | E198: 51 | F198: 78 | G198: 177.16 | H198: 13,818.48
A199: HBSAG ELISA BIOKIT 480T | B199: SET | C199: 3 | E199: 0 | F199: 3 | G199: 36,000.00 | H199: 108,000.00
A200: HBSAG MANUAL | B200: SET | C200: 2 | E200: 1 | F200: 1 | G200: 2,365.00 | H200: 2,365.00
A201: HBSAG RAPIDA | B201: SET | C201: 5 | E201: 5 | G201: 316.25 | H201: 0.00
A202: HCV ELISA BIOKIT 480T | B202: SET | C202: 4 | E202: 1 | F202: 3 | G202: 65,600.00 | H202: 196,800.00
A203: HEPATITIS C ELISA 96T | B203: SET | C203: 1 | E203: 0 | F203: 1 | G203: 16,905.00 | H203: 16,905.00
A204: HEPATITIS C MANUAL | B204: SET | C204: 4 | E204: 2 | F204: 2 | G204: 448.50 | H204: 897.00
... 154 more rows

Sheet INV ABRIL ADM
A4: República Dominicana
A5: Ministerio de Salud Pública y Asistencia Social
A6: Informe Mensual de Almacén General, Despensa y Medicina
A7: ALMACEN | B7: LABORATORIO
A8: ESTABLECIMIENTO | B8: CENTRO DE GASTROENTEROLOGIA | E8: REGION | F8: 0
A9: AREA DE SALUD | E9: MES | F9: ABRIL | G9: AÑO | H9: 2012
A11: ARTICULO | B11: UNIDAD | C11: EXISTENCIA ANTERIOR | D11: ENTRADA | E11: EXISTENCIA | F11: TOTAL CONSUMIDOS (3+4)-5 | G11: VALOR UNITARIO | H11: VALOR TOTAL
C12: ANTERIOR | E12: FINAL | F12: CONSUMIDO | G12: UNITARIO | H12: TOTAL
A13: -1- | C13: 3 | D13: -4- | E13: -5- | F13: (3+4)-5 | G13: -7- | H13: (6X7)
A14: ABX CONTROL HEMATOLOGICO 3/1 | B14: SET | C14: 2 | D14: 4 | E14: =C14+D14-F14 -> 5 | F14: 1 | G14: 10,143.00 | H14: =E14*G14 -> 50,715.00 | J14: =C14+D14-F14 -> 5 | K14: =J14-E14 -> 0
A15: ABX MINOLYSE | B15: FCO. | C15: 5 | D15: 0 | E15: =C15+D15-F15 -> 2 | F15: 3 | G15: 20,481.00 | H15: =E15*G15 -> 40,962.00 | J15: =C15+D15-F15 -> 2 | K15: =J15-E15 -> 0
A16: ABX MINOTON | B16: CJA. | C16: 1 | D16: 10 | E16: =C16+D16-F16 -> 4 | F16: 7 | G16: 15,130.00 | H16: =E16*G16 -> 60,520.00 | J16: =C16+D16-F16 -> 4 | K16: 0
A17: ABXPENTRA ACIDO URICO | B17: FCO. | C17: 0 | D17: 2 | E17: =C17+D17-F17 -> 0 | F17: 2 | G17: 8,132.00 | H17: 0.00 | J17: 0 | K17: 0
A18: ABXPENTRA ALBUMINA | B18: FCO. | C18: 2 | D18: 1 | E18: =C18+D18-F18 -> 1 | F18: 2 | G18: 12,456.00 | H18: 12,456.00 | J18: 1 | K18: 0
A19: ABXPENTRA ALP | B19: FCO. | C19: 4 | D19: 2 | E19: 3 | F19: 3 | G19: 4,620.00 | H19: 13,860.00 | J19: 3 | K19: 0
A20: ABXPENTRA ALT | B20: FCO. | C20: 1 | D20: 6 | E20: 4 | F20: 3 | G20: 8,000.00 | H20: 32,000.00 | J20: 4 | K20: 0
A21: ABXPENTRA AMILASA | B21: FCO. | C21: 0 | D21: 2 | E21: 1 | F21: 1 | G21: 4,000.00 | H21: 4,000.00 | J21: 1 | K21: 0
A22: ABXPENTRA AST | B22: FCO. | C22: 3 | D22: 6 | E22: 6 | F22: 3 | G22: 9,240.00 | H22: 55,440.00 | J22: 6 | K22: 0
A23: ABXPENTRA BILIRRUBINA DIRECTA | B23: FCO. | C23: 2 | D23: 2 | E23: 2 | F23: 2 | G23: 3,696.00 | H23: 7,392.00 | J23: 2 | K23: 0
A24: ABXPENTRA BILIRRUBINA TOTAL | B24: FCO. | C24: 2 | D24: 2 | E24: 3 | F24: 1 | G24: 6,400.00 | H24: 19,200.00 | J24: 3 | K24: 0
A25: ABXPENTRA CALCIO | B25: FCO. | C25: 1 | D25: 0 | E25: 1 | F25: 0 | G25: 9,240.00 | H25: 9,240.00 | J25: 1 | K25: 0
A26: ABXPENTRA COLESTEROL | B26: FCO. | C26: 3 | D26: 2 | E26: 2 | F26: 3 | G26: 12,416.00 | H26: 24,832.00 | J26: 2 | K26: 0
A27: ABXPENTRA CREATININA | B27: FCO. | C27: 2 | D27: 8 | E27: 5 | F27: 5 | G27: 4,436.00 | H27: 22,180.00 | J27: 5 | K27: 0
A28: ABXPENTRA DESPROTEINIZANTE | B28: FCO. | C28: 1 | D28: 2 | E28: 2 | F28: 1 | G28: 2,500.00 | H28: 5,000.00 | J28: 2 | K28: 0
A29: ABXPENTRA FOSFORO | B29: FCO. | C29: 1 | D29: 2 | E29: 2 | F29: 1 | G29: 3,696.00 | H29: 7,392.00 | J29: 2 | K29: 0
A30: ABXPENTRA GGT | B30: FCO. | C30: 1 | D30: 2 | E30: 2 | F30: 1 | G30: 9,240.00 | H30: 18,480.00 | J30: 2 | K30: 0
A31: ABXPENTRA GLUCOSA | B31: FCO. | C31: 0 | D31: 3 | E31: 1 | F31: 2 | G31: 10,688.00 | H31: 10,688.00 | J31: 1 | K31: 0
A32: ABXPENTRA HDL | B32: FCO. | C32: 3 | D32: 3 | E32: 2 | F32: 4 | G32: 7,680.00 | H32: 15,360.00 | J32: 2 | K32: 0
A33: ABXPENTRA LDH | B33: FCO. | C33: 2 | D33: 0 | E33: 1 | F33: 1 | G33: 4,000.00 | H33: 4,000.00 | J33: 1 | K33: 0
A34: ABXPENTRA LIPASA | B34: FCO. | C34: 2 | D34: 1 | E34: 2 | F34: 1 | G34: 3,200.00 | H34: 6,400.00 | J34: 2 | K34: 0
A35: ABXPENTRA PROTEINA TOTAL | B35: FCO. | C35: 0 | D35: 3 | E35: 2 | F35: 1 | G35: 11,088.00 | H35: 22,176.00 | J35: 2 | K35: 0
A36: ABXPENTRA TRIGLICERIDO | B36: FCO. | C36: 1 | D36: 4 | E36: 4 | F36: 1 | G36: 12,344.00 | H36: 49,376.00 | J36: 4 | K36: 0
A37: ABXPENTRA UREA/BUN | B37: FCO. | C37: 3 | D37: 5 | E37: 5 | F37: 3 | G37: 8,132.00 | H37: 40,660.00 | J37: 5 | K37: 0
A38: ACEITE DE INMERSION | B38: FCO. | C38: 1 | D38: 0 | E38: 1 | F38: 0 | G38: 1,380.00 | H38: 1,380.00 | J38: 1 | K38: 0
A39: ACETONA | B39: GLN. | C39: 6 | D39: 0 | E39: 0 | F39: 6 | G39: 950.00 | H39: 0.00 | J39: 0 | K39: 0
A40: ACIDO URICO MANUAL | B40: SET | C40: 3 | D40: 0 | E40: 3 | F40: 0 | G40: 2,780.00 | H40: 8,340.00 | J40: 3 | K40: 0
A41: ACIDO URICO MANUAL | B41: SET | C41: 3 | D41: 0 | E41: 3 | F41: 0 | G41: 522.00 | H41: 1,566.00 | J41: 3 | K41: 0
A42: ACL DILUYENTE FACTORES 100ML | B42: FCO. | C42: 3 | D42: 0 | E42: 2 | F42: 1 | G42: 744.00 | H42: 1,488.00 | J42: 2 | K42: 0
A43: ACL HIGH ABNORMAL CONT 10X1ML | B43: CJA. | C43: 4 | D43: 0 | E43: 3 | F43: 1 | G43: 3,060.00 | H43: 9,180.00 | J43: 3 | K43: 0
A44: ACL. WASH EMULSION | B44: FCO. | C44: 4 | D44: 0 | E44: 1 | F44: 3 | G44: 778.80 | H44: 778.80 | J44: 1 | K44: 0
A45: ACL. APTT. 5+5X5X8 | B45: CJA. | C45: 6 | D45: 0 | E45: 5 | F45: 1 | G45: 3,646.80 | H45: 18,234.00 | J45: 5 | K45: 0
A46: ACL. CALIBRADOR PLASMA | B46: CJA. | C46: 4 | D46: 0 | E46: 4 | F46: 0 | G46: 3,541.20 | H46: 14,164.80 | J46: 4 | K46: 0
A47: ACL. CLEANING SOLUTION 500ML | B47: SET | C47: 3 | D47: 0 | E47: 3 | F47: 0 | G47: 2,100.00 | H47: 6,300.00 | J47: 3 | K47: 0
A48: ACL. COPAS 0.5ML C/1000 | B48: CJA. | C48: 1 | D48: 0 | E48: 1 | F48: 0 | G48: 2,097.60 | H48: 2,097.60 | J48: 1 | K48: 0
A49: ACL. COPAS 2ML 1000/PK | B49: CJA. | C49: 1 | D49: 0 | E49: 1 | F49: 0 | G49: 4,702.80 | H49: 4,702.80 | J49: 1 | K49: 0
A50: ACL. LOW ABNORMAL CONT. 10X1ML | B50: SET | C50: 4 | D50: 0 | E50: 3 | F50: 1 | G50: 2,799.60 | H50: 8,398.80 | J50: 3 | K50: 0
A51: ACL. PLASMA CONTROL NORM 10X1ML | B51: CJA. | C51: 4 | D51: 0 | E51: 3 | F51: 1 | G51: 2,704.80 | H51: 8,114.40 | J51: 3 | K51: 0
A52: ACL. PT RGT-FIBRINOGENO 5+5X8ML | B52: CJA. | C52: 5 | D52: 0 | E52: 4 | F52: 1 | G52: 4,177.20 | H52: 16,708.80 | J52: 4 | K52: 0
A53: ACL. ROTORES C/100 | B53: CJA. | C53: 4 | D53: 0 | E53: 3 | F53: 1 | G53: 9,004.80 | H53: 27,014.40 | J53: 3 | K53: 0
A54: AGAR CITRATO DE SIMMONS | B54: FCO. | C54: 1 | D54: 0 | E54: 1 | F54: 0 | G54: 1,650.00 | H54: 1,650.00 | J54: 1 | K54: 0
A55: AGAR MACCONKEY | B55: FCO. | C55: 3 | D55: 0 | E55: 3 | F55: 0 | G55: 2,820.00 | H55: 8,460.00 | J55: 3 | K55: 0
A56: AGAR MANITOL SALT | B56: FCO. | C56: 3 | D56: 0 | E56: 2 | F56: 1 | G56: 2,325.00 | H56: 4,650.00 | J56: 2 | K56: 0
A57: AGAR MULLER HILTON | B57: FCO. | C57: 2 | D57: 0 | E57: 0 | F57: 2 | G57: 2,985.00 | H57: 0.00 | J57: 0 | K57: 0
A58: AGAR SABOURAUD CON CLORANFENICOL | B58: FCO. | C58: 1 | D58: 0 | E58: 0 | F58: 1 | G58: 4,890.00 | H58: 0.00 | J58: 0 | K58: 0
A59: AGAR SALMONELLA SCHIGUELLA | B59: FCO. | C59: 1 | D59: 0 | E59: 1 | F59: 0 | G59: 4,871.00 | H59: 4,871.00 | J59: 1 | K59: 0
A60: AGAR TRIPLE SUGAR IRON | B60: FCO. | C60: 1 | D60: 0 | E60: 1 | F60: 0 | G60: 3,575.00 | H60: 3,575.00 | J60: 1 | K60: 0
A61: AGAR TSA TRICTICASA SUGAR | B61: FCO. | C61: 1 | D61: 0 | E61: 1 | F61: 0 | G61: 3,650.00 | H61: 3,650.00 | J61: 1 | K61: 0
A62: AGUA BIDESTILADA | B62: GLN. | C62: 16 | D62: 0 | E62: 16 | F62: 0 | G62: 95.00 | H62: 1,520.00 | J62: 16 | K62: 0
A63: AGUA DESTILADA | B63: GLN. | C63: 122 | D63: 0 | E63: 24 | F63: 98 | G63: 95.00 | H63: 2,280.00 | J63: 24 | K63: 0
A64: AGUJA P/VACUTANIER | B64: CJA. | C64: 23 | D64: 0 | E64: 11 | F64: 12 | G64: 950.00 | H64: 10,450.00 | J64: 11 | K64: 0
A65: AHBC ELISA-CORE | B65: SET | C65: 1 | D65: 0 | E65: 1 | F65: 0 | G65: 10,238.40 | H65: 10,238.40 | J65: 1 | K65: 0
A66: ALBUMINA BOVINA 22% | B66: FCO. | C66: 5 | D66: 0 | E66: 5 | F66: 0 | G66: 485.00 | H66: 2,425.00 | J66: 5 | K66: 0
A67: ALCOHOL ABSOLUTO --ETANOL | B67: GLN. | C67: 8 | D67: 0 | E67: 0 | F67: 8 | G67: 3,526.00 | H67: 0.00 | J67: 0 | K67: 0
A68: ALCOHOL ETILICO 95% | B68: GLN. | C68: 6 | D68: 0 | E68: 0 | F68: 6 | G68: 2,384.00 | H68: 0.00 | J68: 0 | K68: 0
A69: ALCOHOL ISOPROPILICO 70 | B69: GLN. | C69: 20 | D69: 0 | E69: 10 | F69: 10 | G69: 293.25 | H69: 2,932.50 | J69: 10 | K69: 0
A70: ALCOHOL ISOPROPILICO 70% | B70: GLN. | C70: 4 | D70: 6 | E70: 4 | F70: 6 | G70: 380.00 | H70: 1,520.00 | J70: 4 | K70: 0
A71: ALCOHOL PROPANO (PROPANOL II) | B71: GLN. | C71: 10 | D71: 0 | E71: 0 | F71: 10 | G71: 2,650.00 | H71: 0.00 | J71: 0 | K71: 0
A72: ALGODON | B72: ROLLO | C72: 26 | D72: 20 | E72: 32 | F72: 14 | G72: 51.64 | H72: 1,652.48 | J72: 32 | K72: 0
A73: AMILASA MANUAL | B73: SET | C73: 5 | D73: 0 | E73: 5 | F73: 0 | G73: 1,147.70 | H73: 5,738.50 | J73: 5 | K73: 0
A74: ANTI A | B74: FCO. | C74: 2 | D74: 0 | E74: 2 | F74: 0 | G74: 231.00 | H74: 462.00 | J74: 2 | K74: 0
A75: ANTI A-B | B75: FCO. | C75: 3 | D75: 0 | E75: 3 | F75: 0 | G75: 332.00 | H75: 996.00 | J75: 3 | K75: 0
A76: ANTI A-B-D | B76: SET | C76: 15 | D76: 0 | E76: 1 | F76: 14 | G76: 333.50 | H76: 333.50 | J76: 1 | K76: 0
A77: ANTI HUMANO COOMBS | B77: FCO. | C77: 5 | D77: 0 | E77: 5 | F77: 0 | G77: 840.00 | H77: 4,200.00 | J77: 5 | K77: 0
A78: ANTICUAGULANTE | B78: FCO. | C78: 32.5 | D78: 0 | E78: 32 | F78: 1 | G78: 170.00 | H78: 5,355.00 | J78: 32 | K78: 0
A79: ANTIGENO FEBRILES | B79: SET | C79: 2 | D79: 0 | E79: 2 | F79: 0 | G79: 2,950.00 | H79: 5,900.00 | J79: 2 | K79: =J79-E79 -> 0
A80: APLICADORES MADERA | B80: CJA. | C80: 18 | D80: 0 | E80: 8 | F80: 10 | G80: 493.00 | H80: =E80*G80 -> 3,944.00 | J80: =C80+D80-F80 -> 8 | K80: 0
A81: ASA BACTERIOLOGICA 0.001 | B81: UNID. | C81: 5 | D81: 0 | E81: 5 | F81: 0 | G81: 4,210.00 | H81: 21,050.00 | J81: 5 | K81: 0
A82: ASA BACTERIOLOGICA 0.01 | B82: UNID. | C82: 3 | D82: 0 | E82: =C82+D82-F82 -> 3 | F82: 0 | G82: 4,210.00 | H82: 12,630.00 | J82: 3 | K82: 0
A83: ASO LATEX 150P | B83: SET | C83: 7 | D83: 0 | E83: 6 | F83: 1 | G83: 396.75 | H83: 2,380.50 | J83: 6 | K83: 0
A84: BAJANTE DE SANGRE | B84: UNID. | C84: 770 | D84: 0 | E84: 770 | F84: 0 | G84: 7.30 | H84: 5,621.00 | J84: 770 | K84: 0
A85: BECKMAN ALBUMINA | B85: SET | C85: 1 | D85: 0 | E85: 1 | F85: 0 | G85: 5,479.28 | H85: 5,479.28 | J85: 1 | K85: 0
A86: BECKMAN ALT | B86: SET | C86: 1 | D86: 0 | E86: 1 | F86: 0 | G86: 7,773.00 | H86: 7,773.00 | J86: 1 | K86: 0
A87: BECKMAN AMILASA | B87: CJA. | C87: 1 | D87: 0 | E87: 1 | F87: 0 | G87: 14,085.14 | H87: 14,085.14 | J87: 1 | K87: 0
A88: BECKMAN AST | B88: SET | C88: 1 | D88: 0 | E88: 1 | F88: 0 | G88: 7,874.75 | H88: 7,874.75 | J88: 1 | K88: 0
A89: BECKMAN BIL-DIRECTA | B89: SET | C89: 1 | D89: 0 | E89: 1 | F89: 0 | G89: 6,062.75 | H89: 6,062.75 | J89: 1 | K89: 0
A90: BECKMAN CK-MB | B90: SET | C90: 1 | D90: 0 | E90: 1 | F90: 0 | G90: 32,368.31 | H90: 32,368.31 | J90: 1 | K90: 0
A91: BECKMAN COPA ADULTO 2.0 ML | B91: FDA. | C91: 2 | D91: 0 | E91: 2 | F91: 0 | G91: 2,290.45 | H91: 4,580.90 | J91: 2 | K91: 0
A92: BECKMAN COPA PEDIATRICAS 0.5 ML | B92: FDA. | C92: 1 | D92: 0 | E92: 1 | F92: 0 | G92: 2,893.21 | H92: 2,893.21 | J92: 1 | K92: 0
A93: BECKMAN CREATININA | B93: SET | C93: 2 | D93: 0 | E93: 2 | F93: 0 | G93: 5,601.80 | H93: 11,203.60 | J93: 2 | K93: 0
A94: BECKMAN ELECTROLITE REFERENCE | B94: CJA. | C94: 1 | D94: 0 | E94: 1 | F94: 0 | G94: 6,001.98 | H94: 6,001.98 | J94: 1 | K94: 0
A95: BECKMAN GLUCOSA | B95: SET | C95: 1 | D95: 0 | E95: 1 | F95: 0 | G95: 9,028.92 | H95: 9,028.92 | J95: 1 | K95: 0
A96: BECKMAN HIERRO | B96: SET | C96: 1 | D96: 0 | E96: 1 | F96: 0 | G96: 12,409.93 | H96: 12,409.93 | J96: 1 | K96: 0
A97: BECKMAN PROTEINA TOTAL | B97: SET | C97: 1 | D97: 0 | E97: 1 | F97: 0 | G97: 6,974.00 | H97: 6,974.00 | J97: 1 | K97: 0
A98: BECKMAN WASH CONCENTRADO II | B98: CJA. | C98: 1 | D98: 0 | E98: 1 | F98: 0 | G98: 11,905.00 | H98: 11,905.00 | J98: 1 | K98: 0
A99: BFT-II CUBETAS COAGULACION | B99: CJA. | C99: 2 | D99: 0 | E99: 2 | F99: 0 | G99: 11,776.80 | H99: 23,553.60 | J99: 2 | K99: 0
A100: BILIRRUBINA MANUAL | B100: SET | C100: 2 | D100: 0 | E100: 2 | F100: 0 | G100: 1,708.80 | H100: 3,417.60 | J100: 2 | K100: 0
A101: BIO WRIGHT 1 | B101: GLN. | C101: 2 | D101: 0 | E101: 2 | F101: 0 | G101: 1,382.00 | H101: 2,764.00 | J101: 2 | K101: 0
A102: BIO WRIGHT 2 | B102: GLN. | C102: 1 | D102: 0 | E102: 1 | F102: 0 | G102: 1,382.00 | H102: 1,382.00 | J102: 1 | K102: 0
A103: BIO WRIGHT 3 | B103: GLN. | C103: 1 | D103: 0 | E103: 1 | F103: 0 | G103: 1,382.00 | H103: 1,382.00 | J103: 1 | K103: 0
A104: BOLSA COLECTORAS DE SANGRE | B104: UNID. | C104: 470 | D104: 0 | E104: 380 | F104: 90 | G104: 38.69 | H104: 14,702.20 | J104: 380 | K104: 0
A105: BOLSAS DE SANGRE DOBLES | B105: UNID. | C105: 40 | D105: 0 | E105: 40 | F105: 0 | G105: 240.00 | H105: 9,600.00 | J105: 40 | K105: 0
A106: CASSETTE CON TAPA BLANCO | B106: CJA. | C106: 3 | D106: 0 | E106: 0 | F106: 3 | G106: 3,980.00 | H106: 0.00 | J106: 0 | K106: 0
A107: CASSETTE CON TAPA COLORES | B107: CJA. | C107: 9 | D107: 0 | E107: 0 | F107: 9 | G107: 3,880.00 | H107: 0.00 | J107: 0 | K107: 0
A108: CAPSULA P/PRUEBA DE ALIENTO C/100 | B108: CJA. | C108: 0 | D108: 1 | E108: 0 | F108: 1 | G108: 104,000.00 | H108: 0.00 | J108: 0 | K108: 0
A109: GLOBO P/PUEBA DE ALIENTO | B109: CJA. | C109: 0 | D109: 1 | E109: 0 | F109: 1 | G109: 5,675.00 | H109: 0.00 | J109: 0 | K109: 0
A110: CIBA CORNING DESPROTEINIZANTE | B110: SET | C110: 1 | D110: 0 | E110: 1 | F110: 0 | G110: 1,800.00 | H110: 1,800.00 | J110: 1 | K110: 0
A111: CIBA CORNING MULTICALIBRADOR | B111: SET | C111: 1 | D111: 0 | E111: 1 | F111: 0 | G111: 8,800.00 | H111: 8,800.00 | J111: 1 | K111: 0
A112: CLIPS DE ALUMINIO P/ BOLSAS DE SANGRE | B112: CJA. | C112: 2 | D112: 0 | E112: 2 | F112: 0 | G112: 3,700.00 | H112: 7,400.00 | J112: 2 | K112: 0
A113: CLORURO DE CALCIO 15 ML | B113: FCO. | C113: 20 | D113: 0 | E113: 18 | F113: 2 | G113: 418.80 | H113: 7,538.40 | J113: 18 | K113: 0
A114: CLORURO DE SODIO 500G | B114: FCO. | C114: 4 | D114: 0 | E114: 4 | F114: 0 | G114: 2,485.00 | H114: 9,940.00 | J114: 4 | K114: 0
A115: COAGULASA PLASMA | B115: SET | C115: 1 | D115: 0 | E115: 1 | F115: 0 | G115: 3,180.00 | H115: 3,180.00 | J115: 1 | K115: 0
A116: CONTENEDOR D/BIOSEGURIDAD 3 L | B116: UNID. | C116: 11 | D116: 0 | E116: 5 | F116: 6 | G116: 1,400.00 | H116: 7,000.00 | J116: 5 | K116: 0
A117: CONTROL PARA COAGULACION | B117: FCO. | C117: 16 | D117: 0 | E117: 12 | F117: 4 | G117: 182.40 | H117: 2,188.80 | J117: 12 | K117: 0
A118: CONTROL EQAS | B118: SET | C118: 0 | D118: 0 | E118: 0 | F118: 0 | G118: 2,800.00 | H118: 0.00 | J118: 0 | K118: 0
A119: CORE ELISA IGM | B119: SET | C119: 1 | D119: 2 | E119: 2 | F119: 1 | G119: 9,818.00 | H119: 19,636.00 | J119: 2 | K119: 0
A120: CREATININA MANUAL | B120: SET | C120: 1 | D120: 0 | E120: 0 | F120: 1 | G120: 2,134.00 | H120: 0.00 | J120: 0 | K120: 0
A121: CREATININA MANUAL | B121: SET | C121: 1 | D121: 0 | E121: 1 | F121: 0 | G121: 317.40 | H121: 317.40 | J121: 1 | K121: 0
A122: CREATININA TECO | B122: SET | C122: 0 | D122: 3 | E122: 2 | F122: 1 | G122: 1,017.50 | H122: 2,035.00 | J122: 2 | K122: 0
A123: CUBRE OBJETO 22 X 22 (100UD) | B123: OZ | C123: 45 | D123: 0 | E123: 0 | F123: 45 | G123: 185.00 | H123: 0.00 | J123: 0 | K123: 0
A124: CUBRE OBJETO 22 X 40 | B124: OZ | C124: 30 | D124: 0 | E124: 0 | F124: 30 | G124: 185.00 | H124: 0.00 | J124: 0 | K124: 0
A125: CUBRE OBJETO 22 X 60 | B125: CJA. | C125: 40 | D125: 0 | E125: 0 | F125: 40 | G125: 185.00 | H125: 0.00 | J125: 0 | K125: 0
A126: CUBRE OBJETO 24 X 50 | B126: OZ | C126: 30 | D126: 0 | E126: 0 | F126: 30 | G126: 185.00 | H126: 0.00 | J126: 0 | K126: 0
A127: CUCHILLA P/MICROTOMO | B127: CJA. | C127: 3 | D127: 0 | E127: 0 | F127: 3 | G127: 12,150.00 | H127: 0.00 | J127: 0 | K127: 0
A128: CURITA REDONDA | B128: CJA. | C128: 74 | D128: 0 | E128: 41 | F128: 33 | G128: 145.00 | H128: 5,945.00 | J128: 41 | K128: 0
A129: DIMENSION ABS/ABSORBANCE | B129: SET | C129: 4 | D129: 0 | E129: 3 | F129: 1 | G129: 1,500.00 | H129: 4,500.00 | J129: 3 | K129: 0
A130: DIMENSION ACIDO URICO | B130: SET | C130: 1 | D130: 1 | E130: 1 | F130: 1 | G130: 8,700.00 | H130: 8,700.00 | J130: 1 | K130: 0
A131: DIMENSION ALBUMINA | B131: SET | C131: 2 | D131: 0 | E131: 2 | F131: 0 | G131: 8,700.00 | H131: 17,400.00 | J131: 2 | K131: 0
A132: DIMENSION ALT | B132: SET | C132: 0 | D132: 6 | E132: 4 | F132: 2 | G132: 4,350.00 | H132: 17,400.00 | J132: 4 | K132: 0
A133: DIMENSION ALP-FOSFATASA ALCALINA | B133: SET | C133: 2 | D133: 2 | E133: 3 | F133: 1 | G133: 6,530.00 | H133: 19,590.00 | J133: 3 | K133: 0
A134: DIMENSION AMILASA | B134: SET | C134: 0 | D134: 2 | E134: 2 | F134: 0 | G134: 5,250.00 | H134: 10,500.00 | J134: 2 | K134: 0
A135: DIMENSION AST/GOT | B135: SET | C135: 1 | D135: 5 | E135: 4 | F135: 2 | G135: 6,530.00 | H135: 26,120.00 | J135: 4 | K135: 0
A136: DIMENSION BILIRRUBINA DIRECTA | B136: SET | C136: 2 | D136: 2 | E136: 1 | F136: 3 | G136: 5,800.00 | H136: 5,800.00 | J136: 1 | K136: 0
A137: DIMENSION BILIRRUBINA TOTAL | B137: SET | C137: 1 | D137: 2 | E137: 3 | F137: 0 | G137: 8,700.00 | H137: 26,100.00 | J137: 3 | K137: 0
A138: DIMENSION CALCIO | B138: SET | C138: 1 | D138: 1 | E138: 2 | F138: 0 | G138: 8,700.00 | H138: 17,400.00 | J138: 2 | K138: 0
A139: DIMENSION CK | B139: SET | C139: 1 | D139: 0 | E139: 1 | F139: 0 | G139: 8,700.00 | H139: 8,700.00 | J139: 1 | K139: 0
A140: DIMENSION COLESTEROL | B140: SET | C140: 0 | D140: 2 | E140: 1 | F140: 1 | G140: 8,700.00 | H140: 8,700.00 | J140: 1 | K140: 0
A141: DIMENSION CREATININA | B141: SET | C141: 1 | D141: 4 | E141: 2 | F141: 3 | G141: 8,700.00 | H141: 17,400.00 | J141: 2 | K141: 0
A142: DIMENSION FOSFORO | B142: SET | C142: 1 | D142: 0 | E142: 1 | F142: 0 | G142: 9,902.50 | H142: 9,902.50 | J142: 1 | K142: 0
A143: DIMENSION HBA1C+CAL | B143: SET | C143: 1 | D143: 0 | E143: 0 | F143: 1 | G143: 18,000.00 | H143: 0.00 | J143: 0 | K143: =J143-E143 -> 0
A144: DIMENSION HDL C DIRECTO | B144: SET | C144: 0 | D144: 3 | E144: 1 | F144: 2 | G144: 16,500.00 | H144: =E144*G144 -> 16,500.00 | J144: =C144+D144-F144 -> 1 | K144: 0
A145: DIMENSION GLUCOSA | B145: SET | C145: 3 | D145: 0 | E145: 1 | F145: 2 | G145: 26,100.00 | H145: 26,100.00 | J145: 1 | K145: 0
A146: DIMENSION LDH | B146: SET | C146: 1 | D146: 0 | E146: =C146+D146-F146 -> 0 | F146: 1 | G146: 9,902.50 | H146: 0.00 | J146: 0 | K146: 0
A147: DIMENSION LIPASA | B147: SET | C147: 1 | D147: 2 | E147: 1 | F147: 2 | G147: 2,178.00 | H147: 2,178.00 | J147: 1 | K147: 0
A148: DIMENSION PROTEINA TOTAL | B148: SET | C148: 2 | D148: 0 | E148: 1 | F148: 1 | G148: 8,700.00 | H148: 8,700.00 | J148: 1 | K148: 0
A149: DIMENSION PROTEINA EN ORINA-LCF/UCFP | B149: SET | C149: 1 | D149: 0 | E149: 1 | F149: 0 | G149: 1,450.00 | H149: 1,450.00 | J149: 1 | K149: 0
A150: DIMENSION TRIGLICERIDO | B150: SET | C150: 2 | D150: 3 | E150: 2 | F150: 3 | G150: 8,700.00 | H150: 17,400.00 | J150: 2 | K150: 0
A151: DIMENSION UREA/BUN | B151: SET | C151: 2 | D151: 3 | E151: 1 | F151: 4 | G151: 8,700.00 | H151: 8,700.00 | J151: 1 | K151: 0
A152: DS ACIDO NALIDIXICO | B152: FCO. | C152: 4 | D152: 0 | E152: 3 | F152: 1 | G152: 148.00 | H152: 444.00 | J152: 3 | K152: 0
A153: DS AMIKACINA | B153: FCO. | C153: 5 | D153: 0 | E153: 4 | F153: 1 | G153: 160.00 | H153: 640.00 | J153: 4 | K153: 0
A154: DS AMOXICILINA CON ACIDO CLAVULANICO | B154: FCO. | C154: 2 | D154: 0 | E154: 1 | F154: 1 | G154: 160.00 | H154: 160.00 | J154: 1 | K154: 0
A155: DS AMPICILINA | B155: FCO. | C155: 2 | D155: 0 | E155: 2 | F155: 0 | G155: 151.00 | H155: 302.00 | J155: 2 | K155: 0
A156: DS CEFEPIME | B156: FCO. | C156: 4 | D156: 0 | E156: 4 | F156: 0 | G156: 160.00 | H156: 640.00 | J156: 4 | K156: 0
A157: DS CEFOTAXIMA | B157: FCO. | C157: 4 | D157: 0 | E157: 2 | F157: 2 | G157: 160.00 | H157: 320.00 | J157: 2 | K157: 0
A158: DS CEFTAXIDIME | B158: FCO. | C158: 6 | D158: 0 | E158: 5 | F158: 1 | G158: 160.00 | H158: 800.00 | J158: 5 | K158: 0
A159: DS CEFUROXIME | B159: FCO. | C159: 8 | D159: 0 | E159: 7 | F159: 1 | G159: 160.00 | H159: 1,120.00 | J159: 7 | K159: 0
A160: DS CETRIAZONE | B160: FCO. | C160: 4 | D160: 0 | E160: 4 | F160: 0 | G160: 160.00 | H160: 640.00 | J160: 4 | K160: 0
A161: DS CIPROFLOXACINA | B161: FCO. | C161: 4 | D161: 0 | E161: 3 | F161: 1 | G161: 148.00 | H161: 444.00 | J161: 3 | K161: 0
A162: DS CLINDAMICINA | B162: FCO. | C162: 2 | D162: 0 | E162: 2 | F162: 0 | G162: 151.00 | H162: 302.00 | J162: 2 | K162: 0
A163: DS ERITROMICINA | B163: FCO. | C163: 4 | D163: 0 | E163: 3 | F163: 1 | G163: 160.00 | H163: 480.00 | J163: 3 | K163: 0
A164: DS FURADANTINA | B164: FCO. | C164: 2 | D164: 0 | E164: 1 | F164: 1 | G164: 148.00 | H164: 148.00 | J164: 1 | K164: 0
A165: DS GENTAMICINA | B165: FCO. | C165: 3 | D165: 0 | E165: 2 | F165: 1 | G165: 160.00 | H165: 320.00 | J165: 2 | K165: 0
A166: DS IMIPENEN | B166: FCO. | C166: 2 | D166: 0 | E166: 2 | F166: 0 | G166: 151.00 | H166: 302.00 | J166: 2 | K166: 0
A167: DS LEVOFLOXACIN VOL. 50 | B167: UNID. | C167: 4 | D167: 0 | E167: 3 | F167: 1 | G167: 160.00 | H167: 480.00 | J167: 3 | K167: 0
A168: DS NORFLOXACIN | B168: FCO. | C168: 2 | D168: 0 | E168: 1 | F168: 1 | G168: 148.00 | H168: 148.00 | J168: 1 | K168: 0
A169: DS OXALACIN | B169: FCO. | C169: 1 | D169: 0 | E169: 1 | F169: 0 | G169: 120.00 | H169: 120.00 | J169: 1 | K169: 0
A170: DS OXIDASA | B170: FCO. | C170: 1 | D170: 0 | E170: 1 | F170: 0 | G170: 148.00 | H170: 148.00 | J170: 1 | K170: 0
A171: DS PIPERACILINA | B171: FCO. | C171: 4 | D171: 0 | E171: 3 | F171: 1 | G171: 160.00 | H171: 480.00 | J171: 3 | K171: 0
A172: DS TETRACICLINA | B172: FCO. | C172: 3 | D172: 0 | E172: 2 | F172: 1 | G172: 151.00 | H172: 302.00 | J172: 2 | K172: 0
A173: DS TOBRAMICINA | B173: FCO. | C173: 8 | D173: 0 | E173: 6 | F173: 2 | G173: 160.00 | H173: 960.00 | J173: 6 | K173: 0
A174: DS TRIMETROPIN SULFA | B174: FCO. | C174: 5 | D174: 0 | E174: 4 | F174: 1 | G174: 160.00 | H174: 640.00 | J174: 4 | K174: 0
A175: EASYLYTE MEDICA CALC.RINSE (CLEANING) | B175: SET | C175: 1 | D175: 0 | E175: 1 | F175: 0 | G175: 2,304.00 | H175: 2,304.00 | J175: 1 | K175: 0
A176: EASYLYTE MEDICA NA/K/CL 400 ML | B176: SET | C176: 3 | D176: 0 | E176: 3 | F176: 0 | G176: 13,650.00 | H176: 40,950.00 | J176: 3 | K176: 0
A177: EASYLYTE PAPEL BTS 2x3 | B177: UNID. | C177: 2 | D177: 0 | E177: 2 | F177: 0 | G177: 157.20 | H177: 314.40 | J177: 2 | K177: 0
A178: ELERMEYER 2000 ML | B178: UNID. | C178: 2 | D178: 0 | E178: 2 | F178: 0 | G178: 1,750.00 | H178: 3,500.00 | J178: 2 | K178: 0
A179: ENVASES ESTERILES 100/1 | B179: CJA. | C179: 13 | D179: 0 | E179: 13 | F179: 0 | G179: 1,300.00 | H179: 16,900.00 | J179: 13 | K179: 0
A180: ESCOBILLAS P/LAVAR TUBOS PEQUEÑA | B180: UNID. | C180: 10 | D180: 0 | E180: 10 | F180: 0 | G180: 60.00 | H180: 600.00 | J180: 10 | K180: 0
A181: FACTOR REUMATOIDE | B181: SET | C181: 5 | D181: 0 | E181: 3 | F181: 2 | G181: 1,606.80 | H181: 4,820.40 | J181: 3 | K181: 0
A182: FACTOR REUMATOIDE | B182: SET | C182: 2 | D182: 0 | E182: 2 | F182: 0 | G182: 398.40 | H182: 796.80 | J182: 2 | K182: 0
A183: FIBRINOGENO | B183: FCO. | C183: 2 | D183: 0 | E183: 2 | F183: 0 | G183: 2,925.60 | H183: 5,851.20 | J183: 2 | K183: 0
A184: FRASCO DE 60ML | B184: UNID. | C184: 100 | D184: 0 | E184: 100 | F184: 0 | G184: 8.60 | H184: 860.00 | J184: 100 | K184: 0
A185: FRASCO HEMOCULTIVO ADULTO | B185: UNID. | C185: 140 | D185: 0 | E185: 100 | F185: 40 | G185: 155.00 | H185: 15,500.00 | J185: 100 | K185: 0
A186: FRASCO HEMOCULTIVO PEDIATRICO | B186: UNID. | C186: 190 | D186: 0 | E186: 130 | F186: 60 | G186: 130.00 | H186: 16,900.00 | J186: 130 | K186: 0
A187: FRASCOS P/ CITOLOGIA | B187: PAQ. | C187: 2 | D187: 0 | E187: 2 | F187: 0 | G187: 950.00 | H187: 1,900.00 | J187: 2 | K187: 0
A188: FRASCOS P/COPROLOGICOS | B188: UNID. | C188: 9,000 | D188: 0 | E188: 5,000 | F188: 4000 | G188: 5.90 | H188: 29,500.00 | J188: 5,000 | K188: 0
A189: FUSINA | B189: FCO. | C189: 2 | D189: 0 | E189: 0 | F189: 2 | G189: 6,500.00 | H189: 0.00 | J189: 0 | K189: 0
A190: GASA | B190: ROLLO | C190: 5 | D190: 0 | E190: 0 | F190: 5 | G190: 925.00 | H190: 0.00 | J190: 0 | K190: 0
A191: GASA | B191: PAQ. | C191: 12 | D191: 20 | E191: 26 | F191: 6 | G191: 366.85 | H191: 9,538.10 | J191: 26 | K191: 0
A192: GLUCOLA | B192: FCO. | C192: 27 | D192: 0 | E192: 3 | F192: 24 | G192: 203.50 | H192: 610.50 | J192: 3 | K192: 0
A193: GLUCOSA LIQUIDA 300P Q.C.A | B193: SET | C193: 2 | D193: 0 | E193: 2 | F193: 0 | G193: 1,530.10 | H193: 3,060.20 | J193: 2 | K193: 0
A194: GLUCOSA MANUAL | B194: SET | C194: 6 | D194: 0 | E194: 3 | F194: 3 | G194: 2,272.00 | H194: 6,816.00 | J194: 3 | K194: 0
A195: GOTEROS PLASTICO | B195: CJA. | C195: 5 | D195: 0 | E195: 2 | F195: 3 | G195: 850.00 | H195: 1,700.00 | J195: 2 | K195: 0
A196: GUANTES | B196: CJA. | C196: 20 | D196: 0 | E196: 15 | F196: 5 | G196: 380.00 | H196: 5,700.00 | J196: 15 | K196: 0
A197: GUANTES | B197: CJA. | C197: 10 | D197: 10 | E197: 6 | F197: 14 | G197: 340.00 | H197: 2,040.00 | J197: 6 | K197: 0
A198: GUANTES M-L-S | B198: CJA. | C198: 79 | D198: 50 | E198: 51 | F198: 78 | G198: 177.16 | H198: 9,035.16 | J198: 51 | K198: 0
A199: HBSAG ELISA BIOKIT 480T | B199: SET | C199: 3 | D199: 0 | E199: 0 | F199: 3 | G199: 36,000.00 | H199: 0.00 | J199: 0 | K199: 0
A200: HBSAG MANUAL | B200: SET | C200: 2 | D200: 0 | E200: 1 | F200: 1 | G200: 2,365.00 | H200: 2,365.00 | J200: 1 | K200: 0
A201: HBSAG RAPIDA | B201: SET | C201: 5 | D201: 0 | E201: 5 | F201: 0 | G201: 316.25 | H201: 1,581.25 | J201: 5 | K201: 0
A202: HCV ELISA BIOKIT 480T | B202: SET | C202: 4 | D202: 0 | E202: 1 | F202: 3 | G202: 65,600.00 | H202: 65,600.00 | J202: 1 | K202: 0
A203: HEPATITIS C ELISA 96T | B203: SET | C203: 1 | D203: 0 | E203: 0 | F203: 1 | G203: 16,905.00 | H203: 0.00 | J203: 0 | K203: 0
A204: HEPATITIS C MANUAL | B204: SET | C204: 4 | D204: 0 | E204: 2 | F204: 2 | G204: 448.50 | H204: 897.00 | J204: 2 | K204: 0
... 154 more rows

Sheet INV. MAYO MSP
A4: República Dominicana
A5: Ministerio de Salud Pública y Asistencia Social
A6: Informe Mensual de Almacén General, Despensa y Medicina
A7: ALMACEN | B7: LABORATORIO
A8: ESTABLECIMIENTO | B8: CENTRO DE GASTROENTEROLOGIA | E8: REGION | F8: 0
A9: AREA DE SALUD | E9: MES | F9: MAYO | G9: AÑO | H9: 2012
A11: ARTICULO | B11: UNIDAD | C11: EXISTENCIA ANTERIOR | D11: ENTRADA | E11: EXISTENCIA | F11: TOTAL CONSUMIDOS (3+4)-5 | G11: VALOR UNITARIO | H11: VALOR TOTAL
C12: ANTERIOR | E12: FINAL | F12: CONSUMIDO | G12: UNITARIO | H12: TOTAL
A13: -1- | C13: 3 | D13: -4- | E13: -5- | F13: (3+4)-5 | G13: -7- | H13: (6X7)
A14: ABX CONTROL HEMATOLOGICO 3/1 | B14: SET | C14: 5 | D14: 0 | E14: =C14+D14-F14 -> 2 | F14: 3 | G14: 10,143.00 | H14: =F14*G14 -> 30,429.00
A15: ABX MINOLYSE | B15: FCO. | C15: 2 | D15: 3 | E15: =C15+D15-F15 -> 4 | F15: 1 | G15: 20,481.00 | H15: =F15*G15 -> 20,481.00
A16: ABX MINOTON | B16: CJA. | C16: 4 | D16: 6 | E16: =C16+D16-F16 -> 7 | F16: 3 | G16: 15,130.00 | H16: =F16*G16 -> 45,390.00
A17: ABXPENTRA ACIDO URICO | B17: FCO. | C17: 0 | D17: 2 | E17: 2 | F17: 0 | G17: 8,132.00 | H17: =F17*G17 -> 0.00
A18: ABXPENTRA ALBUMINA | B18: FCO. | C18: 0 | D18: 1 | E18: 1 | F18: 0 | G18: 12,456.00 | H18: 0.00
A19: ABXPENTRA ALP | B19: FCO. | C19: 1 | D19: 2 | E19: 0 | F19: 3 | G19: 4,620.00 | H19: 13,860.00
A20: ABXPENTRA ALT | B20: FCO. | C20: 0 | D20: 4 | E20: 1 | F20: 3 | G20: 8,000.00 | H20: 24,000.00
A21: ABXPENTRA AMILASA | B21: FCO. | C21: 1 | D21: 0 | E21: 1 | F21: 0 | G21: 4,000.00 | H21: 0.00
A22: ABXPENTRA AST | B22: FCO. | C22: 2 | D22: 4 | E22: 4 | F22: 2 | G22: 9,240.00 | H22: 18,480.00
A23: ABXPENTRA BILIRRUBINA DIRECTA | B23: FCO. | C23: 0 | D23: 2 | E23: 0 | F23: 2 | G23: 3,696.00 | H23: 7,392.00
A24: ABXPENTRA BILIRRUBINA TOTAL | B24: FCO. | C24: 1 | D24: 2 | E24: 0 | F24: 3 | G24: 6,400.00 | H24: 19,200.00
A25: ABXPENTRA CALCIO | B25: FCO. | C25: 1 | D25: 0 | E25: 1 | F25: 0 | G25: 9,240.00 | H25: 0.00
A26: ABXPENTRA COLESTEROL | B26: FCO. | C26: 2 | D26: 3 | E26: 5 | F26: 0 | G26: 12,416.00 | H26: 0.00
A27: ABXPENTRA CREATININA | B27: FCO. | C27: 2 | D27: 5 | E27: 5 | F27: 2 | G27: 4,436.00 | H27: 8,872.00
A28: ABXPENTRA DESPROTEINIZANTE | B28: FCO. | C28: 2 | D28: 0 | E28: 1 | F28: 1 | G28: 2,500.00 | H28: 2,500.00
A29: ABXPENTRA FOSFORO | B29: FCO. | C29: 2 | D29: 0 | E29: 2 | F29: 0 | G29: 3,696.00 | H29: 0.00
A30: ABXPENTRA GGT | B30: FCO. | C30: 1 | D30: 1 | E30: 2 | F30: 0 | G30: 9,240.00 | H30: 0.00
A31: ABXPENTRA GLUCOSA | B31: FCO. | C31: 1 | D31: 3 | E31: 3 | F31: 1 | G31: 10,688.00 | H31: 10,688.00
A32: ABXPENTRA HDL | B32: FCO. | C32: 2 | D32: 3 | E32: 4 | F32: 1 | G32: 7,680.00 | H32: 7,680.00
A33: ABXPENTRA LDH | B33: FCO. | C33: 1 | D33: 2 | E33: 3 | F33: 0 | G33: 4,000.00 | H33: 0.00
A34: ABXPENTRA LIPASA | B34: FCO. | C34: 2 | D34: 2 | E34: 4 | F34: 0 | G34: 3,200.00 | H34: 0.00
A35: ABXPENTRA PROTEINA TOTAL | B35: FCO. | C35: 1 | D35: 2 | E35: 1 | F35: 2 | G35: 11,088.00 | H35: 22,176.00
A36: ABXPENTRA TRIGLICERIDO | B36: FCO. | C36: 0 | D36: 4 | E36: 1 | F36: 3 | G36: 12,344.00 | H36: 37,032.00
A37: ABXPENTRA UREA/BUN | B37: FCO. | C37: 2 | D37: 6 | E37: 6 | F37: 2 | G37: 8,132.00 | H37: 16,264.00
A38: ACEITE DE INMERSION | B38: FCO. | C38: 1 | D38: 0 | E38: 1 | F38: 0 | G38: 1,380.00 | H38: 0.00
A39: ACETONA | B39: GLN. | C39: 0 | D39: 0 | E39: 0 | F39: 0 | G39: 950.00 | H39: 0.00
A40: ACIDO URICO MANUAL | B40: SET | C40: 3 | D40: 0 | E40: 3 | F40: 0 | G40: 2,780.00 | H40: 0.00
A41: ACIDO URICO MANUAL | B41: SET | C41: 3 | D41: 0 | E41: 3 | F41: 0 | G41: 522.00 | H41: 0.00
A42: ACIDO ACETICO GLACIAL | B42: GLN. | C42: 0 | D42: 1 | E42: 0 | F42: 1 | G42: 3,550.00 | H42: 3,550.00
A43: ACL DILUYENTE FACTORES 100ML | B43: FCO. | C43: 2 | D43: 2 | E43: 3 | F43: 1 | G43: 744.00 | H43: 744.00
A44: ACL HIGH ABNORMAL CONT 10X1ML | B44: CJA. | C44: 3 | D44: 0 | E44: 3 | F44: 0 | G44: 3,060.00 | H44: 0.00
A45: ACL. WASH EMULSION | B45: FCO. | C45: 1 | D45: 2 | E45: 2 | F45: 1 | G45: 778.80 | H45: 778.80
A46: ACL. APTT. 5+5X5X8 | B46: CJA. | C46: 5 | D46: 0 | E46: 5 | F46: 0 | G46: 3,646.80 | H46: 0.00
A47: ACL. CALIBRADOR PLASMA | B47: CJA. | C47: 4 | D47: 0 | E47: 4 | F47: 0 | G47: 3,541.20 | H47: 0.00
A48: ACL. CLEANING SOLUTION 500ML | B48: SET | C48: 3 | D48: 0 | E48: 3 | F48: 0 | G48: 2,100.00 | H48: 0.00
A49: ACL. COPAS 0.5ML C/1000 | B49: CJA. | C49: 1 | D49: 0 | E49: 1 | F49: 0 | G49: 2,097.60 | H49: 0.00
A50: ACL. COPAS 2ML 1000/PK | B50: CJA. | C50: 1 | D50: 0 | E50: 1 | F50: 0 | G50: 4,702.80 | H50: 0.00
A51: ACL. LOW ABNORMAL CONT. 10X1ML | B51: SET | C51: 3 | D51: 0 | E51: 3 | F51: 0 | G51: 2,799.60 | H51: 0.00
A52: ACL. PLASMA CONTROL NORM 10X1ML | B52: CJA. | C52: 3 | D52: 0 | E52: 2 | F52: 1 | G52: 2,704.80 | H52: 2,704.80
A53: ACL. PT RGT-FIBRINOGENO 5+5X8ML | B53: CJA. | C53: 4 | D53: 0 | E53: 3 | F53: 1 | G53: 4,177.20 | H53: 4,177.20
A54: ACL. ROTORES C/100 | B54: CJA. | C54: 3 | D54: 0 | E54: 3 | F54: 0 | G54: 9,004.80 | H54: 0.00
A55: AGAR CITRATO DE SIMMONS | B55: FCO. | C55: 1 | D55: 0 | E55: 1 | F55: 0 | G55: 1,650.00 | H55: 0.00
A56: AGAR MACCONKEY | B56: FCO. | C56: 3 | D56: 0 | E56: 2 | F56: 1 | G56: 2,820.00 | H56: 2,820.00
A57: AGAR MANITOL SALT | B57: FCO. | C57: 2 | D57: 0 | E57: 1 | F57: 1 | G57: 2,325.00 | H57: 2,325.00
A58: AGAR MULLER HILTON | B58: FCO. | C58: 0 | D58: 3 | E58: 2 | F58: 1 | G58: 2,985.00 | H58: 2,985.00
A59: AGAR SABOURAUD CON CLORANFENICOL | B59: FCO. | C59: 0 | D59: 0 | E59: 0 | F59: 0 | G59: 4,890.00 | H59: 0.00
A60: AGAR SALMONELLA SCHIGUELLA | B60: FCO. | C60: 1 | D60: 0 | E60: 1 | F60: 0 | G60: 4,871.00 | H60: 0.00
A61: AGAR TRIPLE SUGAR IRON | B61: FCO. | C61: 1 | D61: 0 | E61: 1 | F61: 0 | G61: 3,575.00 | H61: 0.00
A62: AGAR TSA TRICTICASA SUGAR | B62: FCO. | C62: 1 | D62: 0 | E62: 1 | F62: 0 | G62: 3,650.00 | H62: 0.00
A63: AGUA BIDESTILADA | B63: GLN. | C63: 40 | D63: 100 | E63: 77 | F63: 63 | G63: 95.00 | H63: 5,985.00
A64: AGUJA P/VACUTANIER | B64: CJA. | C64: 15 | D64: 0 | E64: 0 | F64: 15 | G64: 950.00 | H64: 14,250.00
A65: AHBC ELISA-CORE | B65: SET | C65: 1 | D65: 0 | E65: 1 | F65: 0 | G65: 10,238.40 | H65: 0.00
A66: ALBUMINA BOVINA 22% | B66: FCO. | C66: 5 | D66: 0 | E66: 5 | F66: 0 | G66: 485.00 | H66: 0.00
A67: ALCOHOL ABSOLUTO --ETANOL | B67: GLN. | C67: 0 | D67: 0 | E67: 0 | F67: 0 | G67: 3,526.00 | H67: 0.00
A68: ALCOHOL ETILICO 95% | B68: GLN. | C68: 0 | D68: 0 | E68: 0 | F68: 0 | G68: 2,384.00 | H68: 0.00
A69: ALCOHOL ISOPROPILICO 70 | B69: GLN. | C69: 10 | D69: 0 | E69: 6 | F69: 4 | G69: 293.25 | H69: 1,173.00
A70: ALCOHOL ISOPROPILICO 70% | B70: GLN. | C70: 4 | D70: 0 | E70: 4 | F70: 0 | G70: 380.00 | H70: 0.00
A71: ALCOHOL PROPANO (PROPANOL II) | B71: GLN. | C71: 0 | D71: 0 | E71: 0 | F71: 0 | G71: 2,650.00 | H71: 0.00
A72: ALGODON | B72: ROLLO | C72: 32 | D72: 0 | E72: 23 | F72: 9 | G72: 51.64 | H72: 464.76
A73: AMILASA MANUAL | B73: SET | C73: 5 | D73: 0 | E73: 5 | F73: 0 | G73: 1,147.70 | H73: 0.00
A74: ANTI A | B74: FCO. | C74: 2 | D74: 30 | E74: 12 | F74: 20 | G74: 231.00 | H74: 4,620.00
A75: ANTI B | B75: FCO. | C75: 0 | D75: 30 | E75: 10 | F75: 20 | G75: 231.00 | H75: 4,620.00
A76: ANTI D | B76: FCO. | C76: 0 | D76: 40 | E76: 19 | F76: 21 | G76: 275.00 | H76: 5,775.00
A77: ANTI A-B | B77: FCO. | C77: 3 | D77: 0 | E77: 3 | F77: 0 | G77: 332.00 | H77: 0.00
A78: ANTI A-B-D | B78: SET | C78: 1 | D78: 0 | E78: 1 | F78: 0 | G78: 333.50 | H78: 0.00
A79: ANTI HUMANO COOMBS | B79: FCO. | C79: 5 | D79: 0 | E79: 5 | F79: 0 | G79: 840.00 | H79: 0.00
A80: ANTICUAGULANTE | B80: FCO. | C80: 32.0 | D80: 0 | E80: =C80+D80-F80 -> 32 | F80: 0 | G80: 170.00 | H80: 0.00
A81: ANTIGENO FEBRILES | B81: SET | C81: 2 | D81: 0 | E81: 2 | F81: 0 | G81: 2,950.00 | H81: 0.00
A82: APLICADORES MADERA | B82: CJA. | C82: 8 | D82: 20 | E82: 21 | F82: 7 | G82: 493.00 | H82: 3,451.00
A83: ASA BACTERIOLOGICA 0.001 | B83: UNID. | C83: 5 | D83: 0 | E83: 5 | F83: 0 | G83: 4,210.00 | H83: =F83*G83 -> 0.00
A84: ASA BACTERIOLOGICA 0.01 | B84: UNID. | C84: 3 | D84: 0 | E84: 2 | F84: 1 | G84: 4,210.00 | H84: 4,210.00
A85: ASO LATEX 150P | B85: SET | C85: 6 | D85: 0 | E85: 5 | F85: 1 | G85: 396.75 | H85: 396.75
A86: BAJANTE DE SANGRE | B86: UNID. | C86: 770 | D86: 0 | E86: 770 | F86: 0 | G86: 7.30 | H86: 0.00
A87: BECKMAN ALBUMINA | B87: SET | C87: 1 | D87: 0 | E87: 1 | F87: 0 | G87: 5,479.28 | H87: 0.00
A88: BECKMAN ALT | B88: SET | C88: 1 | D88: 0 | E88: 1 | F88: 0 | G88: 7,773.00 | H88: 0.00
A89: BECKMAN AMILASA | B89: CJA. | C89: 1 | D89: 0 | E89: 1 | F89: 0 | G89: 14,085.14 | H89: 0.00
A90: BECKMAN AST | B90: SET | C90: 1 | D90: 0 | E90: 1 | F90: 0 | G90: 7,874.75 | H90: 0.00
A91: BECKMAN BIL-DIRECTA | B91: SET | C91: 1 | D91: 0 | E91: 1 | F91: 0 | G91: 6,062.75 | H91: 0.00
A92: BECKMAN CK-MB | B92: SET | C92: 1 | D92: 0 | E92: 1 | F92: 0 | G92: 32,368.31 | H92: 0.00
A93: BECKMAN COPA ADULTO 2.0 ML | B93: FDA. | C93: 2 | D93: 0 | E93: 2 | F93: 0 | G93: 2,290.45 | H93: 0.00
A94: BECKMAN COPA PEDIATRICAS 0.5 ML | B94: FDA. | C94: 1 | D94: 0 | E94: 1 | F94: 0 | G94: 2,893.21 | H94: 0.00
A95: BECKMAN CREATININA | B95: SET | C95: 2 | D95: 0 | E95: 2 | F95: 0 | G95: 5,601.80 | H95: 0.00
A96: BECKMAN ELECTROLITE REFERENCE | B96: CJA. | C96: 1 | D96: 0 | E96: 1 | F96: 0 | G96: 6,001.98 | H96: 0.00
A97: BECKMAN GLUCOSA | B97: SET | C97: 1 | D97: 0 | E97: 1 | F97: 0 | G97: 9,028.92 | H97: 0.00
A98: BECKMAN HIERRO | B98: SET | C98: 1 | D98: 0 | E98: 1 | F98: 0 | G98: 12,409.93 | H98: 0.00
A99: BECKMAN PROTEINA TOTAL | B99: SET | C99: 1 | D99: 0 | E99: 1 | F99: 0 | G99: 6,974.00 | H99: 0.00
A100: BECKMAN WASH CONCENTRADO II | B100: CJA. | C100: 1 | D100: 0 | E100: 1 | F100: 0 | G100: 11,905.00 | H100: 0.00
A101: BFT-II CUBETAS COAGULACION | B101: CJA. | C101: 2 | D101: 0 | E101: 1 | F101: 1 | G101: 11,776.80 | H101: 11,776.80
A102: BILIRRUBINA MANUAL | B102: SET | C102: 2 | D102: 0 | E102: 2 | F102: 0 | G102: 1,708.80 | H102: 0.00
A103: BIO WRIGHT 1 | B103: GLN. | C103: 2 | D103: 0 | E103: 2 | F103: 0 | G103: 1,382.00 | H103: 0.00
A104: BIO WRIGHT 2 | B104: GLN. | C104: 1 | D104: 0 | E104: 1 | F104: 0 | G104: 1,382.00 | H104: 0.00
A105: BIO WRIGHT 3 | B105: GLN. | C105: 1 | D105: 0 | E105: 1 | F105: 0 | G105: 1,382.00 | H105: 0.00
A106: BOLSA COLECTORAS DE SANGRE | B106: UNID. | C106: 380 | D106: 0 | E106: 275 | F106: 105 | G106: 38.69 | H106: 4,062.45
A107: BOLSAS DE SANGRE DOBLES | B107: UNID. | C107: 40 | D107: 0 | E107: 40 | F107: 0 | G107: 240.00 | H107: 0.00
A108: CASSETTE CON TAPA BLANCO | B108: CJA. | C108: 0 | D108: 0 | E108: 0 | F108: 0 | G108: 3,980.00 | H108: 0.00
A109: CASSETTE CON TAPA COLORES | B109: CJA. | C109: 0 | D109: 0 | E109: 0 | F109: 0 | G109: 3,880.00 | H109: 0.00
A110: CAPSULA P/PRUEBA DE ALIENTO C/100 | B110: CJA. | C110: 0 | D110: 2 | E110: 1 | F110: 1 | G110: 104,000.00 | H110: 104,000.00
A111: GLOBO P/PUEBA DE ALIENTO | B111: CJA. | C111: 0 | D111: 0 | E111: 0 | F111: 0 | G111: 5,675.00 | H111: 0.00
A112: CIBA CORNING DESPROTEINIZANTE | B112: SET | C112: 1 | D112: 0 | E112: 1 | F112: 0 | G112: 1,800.00 | H112: 0.00
A113: CIBA CORNING MULTICALIBRADOR | B113: SET | C113: 1 | D113: 0 | E113: 1 | F113: 0 | G113: 8,800.00 | H113: 0.00
A114: CLIPS DE ALUMINIO P/ BOLSAS DE SANGRE | B114: CJA. | C114: 2 | D114: 0 | E114: 2 | F114: 0 | G114: 3,700.00 | H114: 0.00
A115: CLORURO DE CALCIO 15 ML | B115: FCO. | C115: 18 | D115: 0 | E115: 17 | F115: 1 | G115: 418.80 | H115: 418.80
A116: CLORURO DE SODIO 500G | B116: FCO. | C116: 4 | D116: 0 | E116: 3 | F116: 1 | G116: 2,485.00 | H116: 2,485.00
A117: COAGULASA PLASMA | B117: SET | C117: 1 | D117: 0 | E117: 0 | F117: 1 | G117: 3,180.00 | H117: 3,180.00
A118: CONTENEDOR D/BIOSEGURIDAD 3 L | B118: UNID. | C118: 5 | D118: 0 | E118: 5 | F118: 0 | G118: 1,400.00 | H118: 0.00
A119: CONTROL PARA COAGULACION | B119: FCO. | C119: 12 | D119: 0 | E119: 9 | F119: 3 | G119: 182.40 | H119: 547.20
A120: CONTROL EQAS | B120: SET | C120: 0 | D120: 0 | E120: 0 | F120: 0 | G120: 2,800.00 | H120: 0.00
A121: CORE ELISA IGM | B121: SET | C121: 0 | D121: 4 | E121: 3 | F121: 1 | G121: 9,818.00 | H121: 9,818.00
A122: CORE-HBC-AB TOTLA | B122: SET | C122: 0 | D122: 3 | E122: 3 | F122: 0 | G122: 9,818.00 | H122: 0.00
A123: CREATININA MANUAL | B123: SET | C123: 0 | D123: 0 | E123: 0 | F123: 0 | G123: 2,134.00 | H123: 0.00
A124: CREATININA MANUAL | B124: SET | C124: 1 | D124: 0 | E124: 1 | F124: 0 | G124: 317.40 | H124: 0.00
A125: CREATININA TECO | B125: SET | C125: 2 | D125: 0 | E125: 1 | F125: 1 | G125: 1,017.50 | H125: 1,017.50
A126: CUBRE OBJETO 22 X 22 (100UD) | B126: OZ | C126: 0 | D126: 50 | E126: 22 | F126: 28 | G126: 185.00 | H126: 5,180.00
A127: CUBRE OBJETO 22 X 40 | B127: OZ | C127: 0 | D127: 0 | E127: 0 | F127: 0 | G127: 185.00 | H127: 0.00
A128: CUBRE OBJETO 22 X 60 | B128: CJA. | C128: 0 | D128: 0 | E128: 0 | F128: 0 | G128: 185.00 | H128: 0.00
A129: CUBRE OBJETO 24 X 50 | B129: OZ | C129: 0 | D129: 0 | E129: 0 | F129: 0 | G129: 185.00 | H129: 0.00
A130: CUCHILLA P/MICROTOMO | B130: CJA. | C130: 0 | D130: 0 | E130: 0 | F130: 0 | G130: 12,150.00 | H130: 0.00
A131: CURITA REDONDA | B131: CJA. | C131: 41 | D131: 0 | E131: 8 | F131: 33.5 | G131: 145.00 | H131: 4,857.50
A132: DIMENSION ABS/ABSORBANCE | B132: SET | C132: 3 | D132: 0 | E132: 2 | F132: 1 | G132: 1,500.00 | H132: 1,500.00
A133: DIMENSION ACIDO URICO | B133: SET | C133: 1 | D133: 1 | E133: 2 | F133: 0 | G133: 8,700.00 | H133: 0.00
A134: DIMENSION ALBUMINA | B134: SET | C134: 2 | D134: 0 | E134: 1 | F134: 1 | G134: 8,700.00 | H134: 8,700.00
A135: DIMENSION ALT | B135: SET | C135: 4 | D135: 1 | E135: 2 | F135: 3 | G135: 4,350.00 | H135: 13,050.00
A136: DIMENSION ALP-FOSFATASA ALCALINA | B136: SET | C136: 3 | D136: 0 | E136: 3 | F136: 0 | G136: 6,530.00 | H136: 0.00
A137: DIMENSION AMILASA | B137: SET | C137: 2 | D137: 0 | E137: 2 | F137: 0 | G137: 5,250.00 | H137: 0.00
A138: DIMENSION AST/GOT | B138: SET | C138: 4 | D138: 1 | E138: 2 | F138: 3 | G138: 6,530.00 | H138: 19,590.00
A139: DIMENSION BILIRRUBINA DIRECTA | B139: SET | C139: 1 | D139: 1 | E139: 1 | F139: 1 | G139: 5,800.00 | H139: 5,800.00
A140: DIMENSION BILIRRUBINA TOTAL | B140: SET | C140: 3 | D140: 1 | E140: 4 | F140: 0 | G140: 8,700.00 | H140: 0.00
A141: DIMENSION CALCIO | B141: SET | C141: 2 | D141: 0 | E141: 1 | F141: 1 | G141: 8,700.00 | H141: 8,700.00
A142: DIMENSION CK | B142: SET | C142: 1 | D142: 0 | E142: 1 | F142: 0 | G142: 8,700.00 | H142: 0.00
A143: DIMENSION COLESTEROL | B143: SET | C143: 1 | D143: 0 | E143: -1 | F143: 2 | G143: 8,700.00 | H143: 17,400.00
A144: DIMENSION CREATININA | B144: SET | C144: 2 | D144: 1 | E144: =C144+D144-F144 -> 0 | F144: 3 | G144: 8,700.00 | H144: 26,100.00
A145: DIMENSION FOSFORO | B145: SET | C145: 1 | D145: 0 | E145: 1 | F145: 0 | G145: 9,902.50 | H145: 0.00
A146: DIMENSION HBA1C+CAL | B146: SET | C146: 0 | D146: 0 | E146: 0 | F146: 0 | G146: 18,000.00 | H146: 0.00
A147: DIMENSION HDL C DIRECTO | B147: SET | C147: 3 | D147: 0 | E147: 1 | F147: 2 | G147: 11,880.00 | H147: 23,760.00
A148: DIMENSION GLUCOSA | B148: SET | C148: 1 | D148: 1 | E148: 2 | F148: 0 | G148: 26,100.00 | H148: =F148*G148 -> 0.00
A149: DIMENSION LDH | B149: SET | C149: 0 | D149: 0 | E149: 0 | F149: 0 | G149: 9,902.50 | H149: 0.00
A150: DIMENSION LIPASA | B150: SET | C150: 1 | D150: 2 | E150: 2 | F150: 1 | G150: 2,178.00 | H150: 2,178.00
A151: DIMENSION PROTEINA TOTAL | B151: SET | C151: 1 | D151: 0 | E151: 0 | F151: 1 | G151: 8,700.00 | H151: 8,700.00
A152: DIMENSION PROTEINA EN ORINA-LCF/UCFP | B152: SET | C152: 1 | D152: 0 | E152: 1 | F152: 0 | G152: 1,450.00 | H152: 0.00
A153: DIMENSION TRIGLICERIDO | B153: SET | C153: 2 | D153: 1 | E153: 1 | F153: 2 | G153: 8,700.00 | H153: 17,400.00
A154: DIMENSION UREA/BUN | B154: SET | C154: 1 | D154: 1 | E154: 0 | F154: 2 | G154: 8,700.00 | H154: 17,400.00
A155: DS ACIDO NALIDIXICO | B155: FCO. | C155: 3 | D155: 0 | E155: 1 | F155: 2 | G155: 148.00 | H155: 296.00
A156: DS AMIKACINA | B156: FCO. | C156: 4 | D156: 0 | E156: 3 | F156: 1 | G156: 160.00 | H156: 160.00
A157: DS AMOXICILINA CON ACIDO CLAVULANICO | B157: FCO. | C157: 1 | D157: 5 | E157: 6 | F157: 0 | G157: 160.00 | H157: 0.00
A158: DS AMPICILINA | B158: FCO. | C158: 2 | D158: 0 | E158: 2 | F158: 0 | G158: 151.00 | H158: 0.00
A159: DS CEFEPIME | B159: FCO. | C159: 4 | D159: 0 | E159: 3 | F159: 1 | G159: 160.00 | H159: 160.00
A160: DS CEFOTAXIMA | B160: FCO. | C160: 2 | D160: 3 | E160: 2 | F160: 3 | G160: 160.00 | H160: 480.00
A161: DS CEFTAXIDIME | B161: FCO. | C161: 5 | D161: 0 | E161: 5 | F161: 0 | G161: 160.00 | H161: 0.00
A162: DS CEFUROXIME | B162: FCO. | C162: 7 | D162: 0 | E162: 7 | F162: 0 | G162: 160.00 | H162: 0.00
A163: DS CETRIAZONE | B163: FCO. | C163: 4 | D163: 0 | E163: 3 | F163: 1 | G163: 160.00 | H163: 160.00
A164: DS CIPROFLOXACINA | B164: FCO. | C164: 3 | D164: 0 | E164: 2 | F164: 1 | G164: 148.00 | H164: 148.00
A165: DS CLINDAMICINA | B165: FCO. | C165: 2 | D165: 0 | E165: 2 | F165: 0 | G165: 151.00 | H165: 0.00
A166: DS ERITROMICINA | B166: FCO. | C166: 3 | D166: 0 | E166: 3 | F166: 0 | G166: 160.00 | H166: 0.00
A167: DS FURADANTINA | B167: FCO. | C167: 1 | D167: 0 | E167: 1 | F167: 0 | G167: 148.00 | H167: 0.00
A168: DS GENTAMICINA | B168: FCO. | C168: 2 | D168: 4 | E168: 4 | F168: 2 | G168: 160.00 | H168: 320.00
A169: DS IMIPENEN | B169: FCO. | C169: 2 | D169: 0 | E169: 1 | F169: 1 | G169: 151.00 | H169: 151.00
A170: DS NITROFURADANTINA | B170: FCO. | C170: 0 | D170: 3 | E170: 2 | F170: 1 | G170: 151.00 | H170: 151.00
A171: DS LEVOFLOXACIN VOL. 50 | B171: UNID. | C171: 3 | D171: 0 | E171: 3 | F171: 0 | G171: 160.00 | H171: 0.00
A172: DS NORFLOXACIN | B172: FCO. | C172: 1 | D172: 3 | E172: 4 | F172: 0 | G172: 148.00 | H172: 0.00
A173: DS VANCOMYCINA | B173: FCO. | C173: 0 | D173: 3 | E173: 3 | F173: 0 | G173: 160.00 | H173: 0.00
A174: DS OXALACIN | B174: FCO. | C174: 1 | D174: 0 | E174: 1 | F174: 0 | G174: 120.00 | H174: 0.00
A175: DS OXIDASA | B175: FCO. | C175: 1 | D175: 0 | E175: 1 | F175: 0 | G175: 148.00 | H175: 0.00
A176: DS PIPERACILINA | B176: FCO. | C176: 3 | D176: 0 | E176: 3 | F176: 0 | G176: 160.00 | H176: 0.00
A177: DS TETRACICLINA | B177: FCO. | C177: 2 | D177: 0 | E177: 2 | F177: 0 | G177: 151.00 | H177: 0.00
A178: DS TOBRAMICINA | B178: FCO. | C178: 6 | D178: 0 | E178: 4 | F178: 2 | G178: 160.00 | H178: 320.00
A179: DS TRIMETROPIN SULFA | B179: FCO. | C179: 4 | D179: 0 | E179: 3 | F179: 1 | G179: 160.00 | H179: 160.00
A180: EASYLYTE MEDICA CALC.RINSE (CLEANING) | B180: SET | C180: 1 | D180: 0 | E180: 1 | F180: 0 | G180: 2,304.00 | H180: 0.00
A181: EASYLYTE MEDICA NA/K/CL 400 ML | B181: SET | C181: 3 | D181: 2 | E181: 2 | F181: 3 | G181: 13,650.00 | H181: 40,950.00
A182: EASYLYTE PAPEL BTS 2x3 | B182: UNID. | C182: 2 | D182: 5 | E182: 7 | F182: 0 | G182: 157.20 | H182: 0.00
A183: ELERMEYER 2000 ML | B183: UNID. | C183: 2 | D183: 0 | E183: 2 | F183: 0 | G183: 1,750.00 | H183: 0.00
A184: ENVASES ESTERILES 100/1 | B184: CJA. | C184: 13 | D184: 2 | E184: 5 | F184: 10 | G184: 1,300.00 | H184: 13,000.00
A185: ESCOBILLAS P/LAVAR TUBOS PEQUEÑA | B185: UNID. | C185: 10 | D185: 0 | E185: 10 | F185: 0 | G185: 60.00 | H185: 0.00
A186: FACTOR REUMATOIDE | B186: SET | C186: 3 | D186: 0 | E186: 3 | F186: 0 | G186: 1,606.80 | H186: 0.00
A187: FACTOR REUMATOIDE | B187: SET | C187: 2 | D187: 0 | E187: 2 | F187: 0 | G187: 398.40 | H187: 0.00
A188: FIBRINOGENO | B188: FCO. | C188: 2 | D188: 0 | E188: 2 | F188: 0 | G188: 2,925.60 | H188: 0.00
A189: FRASCO DE 60ML | B189: UNID. | C189: 100 | D189: 0 | E189: 100 | F189: 0 | G189: 8.60 | H189: 0.00
A190: FRASCO HEMOCULTIVO ADULTO | B190: UNID. | C190: 100 | D190: 0 | E190: 70 | F190: 30 | G190: 155.00 | H190: 4,650.00
A191: FRASCO HEMOCULTIVO PEDIATRICO | B191: UNID. | C191: 130 | D191: 0 | E191: 70 | F191: 60 | G191: 130.00 | H191: 7,800.00
A192: FRASCOS P/ CITOLOGIA | B192: PAQ. | C192: 2 | D192: 0 | E192: 2 | F192: 0 | G192: 950.00 | H192: 0.00
A193: FRASCOS P/COPROLOGICOS | B193: UNID. | C193: 5,000 | D193: 5000 | E193: 10,000 | F193: 0 | G193: 5.90 | H193: 0.00
A194: FUSINA | B194: FCO. | C194: 0 | D194: 0 | E194: 0 | F194: 0 | G194: 6,500.00 | H194: 0.00
A195: GASA | B195: ROLLO | C195: 0 | D195: 0 | E195: 0 | F195: 0 | G195: 925.00 | H195: 0.00
A196: GASA | B196: PAQ. | C196: 26 | D196: 0 | E196: 21 | F196: 5 | G196: 366.85 | H196: 1,834.25
A197: GLUCOLA | B197: FCO. | C197: 3 | D197: 34 | E197: 25 | F197: 12 | G197: 203.50 | H197: 2,442.00
A198: GLUCOSA LIQUIDA 300P Q.C.A | B198: SET | C198: 2 | D198: 0 | E198: 1 | F198: 1 | G198: 1,530.10 | H198: 1,530.10
A199: GLUCOSA MANUAL | B199: SET | C199: 3 | D199: 4 | E199: 7 | F199: 0 | G199: 2,272.00 | H199: 0.00
A200: GOTEROS PLASTICO | B200: CJA. | C200: 2 | D200: 7 | E200: 5 | F200: 4 | G200: 850.00 | H200: 3,400.00
A201: GUANTES | B201: CJA. | C201: 15 | D201: 0 | E201: 13 | F201: 2 | G201: 380.00 | H201: 760.00
A202: GUANTES | B202: CJA. | C202: 6 | E202: 6 | F202: 0 | G202: 340.00 | H202: 0.00
A203: GUANTES M-L-S | B203: CJA. | C203: 51 | D203: 0 | E203: 7 | F203: 44 | G203: 177.16 | H203: 7,795.04
A204: HBSAG ELISA BIOKIT 480T | B204: SET | C204: 0 | D204: 4 | E204: 2 | F204: 2 | G204: 36,000.00 | H204: 72,000.00
... 173 more rows

Sheet INV. junio MSP)
A4: República Dominicana
A5: Ministerio de Salud Pública y Asistencia Social
A6: Informe Mensual de Almacén General, Despensa y Medicina
A7: ALMACEN | B7: LABORATORIO
A8: ESTABLECIMIENTO | B8: CENTRO DE GASTROENTEROLOGIA | E8: REGION | F8: 0
A9: AREA DE SALUD | E9: MES | F9: JUNIO | G9: AÑO | H9: 2012
A11: ARTICULO | B11: UNIDAD | C11: EXISTENCIA ANTERIOR | D11: ENTRADA | E11: EXISTENCIA | F11: TOTAL CONSUMIDOS (3+4)-5 | G11: VALOR UNITARIO | H11: VALOR TOTAL
C12: ANTERIOR | E12: FINAL | F12: CONSUMIDO | G12: UNITARIO | H12: TOTAL
A13: -1- | C13: 3 | D13: -4- | E13: -5- | F13: (3+4)-5 | G13: -7- | H13: (6X7)
A14: ABX CONTROL HEMATOLOGICO 3/1 | B14: SET | C14: 2 | D14: 1 | E14: =C14+D14-F14 -> 3 | F14: 0 | G14: 10,143.00 | H14: =F14*G14 -> 0.00
A15: ABX MINOLYSE | B15: FCO. | C15: 4 | D15: 5 | E15: =C15+D15-F15 -> 6 | F15: 3 | G15: 20,481.00 | H15: =F15*G15 -> 61,443.00
A16: ABX MINOTON | B16: CJA. | C16: 7 | D16: 5 | E16: =C16+D16-F16 -> 7 | F16: 5 | G16: 15,130.00 | H16: 75,650.00
A17: ABXPENTRA ACIDO URICO | B17: FCO. | C17: 2 | D17: 1 | E17: 0 | F17: 3 | G17: 8,132.00 | H17: 24,396.00
A18: ABXPENTRA ALBUMINA | B18: FCO. | C18: 1 | D18: 0 | E18: 1 | F18: 0 | G18: 12,456.00 | H18: 0.00
A19: ABXPENTRA ALP | B19: FCO. | C19: 0 | D19: 1 | E19: 0 | F19: 1 | G19: 4,620.00 | H19: 4,620.00
A20: ABXPENTRA ALT | B20: FCO. | C20: 1 | D20: 1 | E20: 0 | F20: 2 | G20: 8,000.00 | H20: 16,000.00
A21: ABXPENTRA AMILASA | B21: FCO. | C21: 1 | D21: 0 | E21: 0 | F21: 1 | G21: 4,000.00 | H21: 4,000.00
A22: ABXPENTRA AST | B22: FCO. | C22: 4 | D22: 1 | E22: 3 | F22: 2 | G22: 9,240.00 | H22: 18,480.00
A23: ABXPENTRA BILIRRUBINA DIRECTA | B23: FCO. | C23: 0 | D23: 2 | E23: 0 | F23: 2 | G23: 3,696.00 | H23: 7,392.00
A24: ABXPENTRA BILIRRUBINA TOTAL | B24: FCO. | C24: 0 | D24: 2 | E24: 0 | F24: 2 | G24: 6,400.00 | H24: 12,800.00
A25: ABXPENTRA CALCIO | B25: FCO. | C25: 1 | D25: 0 | E25: 1 | F25: 0 | G25: 9,240.00 | H25: 0.00
A26: ABXPENTRA COLESTEROL | B26: FCO. | C26: 5 | D26: 1 | E26: 5 | F26: 1 | G26: 12,416.00 | H26: 12,416.00
A27: ABXPENTRA CREATININA | B27: FCO. | C27: 5 | D27: 2 | E27: 6 | F27: 1 | G27: 4,436.00 | H27: 4,436.00
A28: ABXPENTRA DESPROTEINIZANTE | B28: FCO. | C28: 1 | D28: 0 | E28: 0 | F28: 1 | G28: 2,500.00 | H28: 2,500.00
A29: ABXPENTRA FOSFORO | B29: FCO. | C29: 2 | D29: 0 | E29: 0 | F29: 2 | G29: 3,696.00 | H29: 7,392.00
A30: ABXPENTRA GGT | B30: FCO. | C30: 2 | D30: 1 | E30: 2 | F30: 1 | G30: 9,240.00 | H30: 9,240.00
A31: ABXPENTRA GLUCOSA | B31: FCO. | C31: 3 | D31: 0 | E31: 1 | F31: 2 | G31: 10,688.00 | H31: 21,376.00
A32: ABXPENTRA HDL | B32: FCO. | C32: 4 | D32: 0 | E32: 3 | F32: 1 | G32: 7,680.00 | H32: 7,680.00
A33: ABXPENTRA LDH | B33: FCO. | C33: 3 | D33: 0 | E33: 2 | F33: 1 | G33: 4,000.00 | H33: 4,000.00
A34: ABXPENTRA LIPASA | B34: FCO. | C34: 4 | D34: 0 | E34: 3 | F34: 1 | G34: 3,200.00 | H34: 3,200.00
A35: ABXPENTRA PROTEINA TOTAL | B35: FCO. | C35: 1 | D35: 1 | E35: 0 | F35: 2 | G35: 11,088.00 | H35: 22,176.00
A36: ABXPENTRA TRIGLICERIDO | B36: FCO. | C36: 1 | D36: 2 | E36: 2 | F36: 1 | G36: 12,344.00 | H36: 12,344.00
A37: ABXPENTRA UREA/BUN | B37: FCO. | C37: 6 | D37: 3 | E37: 8 | F37: 1 | G37: 8,132.00 | H37: 8,132.00
A38: ACEITE DE INMERSION | B38: FCO. | C38: 1 | D38: 0 | E38: 1 | F38: 0 | G38: 1,380.00 | H38: 0.00
A39: ACETONA | B39: GLN. | C39: 0 | D39: 0 | E39: 0 | F39: 0 | G39: 950.00 | H39: 0.00
A40: ACIDO URICO MANUAL | B40: SET | C40: 3 | D40: 0 | E40: 3 | F40: 0 | G40: 2,780.00 | H40: 0.00
A41: ACIDO URICO MANUAL | B41: SET | C41: 3 | D41: 0 | E41: 3 | F41: 0 | G41: 522.00 | H41: 0.00
A42: ACIDO ACETICO GLACIAL | B42: GLN. | C42: 0 | D42: 0 | E42: 0 | F42: 0 | G42: 3,550.00 | H42: 0.00
A43: ACL DILUYENTE FACTORES 100ML | B43: FCO. | C43: 3 | D43: 0 | E43: 3 | F43: 0 | G43: 744.00 | H43: 0.00
A44: ACL HIGH ABNORMAL CONT 10X1ML | B44: CJA. | C44: 3 | D44: 0 | E44: 2 | F44: 1 | G44: 3,060.00 | H44: 3,060.00
A45: ACL. WASH EMULSION | B45: FCO. | C45: 1 | D45: 4 | E45: 4 | F45: 1 | G45: 778.80 | H45: 778.80
A46: ACL. APTT. 5+5X5X8 | B46: CJA. | C46: 5 | D46: 0 | E46: 4 | F46: 1 | G46: 3,646.80 | H46: 3,646.80
A47: ACL CALIBRADOR PLASMA | B47: CJA. | C47: 4 | D47: 0 | E47: =C47+D47-F47 -> 3 | F47: 1 | G47: 3,541.20 | H47: 3,541.20
A48: ACL. CLEANING SOLUTION 500ML | B48: SET | C48: 3 | D48: 0 | E48: 3 | F48: 0 | G48: 2,100.00 | H48: 0.00
A49: ACL. COPAS 0.5ML C/1000 | B49: CJA. | C49: 1 | D49: 0 | E49: 1 | F49: 0 | G49: 2,097.60 | H49: 0.00
A50: ACL. COPAS 2ML 1000/PK | B50: CJA. | C50: 1 | D50: 0 | E50: 1 | F50: 0 | G50: 4,702.80 | H50: 0.00
A51: ACL. LOW ABNORMAL CONT. 10X1ML | B51: SET | C51: 3 | D51: 0 | E51: 3 | F51: 0 | G51: 2,799.60 | H51: 0.00
A52: ACL. PLASMA CONTROL NORM 10X1ML | B52: CJA. | C52: 2 | D52: 2 | E52: 3 | F52: 1 | G52: 2,704.80 | H52: 2,704.80
A53: ACL. PT RGT-FIBRINOGENO 5+5X8ML | B53: CJA. | C53: 3 | D53: 3 | E53: 4 | F53: 2 | G53: 4,177.20 | H53: 8,354.40
A54: ACL. ROTORES C/100 | B54: CJA. | C54: 3 | D54: 2 | E54: 4 | F54: 1 | G54: 9,004.80 | H54: 9,004.80
A55: AGAR CITRATO DE SIMMONS | B55: FCO. | C55: 1 | D55: 1 | E55: 1 | F55: 1 | G55: 1,650.00 | H55: 1,650.00
A56: AGAR MACCONKEY | B56: FCO. | C56: 2 | D56: 2 | E56: 4 | F56: 0 | G56: 2,820.00 | H56: 0.00
A57: AGAR MANITOL SALT | B57: FCO. | C57: 1 | D57: 3 | E57: 3 | F57: 1 | G57: 2,325.00 | H57: 2,325.00
A58: AGAR MULLER HILTON | B58: FCO. | C58: 2 | D58: 3 | E58: 3 | F58: 2 | G58: 2,985.00 | H58: 5,970.00
A59: AGAR SABOURAUD CON CLORANFENICOL | B59: FCO. | C59: 0 | D59: 1 | E59: 1 | F59: 0 | G59: 4,890.00 | H59: 0.00
A60: AGAR SALMONELLA SCHIGUELLA | B60: FCO. | C60: 1 | D60: 0 | E60: 1 | F60: 0 | G60: 4,871.00 | H60: 0.00
A61: AGAR SIM MIDIWM | B61: FCO. | C61: 0 | D61: 1 | E61: 0 | F61: 1 | G61: 2,849.00 | H61: 2,849.00
A62: AGAR TIOGLICOLATE | B62: FCO. | C62: 0 | D62: 1 | E62: 0 | F62: 1 | G62: 3,360.00 | H62: 3,360.00
A63: AGAR TRIPLE SUGAR IRON | B63: FCO. | C63: 1 | D63: 0 | E63: 1 | F63: 0 | G63: 3,575.00 | H63: 0.00
A64: AGAR TSA TRICTICASA SUGAR | B64: FCO. | C64: 1 | D64: 0 | E64: 1 | F64: 0 | G64: 3,650.00 | H64: 0.00
A65: AGUA BIDESTILADA | B65: GLN. | C65: 77 | D65: 100 | E65: 104 | F65: 73 | G65: 95.00 | H65: 6,935.00
A66: AGUJA P/VACUTANIER | B66: CJA. | C66: 0 | D66: 0 | E66: 0 | F66: 0 | G66: 950.00 | H66: 0.00
A67: AHBC ELISA-CORE | B67: SET | C67: 1 | D67: 0 | E67: 1 | F67: 0 | G67: 10,238.40 | H67: 0.00
A68: ALBUMINA BOVINA 22% | B68: FCO. | C68: 5 | D68: 0 | E68: 3 | F68: 2 | G68: 485.00 | H68: 970.00
A69: ALCOHOL ABSOLUTO --ETANOL | B69: GLN. | C69: 0 | D69: 0 | E69: 0 | F69: 0 | G69: 3,526.00 | H69: 0.00
A70: ALCOHOL ETILICO 95% | B70: GLN. | C70: 0 | D70: 0 | E70: 0 | F70: 0 | G70: 2,384.00 | H70: 0.00
A71: ALCOHOL ISOPROPILICO 70 | B71: GLN. | C71: 6 | D71: 10 | E71: 11 | F71: 5 | G71: 293.25 | H71: 1,466.25
A72: ALCOHOL ISOPROPILICO 70% | B72: GLN. | C72: 4 | D72: 10 | E72: 14 | F72: 0 | G72: 380.00 | H72: 0.00
A73: ALCOHOL PROPANO (PROPANOL II) | B73: GLN. | C73: 0 | D73: 0 | E73: 0 | F73: 0 | G73: 2,650.00 | H73: 0.00
A74: ALGODON | B74: ROLLO | C74: 23 | D74: 20 | E74: 32 | F74: 11 | G74: 51.64 | H74: 568.04
A75: AMILASA MANUAL | B75: SET | C75: 5 | D75: 0 | E75: 5 | F75: 0 | G75: 1,147.70 | H75: 0.00
A76: ANTI A | B76: FCO. | C76: 12 | D76: 0 | E76: 0 | F76: 12 | G76: 231.00 | H76: 2,772.00
A77: ANTI B | B77: FCO. | C77: 12 | D77: 0 | E77: 0 | F77: 12 | G77: 231.00 | H77: 2,772.00
A78: ANTI D | B78: FCO. | C78: 19 | D78: 0 | E78: 7 | F78: 12 | G78: 275.00 | H78: 3,300.00
A79: ANTI A-B | B79: FCO. | C79: 3 | D79: 0 | E79: 3 | F79: 0 | G79: 332.00 | H79: 0.00
A80: ANTI A-B-D | B80: SET | C80: 1 | D80: 0 | E80: =C80+D80-F80 -> 0 | F80: 1 | G80: 333.50 | H80: 333.50
A81: ANTI HUMANO COOMBS | B81: FCO. | C81: 5 | D81: 0 | E81: 3 | F81: 2 | G81: 840.00 | H81: =F81*G81 -> 1,680.00
A82: ANTICUAGULANTE | B82: FCO. | C82: 32.0 | D82: 0 | E82: 32 | F82: 0 | G82: 170.00 | H82: 0.00
A83: ANTIGENO FEBRILES | B83: SET | C83: 2 | D83: 0 | E83: 2 | F83: 0 | G83: 2,950.00 | H83: 0.00
A84: APLICADORES MADERA | B84: CJA. | C84: 8 | D84: 0 | E84: 0 | F84: 8 | G84: 493.00 | H84: 3,944.00
A85: ASA BACTERIOLOGICA 0.001 | B85: UNID. | C85: 5 | D85: 0 | E85: 5 | F85: 0 | G85: 4,210.00 | H85: 0.00
A86: ASA BACTERIOLOGICA 0.01 | B86: UNID. | C86: 2 | D86: 0 | E86: 2 | F86: 0 | G86: 4,210.00 | H86: 0.00
A87: ASO LATEX 150P | B87: SET | C87: 5 | D87: 0 | E87: 4 | F87: 1 | G87: 396.75 | H87: 396.75
A88: BAJANTE DE SANGRE | B88: UNID. | C88: 770 | D88: 0 | E88: 770 | F88: 0 | G88: 7.30 | H88: 0.00
A89: BECKMAN ALBUMINA | B89: SET | C89: 1 | D89: 0 | E89: 1 | F89: 0 | G89: 5,479.28 | H89: 0.00
A90: BECKMAN ALT | B90: SET | C90: 1 | D90: 0 | E90: 1 | F90: 0 | G90: 7,773.00 | H90: 0.00
A91: BECKMAN AMILASA | B91: CJA. | C91: 1 | D91: 0 | E91: 1 | F91: 0 | G91: 14,085.14 | H91: 0.00
A92: BECKMAN AST | B92: SET | C92: 1 | D92: 0 | E92: 1 | F92: 0 | G92: 7,874.75 | H92: 0.00
A93: BECKMAN BIL-DIRECTA | B93: SET | C93: 1 | D93: 0 | E93: 1 | F93: 0 | G93: 6,062.75 | H93: 0.00
A94: BECKMAN CK-MB | B94: SET | C94: 1 | D94: 0 | E94: 1 | F94: 0 | G94: 32,368.31 | H94: 0.00
A95: BECKMAN COPA ADULTO 2.0 ML | B95: FDA. | C95: 2 | D95: 0 | E95: 2 | F95: 0 | G95: 2,290.45 | H95: 0.00
A96: BECKMAN COPA PEDIATRICAS 0.5 ML | B96: FDA. | C96: 1 | D96: 0 | E96: 1 | F96: 0 | G96: 2,893.21 | H96: 0.00
A97: BECKMAN CREATININA | B97: SET | C97: 2 | D97: 0 | E97: 2 | F97: 0 | G97: 5,601.80 | H97: 0.00
A98: BECKMAN ELECTROLITE REFERENCE | B98: CJA. | C98: 1 | D98: 0 | E98: 1 | F98: 0 | G98: 6,001.98 | H98: 0.00
A99: BECKMAN GLUCOSA | B99: SET | C99: 1 | D99: 0 | E99: 1 | F99: 0 | G99: 9,028.92 | H99: 0.00
A100: BECKMAN HIERRO | B100: SET | C100: 1 | D100: 0 | E100: 1 | F100: 0 | G100: 12,409.93 | H100: 0.00
A101: BECKMAN PROTEINA TOTAL | B101: SET | C101: 1 | D101: 0 | E101: 1 | F101: 0 | G101: 6,974.00 | H101: 0.00
A102: BECKMAN WASH CONCENTRADO II | B102: CJA. | C102: 1 | D102: 0 | E102: 1 | F102: 0 | G102: 11,905.00 | H102: 0.00
A103: BFT-II CUBETAS COAGULACION | B103: CJA. | C103: 1 | D103: 0 | E103: 0 | F103: 1 | G103: 11,776.80 | H103: 11,776.80
A104: BILIRRUBINA MANUAL | B104: SET | C104: 2 | D104: 0 | E104: 2 | F104: 0 | G104: 1,708.80 | H104: 0.00
A105: BIO WRIGHT 1 | B105: GLN. | C105: 2 | D105: 0 | E105: 2 | F105: 0 | G105: 1,382.00 | H105: 0.00
A106: BIO WRIGHT 2 | B106: GLN. | C106: 1 | D106: 0 | E106: 1 | F106: 0 | G106: 1,382.00 | H106: 0.00
A107: BIO WRIGHT 3 | B107: GLN. | C107: 1 | D107: 0 | E107: 1 | F107: 0 | G107: 1,382.00 | H107: 0.00
A108: BOLSA COLECTORAS DE SANGRE | B108: UNID. | C108: 275 | D108: 0 | E108: 255 | F108: 20 | G108: 38.69 | H108: 773.80
A109: BOLSAS DE SANGRE DOBLES | B109: UNID. | C109: 40 | D109: 0 | E109: 20 | F109: 20 | G109: 240.00 | H109: 4,800.00
A110: CASSETTE CON TAPA BLANCO | B110: CJA. | C110: 0 | D110: 0 | E110: 0 | F110: 0 | G110: 3,980.00 | H110: 0.00
A111: CASSETTE CON TAPA COLORES | B111: CJA. | C111: 0 | D111: 0 | E111: 0 | F111: 0 | G111: 3,880.00 | H111: 0.00
A112: CAPSULA P/PRUEBA DE ALIENTO C/100 | B112: CJA. | C112: 1 | D112: 0 | E112: 1 | F112: 0 | G112: 104,000.00 | H112: 0.00
A113: CAMARA NEW BAWEN | B113: UNID. | C113: 0 | D113: 1 | E113: 0 | F113: 1 | G113: 3,680.00 | H113: 3,680.00
A114: GLOBO P/PUEBA DE ALIENTO | B114: CJA. | C114: 1 | D114: 0 | E114: 0 | F114: 1 | G114: 5,675.00 | H114: 5,675.00
A115: CIBA CORNING DESPROTEINIZANTE | B115: SET | C115: 1 | D115: 0 | E115: 1 | F115: 0 | G115: 1,800.00 | H115: 0.00
A116: CIBA CORNING MULTICALIBRADOR | B116: SET | C116: 1 | D116: 0 | E116: 1 | F116: 0 | G116: 8,800.00 | H116: 0.00
A117: CIBA CORNING PAPEL | B117: ROLLO | C117: 15 | D117: 0 | E117: 10 | F117: 5 | G117: 144.00 | H117: 720.00
A118: CLIPS DE ALUMINIO P/ BOLSAS DE SANGRE | B118: CJA. | C118: 2 | D118: 0 | E118: 2 | F118: 0 | G118: 3,700.00 | H118: 0.00
A119: CLORURO DE CALCIO 15 ML | B119: FCO. | C119: 17 | D119: 0 | E119: 16 | F119: 1 | G119: 418.80 | H119: 418.80
A120: CLORURO DE SODIO 500G | B120: FCO. | C120: 3 | D120: 0 | E120: 2 | F120: 1 | G120: 2,485.00 | H120: 2,485.00
A121: COAGULASA PLASMA | B121: SET | C121: 0 | D121: 0 | E121: 0 | F121: 0 | G121: 3,180.00 | H121: 0.00
A122: CONTENEDOR D/BIOSEGURIDAD 3 L | B122: UNID. | C122: 5 | D122: 0 | E122: 5 | F122: 0 | G122: 1,400.00 | H122: 0.00
A123: CONTROL PARA COAGULACION | B123: FCO. | C123: 9 | D123: 0 | E123: 7 | F123: 2 | G123: 182.40 | H123: 364.80
A124: CONTROL EQAS | B124: SET | C124: 1 | D124: 0 | E124: 1 | F124: 0 | G124: 2,800.00 | H124: 0.00
A125: CORE ELISA IGM | B125: SET | C125: 3 | D125: 1 | E125: 3 | F125: 1 | G125: 9,818.00 | H125: 9,818.00
A126: CORE-HBC-AB TOTLA | B126: SET | C126: 0 | D126: 1 | E126: 0 | F126: 1 | G126: 9,818.00 | H126: 9,818.00
A127: CREATININA MANUAL | B127: SET | C127: 0 | D127: 2 | E127: 0 | F127: 2 | G127: 2,134.00 | H127: 4,268.00
A128: CREATININA MANUAL | B128: SET | C128: 1 | D128: 0 | E128: 1 | F128: 0 | G128: 317.40 | H128: 0.00
A129: CREATININA TECO | B129: SET | C129: 1 | D129: 0 | E129: 1 | F129: 0 | G129: 1,017.50 | H129: 0.00
A130: CUBRE OBJETO 22 X 22 (100UD) | B130: OZ | C130: 22 | D130: 40 | E130: 33 | F130: 29 | G130: 185.00 | H130: 5,365.00
A131: CUBRE OBJETO 22 X 40 | B131: OZ | C131: 0 | D131: 0 | E131: 0 | F131: 0 | G131: 185.00 | H131: 0.00
A132: CUBRE OBJETO 22 X 60 | B132: CJA. | C132: 0 | D132: 0 | E132: 0 | F132: 0 | G132: 185.00 | H132: 0.00
A133: CUBRE OBJETO 24 X 50 | B133: OZ | C133: 0 | D133: 0 | E133: 0 | F133: 0 | G133: 185.00 | H133: 0.00
A134: CUCHILLA P/MICROTOMO | B134: CJA. | C134: 0 | D134: 0 | E134: 0 | F134: 0 | G134: 12,150.00 | H134: 0.00
A135: CURITA REDONDA | B135: CJA. | C135: 8 | D135: 100 | E135: 78 | F135: 30 | G135: 145.00 | H135: 4,350.00
A136: DIMENSION ABS/ABSORBANCE | B136: SET | C136: 2 | D136: 0 | E136: 2 | F136: 0 | G136: 1,500.00 | H136: 0.00
A137: DIMENSION ACIDO URICO | B137: SET | C137: 2 | D137: 0 | E137: 1 | F137: 1 | G137: 8,700.00 | H137: 8,700.00
A138: DIMENSION ALBUMINA | B138: SET | C138: 2 | D138: 0 | E138: 1 | F138: 1 | G138: 8,700.00 | H138: 8,700.00
A139: DIMENSION ALT | B139: SET | C139: 2 | D139: 3 | E139: 1 | F139: 4 | G139: 4,350.00 | H139: 17,400.00
A140: DIMENSION ALP-FOSFATASA ALCALINA | B140: SET | C140: 3 | D140: 0 | E140: 2 | F140: 1 | G140: 6,530.00 | H140: 6,530.00
A141: DIMENSION AMILASA | B141: SET | C141: 2 | D141: 0 | E141: 2 | F141: 0 | G141: 5,250.00 | H141: 0.00
A142: DIMENSION AST/GOT | B142: SET | C142: 2 | D142: 3 | E142: 3 | F142: 2 | G142: 6,530.00 | H142: 13,060.00
A143: DIMENSION BILIRRUBINA DIRECTA | B143: SET | C143: 1 | D143: 2 | E143: 1 | F143: 2 | G143: 5,800.00 | H143: 11,600.00
A144: DIMENSION BILIRRUBINA TOTAL | B144: SET | C144: 4 | D144: 0 | E144: =C144+D144-F144 -> 2 | F144: 2 | G144: 8,700.00 | H144: 17,400.00
A145: DIMENSION CALCIO | B145: SET | C145: 1 | D145: 0 | E145: 0 | F145: 1 | G145: 8,700.00 | H145: 8,700.00
A146: DIMENSION CK | B146: SET | C146: 1 | D146: 0 | E146: 1 | F146: 0 | G146: 8,700.00 | H146: 0.00
A147: DIMENSION COLESTEROL | B147: SET | C147: 0 | D147: 2 | E147: 0 | F147: 2 | G147: 8,700.00 | H147: =F147*G147 -> 17,400.00
A148: DIMENSION CREATININA | B148: SET | C148: 0 | D148: 2 | E148: 0 | F148: 2 | G148: 8,700.00 | H148: 17,400.00
A149: DIMENSION FOSFORO | B149: SET | C149: 1 | D149: 0 | E149: 1 | F149: 0 | G149: 9,902.50 | H149: 0.00
A150: DIMENSION HBA1C+CAL | B150: SET | C150: 0 | D150: 2 | E150: 1 | F150: 1 | G150: 18,000.00 | H150: 18,000.00
A151: DIMENSION HDL C DIRECTO | B151: SET | C151: 1 | D151: 2 | E151: 2 | F151: 1 | G151: 11,880.00 | H151: 11,880.00
A152: DIMENSION GLUCOSA | B152: SET | C152: 2 | D152: 2 | E152: 2 | F152: 2 | G152: 26,100.00 | H152: 52,200.00
A153: DIMENSION LDH | B153: SET | C153: 0 | D153: 0 | E153: 0 | F153: 0 | G153: 9,902.50 | H153: 0.00
A154: DIMENSION LIPASA | B154: SET | C154: 2 | D154: 1 | E154: 1 | F154: 2 | G154: 2,178.00 | H154: 4,356.00
A155: DIMENSION PROTEINA TOTAL | B155: SET | C155: 0 | D155: 1 | E155: 1 | F155: 0 | G155: 8,700.00 | H155: 0.00
A156: DIMENSION PROTEINA EN ORINA-LCF/UCFP | B156: SET | C156: 1 | D156: 0 | E156: 1 | F156: 0 | G156: 1,450.00 | H156: 0.00
A157: DIMENSION TRIGLICERIDO | B157: SET | C157: 1 | D157: 2 | E157: 1 | F157: 2 | G157: 8,700.00 | H157: 17,400.00
A158: DIMENSION UREA/BUN | B158: SET | C158: 0 | D158: 2 | E158: 0 | F158: 2 | G158: 8,700.00 | H158: 17,400.00
A159: DS ACIDO NALIDIXICO | B159: FCO. | C159: 1 | D159: 0 | E159: 0 | F159: 1 | G159: 148.00 | H159: 148.00
A160: DS AMIKACINA | B160: FCO. | C160: 3 | D160: 3 | E160: 6 | F160: 0 | G160: 160.00 | H160: 0.00
A161: DS AMOXICILINA CON ACIDO CLAVULANICO | B161: FCO. | C161: 6 | D161: 3 | E161: 8 | F161: 1 | G161: 160.00 | H161: 160.00
A162: DS AMPICILINA | B162: FCO. | C162: 2 | D162: 3 | E162: 5 | F162: 0 | G162: 151.00 | H162: 0.00
A163: DS CEFEPIME | B163: FCO. | C163: 3 | D163: 0 | E163: 2 | F163: 1 | G163: 160.00 | H163: 160.00
A164: DS CEFOTAXIMA | B164: FCO. | C164: 2 | D164: 3 | E164: 4 | F164: 1 | G164: 160.00 | H164: 160.00
A165: DS CEFTAXIDIME | B165: FCO. | C165: 5 | D165: 4 | E165: 9 | F165: 0 | G165: 160.00 | H165: 0.00
A166: DS CEFUROXIME | B166: FCO. | C166: 7 | D166: 3 | E166: 9 | F166: 1 | G166: 160.00 | H166: 160.00
A167: DS CETRIAZONE | B167: FCO. | C167: 3 | D167: 0 | E167: 2 | F167: 1 | G167: 160.00 | H167: 160.00
A168: DS CIPROFLOXACINA | B168: FCO. | C168: 2 | D168: 0 | E168: 1 | F168: 1 | G168: 148.00 | H168: 148.00
A169: DS CLINDAMICINA | B169: FCO. | C169: 2 | D169: 0 | E169: 2 | F169: 0 | G169: 151.00 | H169: 0.00
A170: DS ERITROMICINA | B170: FCO. | C170: 3 | D170: 3 | E170: 6 | F170: 0 | G170: 160.00 | H170: 0.00
A171: DS FURADANTINA | B171: FCO. | C171: 1 | D171: 0 | E171: 1 | F171: 0 | G171: 148.00 | H171: 0.00
A172: DS GENTAMICINA | B172: FCO. | C172: 4 | D172: 4 | E172: 5 | F172: 3 | G172: 160.00 | H172: 480.00
A173: DS IMIPENEN | B173: FCO. | C173: 1 | D173: 0 | E173: 0 | F173: 1 | G173: 151.00 | H173: 151.00
A174: DS NITROFURADANTINA | B174: FCO. | C174: 2 | D174: 4 | E174: 6 | F174: 0 | G174: 151.00 | H174: 0.00
A175: DS LEVOFLOXACIN VOL. 50 | B175: UNID. | C175: 3 | D175: 4 | E175: 6 | F175: 1 | G175: 160.00 | H175: 160.00
A176: DS NORFLOXACIN | B176: FCO. | C176: 4 | D176: 3 | E176: 6 | F176: 1 | G176: 148.00 | H176: 148.00
A177: DS VANCOMYCINA | B177: FCO. | C177: 3 | D177: 4 | E177: 7 | F177: 0 | G177: 160.00 | H177: 0.00
A178: DS OXALACIN | B178: FCO. | C178: 1 | D178: 4 | E178: 4 | F178: 1 | G178: 160.00 | H178: 160.00
A179: DS OXIDASA | B179: FCO. | C179: 1 | D179: 0 | E179: 1 | F179: 0 | G179: 160.00 | H179: 0.00
A180: DS PENINCILINA | B180: FCO. | C180: 0 | D180: 3 | E180: 1 | F180: 2 | G180: 160.00 | H180: 320.00
A181: DS PIPERACILINA | B181: FCO. | C181: 3 | D181: 0 | E181: 2 | F181: 1 | G181: 160.00 | H181: 160.00
A182: DS PIPERACILINA CON TAXOBAN | B182: FCO. | C182: 0 | D182: 3 | E182: 3 | F182: 0 | G182: 160.00 | H182: 0.00
A183: DS TETRACICLINA | B183: FCO. | C183: 2 | D183: 0 | E183: 1 | F183: 1 | G183: 151.00 | H183: 151.00
A184: DS TOBRAMICINA | B184: FCO. | C184: 4 | D184: 3 | E184: 6 | F184: 1 | G184: 160.00 | H184: 160.00
A185: DS TRIMETROPIN SULFA | B185: FCO. | C185: 3 | D185: 4 | E185: 6 | F185: 1 | G185: 160.00 | H185: 160.00
A186: EASYLYTE MEDICA CALC.RINSE (CLEANING) | B186: SET | C186: 1 | D186: 0 | E186: 1 | F186: 0 | G186: 2,304.00 | H186: 0.00
A187: EASYLYTE MEDICA NA/K/CL 400 ML | B187: SET | C187: 2 | D187: 1 | E187: 1 | F187: 2 | G187: 13,650.00 | H187: 27,300.00
A188: EASYLYTE PAPEL BTS 2x3 | B188: UNID. | C188: 7 | D188: 0 | E188: 2 | F188: 5 | G188: 157.20 | H188: 786.00
A189: ELERMEYER 2000 ML | B189: UNID. | C189: 2 | D189: 0 | E189: 2 | F189: 0 | G189: 1,750.00 | H189: 0.00
A190: ENVACES DE ORINA 50/1 | B190: PAQ. | C190: 0 | D190: 100 | E190: 100 | F190: 0 | G190: 120.00 | H190: 0.00
A191: ENVASES ESTERILES 100/1 | B191: CJA. | C191: 5 | D191: 8 | E191: 13 | F191: 0 | G191: 1,300.00 | H191: 0.00
A192: ESCOBILLAS P/LAVAR TUBOS PEQUEÑA | B192: UNID. | C192: 10 | D192: 0 | E192: 10 | F192: 0 | G192: 60.00 | H192: 0.00
A193: FACTOR REUMATOIDE | B193: SET | C193: 3 | D193: 0 | E193: 3 | F193: 0 | G193: 1,606.80 | H193: 0.00
A194: FACTOR REUMATOIDE | B194: SET | C194: 2 | D194: 0 | E194: 1 | F194: 1 | G194: 398.40 | H194: 398.40
A195: FIBRINOGENO | B195: FCO. | C195: 2 | D195: 0 | E195: 2 | F195: 0 | G195: 2,925.60 | H195: 0.00
A196: FRASCO DE 60ML | B196: UNID. | C196: 100 | D196: 0 | E196: 100 | F196: 0 | G196: 8.60 | H196: 0.00
A197: FRASCO HEMOCULTIVO ADULTO | B197: UNID. | C197: 70 | D197: 100 | E197: 150 | F197: 20 | G197: 155.00 | H197: 3,100.00
A198: FRASCO HEMOCULTIVO PEDIATRICO | B198: UNID. | C198: 70 | D198: 200 | E198: 240 | F198: 30 | G198: 130.00 | H198: 3,900.00
A199: FRASCOS P/ CITOLOGIA | B199: PAQ. | C199: 2 | D199: 0 | E199: 2 | F199: 0 | G199: 950.00 | H199: 0.00
A200: FRASCOS P/COPROLOGICOS | B200: UNID. | C200: 10,000 | D200: 0 | E200: 10,000 | F200: 0 | G200: 5.90 | H200: 0.00
A201: FUSINA | B201: FCO. | C201: 0 | D201: 0 | E201: 0 | F201: 0 | G201: 6,500.00 | H201: 0.00
A202: GASA | B202: ROLLO | C202: 0 | D202: 0 | E202: 0 | F202: 0 | G202: 925.00 | H202: 0.00
A203: GASA | B203: PAQ. | C203: 21 | D203: 0 | E203: 16 | F203: 5 | G203: 366.85 | H203: 1,834.25
A204: GLUCOLA | B204: FCO. | C204: 25 | D204: 34 | E204: 47 | F204: 12 | G204: 203.50 | H204: 2,442.00
... 186 more rows

Sheet INV. junio ADM
A4: República Dominicana
A5: Ministerio de Salud Pública y Asistencia Social
A6: Informe Mensual de Almacén General, Despensa y Medicina
A7: ALMACEN | B7: LABORATORIO
A8: ESTABLECIMIENTO | B8: CENTRO DE GASTROENTEROLOGIA | E8: REGION | F8: 0
A9: AREA DE SALUD | E9: MES | F9: JUNIO | G9: AÑO | H9: 2012
A11: ARTICULO | B11: UNIDAD | C11: EXISTENCIA ANTERIOR | D11: ENTRADA | E11: EXISTENCIA | F11: TOTAL CONSUMIDOS (3+4)-5 | G11: VALOR UNITARIO | H11: VALOR TOTAL
C12: ANTERIOR | E12: FINAL | F12: CONSUMIDO | G12: UNITARIO | H12: TOTAL
A13: -1- | C13: 3 | D13: -4- | E13: -5- | F13: (3+4)-5 | G13: -7- | H13: (6X7)
A14: ABX CONTROL HEMATOLOGICO 3/1 | B14: SET | C14: 2 | D14: 1 | E14: =C14+D14-F14 -> 3 | F14: 0 | G14: 10,143.00 | H14: =E14*G14 -> 30,429.00
A15: ABX MINOLYSE | B15: FCO. | C15: 4 | D15: 5 | E15: =C15+D15-F15 -> 6 | F15: 3 | G15: 20,481.00 | H15: =E15*G15 -> 122,886.00
A16: ABX MINOTON | B16: CJA. | C16: 7 | D16: 5 | E16: =C16+D16-F16 -> 7 | F16: 5 | G16: 15,130.00 | H16: =E16*G16 -> 105,910.00
A17: ABXPENTRA ACIDO URICO | B17: FCO. | C17: 2 | D17: 1 | E17: 0 | F17: 3 | G17: 8,132.00 | H17: 0.00
A18: ABXPENTRA ALBUMINA | B18: FCO. | C18: 1 | D18: 0 | E18: 1 | F18: 0 | G18: 12,456.00 | H18: 12,456.00
A19: ABXPENTRA ALP | B19: FCO. | C19: 0 | D19: 1 | E19: 0 | F19: 1 | G19: 4,620.00 | H19: 0.00
A20: ABXPENTRA ALT | B20: FCO. | C20: 1 | D20: 1 | E20: 0 | F20: 2 | G20: 8,000.00 | H20: 0.00
A21: ABXPENTRA AMILASA | B21: FCO. | C21: 1 | D21: 0 | E21: 0 | F21: 1 | G21: 4,000.00 | H21: 0.00
A22: ABXPENTRA AST | B22: FCO. | C22: 4 | D22: 1 | E22: 3 | F22: 2 | G22: 9,240.00 | H22: 27,720.00
A23: ABXPENTRA BILIRRUBINA DIRECTA | B23: FCO. | C23: 0 | D23: 2 | E23: 0 | F23: 2 | G23: 3,696.00 | H23: 0.00
A24: ABXPENTRA BILIRRUBINA TOTAL | B24: FCO. | C24: 0 | D24: 2 | E24: 0 | F24: 2 | G24: 6,400.00 | H24: 0.00
A25: ABXPENTRA CALCIO | B25: FCO. | C25: 1 | D25: 0 | E25: 1 | F25: 0 | G25: 9,240.00 | H25: 9,240.00
A26: ABXPENTRA COLESTEROL | B26: FCO. | C26: 5 | D26: 1 | E26: 5 | F26: 1 | G26: 12,416.00 | H26: 62,080.00
A27: ABXPENTRA CREATININA | B27: FCO. | C27: 5 | D27: 2 | E27: 6 | F27: 1 | G27: 4,436.00 | H27: 26,616.00
A28: ABXPENTRA DESPROTEINIZANTE | B28: FCO. | C28: 1 | D28: 0 | E28: 0 | F28: 1 | G28: 2,500.00 | H28: 0.00
A29: ABXPENTRA FOSFORO | B29: FCO. | C29: 2 | D29: 0 | E29: 0 | F29: 2 | G29: 3,696.00 | H29: 0.00
A30: ABXPENTRA GGT | B30: FCO. | C30: 2 | D30: 1 | E30: 2 | F30: 1 | G30: 9,240.00 | H30: 18,480.00
A31: ABXPENTRA GLUCOSA | B31: FCO. | C31: 3 | D31: 0 | E31: 1 | F31: 2 | G31: 10,688.00 | H31: 10,688.00
A32: ABXPENTRA HDL | B32: FCO. | C32: 4 | D32: 0 | E32: 3 | F32: 1 | G32: 7,680.00 | H32: 23,040.00
A33: ABXPENTRA LDH | B33: FCO. | C33: 3 | D33: 0 | E33: 2 | F33: 1 | G33: 4,000.00 | H33: 8,000.00
A34: ABXPENTRA LIPASA | B34: FCO. | C34: 4 | D34: 0 | E34: 3 | F34: 1 | G34: 3,200.00 | H34: 9,600.00
A35: ABXPENTRA PROTEINA TOTAL | B35: FCO. | C35: 1 | D35: 1 | E35: 0 | F35: 2 | G35: 11,088.00 | H35: 0.00
A36: ABXPENTRA TRIGLICERIDO | B36: FCO. | C36: 1 | D36: 2 | E36: 2 | F36: 1 | G36: 12,344.00 | H36: 24,688.00
A37: ABXPENTRA UREA/BUN | B37: FCO. | C37: 6 | D37: 3 | E37: 8 | F37: 1 | G37: 8,132.00 | H37: 65,056.00
A38: ACEITE DE INMERSION | B38: FCO. | C38: 1 | D38: 0 | E38: 1 | F38: 0 | G38: 1,380.00 | H38: 1,380.00
A39: ACETONA | B39: GLN. | C39: 0 | D39: 0 | E39: 0 | F39: 0 | G39: 950.00 | H39: 0.00
A40: ACIDO URICO MANUAL | B40: SET | C40: 3 | D40: 0 | E40: 3 | F40: 0 | G40: 2,780.00 | H40: 8,340.00
A41: ACIDO URICO MANUAL | B41: SET | C41: 3 | D41: 0 | E41: 3 | F41: 0 | G41: 522.00 | H41: 1,566.00
A42: ACIDO ACETICO GLACIAL | B42: GLN. | C42: 0 | D42: 0 | E42: 0 | F42: 0 | G42: 3,550.00 | H42: 0.00
A43: ACL DILUYENTE FACTORES 100ML | B43: FCO. | C43: 3 | D43: 0 | E43: 3 | F43: 0 | G43: 744.00 | H43: 2,232.00
A44: ACL HIGH ABNORMAL CONT 10X1ML | B44: CJA. | C44: 3 | D44: 0 | E44: 2 | F44: 1 | G44: 3,060.00 | H44: 6,120.00
A45: ACL. WASH EMULSION | B45: FCO. | C45: 1 | D45: 4 | E45: 4 | F45: 1 | G45: 778.80 | H45: 3,115.20
A46: ACL. APTT. 5+5X5X8 | B46: CJA. | C46: 5 | D46: 0 | E46: 4 | F46: 1 | G46: 3,646.80 | H46: 14,587.20
A47: ACL CALIBRADOR PLASMA | B47: CJA. | C47: 4 | D47: 0 | E47: =C47+D47-F47 -> 3 | F47: 1 | G47: 3,541.20 | H47: 10,623.60
A48: ACL. CLEANING SOLUTION 500ML | B48: SET | C48: 3 | D48: 0 | E48: 3 | F48: 0 | G48: 2,100.00 | H48: 6,300.00
A49: ACL. COPAS 0.5ML C/1000 | B49: CJA. | C49: 1 | D49: 0 | E49: 1 | F49: 0 | G49: 2,097.60 | H49: 2,097.60
A50: ACL. COPAS 2ML 1000/PK | B50: CJA. | C50: 1 | D50: 0 | E50: 1 | F50: 0 | G50: 4,702.80 | H50: 4,702.80
A51: ACL. LOW ABNORMAL CONT. 10X1ML | B51: SET | C51: 3 | D51: 0 | E51: 3 | F51: 0 | G51: 2,799.60 | H51: 8,398.80
A52: ACL. PLASMA CONTROL NORM 10X1ML | B52: CJA. | C52: 2 | D52: 2 | E52: 3 | F52: 1 | G52: 2,704.80 | H52: 8,114.40
A53: ACL. PT RGT-FIBRINOGENO 5+5X8ML | B53: CJA. | C53: 3 | D53: 3 | E53: 4 | F53: 2 | G53: 4,177.20 | H53: 16,708.80
A54: ACL. ROTORES C/100 | B54: CJA. | C54: 3 | D54: 2 | E54: 4 | F54: 1 | G54: 9,004.80 | H54: 36,019.20
A55: AGAR CITRATO DE SIMMONS | B55: FCO. | C55: 1 | D55: 1 | E55: 1 | F55: 1 | G55: 1,650.00 | H55: 1,650.00
A56: AGAR MACCONKEY | B56: FCO. | C56: 2 | D56: 2 | E56: 4 | F56: 0 | G56: 2,820.00 | H56: 11,280.00
A57: AGAR MANITOL SALT | B57: FCO. | C57: 1 | D57: 3 | E57: 3 | F57: 1 | G57: 2,325.00 | H57: 6,975.00
A58: AGAR MULLER HILTON | B58: FCO. | C58: 2 | D58: 3 | E58: 3 | F58: 2 | G58: 2,985.00 | H58: 8,955.00
A59: AGAR SABOURAUD CON CLORANFENICOL | B59: FCO. | C59: 0 | D59: 1 | E59: 1 | F59: 0 | G59: 4,890.00 | H59: 4,890.00
A60: AGAR SALMONELLA SCHIGUELLA | B60: FCO. | C60: 1 | D60: 0 | E60: 1 | F60: 0 | G60: 4,871.00 | H60: 4,871.00
A61: AGAR SIM MIDIWM | B61: FCO. | C61: 0 | D61: 1 | E61: 0 | F61: 1 | G61: 2,849.00 | H61: 0.00
A62: AGAR TIOGLICOLATE | B62: FCO. | C62: 0 | D62: 1 | E62: 0 | F62: 1 | G62: 3,360.00 | H62: 0.00
A63: AGAR TRIPLE SUGAR IRON | B63: FCO. | C63: 1 | D63: 0 | E63: 1 | F63: 0 | G63: 3,575.00 | H63: 3,575.00
A64: AGAR TSA TRICTICASA SUGAR | B64: FCO. | C64: 1 | D64: 0 | E64: 1 | F64: 0 | G64: 3,650.00 | H64: 3,650.00
A65: AGUA BIDESTILADA | B65: GLN. | C65: 77 | D65: 100 | E65: 104 | F65: 73 | G65: 95.00 | H65: 9,880.00
A66: AGUJA P/VACUTANIER | B66: CJA. | C66: 0 | D66: 0 | E66: 0 | F66: 0 | G66: 950.00 | H66: 0.00
A67: AHBC ELISA-CORE | B67: SET | C67: 1 | D67: 0 | E67: 1 | F67: 0 | G67: 10,238.40 | H67: 10,238.40
A68: ALBUMINA BOVINA 22% | B68: FCO. | C68: 5 | D68: 0 | E68: 3 | F68: 2 | G68: 485.00 | H68: 1,455.00
A69: ALCOHOL ABSOLUTO --ETANOL | B69: GLN. | C69: 0 | D69: 0 | E69: 0 | F69: 0 | G69: 3,526.00 | H69: 0.00
A70: ALCOHOL ETILICO 95% | B70: GLN. | C70: 0 | D70: 0 | E70: 0 | F70: 0 | G70: 2,384.00 | H70: 0.00
A71: ALCOHOL ISOPROPILICO 70 | B71: GLN. | C71: 6 | D71: 10 | E71: 11 | F71: 5 | G71: 293.25 | H71: 3,225.75
A72: ALCOHOL ISOPROPILICO 70% | B72: GLN. | C72: 4 | D72: 10 | E72: 14 | F72: 0 | G72: 380.00 | H72: 5,320.00
A73: ALCOHOL PROPANO (PROPANOL II) | B73: GLN. | C73: 0 | D73: 0 | E73: 0 | F73: 0 | G73: 2,650.00 | H73: 0.00
A74: ALGODON | B74: ROLLO | C74: 23 | D74: 20 | E74: 32 | F74: 11 | G74: 51.64 | H74: 1,652.48
A75: AMILASA MANUAL | B75: SET | C75: 5 | D75: 0 | E75: 5 | F75: 0 | G75: 1,147.70 | H75: 5,738.50
A76: ANTI A | B76: FCO. | C76: 12 | D76: 0 | E76: 0 | F76: 12 | G76: 231.00 | H76: 0.00
A77: ANTI B | B77: FCO. | C77: 12 | D77: 0 | E77: 0 | F77: 12 | G77: 231.00 | H77: 0.00
A78: ANTI D | B78: FCO. | C78: 19 | D78: 0 | E78: 7 | F78: 12 | G78: 275.00 | H78: 1,925.00
A79: ANTI A-B | B79: FCO. | C79: 3 | D79: 0 | E79: 3 | F79: 0 | G79: 332.00 | H79: 996.00
A80: ANTI A-B-D | B80: SET | C80: 1 | D80: 0 | E80: =C80+D80-F80 -> 0 | F80: 1 | G80: 333.50 | H80: =E80*G80 -> 0.00
A81: ANTI HUMANO COOMBS | B81: FCO. | C81: 5 | D81: 0 | E81: 3 | F81: 2 | G81: 840.00 | H81: 2,520.00
A82: ANTICUAGULANTE | B82: FCO. | C82: 32.0 | D82: 0 | E82: 32 | F82: 0 | G82: 170.00 | H82: 5,440.00
A83: ANTIGENO FEBRILES | B83: SET | C83: 2 | D83: 0 | E83: 2 | F83: 0 | G83: 2,950.00 | H83: 5,900.00
A84: APLICADORES MADERA | B84: CJA. | C84: 8 | D84: 0 | E84: 0 | F84: 8 | G84: 493.00 | H84: 0.00
A85: ASA BACTERIOLOGICA 0.001 | B85: UNID. | C85: 5 | D85: 0 | E85: 5 | F85: 0 | G85: 4,210.00 | H85: 21,050.00
A86: ASA BACTERIOLOGICA 0.01 | B86: UNID. | C86: 2 | D86: 0 | E86: 2 | F86: 0 | G86: 4,210.00 | H86: 8,420.00
A87: ASO LATEX 150P | B87: SET | C87: 5 | D87: 0 | E87: 4 | F87: 1 | G87: 396.75 | H87: 1,587.00
A88: BAJANTE DE SANGRE | B88: UNID. | C88: 770 | D88: 0 | E88: 770 | F88: 0 | G88: 7.30 | H88: 5,621.00
A89: BECKMAN ALBUMINA | B89: SET | C89: 1 | D89: 0 | E89: 1 | F89: 0 | G89: 5,479.28 | H89: 5,479.28
A90: BECKMAN ALT | B90: SET | C90: 1 | D90: 0 | E90: 1 | F90: 0 | G90: 7,773.00 | H90: 7,773.00
A91: BECKMAN AMILASA | B91: CJA. | C91: 1 | D91: 0 | E91: 1 | F91: 0 | G91: 14,085.14 | H91: 14,085.14
A92: BECKMAN AST | B92: SET | C92: 1 | D92: 0 | E92: 1 | F92: 0 | G92: 7,874.75 | H92: 7,874.75
A93: BECKMAN BIL-DIRECTA | B93: SET | C93: 1 | D93: 0 | E93: 1 | F93: 0 | G93: 6,062.75 | H93: 6,062.75
A94: BECKMAN CK-MB | B94: SET | C94: 1 | D94: 0 | E94: 1 | F94: 0 | G94: 32,368.31 | H94: 32,368.31
A95: BECKMAN COPA ADULTO 2.0 ML | B95: FDA. | C95: 2 | D95: 0 | E95: 2 | F95: 0 | G95: 2,290.45 | H95: 4,580.90
A96: BECKMAN COPA PEDIATRICAS 0.5 ML | B96: FDA. | C96: 1 | D96: 0 | E96: 1 | F96: 0 | G96: 2,893.21 | H96: 2,893.21
A97: BECKMAN CREATININA | B97: SET | C97: 2 | D97: 0 | E97: 2 | F97: 0 | G97: 5,601.80 | H97: 11,203.60
A98: BECKMAN ELECTROLITE REFERENCE | B98: CJA. | C98: 1 | D98: 0 | E98: 1 | F98: 0 | G98: 6,001.98 | H98: 6,001.98
A99: BECKMAN GLUCOSA | B99: SET | C99: 1 | D99: 0 | E99: 1 | F99: 0 | G99: 9,028.92 | H99: 9,028.92
A100: BECKMAN HIERRO | B100: SET | C100: 1 | D100: 0 | E100: 1 | F100: 0 | G100: 12,409.93 | H100: 12,409.93
A101: BECKMAN PROTEINA TOTAL | B101: SET | C101: 1 | D101: 0 | E101: 1 | F101: 0 | G101: 6,974.00 | H101: 6,974.00
A102: BECKMAN WASH CONCENTRADO II | B102: CJA. | C102: 1 | D102: 0 | E102: 1 | F102: 0 | G102: 11,905.00 | H102: 11,905.00
A103: BFT-II CUBETAS COAGULACION | B103: CJA. | C103: 1 | D103: 0 | E103: 0 | F103: 1 | G103: 11,776.80 | H103: 0.00
A104: BILIRRUBINA MANUAL | B104: SET | C104: 2 | D104: 0 | E104: 2 | F104: 0 | G104: 1,708.80 | H104: 3,417.60
A105: BIO WRIGHT 1 | B105: GLN. | C105: 2 | D105: 0 | E105: 2 | F105: 0 | G105: 1,382.00 | H105: 2,764.00
A106: BIO WRIGHT 2 | B106: GLN. | C106: 1 | D106: 0 | E106: 1 | F106: 0 | G106: 1,382.00 | H106: 1,382.00
A107: BIO WRIGHT 3 | B107: GLN. | C107: 1 | D107: 0 | E107: 1 | F107: 0 | G107: 1,382.00 | H107: 1,382.00
A108: BOLSA COLECTORAS DE SANGRE | B108: UNID. | C108: 275 | D108: 0 | E108: 255 | F108: 20 | G108: 38.69 | H108: 9,865.95
A109: BOLSAS DE SANGRE DOBLES | B109: UNID. | C109: 40 | D109: 0 | E109: 20 | F109: 20 | G109: 240.00 | H109: 4,800.00
A110: CASSETTE CON TAPA BLANCO | B110: CJA. | C110: 0 | D110: 0 | E110: 0 | F110: 0 | G110: 3,980.00 | H110: 0.00
A111: CASSETTE CON TAPA COLORES | B111: CJA. | C111: 0 | D111: 0 | E111: 0 | F111: 0 | G111: 3,880.00 | H111: 0.00
A112: CAPSULA P/PRUEBA DE ALIENTO C/100 | B112: CJA. | C112: 1 | D112: 0 | E112: 1 | F112: 0 | G112: 104,000.00 | H112: 104,000.00
A113: CAMARA NEW BAWEN | B113: UNID. | C113: 0 | D113: 1 | E113: 0 | F113: 1 | G113: 3,680.00 | H113: 0.00
A114: GLOBO P/PUEBA DE ALIENTO | B114: CJA. | C114: 1 | D114: 0 | E114: 0 | F114: 1 | G114: 5,675.00 | H114: 0.00
A115: CIBA CORNING DESPROTEINIZANTE | B115: SET | C115: 1 | D115: 0 | E115: 1 | F115: 0 | G115: 1,800.00 | H115: 1,800.00
A116: CIBA CORNING MULTICALIBRADOR | B116: SET | C116: 1 | D116: 0 | E116: 1 | F116: 0 | G116: 8,800.00 | H116: 8,800.00
A117: CIBA CORNING PAPEL | B117: ROLLO | C117: 15 | D117: 0 | E117: 10 | F117: 5 | G117: 144.00 | H117: 1,440.00
A118: CLIPS DE ALUMINIO P/ BOLSAS DE SANGRE | B118: CJA. | C118: 2 | D118: 0 | E118: 2 | F118: 0 | G118: 3,700.00 | H118: 7,400.00
A119: CLORURO DE CALCIO 15 ML | B119: FCO. | C119: 17 | D119: 0 | E119: 16 | F119: 1 | G119: 418.80 | H119: 6,700.80
A120: CLORURO DE SODIO 500G | B120: FCO. | C120: 3 | D120: 0 | E120: 2 | F120: 1 | G120: 2,485.00 | H120: 4,970.00
A121: COAGULASA PLASMA | B121: SET | C121: 0 | D121: 0 | E121: 0 | F121: 0 | G121: 3,180.00 | H121: 0.00
A122: CONTENEDOR D/BIOSEGURIDAD 3 L | B122: UNID. | C122: 5 | D122: 0 | E122: 5 | F122: 0 | G122: 1,400.00 | H122: 7,000.00
A123: CONTROL PARA COAGULACION | B123: FCO. | C123: 9 | D123: 0 | E123: 7 | F123: 2 | G123: 182.40 | H123: 1,276.80
A124: CONTROL EQAS | B124: SET | C124: 1 | D124: 0 | E124: 1 | F124: 0 | G124: 2,800.00 | H124: 2,800.00
A125: CORE ELISA IGM | B125: SET | C125: 3 | D125: 1 | E125: 3 | F125: 1 | G125: 9,818.00 | H125: 29,454.00
A126: CORE-HBC-AB TOTLA | B126: SET | C126: 0 | D126: 1 | E126: 0 | F126: 1 | G126: 9,818.00 | H126: 0.00
A127: CREATININA MANUAL | B127: SET | C127: 0 | D127: 2 | E127: 0 | F127: 2 | G127: 2,134.00 | H127: 0.00
A128: CREATININA MANUAL | B128: SET | C128: 1 | D128: 0 | E128: 1 | F128: 0 | G128: 317.40 | H128: 317.40
A129: CREATININA TECO | B129: SET | C129: 1 | D129: 0 | E129: 1 | F129: 0 | G129: 1,017.50 | H129: 1,017.50
A130: CUBRE OBJETO 22 X 22 (100UD) | B130: OZ | C130: 22 | D130: 40 | E130: 33 | F130: 29 | G130: 185.00 | H130: 6,105.00
A131: CUBRE OBJETO 22 X 40 | B131: OZ | C131: 0 | D131: 0 | E131: 0 | F131: 0 | G131: 185.00 | H131: 0.00
A132: CUBRE OBJETO 22 X 60 | B132: CJA. | C132: 0 | D132: 0 | E132: 0 | F132: 0 | G132: 185.00 | H132: 0.00
A133: CUBRE OBJETO 24 X 50 | B133: OZ | C133: 0 | D133: 0 | E133: 0 | F133: 0 | G133: 185.00 | H133: 0.00
A134: CUCHILLA P/MICROTOMO | B134: CJA. | C134: 0 | D134: 0 | E134: 0 | F134: 0 | G134: 12,150.00 | H134: 0.00
A135: CURITA REDONDA | B135: CJA. | C135: 8 | D135: 100 | E135: 78 | F135: 30 | G135: 145.00 | H135: 11,310.00
A136: DIMENSION ABS/ABSORBANCE | B136: SET | C136: 2 | D136: 0 | E136: 2 | F136: 0 | G136: 1,500.00 | H136: 3,000.00
A137: DIMENSION ACIDO URICO | B137: SET | C137: 2 | D137: 0 | E137: 1 | F137: 1 | G137: 8,700.00 | H137: 8,700.00
A138: DIMENSION ALBUMINA | B138: SET | C138: 2 | D138: 0 | E138: 1 | F138: 1 | G138: 8,700.00 | H138: 8,700.00
A139: DIMENSION ALT | B139: SET | C139: 2 | D139: 3 | E139: 1 | F139: 4 | G139: 4,350.00 | H139: 4,350.00
A140: DIMENSION ALP-FOSFATASA ALCALINA | B140: SET | C140: 3 | D140: 0 | E140: 2 | F140: 1 | G140: 6,530.00 | H140: 13,060.00
A141: DIMENSION AMILASA | B141: SET | C141: 2 | D141: 0 | E141: 2 | F141: 0 | G141: 5,250.00 | H141: 10,500.00
A142: DIMENSION AST/GOT | B142: SET | C142: 2 | D142: 3 | E142: 3 | F142: 2 | G142: 6,530.00 | H142: 19,590.00
A143: DIMENSION BILIRRUBINA DIRECTA | B143: SET | C143: 1 | D143: 2 | E143: 1 | F143: 2 | G143: 5,800.00 | H143: 5,800.00
A144: DIMENSION BILIRRUBINA TOTAL | B144: SET | C144: 4 | D144: 0 | E144: =C144+D144-F144 -> 2 | F144: 2 | G144: 8,700.00 | H144: =E144*G144 -> 17,400.00
A145: DIMENSION CALCIO | B145: SET | C145: 1 | D145: 0 | E145: 0 | F145: 1 | G145: 8,700.00 | H145: 0.00
A146: DIMENSION CK | B146: SET | C146: 1 | D146: 0 | E146: 1 | F146: 0 | G146: 8,700.00 | H146: 8,700.00
A147: DIMENSION COLESTEROL | B147: SET | C147: 0 | D147: 2 | E147: 0 | F147: 2 | G147: 8,700.00 | H147: 0.00
A148: DIMENSION CREATININA | B148: SET | C148: 0 | D148: 2 | E148: 0 | F148: 2 | G148: 8,700.00 | H148: 0.00
A149: DIMENSION FOSFORO | B149: SET | C149: 1 | D149: 0 | E149: 1 | F149: 0 | G149: 9,902.50 | H149: 9,902.50
A150: DIMENSION HBA1C+CAL | B150: SET | C150: 0 | D150: 2 | E150: 1 | F150: 1 | G150: 18,000.00 | H150: 18,000.00
A151: DIMENSION HDL C DIRECTO | B151: SET | C151: 1 | D151: 2 | E151: 2 | F151: 1 | G151: 11,880.00 | H151: 23,760.00
A152: DIMENSION GLUCOSA | B152: SET | C152: 2 | D152: 2 | E152: 2 | F152: 2 | G152: 26,100.00 | H152: 52,200.00
A153: DIMENSION LDH | B153: SET | C153: 0 | D153: 0 | E153: 0 | F153: 0 | G153: 9,902.50 | H153: 0.00
A154: DIMENSION LIPASA | B154: SET | C154: 2 | D154: 1 | E154: 1 | F154: 2 | G154: 2,178.00 | H154: 2,178.00
A155: DIMENSION PROTEINA TOTAL | B155: SET | C155: 0 | D155: 1 | E155: 1 | F155: 0 | G155: 8,700.00 | H155: 8,700.00
A156: DIMENSION PROTEINA EN ORINA-LCF/UCFP | B156: SET | C156: 1 | D156: 0 | E156: 1 | F156: 0 | G156: 1,450.00 | H156: 1,450.00
A157: DIMENSION TRIGLICERIDO | B157: SET | C157: 1 | D157: 2 | E157: 1 | F157: 2 | G157: 8,700.00 | H157: 8,700.00
A158: DIMENSION UREA/BUN | B158: SET | C158: 0 | D158: 2 | E158: 0 | F158: 2 | G158: 8,700.00 | H158: 0.00
A159: DS ACIDO NALIDIXICO | B159: FCO. | C159: 1 | D159: 0 | E159: 0 | F159: 1 | G159: 148.00 | H159: 0.00
A160: DS AMIKACINA | B160: FCO. | C160: 3 | D160: 3 | E160: 6 | F160: 0 | G160: 160.00 | H160: 960.00
A161: DS AMOXICILINA CON ACIDO CLAVULANICO | B161: FCO. | C161: 6 | D161: 3 | E161: 8 | F161: 1 | G161: 160.00 | H161: 1,280.00
A162: DS AMPICILINA | B162: FCO. | C162: 2 | D162: 3 | E162: 5 | F162: 0 | G162: 151.00 | H162: 755.00
A163: DS CEFEPIME | B163: FCO. | C163: 3 | D163: 0 | E163: 2 | F163: 1 | G163: 160.00 | H163: 320.00
A164: DS CEFOTAXIMA | B164: FCO. | C164: 2 | D164: 3 | E164: 4 | F164: 1 | G164: 160.00 | H164: 640.00
A165: DS CEFTAXIDIME | B165: FCO. | C165: 5 | D165: 4 | E165: 9 | F165: 0 | G165: 160.00 | H165: 1,440.00
A166: DS CEFUROXIME | B166: FCO. | C166: 7 | D166: 3 | E166: 9 | F166: 1 | G166: 160.00 | H166: 1,440.00
A167: DS CETRIAZONE | B167: FCO. | C167: 3 | D167: 0 | E167: 2 | F167: 1 | G167: 160.00 | H167: 320.00
A168: DS CIPROFLOXACINA | B168: FCO. | C168: 2 | D168: 0 | E168: 1 | F168: 1 | G168: 148.00 | H168: 148.00
A169: DS CLINDAMICINA | B169: FCO. | C169: 2 | D169: 0 | E169: 2 | F169: 0 | G169: 151.00 | H169: 302.00
A170: DS ERITROMICINA | B170: FCO. | C170: 3 | D170: 3 | E170: 6 | F170: 0 | G170: 160.00 | H170: 960.00
A171: DS FURADANTINA | B171: FCO. | C171: 1 | D171: 0 | E171: 1 | F171: 0 | G171: 148.00 | H171: 148.00
A172: DS GENTAMICINA | B172: FCO. | C172: 4 | D172: 4 | E172: 5 | F172: 3 | G172: 160.00 | H172: 800.00
A173: DS IMIPENEN | B173: FCO. | C173: 1 | D173: 0 | E173: 0 | F173: 1 | G173: 151.00 | H173: 0.00
A174: DS NITROFURADANTINA | B174: FCO. | C174: 2 | D174: 4 | E174: 6 | F174: 0 | G174: 151.00 | H174: 906.00
A175: DS LEVOFLOXACIN VOL. 50 | B175: UNID. | C175: 3 | D175: 4 | E175: 6 | F175: 1 | G175: 160.00 | H175: 960.00
A176: DS NORFLOXACIN | B176: FCO. | C176: 4 | D176: 3 | E176: 6 | F176: 1 | G176: 148.00 | H176: 888.00
A177: DS VANCOMYCINA | B177: FCO. | C177: 3 | D177: 4 | E177: 7 | F177: 0 | G177: 160.00 | H177: 1,120.00
A178: DS OXALACIN | B178: FCO. | C178: 1 | D178: 4 | E178: 4 | F178: 1 | G178: 160.00 | H178: 640.00
A179: DS OXIDASA | B179: FCO. | C179: 1 | D179: 0 | E179: 1 | F179: 0 | G179: 160.00 | H179: 160.00
A180: DS PENINCILINA | B180: FCO. | C180: 0 | D180: 3 | E180: 1 | F180: 2 | G180: 160.00 | H180: 160.00
A181: DS PIPERACILINA | B181: FCO. | C181: 3 | D181: 0 | E181: 2 | F181: 1 | G181: 160.00 | H181: 320.00
A182: DS PIPERACILINA CON TAXOBAN | B182: FCO. | C182: 0 | D182: 3 | E182: 3 | F182: 0 | G182: 160.00 | H182: 480.00
A183: DS TETRACICLINA | B183: FCO. | C183: 2 | D183: 0 | E183: 1 | F183: 1 | G183: 151.00 | H183: 151.00
A184: DS TOBRAMICINA | B184: FCO. | C184: 4 | D184: 3 | E184: 6 | F184: 1 | G184: 160.00 | H184: 960.00
A185: DS TRIMETROPIN SULFA | B185: FCO. | C185: 3 | D185: 4 | E185: 6 | F185: 1 | G185: 160.00 | H185: 960.00
A186: EASYLYTE MEDICA CALC.RINSE (CLEANING) | B186: SET | C186: 1 | D186: 0 | E186: 1 | F186: 0 | G186: 2,304.00 | H186: 2,304.00
A187: EASYLYTE MEDICA NA/K/CL 400 ML | B187: SET | C187: 2 | D187: 1 | E187: 1 | F187: 2 | G187: 13,650.00 | H187: 13,650.00
A188: EASYLYTE PAPEL BTS 2x3 | B188: UNID. | C188: 7 | D188: 0 | E188: 2 | F188: 5 | G188: 157.20 | H188: 314.40
A189: ELERMEYER 2000 ML | B189: UNID. | C189: 2 | D189: 0 | E189: 2 | F189: 0 | G189: 1,750.00 | H189: 3,500.00
A190: ENVACES DE ORINA 50/1 | B190: PAQ. | C190: 0 | D190: 100 | E190: 100 | F190: 0 | G190: 120.00 | H190: 12,000.00
A191: ENVASES ESTERILES 100/1 | B191: CJA. | C191: 5 | D191: 8 | E191: 13 | F191: 0 | G191: 1,300.00 | H191: 16,900.00
A192: ESCOBILLAS P/LAVAR TUBOS PEQUEÑA | B192: UNID. | C192: 10 | D192: 0 | E192: 10 | F192: 0 | G192: 60.00 | H192: 600.00
A193: FACTOR REUMATOIDE | B193: SET | C193: 3 | D193: 0 | E193: 3 | F193: 0 | G193: 1,606.80 | H193: 4,820.40
A194: FACTOR REUMATOIDE | B194: SET | C194: 2 | D194: 0 | E194: 1 | F194: 1 | G194: 398.40 | H194: 398.40
A195: FIBRINOGENO | B195: FCO. | C195: 2 | D195: 0 | E195: 2 | F195: 0 | G195: 2,925.60 | H195: 5,851.20
A196: FRASCO DE 60ML | B196: UNID. | C196: 100 | D196: 0 | E196: 100 | F196: 0 | G196: 8.60 | H196: 860.00
A197: FRASCO HEMOCULTIVO ADULTO | B197: UNID. | C197: 70 | D197: 100 | E197: 150 | F197: 20 | G197: 155.00 | H197: 23,250.00
A198: FRASCO HEMOCULTIVO PEDIATRICO | B198: UNID. | C198: 70 | D198: 200 | E198: 240 | F198: 30 | G198: 130.00 | H198: 31,200.00
A199: FRASCOS P/ CITOLOGIA | B199: PAQ. | C199: 2 | D199: 0 | E199: 2 | F199: 0 | G199: 950.00 | H199: 1,900.00
A200: FRASCOS P/COPROLOGICOS | B200: UNID. | C200: 10,000 | D200: 0 | E200: 10,000 | F200: 0 | G200: 5.90 | H200: 59,000.00
A201: FUSINA | B201: FCO. | C201: 0 | D201: 0 | E201: 0 | F201: 0 | G201: 6,500.00 | H201: 0.00
A202: GASA | B202: ROLLO | C202: 0 | D202: 0 | E202: 0 | F202: 0 | G202: 925.00 | H202: 0.00
A203: GASA | B203: PAQ. | C203: 21 | D203: 0 | E203: 16 | F203: 5 | G203: 366.85 | H203: 5,869.60
A204: GLUCOLA | B204: FCO. | C204: 25 | D204: 34 | E204: 47 | F204: 12 | G204: 203.50 | H204: 9,564.50
... 186 more rows

Sheet INV. JULIO MSP
A4: República Dominicana
A5: Ministerio de Salud Pública y Asistencia Social
A6: Informe Mensual de Almacén General, Despensa y Medicina
A7: ALMACEN | B7: LABORATORIO
A8: ESTABLECIMIENTO | B8: CENTRO DE GASTROENTEROLOGIA | E8: REGION | F8: 0
A9: AREA DE SALUD | E9: MES | F9: JULIO | G9: AÑO | H9: 2012
A11: ARTICULO | B11: UNIDAD | C11: EXISTENCIA ANTERIOR | D11: ENTRADA | E11: EXISTENCIA | F11: TOTAL CONSUMIDOS (3+4)-5 | G11: VALOR UNITARIO | H11: VALOR TOTAL
C12: ANTERIOR | E12: FINAL | F12: CONSUMIDO | G12: UNITARIO | H12: TOTAL
A13: -1- | C13: 3 | D13: -4- | E13: -5- | F13: (3+4)-5 | G13: -7- | H13: (6X7)
A14: ABX CONTROL HEMATOLOGICO 3/1 | B14: SET | C14: 2 | D14: 2 | E14: =C14+D14-F14 -> 4 | F14: 0 | G14: 10,143.00 | H14: =F14*G14 -> 0.00
A15: ABX MINOLYSE | B15: FCO. | C15: 4 | D15: 7 | E15: =C15+D15-F15 -> 6 | F15: 5 | G15: 20,481.00 | H15: =F15*G15 -> 102,405.00
A16: ABX MINOTON | B16: CJA. | C16: 7 | D16: 9 | E16: =C16+D16-F16 -> 10 | F16: 6 | G16: 15,130.00 | H16: =F16*G16 -> 90,780.00
A17: ABXPENTRA ACIDO URICO | B17: FCO. | C17: 2 | D17: 1 | E17: 2 | F17: 1 | G17: 8,132.00 | H17: 8,132.00
A18: ABXPENTRA ALBUMINA | B18: FCO. | C18: 1 | D18: 0 | E18: 0 | F18: 1 | G18: 12,456.00 | H18: 12,456.00
A19: ABXPENTRA ALP | B19: FCO. | C19: 0 | D19: 3 | E19: 2 | F19: 1 | G19: 4,620.00 | H19: 4,620.00
A20: ABXPENTRA ALT | B20: FCO. | C20: 1 | D20: 2 | E20: 2 | F20: 1 | G20: 8,000.00 | H20: 8,000.00
A21: ABXPENTRA AMILASA | B21: FCO. | C21: 1 | D21: 1 | E21: 1 | F21: 1 | G21: 4,000.00 | H21: 4,000.00
A22: ABXPENTRA AST | B22: FCO. | C22: 4 | D22: 2 | E22: 4 | F22: 2 | G22: 9,240.00 | H22: 18,480.00
A23: ABXPENTRA BILIRRUBINA DIRECTA | B23: FCO. | C23: 0 | D23: 2 | E23: 2 | F23: 0 | G23: 3,696.00 | H23: 0.00
A24: ABXPENTRA BILIRRUBINA TOTAL | B24: FCO. | C24: 0 | D24: 3 | E24: 3 | F24: 0 | G24: 6,400.00 | H24: 0.00
A25: ABXPENTRA CALCIO | B25: FCO. | C25: 1 | D25: 0 | E25: 1 | F25: 0 | G25: 9,240.00 | H25: 0.00
A26: ABXPENTRA COLESTEROL | B26: FCO. | C26: 5 | D26: 2 | E26: 5 | F26: 2 | G26: 12,416.00 | H26: 24,832.00
A27: ABXPENTRA CREATININA | B27: FCO. | C27: 5 | D27: 3 | E27: 5 | F27: 3 | G27: 4,436.00 | H27: 13,308.00
A28: ABXPENTRA DESPROTEINIZANTE | B28: FCO. | C28: 1 | D28: 2 | E28: 3 | F28: 0 | G28: 2,500.00 | H28: 0.00
A29: ABXPENTRA FOSFORO | B29: FCO. | C29: 2 | D29: 0 | E29: 2 | F29: 0 | G29: 3,696.00 | H29: 0.00
A30: ABXPENTRA GGT | B30: FCO. | C30: 2 | D30: 0 | E30: 1 | F30: 1 | G30: 9,240.00 | H30: 9,240.00
A31: ABXPENTRA GLUCOSA | B31: FCO. | C31: 3 | D31: 2 | E31: 3 | F31: 2 | G31: 10,688.00 | H31: 21,376.00
A32: ABXPENTRA HDL | B32: FCO. | C32: 4 | D32: 1 | E32: 4 | F32: 1 | G32: 7,680.00 | H32: 7,680.00
A33: ABXPENTRA LDH | B33: FCO. | C33: 3 | D33: 1 | E33: 3 | F33: 1 | G33: 4,000.00 | H33: 4,000.00
A34: ABXPENTRA LIPASA | B34: FCO. | C34: 4 | D34: 0 | E34: 4 | F34: 0 | G34: 3,200.00 | H34: 0.00
A35: ABXPENTRA PROTEINA TOTAL | B35: FCO. | C35: 1 | D35: 2 | E35: 1 | F35: 2 | G35: 11,088.00 | H35: 22,176.00
A36: ABXPENTRA TRIGLICERIDO | B36: FCO. | C36: 1 | D36: 3 | E36: 2 | F36: 2 | G36: 12,344.00 | H36: 24,688.00
A37: ABXPENTRA UREA/BUN | B37: FCO. | C37: 6 | D37: 3 | E37: 7 | F37: 2 | G37: 8,132.00 | H37: 16,264.00
A38: ACEITE DE INMERSION | B38: FCO. | C38: 1 | D38: 0 | E38: 1 | F38: 0 | G38: 1,380.00 | H38: 0.00
A39: ACETONA | B39: GLN. | C39: 0 | D39: 8 | E39: 8 | F39: 0 | G39: 950.00 | H39: 0.00
A40: ACIDO URICO MANUAL | B40: SET | C40: 3 | D40: 0 | E40: 3 | F40: 0 | G40: 2,780.00 | H40: 0.00
A41: ACIDO URICO MANUAL | B41: SET | C41: 3 | D41: 0 | E41: 3 | F41: 0 | G41: 522.00 | H41: 0.00
A42: ACIDO ACETICO GLACIAL | B42: GLN. | C42: 0 | D42: 0 | E42: 0 | F42: 0 | G42: 3,550.00 | H42: 0.00
A43: ACL DILUYENTE FACTORES 100ML | B43: FCO. | C43: 3 | D43: 0 | E43: 3 | F43: 0 | G43: 744.00 | H43: 0.00
A44: ACL HIGH ABNORMAL CONT 10X1ML | B44: CJA. | C44: 3 | D44: 0 | E44: 2 | F44: 1 | G44: 3,060.00 | H44: 3,060.00
A45: ACL. WASH EMULSION | B45: FCO. | C45: 2 | D45: 0 | E45: 0 | F45: 2 | G45: 778.80 | H45: 1,557.60
A46: ACL. APTT. 5+5X5X8 | B46: CJA. | C46: 5 | D46: 0 | E46: 4 | F46: 1 | G46: 3,646.80 | H46: 3,646.80
A47: ACL. CALIBRADOR PLASMA | B47: CJA. | C47: 4 | D47: 0 | E47: 4 | F47: 0 | G47: 3,541.20 | H47: 0.00
A48: ACL. CLEANING SOLUTION 500ML | B48: SET | C48: 3 | D48: 0 | E48: 2 | F48: 1 | G48: 2,100.00 | H48: 2,100.00
A49: ACL. COPAS 0.5ML C/1000 | B49: CJA. | C49: 1 | D49: 0 | E49: 1 | F49: 0 | G49: 2,097.60 | H49: 0.00
A50: ACL. COPAS 2ML 1000/PK | B50: CJA. | C50: 1 | D50: 0 | E50: 1 | F50: 0 | G50: 4,702.80 | H50: 0.00
A51: ACL. LOW ABNORMAL CONT. 10X1ML | B51: SET | C51: 3 | D51: 0 | E51: 3 | F51: 0 | G51: 2,799.60 | H51: 0.00
A52: ACL. PLASMA CONTROL NORM 10X1ML | B52: CJA. | C52: 2 | D52: 0 | E52: 2 | F52: 0 | G52: 2,704.80 | H52: 0.00
A53: ACL. PT RGT-FIBRINOGENO 5+5X8ML | B53: CJA. | C53: 3 | D53: 0 | E53: 2 | F53: 1 | G53: 4,177.20 | H53: 4,177.20
A54: ACL. ROTORES C/100 | B54: CJA. | C54: 3 | D54: 0 | E54: 3 | F54: 0 | G54: 9,004.80 | H54: 0.00
A55: AGAR CITRATO DE SIMMONS | B55: FCO. | C55: 1 | D55: 0 | E55: 1 | F55: 0 | G55: 1,650.00 | H55: 0.00
A56: AGAR MACCONKEY | B56: FCO. | C56: 2 | D56: 1 | E56: 1 | F56: 2 | G56: 2,820.00 | H56: 5,640.00
A57: AGAR MANITOL SALT | B57: FCO. | C57: 1 | D57: 1 | E57: 1 | F57: 1 | G57: 2,325.00 | H57: 2,325.00
A58: AGAR MULLER HILTON | B58: FCO. | C58: 2 | D58: 2 | E58: 2 | F58: 2 | G58: 2,985.00 | H58: 5,970.00
A59: AGAR SABOURAUD CON CLORANFENICOL | B59: FCO. | C59: 0 | D59: 0 | E59: 0 | F59: 0 | G59: 4,890.00 | H59: 0.00
A60: AGAR SALMONELLA SCHIGUELLA | B60: FCO. | C60: 1 | D60: 0 | E60: 1 | F60: 0 | G60: 4,871.00 | H60: 0.00
A61: AGAR TRIPLE SUGAR IRON | B61: FCO. | C61: 1 | D61: 0 | E61: 1 | F61: 0 | G61: 3,575.00 | H61: 0.00
A62: AGAR TSA TRICTICASA SUGAR | B62: FCO. | C62: 1 | D62: 0 | E62: 1 | F62: 0 | G62: 3,650.00 | H62: 0.00
A63: AGUA BIDESTILADA | B63: GLN. | C63: 77 | D63: 112 | E63: 91 | F63: 98 | G63: 95.00 | H63: 9,310.00
A64: AGUJA P/VACUTANIER | B64: CJA. | C64: 0 | D64: 0 | E64: 0 | F64: 0 | G64: 950.00 | H64: 0.00
A65: AHBC ELISA-CORE | B65: SET | C65: 1 | D65: 0 | E65: 1 | F65: 0 | G65: 10,238.40 | H65: 0.00
A66: ALBUMINA BOVINA 22% | B66: FCO. | C66: 5 | D66: 0 | E66: 5 | F66: 0 | G66: 485.00 | H66: 0.00
A67: ALCOHOL ABSOLUTO --ETANOL | B67: GLN. | C67: 0 | D67: 5 | E67: 5 | F67: 0 | G67: 3,526.00 | H67: 0.00
A68: ALCOHOL ETILICO 95% | B68: GLN. | C68: 0 | D68: 8 | E68: 8 | F68: 0 | G68: 2,384.00 | H68: 0.00
A69: ALCOHOL ISOPROPILICO 70 | B69: GLN. | C69: 6 | D69: 6 | E69: 3 | F69: 9 | G69: 380.00 | H69: 3,420.00
A70: ALCOHOL PROPANO (PROPANOL II) | B70: GLN. | C70: 0 | D70: 0 | E70: 0 | F70: 0 | G70: 2,650.00 | H70: 0.00
A71: ALGODON | B71: ROLLO | C71: 23 | D71: 0 | E71: 15 | F71: 8 | G71: 51.64 | H71: 413.12
A72: AMILASA MANUAL | B72: SET | C72: 5 | D72: 0 | E72: 5 | F72: 0 | G72: 1,147.70 | H72: 0.00
A73: ANTI A | B73: FCO. | C73: 12 | D73: 0 | E73: 12 | F73: 0 | G73: 231.00 | H73: 0.00
A74: ANTI B | B74: FCO. | C74: 10 | D74: 0 | E74: 10 | F74: 0 | G74: 231.00 | H74: 0.00
A75: ANTI D | B75: FCO. | C75: 19 | D75: 0 | E75: 19 | F75: 0 | G75: 275.00 | H75: 0.00
A76: ANTI A-B | B76: FCO. | C76: 3 | D76: 0 | E76: 3 | F76: 0 | G76: 332.00 | H76: 0.00
A77: ANTI A-B-D | B77: SET | C77: 1 | D77: 0 | E77: 1 | F77: 0 | G77: 333.50 | H77: 0.00
A78: ANTI HUMANO COOMBS | B78: FCO. | C78: 5 | D78: 0 | E78: 5 | F78: 0 | G78: 840.00 | H78: 0.00
A79: ANTICUAGULANTE | B79: FCO. | C79: 32.0 | D79: 0 | E79: 31 | F79: 1 | G79: 170.00 | H79: 170.00
A80: ANTIGENO FEBRILES | B80: SET | C80: 2 | D80: 0 | E80: =C80+D80-F80 -> 2 | F80: 0 | G80: 2,950.00 | H80: =F80*G80 -> 0.00
A81: APLICADORES MADERA | B81: CJA. | C81: 21 | D81: 20 | E81: 32 | F81: 9 | G81: 493.00 | H81: 4,437.00
A82: ASA BACTERIOLOGICA 0.001 | B82: UNID. | C82: 5 | D82: 0 | E82: 4 | F82: 1 | G82: 4,210.00 | H82: 4,210.00
A83: ASA BACTERIOLOGICA 0.01 | B83: UNID. | C83: 2 | D83: 0 | E83: 2 | F83: 0 | G83: 4,210.00 | H83: 0.00
A84: ASO LATEX 150P | B84: SET | C84: 5 | D84: 2 | E84: 5 | F84: 2 | G84: 396.75 | H84: 793.50
A85: BAJANTE DE SANGRE | B85: UNID. | C85: 770 | D85: 0 | E85: 770 | F85: 0 | G85: 7.30 | H85: 0.00
A86: BALSAMO PARA PATOLOGIA | B86: FCO. | C86: 0 | D86: 2 | E86: 2 | F86: 0 | G86: 3,520.00 | H86: 0.00
A87: BANO DE COPRIM C/TAPA CRISTAL | B87: UNID. | C87: 0 | D87: 12 | E87: 0 | F87: 0 | G87: 4,060.00 | H87: 0.00
A88: BECKMAN ALBUMINA | B88: SET | C88: 1 | D88: 0 | E88: 1 | F88: 0 | G88: 5,479.28 | H88: 0.00
A89: BECKMAN ALT | B89: SET | C89: 1 | D89: 0 | E89: 1 | F89: 0 | G89: 7,773.00 | H89: 0.00
A90: BECKMAN AMILASA | B90: CJA. | C90: 1 | D90: 0 | E90: 1 | F90: 0 | G90: 14,085.14 | H90: 0.00
A91: BECKMAN AST | B91: SET | C91: 1 | D91: 0 | E91: 1 | F91: 0 | G91: 7,874.75 | H91: 0.00
A92: BECKMAN BIL-DIRECTA | B92: SET | C92: 1 | D92: 0 | E92: 1 | F92: 0 | G92: 6,062.75 | H92: 0.00
A93: BECKMAN CK-MB | B93: SET | C93: 1 | D93: 0 | E93: 1 | F93: 0 | G93: 32,368.31 | H93: 0.00
A94: BECKMAN COPA ADULTO 2.0 ML | B94: FDA. | C94: 2 | D94: 0 | E94: 2 | F94: 0 | G94: 2,290.45 | H94: 0.00
A95: BECKMAN COPA PEDIATRICAS 0.5 ML | B95: FDA. | C95: 1 | D95: 0 | E95: 1 | F95: 0 | G95: 2,893.21 | H95: 0.00
A96: BECKMAN CREATININA | B96: SET | C96: 2 | D96: 0 | E96: 2 | F96: 0 | G96: 5,601.80 | H96: 0.00
A97: BECKMAN ELECTROLITE REFERENCE | B97: CJA. | C97: 1 | D97: 0 | E97: 1 | F97: 0 | G97: 6,001.98 | H97: 0.00
A98: BECKMAN GLUCOSA | B98: SET | C98: 1 | D98: 0 | E98: 1 | F98: 0 | G98: 9,028.92 | H98: 0.00
A99: BECKMAN HIERRO | B99: SET | C99: 1 | D99: 0 | E99: 1 | F99: 0 | G99: 12,409.93 | H99: 0.00
A100: BECKMAN PROTEINA TOTAL | B100: SET | C100: 1 | D100: 0 | E100: 1 | F100: 0 | G100: 6,974.00 | H100: 0.00
A101: BECKMAN WASH CONCENTRADO II | B101: CJA. | C101: 1 | D101: 0 | E101: 1 | F101: 0 | G101: 11,905.00 | H101: 0.00
A102: BFT-II CUBETAS COAGULACION | B102: CJA. | C102: 2 | D102: 0 | E102: 2 | F102: 0 | G102: 11,776.80 | H102: 0.00
A103: BILIRRUBINA MANUAL | B103: SET | C103: 2 | D103: 0 | E103: 2 | F103: 0 | G103: 1,708.80 | H103: 0.00
A104: BIO WRIGHT 1 | B104: GLN. | C104: 2 | D104: 0 | E104: 2 | F104: 0 | G104: 1,382.00 | H104: 0.00
A105: BIO WRIGHT 2 | B105: GLN. | C105: 1 | D105: 0 | E105: 1 | F105: 0 | G105: 1,382.00 | H105: 0.00
A106: BIO WRIGHT 3 | B106: GLN. | C106: 1 | D106: 0 | E106: 1 | F106: 0 | G106: 1,382.00 | H106: 0.00
A107: BOLSA COLECTORAS DE SANGRE | B107: UNID. | C107: 275 | D107: 0 | E107: 195 | F107: 80 | G107: 38.69 | H107: 3,095.20
A108: BOLSAS DE SANGRE DOBLES | B108: UNID. | C108: 40 | D108: 0 | E108: 30 | F108: 10 | G108: 240.00 | H108: 2,400.00
A109: CASSETTE CON TAPA BLANCO | B109: CJA. | C109: 0 | D109: 0 | E109: 0 | F109: 0 | G109: 3,980.00 | H109: 0.00
A110: CASSETTE CON TAPA COLORES | B110: CJA. | C110: 0 | D110: 0 | E110: 0 | F110: 0 | G110: 3,880.00 | H110: 0.00
A111: CAPSULA P/PRUEBA DE ALIENTO C/100 | B111: CJA. | C111: 0 | D111: 2 | E111: 1 | F111: 1 | G111: 104,000.00 | H111: 104,000.00
A112: CIBA CORNING DESPROTEINIZANTE | B112: SET | C112: 1 | D112: 0 | E112: 1 | F112: 0 | G112: 1,800.00 | H112: 0.00
A113: CIBA CORNING MULTICALIBRADOR | B113: SET | C113: 1 | D113: 0 | E113: 1 | F113: 0 | G113: 8,800.00 | H113: 0.00
A114: CLIPS DE ALUMINIO P/ BOLSAS DE SANGRE | B114: CJA. | C114: 2 | D114: 0 | E114: 2 | F114: 0 | G114: 3,700.00 | H114: 0.00
A115: CLORURO DE CALCIO 15 ML | B115: FCO. | C115: 17 | D115: 0 | E115: 17 | F115: 0 | G115: 418.80 | H115: 0.00
A116: CLORURO DE SODIO 500G | B116: FCO. | C116: 3 | D116: 3 | E116: 5 | F116: 1 | G116: 2,485.00 | H116: 2,485.00
A117: COAGULASA PLASMA | B117: SET | C117: 0 | D117: 1 | E117: 0 | F117: 1 | G117: 3,180.00 | H117: 3,180.00
A118: CONTENEDOR D/BIOSEGURIDAD 3 L | B118: UNID. | C118: 5 | D118: 0 | E118: 5 | F118: 0 | G118: 1,400.00 | H118: 0.00
A119: CONTROL PARA COAGULACION | B119: FCO. | C119: 9 | D119: 0 | E119: 6 | F119: 3 | G119: 182.40 | H119: 547.20
A120: CONTROL EQAS | B120: SET | C120: 0 | D120: 0 | E120: 0 | F120: 0 | G120: 2,800.00 | H120: 0.00
A121: CORE ELISA IGM | B121: SET | C121: 3 | D121: 3 | E121: 5 | F121: 1 | G121: 9,818.00 | H121: 9,818.00
A122: CORE-HBC-AB TOTLA | B122: SET | C122: 3 | D122: 2 | E122: 3 | F122: 2 | G122: 9,818.00 | H122: 19,636.00
A123: CREATININA MANUAL | B123: SET | C123: 0 | D123: 0 | E123: 0 | F123: 0 | G123: 317.40 | H123: 0.00
A124: CREATININA MANUAL | B124: SET | C124: 1 | D124: 0 | E124: 0 | F124: 1 | G124: 2,134.00 | H124: 2,134.00
A125: CREATININA TECO | B125: SET | C125: 1 | D125: 3 | E125: 3 | F125: 1 | G125: 1,017.50 | H125: 1,017.50
A126: CUBRE OBJETO 22 X 22 (100UD) | B126: OZ | C126: 22 | D126: 60 | E126: 45 | F126: 37 | G126: 185.00 | H126: 6,845.00
A127: CUBRE OBJETO 22 X 40 | B127: OZ | C127: 0 | D127: 20 | E127: 20 | F127: 0 | G127: 185.00 | H127: 0.00
A128: CUBRE OBJETO 22 X 60 | B128: CJA. | C128: 0 | D128: 20 | E128: 20 | F128: 0 | G128: 185.00 | H128: 0.00
A129: CUBRE OBJETO 24 X 50 | B129: OZ | C129: 0 | D129: 20 | E129: 20 | F129: 0 | G129: 185.00 | H129: 0.00
A130: CUCHILLA P/MICROTOMO | B130: CJA. | C130: 0 | D130: 2 | E130: 2 | F130: 0 | G130: 12,150.00 | H130: 0.00
A131: CURITA REDONDA | B131: CJA. | C131: 8 | D131: 50 | E131: 13 | F131: 45 | G131: 145.00 | H131: 6,525.00
A132: DIMENSION ABS/ABSORBANCE | B132: SET | C132: 2 | D132: 0 | E132: 1 | F132: 1 | G132: 1,500.00 | H132: 1,500.00
A133: DIMENSION ACIDO URICO | B133: SET | C133: 2 | D133: 0 | E133: 1 | F133: 1 | G133: 8,700.00 | H133: 8,700.00
A134: DIMENSION ALBUMINA | B134: SET | C134: 1 | D134: 0 | E134: 0 | F134: 1 | G134: 8,700.00 | H134: 8,700.00
A135: DIMENSION ALT | B135: SET | C135: 2 | D135: 7 | E135: 6 | F135: 3 | G135: 4,350.00 | H135: 13,050.00
A136: DIMENSION ALP-FOSFATASA ALCALINA | B136: SET | C136: 3 | D136: 0 | E136: 1 | F136: 2 | G136: 6,530.00 | H136: 13,060.00
A137: DIMENSION AMILASA | B137: SET | C137: 2 | D137: 1 | E137: 2 | F137: 1 | G137: 5,250.00 | H137: 5,250.00
A138: DIMENSION AST/GOT | B138: SET | C138: 2 | D138: 2 | E138: 3 | F138: 1 | G138: 6,530.00 | H138: 6,530.00
A139: DIMENSION BILIRRUBINA DIRECTA | B139: SET | C139: 1 | D139: 0 | E139: 0 | F139: 1 | G139: 5,800.00 | H139: 5,800.00
A140: DIMENSION BILIRRUBINA TOTAL | B140: SET | C140: 4 | D140: 1 | E140: 4 | F140: 1 | G140: 8,700.00 | H140: 8,700.00
A141: DIMENSION CALCIO | B141: SET | C141: 1 | D141: 0 | E141: 1 | F141: 0 | G141: 8,700.00 | H141: 0.00
A142: DIMENSION CK | B142: SET | C142: 1 | D142: 0 | E142: 1 | F142: 0 | G142: 8,700.00 | H142: 0.00
A143: DIMENSION COLESTEROL | B143: SET | C143: 0 | D143: 3 | E143: 1 | F143: 2 | G143: 8,700.00 | H143: 17,400.00
A144: DIMENSION CREATININA | B144: SET | C144: 0 | D144: 7 | E144: 7 | F144: 0 | G144: 8,700.00 | H144: =F144*G144 -> 0.00
A145: DIMENSION FOSFORO | B145: SET | C145: 1 | D145: 0 | E145: =C145+D145-F145 -> 1 | F145: 0 | G145: 9,902.50 | H145: 0.00
A146: DIMENSION HBA1C+CAL | B146: SET | C146: 0 | D146: 5 | E146: 4 | F146: 1 | G146: 18,000.00 | H146: 18,000.00
A147: DIMENSION HDL C DIRECTO | B147: SET | C147: 1 | D147: 6 | E147: 3 | F147: 4 | G147: 11,880.00 | H147: 47,520.00
A148: DIMENSION GLUCOSA | B148: SET | C148: 2 | D148: 0 | E148: 1 | F148: 1 | G148: 26,100.00 | H148: 26,100.00
A149: DIMENSION LDH | B149: SET | C149: 0 | D149: 0 | E149: 0 | F149: 0 | G149: 9,902.50 | H149: 0.00
A150: DIMENSION LIPASA | B150: SET | C150: 2 | D150: 0 | E150: 2 | F150: 0 | G150: 2,178.00 | H150: 0.00
A151: DIMENSION PROTEINA TOTAL | B151: SET | C151: 0 | D151: 3 | E151: 0 | F151: 3 | G151: 8,700.00 | H151: 26,100.00
A152: DIMENSION PROTEINA EN ORINA-LCF/UCFP | B152: SET | C152: 1 | D152: 0 | E152: 1 | F152: 0 | G152: 1,450.00 | H152: 0.00
A153: DIMENSION TRIGLICERIDO | B153: SET | C153: 1 | D153: 0 | E153: 0 | F153: 1 | G153: 8,700.00 | H153: 8,700.00
A154: DIMENSION UREA/BUN | B154: SET | C154: 0 | D154: 5 | E154: 1 | F154: 4 | G154: 8,700.00 | H154: 34,800.00
A155: DS ACIDO NALIDIXICO | B155: FCO. | C155: 1 | D155: 0 | E155: 1 | F155: 0 | G155: 148.00 | H155: 0.00
A156: DS AMIKACINA | B156: FCO. | C156: 3 | D156: 0 | E156: 0 | F156: 3 | G156: 160.00 | H156: 480.00
A157: DS AMOXICILINA CON ACIDO CLAVULANICO | B157: FCO. | C157: 6 | D157: 3 | E157: 7 | F157: 2 | G157: 160.00 | H157: 320.00
A158: DS AMPICILINA | B158: FCO. | C158: 2 | D158: 0 | E158: 2 | F158: 0 | G158: 151.00 | H158: 0.00
A159: DS CEFEPIME | B159: FCO. | C159: 3 | D159: 4 | E159: 4 | F159: 3 | G159: 160.00 | H159: 480.00
A160: DS CEFOTAXIMA | B160: FCO. | C160: 2 | D160: 3 | E160: 2 | F160: 3 | G160: 160.00 | H160: 480.00
A161: DS CEFTAXIDIME | B161: FCO. | C161: 5 | D161: 2 | E161: 3 | F161: 4 | G161: 160.00 | H161: 640.00
A162: DS CEFUROXIME | B162: FCO. | C162: 7 | D162: 0 | E162: 6 | F162: 1 | G162: 160.00 | H162: 160.00
A163: DS CETRIAZONE | B163: FCO. | C163: 3 | D163: 0 | E163: 3 | F163: 0 | G163: 160.00 | H163: 0.00
A164: DS CIPROFLOXACINA | B164: FCO. | C164: 2 | D164: 5 | E164: 6 | F164: 1 | G164: 148.00 | H164: 148.00
A165: DS CLINDAMICINA | B165: FCO. | C165: 2 | D165: 3 | E165: 4 | F165: 1 | G165: 151.00 | H165: 151.00
A166: DS ERITROMICINA | B166: FCO. | C166: 3 | D166: 0 | E166: 2 | F166: 1 | G166: 160.00 | H166: 160.00
A167: DS FURADANTINA | B167: FCO. | C167: 1 | D167: 0 | E167: 1 | F167: 0 | G167: 148.00 | H167: 0.00
A168: DS GENTAMICINA | B168: FCO. | C168: 4 | D168: 3 | E168: 4 | F168: 3 | G168: 160.00 | H168: 480.00
A169: DS IMIPENEN | B169: FCO. | C169: 1 | D169: 5 | E169: 4 | F169: 2 | G169: 151.00 | H169: 302.00
A170: DS NITROFURADANTINA | B170: FCO. | C170: 2 | D170: 0 | E170: 1 | F170: 1 | G170: 151.00 | H170: 151.00
A171: DS LEVOFLOXACIN VOL. 50 | B171: UNID. | C171: 3 | D171: 2 | E171: 4 | F171: 1 | G171: 160.00 | H171: 160.00
A172: DS NOVOBIACIN | B172: UNID. | C172: 0 | D172: 1 | E172: 1 | F172: 0 | G172: 396.00 | H172: 0.00
A173: DS OPTOQUIN | B173: UNID. | C173: 0 | D173: 1 | E173: 1 | F173: 0 | G173: 160.00 | H173: 0.00
A174: DS NORFLOXACIN | B174: FCO. | C174: 4 | D174: 0 | E174: 3 | F174: 1 | G174: 148.00 | H174: 148.00
A175: DS VANCOMYCINA | B175: FCO. | C175: 3 | D175: 0 | E175: 2 | F175: 1 | G175: 160.00 | H175: 160.00
A176: DS OXALACIN | B176: FCO. | C176: 1 | D176: 0 | E176: 1 | F176: 0 | G176: 120.00 | H176: 0.00
A177: DS OXIDASA | B177: FCO. | C177: 1 | D177: 1 | E177: 2 | F177: 0 | G177: 148.00 | H177: 0.00
A178: DS PIPERACILINA C/ TAZOBAN | B178: FCO. | C178: 3 | D178: 0 | E178: 1 | F178: 2 | G178: 148.00 | H178: 296.00
A179: DS TETRACICLINA | B179: FCO. | C179: 2 | D179: 2 | E179: 4 | F179: 0 | G179: 151.00 | H179: 0.00
A180: DS TOBRAMICINA | B180: FCO. | C180: 4 | D180: 2 | E180: 2 | F180: 4 | G180: 160.00 | H180: 640.00
A181: DS TRIMETROPIN SULFA | B181: FCO. | C181: 4 | D181: 0 | E181: 0 | F181: 4 | G181: 160.00 | H181: 640.00
A182: EASYLYTE MEDICA CALC.RINSE (CLEANING) | B182: SET | C182: 1 | D182: 0 | E182: 1 | F182: 0 | G182: 2,304.00 | H182: 0.00
A183: EASYLYTE MEDICA NA/K/CL 400 ML | B183: SET | C183: 2 | D183: 1 | E183: 1 | F183: 2 | G183: 13,650.00 | H183: 27,300.00
A184: EASYLYTE PAPEL BTS 2x3 | B184: UNID. | C184: 7 | D184: 0 | E184: 7 | F184: 0 | G184: 157.20 | H184: 0.00
A185: ELERMEYER 2000 ML | B185: UNID. | C185: 2 | D185: 0 | E185: 2 | F185: 0 | G185: 1,750.00 | H185: 0.00
A186: ENVASES ESTERILES 100/1 | B186: CJA. | C186: 5 | D186: 10 | E186: 15 | F186: 0 | G186: 1,300.00 | H186: 0.00
A187: ENVACES P/MUESTRA DE ORINA | B187: PAQ. | C187: 0 | D187: 100 | E187: 100 | F187: 0 | G187: 120.00 | H187: 0.00
A188: ESCOBILLAS P/LAVAR TUBOS PEQUEÑA | B188: UNID. | C188: 10 | D188: 10 | E188: 20 | F188: 0 | G188: 60.00 | H188: 0.00
A189: FACTOR REUMATOIDE | B189: SET | C189: 3 | D189: 5 | E189: 5 | F189: 3 | G189: 1,606.80 | H189: 4,820.40
A190: FACTOR REUMATOIDE | B190: SET | C190: 2 | D190: 0 | E190: 2 | F190: 0 | G190: 398.40 | H190: 0.00
A191: FORMOL | B191: GLN. | C191: 0 | D191: 10 | E191: 0 | F191: 0 | G191: 1,385.00 | H191: 0.00
A192: FIBRINOGENO | B192: FCO. | C192: 2 | D192: 0 | E192: 2 | F192: 0 | G192: 2,925.60 | H192: 0.00
A193: FRASCO DE 60ML | B193: UNID. | C193: 100 | D193: 0 | E193: 100 | F193: 0 | G193: 8.60 | H193: 0.00
A194: FRASCO HEMOCULTIVO ADULTO | B194: UNID. | C194: 70 | D194: 0 | E194: 70 | F194: 0 | G194: 155.00 | H194: 0.00
A195: FRASCO HEMOCULTIVO PEDIATRICO | B195: UNID. | C195: 70 | D195: 0 | E195: 50 | F195: 20 | G195: 130.00 | H195: 2,600.00
A196: FRASCOS P/ CITOLOGIA | B196: PAQ. | C196: 2 | D196: 0 | E196: 2 | F196: 0 | G196: 950.00 | H196: 0.00
A197: FRASCOS P/COPROLOGICOS | B197: UNID. | C197: 10,000 | D197: 0 | E197: 10,000 | F197: 0 | G197: 5.90 | H197: 0.00
A198: FUSINA | B198: FCO. | C198: 0 | D198: 0 | E198: 0 | F198: 0 | G198: 6,500.00 | H198: 0.00
A199: GASA | B199: ROLLO | C199: 0 | D199: 0 | E199: 0 | F199: 0 | G199: 925.00 | H199: 0.00
A200: GASA | B200: PAQ. | C200: 21 | D200: 0 | E200: 15 | F200: 6 | G200: 366.85 | H200: 2,201.10
A201: GLOBO P/MUESTRA PRUUEBA DE ALIENTO | B201: UNID. | C201: 0 | D201: 2 | E201: 1 | F201: 1 | G201: 5,675.00 | H201: 5,675.00
A202: GLUCOLA | B202: FCO. | C202: 25 | D202: 30 | E202: 43 | F202: 12 | G202: 203.50 | H202: 2,442.00
A203: GLUCOSA LIQUIDA 300P Q.C.A | B203: SET | C203: 1 | D203: 3 | E203: 4 | F203: 0 | G203: 1,530.10 | H203: 0.00
A204: GLUCOSA MANUAL | B204: SET | C204: 7 | D204: 0 | E204: 6 | F204: 1 | G204: 2,272.00 | H204: 2,272.00
... 189 more rows

Sheet INV. JULIO ADM)
A4: República Dominicana
A5: Ministerio de Salud Pública y Asistencia Social
A6: Informe Mensual de Almacén General, Despensa y Medicina
A7: ALMACEN | B7: LABORATORIO
A8: ESTABLECIMIENTO | B8: CENTRO DE GASTROENTEROLOGIA | E8: REGION | F8: 0
A9: AREA DE SALUD | E9: MES | F9: JULIO | G9: AÑO | H9: 2012
A11: ARTICULO | B11: UNIDAD | C11: EXISTENCIA ANTERIOR | D11: ENTRADA | E11: EXISTENCIA | F11: TOTAL CONSUMIDOS (3+4)-5 | G11: VALOR UNITARIO | H11: VALOR TOTAL
C12: ANTERIOR | E12: FINAL | F12: CONSUMIDO | G12: UNITARIO | H12: TOTAL
A13: -1- | C13: 3 | D13: -4- | E13: -5- | F13: (3+4)-5 | G13: -7- | H13: (6X7)
A14: ABX CONTROL HEMATOLOGICO 3/1 | B14: SET | C14: 2 | D14: 2 | E14: =C14+D14-F14 -> 4 | F14: 0 | G14: 10,143.00 | H14: =E14*G14 -> 40,572.00
A15: ABX MINOLYSE | B15: FCO. | C15: 4 | D15: 7 | E15: =C15+D15-F15 -> 6 | F15: 5 | G15: 20,481.00 | H15: =E15*G15 -> 122,886.00
A16: ABX MINOTON | B16: CJA. | C16: 7 | D16: 9 | E16: =C16+D16-F16 -> 10 | F16: 6 | G16: 15,130.00 | H16: =E16*G16 -> 151,300.00
A17: ABXPENTRA ACIDO URICO | B17: FCO. | C17: 2 | D17: 1 | E17: 2 | F17: 1 | G17: 8,132.00 | H17: 16,264.00
A18: ABXPENTRA ALBUMINA | B18: FCO. | C18: 1 | D18: 0 | E18: 0 | F18: 1 | G18: 12,456.00 | H18: 0.00
A19: ABXPENTRA ALP | B19: FCO. | C19: 0 | D19: 3 | E19: 2 | F19: 1 | G19: 4,620.00 | H19: 9,240.00
A20: ABXPENTRA ALT | B20: FCO. | C20: 1 | D20: 2 | E20: 2 | F20: 1 | G20: 8,000.00 | H20: 16,000.00
A21: ABXPENTRA AMILASA | B21: FCO. | C21: 1 | D21: 1 | E21: 1 | F21: 1 | G21: 4,000.00 | H21: 4,000.00
A22: ABXPENTRA AST | B22: FCO. | C22: 4 | D22: 2 | E22: 4 | F22: 2 | G22: 9,240.00 | H22: 36,960.00
A23: ABXPENTRA BILIRRUBINA DIRECTA | B23: FCO. | C23: 0 | D23: 2 | E23: 2 | F23: 0 | G23: 3,696.00 | H23: 7,392.00
A24: ABXPENTRA BILIRRUBINA TOTAL | B24: FCO. | C24: 0 | D24: 3 | E24: 3 | F24: 0 | G24: 6,400.00 | H24: 19,200.00
A25: ABXPENTRA CALCIO | B25: FCO. | C25: 1 | D25: 0 | E25: 1 | F25: 0 | G25: 9,240.00 | H25: 9,240.00
A26: ABXPENTRA COLESTEROL | B26: FCO. | C26: 5 | D26: 2 | E26: 5 | F26: 2 | G26: 12,416.00 | H26: 62,080.00 | J26: ]
A27: ABXPENTRA CREATININA | B27: FCO. | C27: 5 | D27: 3 | E27: 5 | F27: 3 | G27: 4,436.00 | H27: 22,180.00
A28: ABXPENTRA DESPROTEINIZANTE | B28: FCO. | C28: 1 | D28: 2 | E28: 3 | F28: 0 | G28: 2,500.00 | H28: 7,500.00
A29: ABXPENTRA FOSFORO | B29: FCO. | C29: 2 | D29: 0 | E29: 2 | F29: 0 | G29: 3,696.00 | H29: 7,392.00
A30: ABXPENTRA GGT | B30: FCO. | C30: 2 | D30: 0 | E30: 1 | F30: 1 | G30: 9,240.00 | H30: 9,240.00
A31: ABXPENTRA GLUCOSA | B31: FCO. | C31: 3 | D31: 2 | E31: 3 | F31: 2 | G31: 10,688.00 | H31: 32,064.00
A32: ABXPENTRA HDL | B32: FCO. | C32: 4 | D32: 1 | E32: 4 | F32: 1 | G32: 7,680.00 | H32: 30,720.00
A33: ABXPENTRA LDH | B33: FCO. | C33: 3 | D33: 1 | E33: 3 | F33: 1 | G33: 4,000.00 | H33: 12,000.00
A34: ABXPENTRA LIPASA | B34: FCO. | C34: 4 | D34: 0 | E34: 4 | F34: 0 | G34: 3,200.00 | H34: 12,800.00
A35: ABXPENTRA PROTEINA TOTAL | B35: FCO. | C35: 1 | D35: 2 | E35: 1 | F35: 2 | G35: 11,088.00 | H35: 11,088.00
A36: ABXPENTRA TRIGLICERIDO | B36: FCO. | C36: 1 | D36: 3 | E36: 2 | F36: 2 | G36: 12,344.00 | H36: 24,688.00
A37: ABXPENTRA UREA/BUN | B37: FCO. | C37: 6 | D37: 3 | E37: 7 | F37: 2 | G37: 8,132.00 | H37: 56,924.00
A38: ACEITE DE INMERSION | B38: FCO. | C38: 1 | D38: 0 | E38: 1 | F38: 0 | G38: 1,380.00 | H38: 1,380.00
A39: ACETONA | B39: GLN. | C39: 0 | D39: 8 | E39: 8 | F39: 0 | G39: 950.00 | H39: 7,600.00
A40: ACIDO URICO MANUAL | B40: SET | C40: 3 | D40: 0 | E40: 3 | F40: 0 | G40: 2,780.00 | H40: 8,340.00
A41: ACIDO URICO MANUAL | B41: SET | C41: 3 | D41: 0 | E41: 3 | F41: 0 | G41: 522.00 | H41: 1,566.00
A42: ACIDO ACETICO GLACIAL | B42: GLN. | C42: 0 | D42: 0 | E42: 0 | F42: 0 | G42: 3,550.00 | H42: 0.00
A43: ACL DILUYENTE FACTORES 100ML | B43: FCO. | C43: 3 | D43: 0 | E43: 3 | F43: 0 | G43: 744.00 | H43: 2,232.00
A44: ACL HIGH ABNORMAL CONT 10X1ML | B44: CJA. | C44: 3 | D44: 0 | E44: 2 | F44: 1 | G44: 3,060.00 | H44: 6,120.00
A45: ACL. WASH EMULSION | B45: FCO. | C45: 2 | D45: 0 | E45: 0 | F45: 2 | G45: 778.80 | H45: 0.00
A46: ACL. APTT. 5+5X5X8 | B46: CJA. | C46: 5 | D46: 0 | E46: 4 | F46: 1 | G46: 3,646.80 | H46: 14,587.20
A47: ACL. CALIBRADOR PLASMA | B47: CJA. | C47: 4 | D47: 0 | E47: 4 | F47: 0 | G47: 3,541.20 | H47: 14,164.80
A48: ACL. CLEANING SOLUTION 500ML | B48: SET | C48: 3 | D48: 0 | E48: 2 | F48: 1 | G48: 2,100.00 | H48: 4,200.00
A49: ACL. COPAS 0.5ML C/1000 | B49: CJA. | C49: 1 | D49: 0 | E49: 1 | F49: 0 | G49: 2,097.60 | H49: 2,097.60
A50: ACL. COPAS 2ML 1000/PK | B50: CJA. | C50: 1 | D50: 0 | E50: 1 | F50: 0 | G50: 4,702.80 | H50: 4,702.80
A51: ACL. LOW ABNORMAL CONT. 10X1ML | B51: SET | C51: 3 | D51: 0 | E51: 3 | F51: 0 | G51: 2,799.60 | H51: 8,398.80
A52: ACL. PLASMA CONTROL NORM 10X1ML | B52: CJA. | C52: 2 | D52: 0 | E52: 2 | F52: 0 | G52: 2,704.80 | H52: 5,409.60
A53: ACL. PT RGT-FIBRINOGENO 5+5X8ML | B53: CJA. | C53: 3 | D53: 0 | E53: 2 | F53: 1 | G53: 4,177.20 | H53: 8,354.40
A54: ACL. ROTORES C/100 | B54: CJA. | C54: 3 | D54: 0 | E54: 3 | F54: 0 | G54: 9,004.80 | H54: 27,014.40
A55: AGAR CITRATO DE SIMMONS | B55: FCO. | C55: 1 | D55: 0 | E55: 1 | F55: 0 | G55: 1,650.00 | H55: 1,650.00
A56: AGAR MACCONKEY | B56: FCO. | C56: 2 | D56: 1 | E56: 1 | F56: 2 | G56: 2,820.00 | H56: 2,820.00
A57: AGAR MANITOL SALT | B57: FCO. | C57: 1 | D57: 1 | E57: 1 | F57: 1 | G57: 2,325.00 | H57: 2,325.00
A58: AGAR MULLER HILTON | B58: FCO. | C58: 2 | D58: 2 | E58: 2 | F58: 2 | G58: 2,985.00 | H58: 5,970.00
A59: AGAR SABOURAUD CON CLORANFENICOL | B59: FCO. | C59: 0 | D59: 0 | E59: 0 | F59: 0 | G59: 4,890.00 | H59: 0.00
A60: AGAR SALMONELLA SCHIGUELLA | B60: FCO. | C60: 1 | D60: 0 | E60: 1 | F60: 0 | G60: 4,871.00 | H60: 4,871.00
A61: AGAR TRIPLE SUGAR IRON | B61: FCO. | C61: 1 | D61: 0 | E61: 1 | F61: 0 | G61: 3,575.00 | H61: 3,575.00
A62: AGAR TSA TRICTICASA SUGAR | B62: FCO. | C62: 1 | D62: 0 | E62: 1 | F62: 0 | G62: 3,650.00 | H62: 3,650.00
A63: AGUA BIDESTILADA | B63: GLN. | C63: 77 | D63: 112 | E63: 91 | F63: 98 | G63: 95.00 | H63: 8,645.00
A64: AGUJA P/VACUTANIER | B64: CJA. | C64: 0 | D64: 0 | E64: 0 | F64: 0 | G64: 950.00 | H64: 0.00
A65: AHBC ELISA-CORE | B65: SET | C65: 1 | D65: 0 | E65: 1 | F65: 0 | G65: 10,238.40 | H65: 10,238.40
A66: ALBUMINA BOVINA 22% | B66: FCO. | C66: 5 | D66: 0 | E66: 5 | F66: 0 | G66: 485.00 | H66: 2,425.00
A67: ALCOHOL ABSOLUTO --ETANOL | B67: GLN. | C67: 0 | D67: 5 | E67: 5 | F67: 0 | G67: 3,526.00 | H67: 17,630.00
A68: ALCOHOL ETILICO 95% | B68: GLN. | C68: 0 | D68: 8 | E68: 8 | F68: 0 | G68: 2,384.00 | H68: 19,072.00
A69: ALCOHOL ISOPROPILICO 70 | B69: GLN. | C69: 6 | D69: 6 | E69: 3 | F69: 9 | G69: 380.00 | H69: 1,140.00
A70: ALCOHOL PROPANO (PROPANOL II) | B70: GLN. | C70: 0 | D70: 0 | E70: 0 | F70: 0 | G70: 2,650.00 | H70: 0.00
A71: ALGODON | B71: ROLLO | C71: 23 | D71: 0 | E71: 15 | F71: 8 | G71: 51.64 | H71: 774.60
A72: AMILASA MANUAL | B72: SET | C72: 5 | D72: 0 | E72: 5 | F72: 0 | G72: 1,147.70 | H72: 5,738.50
A73: ANTI A | B73: FCO. | C73: 12 | D73: 0 | E73: 12 | F73: 0 | G73: 231.00 | H73: 2,772.00
A74: ANTI B | B74: FCO. | C74: 10 | D74: 0 | E74: 10 | F74: 0 | G74: 231.00 | H74: 2,310.00
A75: ANTI D | B75: FCO. | C75: 19 | D75: 0 | E75: 19 | F75: 0 | G75: 275.00 | H75: 5,225.00
A76: ANTI A-B | B76: FCO. | C76: 3 | D76: 0 | E76: 3 | F76: 0 | G76: 332.00 | H76: 996.00
A77: ANTI A-B-D | B77: SET | C77: 1 | D77: 0 | E77: 1 | F77: 0 | G77: 333.50 | H77: 333.50
A78: ANTI HUMANO COOMBS | B78: FCO. | C78: 5 | D78: 0 | E78: 5 | F78: 0 | G78: 840.00 | H78: 4,200.00
A79: ANTICUAGULANTE | B79: FCO. | C79: 32.0 | D79: 0 | E79: 31 | F79: 1 | G79: 170.00 | H79: 5,270.00
A80: ANTIGENO FEBRILES | B80: SET | C80: 2 | D80: 0 | E80: =C80+D80-F80 -> 2 | F80: 0 | G80: 2,950.00 | H80: =E80*G80 -> 5,900.00
A81: APLICADORES MADERA | B81: CJA. | C81: 21 | D81: 20 | E81: 32 | F81: 9 | G81: 493.00 | H81: 15,776.00
A82: ASA BACTERIOLOGICA 0.001 | B82: UNID. | C82: 5 | D82: 0 | E82: 4 | F82: 1 | G82: 4,210.00 | H82: 16,840.00
A83: ASA BACTERIOLOGICA 0.01 | B83: UNID. | C83: 2 | D83: 0 | E83: 2 | F83: 0 | G83: 4,210.00 | H83: 8,420.00
A84: ASO LATEX 150P | B84: SET | C84: 5 | D84: 2 | E84: 5 | F84: 2 | G84: 396.75 | H84: 1,983.75
A85: BAJANTE DE SANGRE | B85: UNID. | C85: 770 | D85: 0 | E85: 770 | F85: 0 | G85: 7.30 | H85: 5,621.00
A86: BALSAMO PARA PATOLOGIA | B86: FCO. | C86: 0 | D86: 2 | E86: 2 | F86: 0 | G86: 3,520.00 | H86: 7,040.00
A87: BANO DE COPRIM C/TAPA CRISTAL | B87: UNID. | C87: 0 | D87: 12 | E87: 0 | F87: 0 | G87: 4,060.00 | H87: 0.00
A88: BECKMAN ALBUMINA | B88: SET | C88: 1 | D88: 0 | E88: 1 | F88: 0 | G88: 5,479.28 | H88: 5,479.28
A89: BECKMAN ALT | B89: SET | C89: 1 | D89: 0 | E89: 1 | F89: 0 | G89: 7,773.00 | H89: 7,773.00
A90: BECKMAN AMILASA | B90: CJA. | C90: 1 | D90: 0 | E90: 1 | F90: 0 | G90: 14,085.14 | H90: 14,085.14
A91: BECKMAN AST | B91: SET | C91: 1 | D91: 0 | E91: 1 | F91: 0 | G91: 7,874.75 | H91: 7,874.75
A92: BECKMAN BIL-DIRECTA | B92: SET | C92: 1 | D92: 0 | E92: 1 | F92: 0 | G92: 6,062.75 | H92: 6,062.75
A93: BECKMAN CK-MB | B93: SET | C93: 1 | D93: 0 | E93: 1 | F93: 0 | G93: 32,368.31 | H93: 32,368.31
A94: BECKMAN COPA ADULTO 2.0 ML | B94: FDA. | C94: 2 | D94: 0 | E94: 2 | F94: 0 | G94: 2,290.45 | H94: 4,580.90
A95: BECKMAN COPA PEDIATRICAS 0.5 ML | B95: FDA. | C95: 1 | D95: 0 | E95: 1 | F95: 0 | G95: 2,893.21 | H95: 2,893.21
A96: BECKMAN CREATININA | B96: SET | C96: 2 | D96: 0 | E96: 2 | F96: 0 | G96: 5,601.80 | H96: 11,203.60
A97: BECKMAN ELECTROLITE REFERENCE | B97: CJA. | C97: 1 | D97: 0 | E97: 1 | F97: 0 | G97: 6,001.98 | H97: 6,001.98
A98: BECKMAN GLUCOSA | B98: SET | C98: 1 | D98: 0 | E98: 1 | F98: 0 | G98: 9,028.92 | H98: 9,028.92
A99: BECKMAN HIERRO | B99: SET | C99: 1 | D99: 0 | E99: 1 | F99: 0 | G99: 12,409.93 | H99: 12,409.93
A100: BECKMAN PROTEINA TOTAL | B100: SET | C100: 1 | D100: 0 | E100: 1 | F100: 0 | G100: 6,974.00 | H100: 6,974.00
A101: BECKMAN WASH CONCENTRADO II | B101: CJA. | C101: 1 | D101: 0 | E101: 1 | F101: 0 | G101: 11,905.00 | H101: 11,905.00
A102: BFT-II CUBETAS COAGULACION | B102: CJA. | C102: 2 | D102: 0 | E102: 2 | F102: 0 | G102: 11,776.80 | H102: 23,553.60
A103: BILIRRUBINA MANUAL | B103: SET | C103: 2 | D103: 0 | E103: 2 | F103: 0 | G103: 1,708.80 | H103: 3,417.60
A104: BIO WRIGHT 1 | B104: GLN. | C104: 2 | D104: 0 | E104: 2 | F104: 0 | G104: 1,382.00 | H104: 2,764.00
A105: BIO WRIGHT 2 | B105: GLN. | C105: 1 | D105: 0 | E105: 1 | F105: 0 | G105: 1,382.00 | H105: 1,382.00
A106: BIO WRIGHT 3 | B106: GLN. | C106: 1 | D106: 0 | E106: 1 | F106: 0 | G106: 1,382.00 | H106: 1,382.00
A107: BOLSA COLECTORAS DE SANGRE | B107: UNID. | C107: 275 | D107: 0 | E107: 195 | F107: 80 | G107: 38.69 | H107: 7,544.55
A108: BOLSAS DE SANGRE DOBLES | B108: UNID. | C108: 40 | D108: 0 | E108: 30 | F108: 10 | G108: 240.00 | H108: 7,200.00
A109: CASSETTE CON TAPA BLANCO | B109: CJA. | C109: 0 | D109: 0 | E109: 0 | F109: 0 | G109: 3,980.00 | H109: 0.00
A110: CASSETTE CON TAPA COLORES | B110: CJA. | C110: 0 | D110: 0 | E110: 0 | F110: 0 | G110: 3,880.00 | H110: 0.00
A111: CAPSULA P/PRUEBA DE ALIENTO C/100 | B111: CJA. | C111: 0 | D111: 2 | E111: 1 | F111: 1 | G111: 104,000.00 | H111: 104,000.00
A112: CIBA CORNING DESPROTEINIZANTE | B112: SET | C112: 1 | D112: 0 | E112: 1 | F112: 0 | G112: 1,800.00 | H112: 1,800.00
A113: CIBA CORNING MULTICALIBRADOR | B113: SET | C113: 1 | D113: 0 | E113: 1 | F113: 0 | G113: 8,800.00 | H113: 8,800.00
A114: CLIPS DE ALUMINIO P/ BOLSAS DE SANGRE | B114: CJA. | C114: 2 | D114: 0 | E114: 2 | F114: 0 | G114: 3,700.00 | H114: 7,400.00
A115: CLORURO DE CALCIO 15 ML | B115: FCO. | C115: 17 | D115: 0 | E115: 17 | F115: 0 | G115: 418.80 | H115: 7,119.60
A116: CLORURO DE SODIO 500G | B116: FCO. | C116: 3 | D116: 3 | E116: 5 | F116: 1 | G116: 2,485.00 | H116: 12,425.00
A117: COAGULASA PLASMA | B117: SET | C117: 0 | D117: 1 | E117: 0 | F117: 1 | G117: 3,180.00 | H117: 0.00
A118: CONTENEDOR D/BIOSEGURIDAD 3 L | B118: UNID. | C118: 5 | D118: 0 | E118: 5 | F118: 0 | G118: 1,400.00 | H118: 7,000.00
A119: CONTROL PARA COAGULACION | B119: FCO. | C119: 9 | D119: 0 | E119: 6 | F119: 3 | G119: 182.40 | H119: 1,094.40
A120: CONTROL EQAS | B120: SET | C120: 0 | D120: 0 | E120: 0 | F120: 0 | G120: 2,800.00 | H120: 0.00
A121: CORE ELISA IGM | B121: SET | C121: 3 | D121: 3 | E121: 5 | F121: 1 | G121: 9,818.00 | H121: 49,090.00
A122: CORE-HBC-AB TOTLA | B122: SET | C122: 3 | D122: 2 | E122: 3 | F122: 2 | G122: 9,818.00 | H122: 29,454.00
A123: CREATININA MANUAL | B123: SET | C123: 0 | D123: 0 | E123: 0 | F123: 0 | G123: 317.40 | H123: 0.00
A124: CREATININA MANUAL | B124: SET | C124: 1 | D124: 0 | E124: 0 | F124: 1 | G124: 2,134.00 | H124: 0.00
A125: CREATININA TECO | B125: SET | C125: 1 | D125: 3 | E125: 3 | F125: 1 | G125: 1,017.50 | H125: 3,052.50
A126: CUBRE OBJETO 22 X 22 (100UD) | B126: OZ | C126: 22 | D126: 60 | E126: 45 | F126: 37 | G126: 185.00 | H126: 8,325.00
A127: CUBRE OBJETO 22 X 40 | B127: OZ | C127: 0 | D127: 20 | E127: 20 | F127: 0 | G127: 185.00 | H127: 3,700.00
A128: CUBRE OBJETO 22 X 60 | B128: CJA. | C128: 0 | D128: 20 | E128: 20 | F128: 0 | G128: 185.00 | H128: 3,700.00
A129: CUBRE OBJETO 24 X 50 | B129: OZ | C129: 0 | D129: 20 | E129: 20 | F129: 0 | G129: 185.00 | H129: 3,700.00
A130: CUCHILLA P/MICROTOMO | B130: CJA. | C130: 0 | D130: 2 | E130: 2 | F130: 0 | G130: 12,150.00 | H130: 24,300.00
A131: CURITA REDONDA | B131: CJA. | C131: 8 | D131: 50 | E131: 13 | F131: 45 | G131: 145.00 | H131: 1,885.00
A132: DIMENSION ABS/ABSORBANCE | B132: SET | C132: 2 | D132: 0 | E132: 1 | F132: 1 | G132: 1,500.00 | H132: 1,500.00
A133: DIMENSION ACIDO URICO | B133: SET | C133: 2 | D133: 0 | E133: 1 | F133: 1 | G133: 8,700.00 | H133: 8,700.00
A134: DIMENSION ALBUMINA | B134: SET | C134: 1 | D134: 0 | E134: 0 | F134: 1 | G134: 8,700.00 | H134: 0.00
A135: DIMENSION ALT | B135: SET | C135: 2 | D135: 7 | E135: 6 | F135: 3 | G135: 4,350.00 | H135: 26,100.00
A136: DIMENSION ALP-FOSFATASA ALCALINA | B136: SET | C136: 3 | D136: 0 | E136: 1 | F136: 2 | G136: 6,530.00 | H136: 6,530.00
A137: DIMENSION AMILASA | B137: SET | C137: 2 | D137: 1 | E137: 2 | F137: 1 | G137: 5,250.00 | H137: 10,500.00
A138: DIMENSION AST/GOT | B138: SET | C138: 2 | D138: 2 | E138: 3 | F138: 1 | G138: 6,530.00 | H138: 19,590.00
A139: DIMENSION BILIRRUBINA DIRECTA | B139: SET | C139: 1 | D139: 0 | E139: 0 | F139: 1 | G139: 5,800.00 | H139: 0.00
A140: DIMENSION BILIRRUBINA TOTAL | B140: SET | C140: 4 | D140: 1 | E140: 4 | F140: 1 | G140: 8,700.00 | H140: 34,800.00
A141: DIMENSION CALCIO | B141: SET | C141: 1 | D141: 0 | E141: 1 | F141: 0 | G141: 8,700.00 | H141: 8,700.00
A142: DIMENSION CK | B142: SET | C142: 1 | D142: 0 | E142: 1 | F142: 0 | G142: 8,700.00 | H142: 8,700.00
A143: DIMENSION COLESTEROL | B143: SET | C143: 0 | D143: 3 | E143: 1 | F143: 2 | G143: 8,700.00 | H143: 8,700.00
A144: DIMENSION CREATININA | B144: SET | C144: 0 | D144: 7 | E144: 7 | F144: 0 | G144: 8,700.00 | H144: 60,900.00
A145: DIMENSION FOSFORO | B145: SET | C145: 1 | D145: 0 | E145: =C145+D145-F145 -> 1 | F145: 0 | G145: 9,902.50 | H145: =E145*G145 -> 9,902.50
A146: DIMENSION HBA1C+CAL | B146: SET | C146: 0 | D146: 5 | E146: 4 | F146: 1 | G146: 18,000.00 | H146: 72,000.00
A147: DIMENSION HDL C DIRECTO | B147: SET | C147: 1 | D147: 6 | E147: 3 | F147: 4 | G147: 11,880.00 | H147: 35,640.00
A148: DIMENSION GLUCOSA | B148: SET | C148: 2 | D148: 0 | E148: 1 | F148: 1 | G148: 26,100.00 | H148: 26,100.00
A149: DIMENSION LDH | B149: SET | C149: 0 | D149: 0 | E149: 0 | F149: 0 | G149: 9,902.50 | H149: 0.00
A150: DIMENSION LIPASA | B150: SET | C150: 2 | D150: 0 | E150: 2 | F150: 0 | G150: 2,178.00 | H150: 4,356.00
A151: DIMENSION PROTEINA TOTAL | B151: SET | C151: 0 | D151: 3 | E151: 0 | F151: 3 | G151: 8,700.00 | H151: 0.00
A152: DIMENSION PROTEINA EN ORINA-LCF/UCFP | B152: SET | C152: 1 | D152: 0 | E152: 1 | F152: 0 | G152: 1,450.00 | H152: 1,450.00
A153: DIMENSION TRIGLICERIDO | B153: SET | C153: 1 | D153: 0 | E153: 0 | F153: 1 | G153: 8,700.00 | H153: 0.00
A154: DIMENSION UREA/BUN | B154: SET | C154: 0 | D154: 5 | E154: 1 | F154: 4 | G154: 8,700.00 | H154: 8,700.00
A155: DS ACIDO NALIDIXICO | B155: FCO. | C155: 1 | D155: 0 | E155: 1 | F155: 0 | G155: 148.00 | H155: 148.00
A156: DS AMIKACINA | B156: FCO. | C156: 3 | D156: 0 | E156: 0 | F156: 3 | G156: 160.00 | H156: 0.00
A157: DS AMOXICILINA CON ACIDO CLAVULANICO | B157: FCO. | C157: 6 | D157: 3 | E157: 7 | F157: 2 | G157: 160.00 | H157: 1,120.00
A158: DS AMPICILINA | B158: FCO. | C158: 2 | D158: 0 | E158: 2 | F158: 0 | G158: 151.00 | H158: 302.00
A159: DS CEFEPIME | B159: FCO. | C159: 3 | D159: 4 | E159: 4 | F159: 3 | G159: 160.00 | H159: 640.00
A160: DS CEFOTAXIMA | B160: FCO. | C160: 2 | D160: 3 | E160: 2 | F160: 3 | G160: 160.00 | H160: 320.00
A161: DS CEFTAXIDIME | B161: FCO. | C161: 5 | D161: 2 | E161: 3 | F161: 4 | G161: 160.00 | H161: 480.00
A162: DS CEFUROXIME | B162: FCO. | C162: 7 | D162: 0 | E162: 6 | F162: 1 | G162: 160.00 | H162: 960.00
A163: DS CETRIAZONE | B163: FCO. | C163: 3 | D163: 0 | E163: 3 | F163: 0 | G163: 160.00 | H163: 480.00
A164: DS CIPROFLOXACINA | B164: FCO. | C164: 2 | D164: 5 | E164: 6 | F164: 1 | G164: 148.00 | H164: 888.00
A165: DS CLINDAMICINA | B165: FCO. | C165: 2 | D165: 3 | E165: 4 | F165: 1 | G165: 151.00 | H165: 604.00
A166: DS ERITROMICINA | B166: FCO. | C166: 3 | D166: 0 | E166: 2 | F166: 1 | G166: 160.00 | H166: 320.00
A167: DS FURADANTINA | B167: FCO. | C167: 1 | D167: 0 | E167: 1 | F167: 0 | G167: 148.00 | H167: 148.00
A168: DS GENTAMICINA | B168: FCO. | C168: 4 | D168: 3 | E168: 4 | F168: 3 | G168: 160.00 | H168: 640.00
A169: DS IMIPENEN | B169: FCO. | C169: 1 | D169: 5 | E169: 4 | F169: 2 | G169: 151.00 | H169: 604.00
A170: DS NITROFURADANTINA | B170: FCO. | C170: 2 | D170: 0 | E170: 1 | F170: 1 | G170: 151.00 | H170: 151.00
A171: DS LEVOFLOXACIN VOL. 50 | B171: UNID. | C171: 3 | D171: 2 | E171: 4 | F171: 1 | G171: 160.00 | H171: 640.00
A172: DS NOVOBIACIN | B172: UNID. | C172: 0 | D172: 1 | E172: 1 | F172: 0 | G172: 396.00 | H172: 396.00
A173: DS OPTOQUIN | B173: UNID. | C173: 0 | D173: 1 | E173: 1 | F173: 0 | G173: 160.00 | H173: 160.00
A174: DS NORFLOXACIN | B174: FCO. | C174: 4 | D174: 0 | E174: 3 | F174: 1 | G174: 148.00 | H174: 444.00
A175: DS VANCOMYCINA | B175: FCO. | C175: 3 | D175: 0 | E175: 2 | F175: 1 | G175: 160.00 | H175: 320.00
A176: DS OXALACIN | B176: FCO. | C176: 1 | D176: 0 | E176: 1 | F176: 0 | G176: 120.00 | H176: 120.00
A177: DS OXIDASA | B177: FCO. | C177: 1 | D177: 1 | E177: 2 | F177: 0 | G177: 148.00 | H177: 296.00
A178: DS PIPERACILINA C/ TAZOBAN | B178: FCO. | C178: 3 | D178: 0 | E178: 1 | F178: 2 | G178: 148.00 | H178: 148.00
A179: DS TETRACICLINA | B179: FCO. | C179: 2 | D179: 2 | E179: 4 | F179: 0 | G179: 151.00 | H179: 604.00
A180: DS TOBRAMICINA | B180: FCO. | C180: 4 | D180: 2 | E180: 2 | F180: 4 | G180: 160.00 | H180: 320.00
A181: DS TRIMETROPIN SULFA | B181: FCO. | C181: 4 | D181: 0 | E181: 0 | F181: 4 | G181: 160.00 | H181: 0.00
A182: EASYLYTE MEDICA CALC.RINSE (CLEANING) | B182: SET | C182: 1 | D182: 0 | E182: 1 | F182: 0 | G182: 2,304.00 | H182: 2,304.00
A183: EASYLYTE MEDICA NA/K/CL 400 ML | B183: SET | C183: 2 | D183: 1 | E183: 1 | F183: 2 | G183: 13,650.00 | H183: 13,650.00
A184: EASYLYTE PAPEL BTS 2x3 | B184: UNID. | C184: 7 | D184: 0 | E184: 7 | F184: 0 | G184: 157.20 | H184: 1,100.40
A185: ELERMEYER 2000 ML | B185: UNID. | C185: 2 | D185: 0 | E185: 2 | F185: 0 | G185: 1,750.00 | H185: 3,500.00
A186: ENVASES ESTERILES 100/1 | B186: CJA. | C186: 5 | D186: 10 | E186: 15 | F186: 0 | G186: 1,300.00 | H186: 19,500.00
A187: ENVACES P/MUESTRA DE ORINA | B187: PAQ. | C187: 0 | D187: 100 | E187: 100 | F187: 0 | G187: 120.00 | H187: 12,000.00
A188: ESCOBILLAS P/LAVAR TUBOS PEQUEÑA | B188: UNID. | C188: 10 | D188: 10 | E188: 20 | F188: 0 | G188: 60.00 | H188: 1,200.00
A189: FACTOR REUMATOIDE | B189: SET | C189: 3 | D189: 5 | E189: 5 | F189: 3 | G189: 1,606.80 | H189: 8,034.00
A190: FACTOR REUMATOIDE | B190: SET | C190: 2 | D190: 0 | E190: 2 | F190: 0 | G190: 398.40 | H190: 796.80
A191: FORMOL | B191: GLN. | C191: 0 | D191: 10 | E191: 0 | F191: 0 | G191: 1,385.00 | H191: 0.00
A192: FIBRINOGENO | B192: FCO. | C192: 2 | D192: 0 | E192: 2 | F192: 0 | G192: 2,925.60 | H192: 5,851.20
A193: FRASCO DE 60ML | B193: UNID. | C193: 100 | D193: 0 | E193: 100 | F193: 0 | G193: 8.60 | H193: 860.00
A194: FRASCO HEMOCULTIVO ADULTO | B194: UNID. | C194: 70 | D194: 0 | E194: 70 | F194: 0 | G194: 155.00 | H194: 10,850.00
A195: FRASCO HEMOCULTIVO PEDIATRICO | B195: UNID. | C195: 70 | D195: 0 | E195: 50 | F195: 20 | G195: 130.00 | H195: 6,500.00
A196: FRASCOS P/ CITOLOGIA | B196: PAQ. | C196: 2 | D196: 0 | E196: 2 | F196: 0 | G196: 950.00 | H196: 1,900.00
A197: FRASCOS P/COPROLOGICOS | B197: UNID. | C197: 10,000 | D197: 0 | E197: 10,000 | F197: 0 | G197: 5.90 | H197: 59,000.00
A198: FUSINA | B198: FCO. | C198: 0 | D198: 0 | E198: 0 | F198: 0 | G198: 6,500.00 | H198: 0.00
A199: GASA | B199: ROLLO | C199: 0 | D199: 0 | E199: 0 | F199: 0 | G199: 925.00 | H199: 0.00
A200: GASA | B200: PAQ. | C200: 21 | D200: 0 | E200: 15 | F200: 6 | G200: 366.85 | H200: 5,502.75
A201: GLOBO P/MUESTRA PRUUEBA DE ALIENTO | B201: UNID. | C201: 0 | D201: 200 | E201: 0 | F201: 100 | G201: 11,350.00 | H201: 0.00
A202: GLUCOLA | B202: FCO. | C202: 25 | D202: 30 | E202: 43 | F202: 12 | G202: 203.50 | H202: 8,750.50
A203: GLUCOSA LIQUIDA 300P Q.C.A | B203: SET | C203: 1 | D203: 3 | E203: 4 | F203: 0 | G203: 1,530.10 | H203: 6,120.40
A204: GLUCOSA MANUAL | B204: SET | C204: 7 | D204: 0 | E204: 6 | F204: 1 | G204: 2,272.00 | H204: 13,632.00
... 189 more rows

Sheet AGOSTO ADM
A4: República Dominicana
A5: Ministerio de Salud Pública y Asistencia Social
A6: Informe Mensual de Almacén General, Despensa y Medicina
A7: ALMACEN | B7: LABORATORIO
A8: ESTABLECIMIENTO | B8: CENTRO DE GASTROENTEROLOGIA | E8: REGION | F8: 0
A9: AREA DE SALUD | E9: MES | F9: AGOSTO | G9: AÑO | H9: 2012
A11: ARTICULO | B11: UNIDAD | C11: EXISTENCIA ANTERIOR | D11: ENTRADA | E11: EXISTENCIA | F11: TOTAL CONSUMIDOS (3+4)-5 | G11: VALOR UNITARIO | H11: VALOR TOTAL
C12: ANTERIOR | E12: FINAL | F12: CONSUMIDO | G12: UNITARIO | H12: TOTAL
A13: -1- | C13: 3 | D13: -4- | E13: -5- | F13: (3+4)-5 | G13: -7- | H13: (6X7)
A14: ABX CONTROL HEMATOLOGICO 3/1 | B14: SET | C14: 4 | D14: 2 | E14: =C14+D14-F14 -> 6 | F14: 0 | G14: 10,143.00 | H14: =E14*G14 -> 60,858.00
A15: ABX MINOLYSE | B15: FCO. | C15: 6 | D15: 6 | E15: =C15+D15-F15 -> 8 | F15: 4 | G15: 20,481.00 | H15: =E15*G15 -> 163,848.00
A16: ABX MINOTON | B16: CJA. | C16: 10 | D16: 8 | E16: =C16+D16-F16 -> 11 | F16: 7 | G16: 15,130.00 | H16: =E16*G16 -> 166,430.00
A17: ABXPENTRA ACIDO URICO | B17: FCO. | C17: 2 | D17: 1 | E17: 3 | F17: 0 | G17: 8,132.00 | H17: 24,396.00
A18: ABXPENTRA ALBUMINA | B18: FCO. | C18: 0 | D18: 1 | E18: 0 | F18: 1 | G18: 12,456.00 | H18: 0.00
A19: ABXPENTRA ALP | B19: FCO. | C19: 2 | D19: 2 | E19: 2 | F19: 2 | G19: 4,620.00 | H19: 9,240.00
A20: ABXPENTRA ALT | B20: FCO. | C20: 2 | D20: 2 | E20: 3 | F20: 1 | G20: 8,000.00 | H20: 24,000.00
A21: ABXPENTRA AMILASA | B21: FCO. | C21: 1 | D21: 1 | E21: 2 | F21: 0 | G21: 4,000.00 | H21: 8,000.00
A22: ABXPENTRA AST | B22: FCO. | C22: 4 | D22: 1 | E22: 4 | F22: 1 | G22: 9,240.00 | H22: 36,960.00
A23: ABXPENTRA BILIRRUBINA DIRECTA | B23: FCO. | C23: 2 | D23: 3 | E23: 0 | F23: 5 | G23: 3,696.00 | H23: 0.00
A24: ABXPENTRA BILIRRUBINA TOTAL | B24: FCO. | C24: 3 | D24: 2 | E24: 0 | F24: 5 | G24: 6,400.00 | H24: 0.00
A25: ABXPENTRA CALCIO | B25: FCO. | C25: 1 | D25: 0 | E25: 1 | F25: 0 | G25: 9,240.00 | H25: 9,240.00
A26: ABXPENTRA COLESTEROL | B26: FCO. | C26: 5 | D26: 3 | E26: 8 | F26: 0 | G26: 12,416.00 | H26: 99,328.00
A27: ABXPENTRA CREATININA | B27: FCO. | C27: 5 | D27: 10 | E27: 9 | F27: 6 | G27: 4,436.00 | H27: 39,924.00
A28: ABXPENTRA DESPROTEINIZANTE | B28: FCO. | C28: 3 | D28: 2 | E28: 4 | F28: 1 | G28: 2,500.00 | H28: 10,000.00
A29: ABXPENTRA FOSFORO | B29: FCO. | C29: 2 | D29: 2 | E29: 2 | F29: 2 | G29: 3,696.00 | H29: 7,392.00
A30: ABXPENTRA GGT | B30: FCO. | C30: 1 | D30: 2 | E30: 3 | F30: 0 | G30: 9,240.00 | H30: 27,720.00
A31: ABXPENTRA GLUCOSA | B31: FCO. | C31: 3 | D31: 4 | E31: 4 | F31: 1 | G31: 10,688.00 | H31: 42,752.00
A32: ABXPENTRA HDL | B32: FCO. | C32: 4 | D32: 0 | E32: 4 | F32: 0 | G32: 7,680.00 | H32: 30,720.00
A33: ABXPENTRA LDH | B33: FCO. | C33: 3 | D33: 0 | E33: 3 | F33: 0 | G33: 4,000.00 | H33: 12,000.00
A34: ABXPENTRA LIPASA | B34: FCO. | C34: 4 | D34: 2 | E34: 5 | F34: 1 | G34: 3,200.00 | H34: 16,000.00
A35: ABXPENTRA PROTEINA TOTAL | B35: FCO. | C35: 1 | D35: 0 | E35: 1 | F35: 0 | G35: 11,088.00 | H35: 11,088.00
A36: ABXPENTRA TRIGLICERIDO | B36: FCO. | C36: 2 | D36: 1 | E36: 2 | F36: 1 | G36: 12,344.00 | H36: 24,688.00
A37: ABXPENTRA UREA/BUN | B37: FCO. | C37: 7 | D37: 2 | E37: 7 | F37: 2 | G37: 8,132.00 | H37: 56,924.00
A38: ACEITE DE INMERSION | B38: FCO. | C38: 1 | D38: 0 | E38: 1 | F38: 0 | G38: 1,380.00 | H38: 1,380.00
A39: ACETONA | B39: GLN. | C39: 8 | D39: 0 | E39: 8 | F39: 0 | G39: 950.00 | H39: 7,600.00
A40: ACIDO URICO MANUAL | B40: SET | C40: 3 | D40: 0 | E40: 3 | F40: 0 | G40: 2,780.00 | H40: 8,340.00
A41: ACIDO URICO MANUAL | B41: SET | C41: 3 | D41: 0 | E41: 3 | F41: 0 | G41: 522.00 | H41: 1,566.00
A42: ACIDO ACETICO GLACIAL | B42: GLN. | C42: 0 | D42: 0 | E42: 0 | F42: 0 | G42: 3,550.00 | H42: 0.00
A43: ACL DILUYENTE FACTORES 100ML | B43: FCO. | C43: 3 | D43: 0 | E43: 3 | F43: 0 | G43: 744.00 | H43: 2,232.00
A44: ACL HIGH ABNORMAL CONT 10X1ML | B44: CJA. | C44: 2 | D44: 2 | E44: 3 | F44: 1 | G44: 3,060.00 | H44: 9,180.00
A45: ACL. WASH EMULSION | B45: FCO. | C45: 0 | D45: 5 | E45: 2 | F45: 3 | G45: 778.80 | H45: 1,557.60
A46: ACL. APTT. 5+5X5X8 | B46: CJA. | C46: 4 | D46: 0 | E46: 3 | F46: 1 | G46: 3,646.80 | H46: 10,940.40
A47: ACL. CALIBRADOR PLASMA | B47: CJA. | C47: 4 | D47: 0 | E47: 4 | F47: 0 | G47: 3,541.20 | H47: 14,164.80
A48: ACL. CLEANING SOLUTION 500ML | B48: SET | C48: 2 | D48: 0 | E48: 2 | F48: 0 | G48: 2,100.00 | H48: 4,200.00
A49: ACL. COPAS 0.5ML C/1000 | B49: CJA. | C49: 1 | D49: 0 | E49: 0 | F49: 1 | G49: 2,097.60 | H49: 0.00
A50: ACL. COPAS 2ML 1000/PK | B50: CJA. | C50: 1 | D50: 0 | E50: 1 | F50: 0 | G50: 4,702.80 | H50: 4,702.80
A51: ACL. LOW ABNORMAL CONT. 10X1ML | B51: SET | C51: 3 | D51: 2 | E51: 4 | F51: 1 | G51: 2,799.60 | H51: 11,198.40
A52: ACL. PLASMA CONTROL NORM 10X1ML | B52: CJA. | C52: 2 | D52: 2 | E52: 2 | F52: 2 | G52: 2,704.80 | H52: 5,409.60
A53: ACL. PT RGT-FIBRINOGENO 5+5X8ML | B53: CJA. | C53: 2 | D53: 2 | E53: 2 | F53: 2 | G53: 4,177.20 | H53: 8,354.40
A54: ACL. ROTORES C/100 | B54: CJA. | C54: 3 | D54: 0 | E54: 2 | F54: 1 | G54: 9,004.80 | H54: 18,009.60
A55: AGAR CITRATO DE SIMMONS | B55: FCO. | C55: 1 | D55: 0 | E55: 1 | F55: 0 | G55: 1,650.00 | H55: 1,650.00
A56: AGAR MACCONKEY | B56: FCO. | C56: 1 | D56: 2 | E56: 2 | F56: 1 | G56: 2,820.00 | H56: 5,640.00
A57: AGAR MANITOL SALT | B57: FCO. | C57: 1 | D57: 5 | E57: 5 | F57: 1 | G57: 2,325.00 | H57: 11,625.00
A58: AGAR MULLER HILTON | B58: FCO. | C58: 2 | D58: 3 | E58: 3 | F58: 2 | G58: 2,985.00 | H58: 8,955.00
A59: AGAR SABOURAUD CON CLORANFENICOL | B59: FCO. | C59: 0 | D59: 2 | E59: 0 | F59: 2 | G59: 4,890.00 | H59: 0.00
A60: AGAR SALMONELLA SCHIGUELLA | B60: FCO. | C60: 1 | D60: 0 | E60: 1 | F60: 0 | G60: 4,871.00 | H60: 4,871.00
A61: AGAR TRIPLE SUGAR IRON | B61: FCO. | C61: 1 | D61: 0 | E61: 1 | F61: 0 | G61: 3,575.00 | H61: 3,575.00
A62: AGAR TSA TRICTICASA SUGAR | B62: FCO. | C62: 1 | D62: 0 | E62: 1 | F62: 0 | G62: 3,650.00 | H62: 3,650.00
A63: AGUA BIDESTILADA | B63: GLN. | C63: 91 | D63: 100 | E63: 79 | F63: 112 | G63: 95.00 | H63: 7,505.00
A64: AGUJA P/VACUTANIER | B64: CJA. | C64: 0 | D64: 20 | E64: 0 | F64: 20 | G64: 950.00 | H64: 0.00
A65: AHBC ELISA-CORE | B65: SET | C65: 1 | D65: 0 | E65: 1 | F65: 0 | G65: 10,238.40 | H65: 10,238.40
A66: ALBUMINA BOVINA 22% | B66: FCO. | C66: 5 | D66: 0 | E66: 5 | F66: 0 | G66: 485.00 | H66: 2,425.00
A67: ALCOHOL ABSOLUTO --ETANOL | B67: GLN. | C67: 5 | D67: 0 | E67: 5 | F67: 0 | G67: 3,526.00 | H67: 17,630.00
A68: ALCOHOL ETILICO 95% | B68: GLN. | C68: 8 | D68: 0 | E68: 8 | F68: 0 | G68: 2,384.00 | H68: 19,072.00
A69: ALCOHOL ISOPROPILICO 70 | B69: GLN. | C69: 3 | D69: 10 | E69: 4 | F69: 9 | G69: 293.00 | H69: 1,172.00
A70: ALCOHOL PROPANO (PROPANOL II) | B70: GLN. | C70: 0 | D70: 0 | E70: 0 | F70: 0 | G70: 2,650.00 | H70: 0.00
A71: ALGODON | B71: ROLLO | C71: 15 | D71: 10 | E71: 3 | F71: 22 | G71: 51.64 | H71: 154.92
A72: AMILASA MANUAL | B72: SET | C72: 5 | D72: 0 | E72: 5 | F72: 0 | G72: 1,147.70 | H72: 5,738.50
A73: ANTI A | B73: FCO. | C73: 12 | D73: 90 | E73: 67 | F73: 35 | G73: 231.00 | H73: 15,477.00
A74: ANTI B | B74: FCO. | C74: 10 | D74: 90 | E74: 70 | F74: 30 | G74: 231.00 | H74: 16,170.00
A75: ANTI D | B75: FCO. | C75: 19 | D75: 90 | E75: 73 | F75: 36 | G75: 275.00 | H75: 20,075.00
A76: ANTI A-B | B76: FCO. | C76: 3 | D76: 0 | E76: 3 | F76: 0 | G76: 332.00 | H76: 996.00
A77: ANTI A-B-D | B77: SET | C77: 1 | D77: 0 | E77: 1 | F77: 0 | G77: 333.50 | H77: 333.50
A78: ANTI HUMANO COOMBS | B78: FCO. | C78: 5 | D78: 0 | E78: 5 | F78: 0 | G78: 840.00 | H78: 4,200.00
A79: ANTICUAGULANTE | B79: FCO. | C79: 31.0 | D79: 0 | E79: 29 | F79: 2 | G79: 170.00 | H79: 4,930.00
A80: ANTIGENO FEBRILES | B80: SET | C80: 2 | D80: 2 | E80: =C80+D80-F80 -> 4 | F80: 0 | G80: 2,950.00 | H80: =E80*G80 -> 11,800.00
A81: APLICADORES MADERA | B81: CJA. | C81: 32 | D81: 100 | E81: 120 | F81: 12 | G81: 493.00 | H81: 59,160.00
A82: ASA BACTERIOLOGICA 0.001 | B82: UNID. | C82: 4 | D82: 0 | E82: 4 | F82: 0 | G82: 4,210.00 | H82: 16,840.00
A83: ASA BACTERIOLOGICA 0.01 | B83: UNID. | C83: 2 | D83: 0 | E83: 1 | F83: 1 | G83: 4,210.00 | H83: 4,210.00
A84: ASO LATEX 150P | B84: SET | C84: 5 | D84: 0 | E84: 3 | F84: 2 | G84: 935.00 | H84: 2,805.00
A85: BAJANTE DE SANGRE | B85: UNID. | C85: 770 | D85: 0 | E85: 770 | F85: 0 | G85: 7.30 | H85: 5,621.00
A86: BALSAMO PARA PATOLOGIA | B86: FCO. | C86: 2 | D86: 0 | E86: 2 | F86: 0 | G86: 3,520.00 | H86: 7,040.00
A87: BANO DE COPRIM C/TAPA CRISTAL | B87: UNID. | C87: 0 | D87: 0 | E87: 0 | F87: 0 | G87: 4,060.00 | H87: 0.00
A88: BECKMAN ALBUMINA | B88: SET | C88: 1 | D88: 0 | E88: 1 | F88: 0 | G88: 5,479.28 | H88: 5,479.28
A89: BECKMAN ALT | B89: SET | C89: 1 | D89: 0 | E89: 1 | F89: 0 | G89: 7,773.00 | H89: 7,773.00
A90: BECKMAN AMILASA | B90: CJA. | C90: 1 | D90: 0 | E90: 1 | F90: 0 | G90: 14,085.14 | H90: 14,085.14
A91: BECKMAN AST | B91: SET | C91: 1 | D91: 0 | E91: 1 | F91: 0 | G91: 7,874.75 | H91: 7,874.75
A92: BECKMAN BIL-DIRECTA | B92: SET | C92: 1 | D92: 0 | E92: 1 | F92: 0 | G92: 6,062.75 | H92: 6,062.75
A93: BECKMAN CK-MB | B93: SET | C93: 1 | D93: 0 | E93: 1 | F93: 0 | G93: 32,368.31 | H93: 32,368.31
A94: BECKMAN COPA ADULTO 2.0 ML | B94: FDA. | C94: 2 | D94: 0 | E94: 2 | F94: 0 | G94: 2,290.45 | H94: 4,580.90
A95: BECKMAN COPA PEDIATRICAS 0.5 ML | B95: FDA. | C95: 1 | D95: 0 | E95: 1 | F95: 0 | G95: 2,893.21 | H95: 2,893.21
A96: BECKMAN CREATININA | B96: SET | C96: 2 | D96: 0 | E96: 2 | F96: 0 | G96: 5,601.80 | H96: 11,203.60
A97: BECKMAN ELECTROLITE REFERENCE | B97: CJA. | C97: 1 | D97: 0 | E97: 1 | F97: 0 | G97: 6,001.98 | H97: 6,001.98
A98: BECKMAN GLUCOSA | B98: SET | C98: 1 | D98: 0 | E98: 1 | F98: 0 | G98: 9,028.92 | H98: 9,028.92
A99: BECKMAN HIERRO | B99: SET | C99: 1 | D99: 0 | E99: 1 | F99: 0 | G99: 12,409.93 | H99: 12,409.93
A100: BECKMAN PROTEINA TOTAL | B100: SET | C100: 1 | D100: 0 | E100: 1 | F100: 0 | G100: 6,974.00 | H100: 6,974.00
A101: BECKMAN WASH CONCENTRADO II | B101: CJA. | C101: 1 | D101: 0 | E101: 1 | F101: 0 | G101: 11,905.00 | H101: 11,905.00
A102: BFT-II CUBETAS COAGULACION | B102: CJA. | C102: 2 | D102: 0 | E102: 1 | F102: 1 | G102: 11,776.80 | H102: 11,776.80
A103: BILIRRUBINA MANUAL | B103: SET | C103: 2 | D103: 0 | E103: 2 | F103: 0 | G103: 1,708.80 | H103: 3,417.60
A104: BIO WRIGHT 1 | B104: GLN. | C104: 2 | D104: 0 | E104: 2 | F104: 0 | G104: 1,382.00 | H104: 2,764.00
A105: BIO WRIGHT 2 | B105: GLN. | C105: 1 | D105: 0 | E105: 1 | F105: 0 | G105: 1,382.00 | H105: 1,382.00
A106: BIO WRIGHT 3 | B106: GLN. | C106: 1 | D106: 0 | E106: 1 | F106: 0 | G106: 1,382.00 | H106: 1,382.00
A107: BOLSA COLECTORAS DE SANGRE | B107: UNID. | C107: 195 | D107: 0 | E107: 125 | F107: 70 | G107: 38.69 | H107: 4,836.25
A108: BOLSAS DE SANGRE DOBLES | B108: UNID. | C108: 30 | D108: 0 | E108: 30 | F108: 0 | G108: 240.00 | H108: 7,200.00
A109: CASSETTE CON TAPA BLANCO | B109: CJA. | C109: 0 | D109: 11 | E109: 11 | F109: 0 | G109: 3,980.00 | H109: 43,780.00
A110: CASSETTE CON TAPA COLORES | B110: CJA. | C110: 0 | D110: 13 | E110: 13 | F110: 0 | G110: 3,880.00 | H110: 50,440.00
A111: CAPSULA P/PRUEBA DE ALIENTO | B111: CJA. | C111: 100 | D111: 200 | E111: 200 | F111: 100 | G111: 1,040.00 | H111: 208,000.00
A112: CIBA CORNING DESPROTEINIZANTE | B112: SET | C112: 1 | D112: 0 | E112: 1 | F112: 0 | G112: 1,800.00 | H112: 1,800.00
A113: CIBA CORNING MULTICALIBRADOR | B113: SET | C113: 1 | D113: 0 | E113: 1 | F113: 0 | G113: 8,800.00 | H113: 8,800.00
A114: CLIPS DE ALUMINIO P/ BOLSAS DE SANGRE | B114: CJA. | C114: 2 | D114: 0 | E114: 2 | F114: 0 | G114: 3,700.00 | H114: 7,400.00
A115: CLORURO DE CALCIO 15 ML | B115: FCO. | C115: 17 | D115: 0 | E115: 15 | F115: 2 | G115: 418.80 | H115: 6,282.00
A116: CLORURO DE SODIO 500G | B116: FCO. | C116: 5 | D116: 0 | E116: 4 | F116: 1 | G116: 2,485.00 | H116: 9,940.00
A117: COAGULASA PLASMA | B117: SET | C117: 0 | D117: 1 | E117: 0 | F117: 1 | G117: 3,180.00 | H117: 0.00
A118: CONTENEDOR D/BIOSEGURIDAD 3 L | B118: UNID. | C118: 5 | D118: 0 | E118: 5 | F118: 0 | G118: 1,400.00 | H118: 7,000.00
A119: CONTROL PARA COAGULACION | B119: FCO. | C119: 6 | D119: 20 | E119: 20 | F119: 6 | G119: 182.40 | H119: 3,648.00
A120: CONTROL QUIMICA | B120: FCO. | C120: 0 | D120: 12 | E120: 12 | F120: 0 | G120: 826.25 | H120: 9,915.00
A121: COPA STERIL C/250 | B121: UNID. | C121: 0 | D121: 12 | E121: 12 | F121: 0 | G121: 3,250.00 | H121: 39,000.00
A122: CONTROL EQAS | B122: SET | C122: 0 | D122: 0 | E122: 0 | F122: 0 | G122: 2,800.00 | H122: 0.00
A123: CORE ELISA IGM | B123: SET | C123: 1 | D123: 1 | E123: 0 | F123: 2 | G123: 9,818.00 | H123: 0.00
A124: CORE-HBC-AB TOTAL | B124: SET | C124: 0 | D124: 4 | E124: 4 | F124: 0 | G124: 9,818.00 | H124: 39,272.00
A125: CREATININA MANUAL | B125: SET | C125: 0 | D125: 0 | E125: 0 | F125: 0 | G125: 317.40 | H125: 0.00
A126: CREATININA MANUAL | B126: SET | C126: 0 | D126: 3 | E126: 2 | F126: 1 | G126: 2,350.00 | H126: 4,700.00
A127: CREATININA TECO | B127: SET | C127: 3 | D127: 0 | E127: 2 | F127: 1 | G127: 1,017.50 | H127: 2,035.00
A128: CUBRE OBJETO 22 X 22 (100UD) | B128: OZ | C128: 45 | D128: 100 | E128: 101 | F128: 44 | G128: 185.00 | H128: 18,685.00
A129: CUBRE OBJETO 22 X 40 | B129: OZ | C129: 20 | D129: 100 | E129: 120 | F129: 0 | G129: 185.00 | H129: 22,200.00
A130: CUBRE OBJETO 22 X 60 | B130: CJA. | C130: 20 | D130: 100 | E130: 120 | F130: 0 | G130: 185.00 | H130: 22,200.00
A131: CUBRE OBJETO 24 X 50 | B131: OZ | C131: 20 | D131: 0 | E131: 20 | F131: 0 | G131: 185.00 | H131: 3,700.00
A132: CUCHILLA P/MICROTOMO | B132: CJA. | C132: 2 | D132: 0 | E132: 2 | F132: 0 | G132: 12,150.00 | H132: 24,300.00
A133: CURITA REDONDA | B133: CJA. | C133: 13 | D133: 50 | E133: 21 | F133: 42 | G133: 145.00 | H133: 3,045.00
A134: DIMENSION ABS/ABSORBANCE | B134: SET | C134: 1 | D134: 2 | E134: 2 | F134: 1 | G134: 1,500.00 | H134: 3,000.00
A135: DIMENSION ACIDO URICO | B135: SET | C135: 1 | D135: 0 | E135: 0 | F135: 1 | G135: 8,700.00 | H135: 0.00
A136: DIMENSION ALBUMINA | B136: SET | C136: 0 | D136: 2 | E136: 1 | F136: 1 | G136: 8,700.00 | H136: 8,700.00
A137: DIMENSION ALT | B137: SET | C137: 6 | D137: 0 | E137: 2 | F137: 4 | G137: 4,350.00 | H137: 8,700.00
A138: DIMENSION ALP-FOSFATASA ALCALINA | B138: SET | C138: 1 | D138: 3 | E138: 3 | F138: 1 | G138: 6,530.00 | H138: 19,590.00
A139: DIMENSION AMILASA | B139: SET | C139: 2 | D139: 0 | E139: 2 | F139: 0 | G139: 5,250.00 | H139: 10,500.00
A140: DIMENSION AST/GOT | B140: SET | C140: 3 | D140: 0 | E140: 0 | F140: 3 | G140: 6,530.00 | H140: 0.00
A141: DIMENSION BILIRRUBINA DIRECTA | B141: SET | C141: 0 | D141: 1 | E141: 0 | F141: 1 | G141: 5,800.00 | H141: 0.00
A142: DIMENSION BILIRRUBINA TOTAL | B142: SET | C142: 4 | D142: 1 | E142: 5 | F142: 0 | G142: 8,700.00 | H142: 43,500.00
A143: DIMENSION CALCIO | B143: SET | C143: 1 | D143: 0 | E143: 0 | F143: 1 | G143: 8,700.00 | H143: 0.00
A144: DIMENSION CK | B144: SET | C144: 1 | D144: 0 | E144: 1 | F144: 0 | G144: 8,700.00 | H144: 8,700.00
A145: DIMENSION COLESTEROL | B145: SET | C145: 1 | D145: 2 | E145: 0 | F145: 3 | G145: 8,700.00 | H145: 0.00
A146: DIMENSION CREATININA | B146: SET | C146: 7 | D146: 0 | E146: 0 | F146: 7 | G146: 8,700.00 | H146: 0.00
A147: DIMENSION FOSFORO | B147: SET | C147: 1 | D147: 1 | E147: =C147+D147-F147 -> 2 | F147: 0 | G147: 9,902.50 | H147: =E147*G147 -> 19,805.00
A148: DIMENSION HBA1C+CAL | B148: SET | C148: 4 | D148: 0 | E148: 4 | F148: 0 | G148: 18,000.00 | H148: 72,000.00
A149: DIMENSION HDL C DIRECTO | B149: SET | C149: 3 | D149: 0 | E149: 1 | F149: 2 | G149: 11,880.00 | H149: 11,880.00
A150: DIMENSION GLUCOSA | B150: SET | C150: 1 | D150: 0 | E150: 0 | F150: 1 | G150: 26,100.00 | H150: 0.00
A151: DIMENSION LDH | B151: SET | C151: 0 | D151: 1 | E151: 1 | F151: 0 | G151: 9,902.50 | H151: 9,902.50
A152: DIMENSION LIPASA | B152: SET | C152: 2 | D152: 0 | E152: 0 | F152: 2 | G152: 2,178.00 | H152: 0.00
A153: DIMENSION PROTEINA TOTAL | B153: SET | C153: 0 | D153: 3 | E153: 3 | F153: 0 | G153: 8,700.00 | H153: 26,100.00
A154: DIMENSION PROTEINA EN ORINA-LCF/UCFP | B154: SET | C154: 1 | D154: 0 | E154: 1 | F154: 0 | G154: 1,450.00 | H154: 1,450.00
A155: DIMENSION TRIGLICERIDO | B155: SET | C155: 0 | D155: 3 | E155: 0 | F155: 3 | G155: 8,700.00 | H155: 0.00
A156: DIMENSION UREA/BUN | B156: SET | C156: 1 | D156: 3 | E156: 0 | F156: 4 | G156: 8,700.00 | H156: 0.00
A157: DS ACIDO NALIDIXICO | B157: FCO. | C157: 1 | D157: 5 | E157: 5 | F157: 1 | G157: 148.00 | H157: 740.00
A158: DS AMIKACINA | B158: FCO. | C158: 0 | D158: 4 | E158: 3 | F158: 1 | G158: 160.00 | H158: 480.00
A159: DS AZTREONAN | B159: FCO. | C159: 0 | D159: 5 | E159: 4 | F159: 1 | G159: 210.00 | H159: 840.00
A160: DS AMOXICILINA CON ACIDO CLAVULANICO | B160: FCO. | C160: 7 | D160: 0 | E160: 2 | F160: 5 | G160: 160.00 | H160: 320.00
A161: DS AMPICILINA | B161: FCO. | C161: 2 | D161: 0 | E161: 2 | F161: 0 | G161: 151.00 | H161: 302.00
A162: DS CEFEPIME | B162: FCO. | C162: 3 | D162: 4 | E162: 5 | F162: 2 | G162: 160.00 | H162: 800.00
A163: DS CEFOTAXIMA | B163: FCO. | C163: 2 | D163: 4 | E163: 2 | F163: 4 | G163: 160.00 | H163: 320.00
A164: DS CEFTAXIDIME | B164: FCO. | C164: 3 | D164: 4 | E164: 5 | F164: 2 | G164: 160.00 | H164: 800.00
A165: DS CEFUROXIME | B165: FCO. | C165: 7 | D165: 0 | E165: 6 | F165: 1 | G165: 160.00 | H165: 960.00
A166: DS CETRIAZONE | B166: FCO. | C166: 3 | D166: 0 | E166: 2 | F166: 1 | G166: 160.00 | H166: 320.00
A167: DS CIPROFLOXACINA | B167: FCO. | C167: 6 | D167: 0 | E167: 4 | F167: 2 | G167: 148.00 | H167: 592.00
A168: DS CLINDAMICINA | B168: FCO. | C168: 4 | D168: 0 | E168: 3 | F168: 1 | G168: 151.00 | H168: 453.00
A169: DS CLORANFENICOL | B169: FCO. | C169: 0 | D169: 1 | E169: 1 | F169: 0 | G169: 160.00 | H169: 160.00
A170: DS ERITROMICINA | B170: FCO. | C170: 2 | D170: 0 | E170: 1 | F170: 1 | G170: 160.00 | H170: 160.00
A171: DS FURADANTINA | B171: FCO. | C171: 1 | D171: 0 | E171: 1 | F171: 0 | G171: 148.00 | H171: 148.00
A172: DS GENTAMICINA | B172: FCO. | C172: 4 | D172: 4 | E172: 6 | F172: 2 | G172: 160.00 | H172: 960.00
A173: DS IMIPENEN | B173: FCO. | C173: 4 | D173: 3 | E173: 6 | F173: 1 | G173: 151.00 | H173: 906.00
A174: DS MEROPEREN | B174: FCO. | C174: 0 | D174: 10 | E174: 10 | F174: 0 | G174: 160.00 | H174: 1,600.00
A175: DS NITROFURADANTINA | B175: FCO. | C175: 1 | D175: 4 | E175: 3 | F175: 2 | G175: 151.00 | H175: 453.00
A176: DS LEVOFLOXACIN VOL. 50 | B176: UNID. | C176: 4 | D176: 0 | E176: 2 | F176: 2 | G176: 160.00 | H176: 320.00
A177: DS NOVOBIACIN | B177: UNID. | C177: 1 | D177: 0 | E177: 1 | F177: 0 | G177: 396.00 | H177: 396.00
A178: DS OPTOQUIN | B178: UNID. | C178: 1 | D178: 0 | E178: 1 | F178: 0 | G178: 160.00 | H178: 160.00
A179: DS NORFLOXACIN | B179: FCO. | C179: 3 | D179: 3 | E179: 4 | F179: 2 | G179: 148.00 | H179: 592.00
A180: DS VANCOMYCINA | B180: FCO. | C180: 2 | D180: 0 | E180: 1 | F180: 1 | G180: 160.00 | H180: 160.00
A181: DS OXALACIN | B181: FCO. | C181: 1 | D181: 0 | E181: 0 | F181: 1 | G181: 120.00 | H181: 0.00
A182: DS OXIDASA | B182: FCO. | C182: 2 | D182: 1 | E182: 3 | F182: 0 | G182: 148.00 | H182: 444.00
A183: DS PIPERACILINA C/ TAZOBAN | B183: FCO. | C183: 1 | D183: 5 | E183: 5 | F183: 1 | G183: 148.00 | H183: 740.00
A184: DS TETRACICLINA | B184: FCO. | C184: 4 | D184: 2 | E184: 5 | F184: 1 | G184: 151.00 | H184: 755.00
A185: DS TOBRAMICINA | B185: FCO. | C185: 2 | D185: 3 | E185: 3 | F185: 2 | G185: 160.00 | H185: 480.00
A186: DS TRIMETROPIN SULFA | B186: FCO. | C186: 0 | D186: 4 | E186: 3 | F186: 1 | G186: 160.00 | H186: 480.00
A187: EASYLYTE MEDICA CALC.RINSE (CLEANING) | B187: SET | C187: 1 | D187: 0 | E187: 1 | F187: 0 | G187: 2,304.00 | H187: 2,304.00
A188: EASYLYTE MEDICA NA/K/CL 400 ML | B188: SET | C188: 1 | D188: 2 | E188: 1 | F188: 2 | G188: 13,650.00 | H188: 13,650.00
A189: EASYLYTE PAPEL BTS 2x3 | B189: UNID. | C189: 7 | D189: 0 | E189: 7 | F189: 0 | G189: 157.20 | H189: 1,100.40
A190: ELERMEYER 2000 ML | B190: UNID. | C190: 2 | D190: 0 | E190: 2 | F190: 0 | G190: 1,750.00 | H190: 3,500.00
A191: ENVASES ESTERILES 100/1 | B191: CJA. | C191: 15 | D191: 0 | E191: 4 | F191: 11 | G191: 1,300.00 | H191: 5,200.00
A192: ENVACES P/MUESTRA DE ORINA | B192: PAQ. | C192: 100 | D192: 0 | E192: 100 | F192: 0 | G192: 120.00 | H192: 12,000.00
A193: ESCOBILLAS P/LAVAR TUBOS PEQUEÑA | B193: UNID. | C193: 20 | D193: 0 | E193: 20 | F193: 0 | G193: 60.00 | H193: 1,200.00
A194: FACTOR REUMATOIDE | B194: SET | C194: 5 | D194: 4 | E194: 6 | F194: 3 | G194: 1,606.80 | H194: 9,640.80
A195: FACTOR REUMATOIDE | B195: SET | C195: 2 | D195: 0 | E195: 1 | F195: 1 | G195: 398.40 | H195: 398.40
A196: FORMOL | B196: GLN. | C196: 0 | D196: 0 | E196: 0 | F196: 0 | G196: 1,385.00 | H196: 0.00
A197: FIBRINOGENO | B197: FCO. | C197: 2 | D197: 0 | E197: 2 | F197: 0 | G197: 2,925.60 | H197: 5,851.20
A198: FRASCO DE 60ML | B198: UNID. | C198: 100 | D198: 0 | E198: 100 | F198: 0 | G198: 8.60 | H198: 860.00
A199: FRASCO HEMOCULTIVO ADULTO | B199: UNID. | C199: 70 | D199: 0 | E199: 60 | F199: 10 | G199: 155.00 | H199: 9,300.00
A200: FRASCO HEMOCULTIVO PEDIATRICO | B200: UNID. | C200: 50 | D200: 0 | E200: 20 | F200: 30 | G200: 130.00 | H200: 2,600.00
A201: FRASCOS P/ CITOLOGIA | B201: PAQ. | C201: 2 | D201: 0 | E201: 2 | F201: 0 | G201: 950.00 | H201: 1,900.00
A202: FRASCOS P/COPROLOGICOS | B202: UNID. | C202: 10,000 | D202: 5000 | E202: 15,000 | F202: 0 | G202: 5.90 | H202: 88,500.00
A203: FUSINA | B203: FCO. | C203: 0 | D203: 0 | E203: 0 | F203: 0 | G203: 6,500.00 | H203: 0.00
A204: GASA | B204: ROLLO | C204: 0 | D204: 10 | E204: 10 | F204: 0 | G204: 925.00 | H204: 9,250.00
... 208 more rows

Sheet AGOSTO MSP (2)
A4: República Dominicana
A5: Ministerio de Salud Pública y Asistencia Social
A6: Informe Mensual de Almacén General, Despensa y Medicina
A7: ALMACEN | B7: LABORATORIO
A8: ESTABLECIMIENTO | B8: CENTRO DE GASTROENTEROLOGIA | E8: REGION | F8: 0
A9: AREA DE SALUD | E9: MES | F9: AGOSTO | G9: AÑO | H9: 2012
A11: ARTICULO | B11: UNIDAD | C11: EXISTENCIA ANTERIOR | D11: ENTRADA | E11: EXISTENCIA | F11: TOTAL CONSUMIDOS (3+4)-5 | G11: VALOR UNITARIO | H11: VALOR TOTAL
C12: ANTERIOR | E12: FINAL | F12: CONSUMIDO | G12: UNITARIO | H12: TOTAL
A13: -1- | C13: 3 | D13: -4- | E13: -5- | F13: (3+4)-5 | G13: -7- | H13: (6X7)
A14: ABX CONTROL HEMATOLOGICO 3/1 | B14: SET | C14: 4 | D14: 2 | E14: =C14+D14-F14 -> 6 | F14: 0 | G14: 10,143.00 | H14: =F14*G14 -> 0.00
A15: ABX MINOLYSE | B15: FCO. | C15: 6 | D15: 6 | E15: =C15+D15-F15 -> 8 | F15: 4 | G15: 20,481.00 | H15: =F15*G15 -> 81,924.00
A16: ABX MINOTON | B16: CJA. | C16: 10 | D16: 8 | E16: =C16+D16-F16 -> 11 | F16: 7 | G16: 15,130.00 | H16: =F16*G16 -> 105,910.00
A17: ABXPENTRA ACIDO URICO | B17: FCO. | C17: 2 | D17: 1 | E17: 3 | F17: 0 | G17: 8,132.00 | H17: 0.00
A18: ABXPENTRA ALBUMINA | B18: FCO. | C18: 0 | D18: 1 | E18: 0 | F18: 1 | G18: 12,456.00 | H18: 12,456.00
A19: ABXPENTRA ALP | B19: FCO. | C19: 2 | D19: 2 | E19: 2 | F19: 2 | G19: 4,620.00 | H19: 9,240.00
A20: ABXPENTRA ALT | B20: FCO. | C20: 2 | D20: 2 | E20: 3 | F20: 1 | G20: 8,000.00 | H20: 8,000.00
A21: ABXPENTRA AMILASA | B21: FCO. | C21: 1 | D21: 1 | E21: 2 | F21: 0 | G21: 4,000.00 | H21: 0.00
A22: ABXPENTRA AST | B22: FCO. | C22: 4 | D22: 1 | E22: 4 | F22: 1 | G22: 9,240.00 | H22: 9,240.00
A23: ABXPENTRA BILIRRUBINA DIRECTA | B23: FCO. | C23: 2 | D23: 3 | E23: 0 | F23: 5 | G23: 3,696.00 | H23: 18,480.00
A24: ABXPENTRA BILIRRUBINA TOTAL | B24: FCO. | C24: 3 | D24: 2 | E24: 0 | F24: 5 | G24: 6,400.00 | H24: 32,000.00
A25: ABXPENTRA CALCIO | B25: FCO. | C25: 1 | D25: 0 | E25: 1 | F25: 0 | G25: 9,240.00 | H25: 0.00
A26: ABXPENTRA COLESTEROL | B26: FCO. | C26: 5 | D26: 3 | E26: 8 | F26: 0 | G26: 12,416.00 | H26: 0.00
A27: ABXPENTRA CREATININA | B27: FCO. | C27: 5 | D27: 10 | E27: 9 | F27: 6 | G27: 4,436.00 | H27: 26,616.00
A28: ABXPENTRA DESPROTEINIZANTE | B28: FCO. | C28: 3 | D28: 2 | E28: 4 | F28: 1 | G28: 2,500.00 | H28: 2,500.00
A29: ABXPENTRA FOSFORO | B29: FCO. | C29: 2 | D29: 2 | E29: 2 | F29: 2 | G29: 3,696.00 | H29: 7,392.00
A30: ABXPENTRA GGT | B30: FCO. | C30: 1 | D30: 2 | E30: 3 | F30: 0 | G30: 9,240.00 | H30: 0.00
A31: ABXPENTRA GLUCOSA | B31: FCO. | C31: 3 | D31: 4 | E31: 4 | F31: 1 | G31: 10,688.00 | H31: 10,688.00
A32: ABXPENTRA HDL | B32: FCO. | C32: 4 | D32: 0 | E32: 4 | F32: 0 | G32: 7,680.00 | H32: 0.00
A33: ABXPENTRA LDH | B33: FCO. | C33: 3 | D33: 0 | E33: 3 | F33: 0 | G33: 4,000.00 | H33: 0.00
A34: ABXPENTRA LIPASA | B34: FCO. | C34: 4 | D34: 2 | E34: 5 | F34: 1 | G34: 3,200.00 | H34: 3,200.00
A35: ABXPENTRA PROTEINA TOTAL | B35: FCO. | C35: 1 | D35: 0 | E35: 1 | F35: 0 | G35: 11,088.00 | H35: 0.00
A36: ABXPENTRA TRIGLICERIDO | B36: FCO. | C36: 2 | D36: 1 | E36: 2 | F36: 1 | G36: 12,344.00 | H36: 12,344.00
A37: ABXPENTRA UREA/BUN | B37: FCO. | C37: 7 | D37: 2 | E37: 7 | F37: 2 | G37: 8,132.00 | H37: 16,264.00
A38: ACEITE DE INMERSION | B38: FCO. | C38: 1 | D38: 0 | E38: 1 | F38: 0 | G38: 1,380.00 | H38: 0.00
A39: ACETONA | B39: GLN. | C39: 8 | D39: 0 | E39: 8 | F39: 0 | G39: 950.00 | H39: 0.00
A40: ACIDO URICO MANUAL | B40: SET | C40: 3 | D40: 0 | E40: 3 | F40: 0 | G40: 2,780.00 | H40: 0.00
A41: ACIDO URICO MANUAL | B41: SET | C41: 3 | D41: 0 | E41: 3 | F41: 0 | G41: 522.00 | H41: 0.00
A42: ACIDO ACETICO GLACIAL | B42: GLN. | C42: 0 | D42: 0 | E42: 0 | F42: 0 | G42: 3,550.00 | H42: 0.00
A43: ACL DILUYENTE FACTORES 100ML | B43: FCO. | C43: 3 | D43: 0 | E43: 3 | F43: 0 | G43: 744.00 | H43: 0.00
A44: ACL HIGH ABNORMAL CONT 10X1ML | B44: CJA. | C44: 2 | D44: 2 | E44: 3 | F44: 1 | G44: 3,060.00 | H44: 3,060.00
A45: ACL. WASH EMULSION | B45: FCO. | C45: 0 | D45: 5 | E45: 2 | F45: 3 | G45: 778.80 | H45: 2,336.40
A46: ACL. APTT. 5+5X5X8 | B46: CJA. | C46: 4 | D46: 0 | E46: 3 | F46: 1 | G46: 3,646.80 | H46: 3,646.80
A47: ACL. CALIBRADOR PLASMA | B47: CJA. | C47: 4 | D47: 0 | E47: 4 | F47: 0 | G47: 3,541.20 | H47: 0.00
A48: ACL. CLEANING SOLUTION 500ML | B48: SET | C48: 2 | D48: 0 | E48: 2 | F48: 0 | G48: 2,100.00 | H48: 0.00
A49: ACL. COPAS 0.5ML C/1000 | B49: CJA. | C49: 1 | D49: 0 | E49: 0 | F49: 1 | G49: 2,097.60 | H49: 2,097.60
A50: ACL. COPAS 2ML 1000/PK | B50: CJA. | C50: 1 | D50: 0 | E50: 1 | F50: 0 | G50: 4,702.80 | H50: 0.00
A51: ACL. LOW ABNORMAL CONT. 10X1ML | B51: SET | C51: 3 | D51: 2 | E51: 4 | F51: 1 | G51: 2,799.60 | H51: 2,799.60
A52: ACL. PLASMA CONTROL NORM 10X1ML | B52: CJA. | C52: 2 | D52: 2 | E52: 2 | F52: 2 | G52: 2,704.80 | H52: 5,409.60
A53: ACL. PT RGT-FIBRINOGENO 5+5X8ML | B53: CJA. | C53: 2 | D53: 2 | E53: 2 | F53: 2 | G53: 4,177.20 | H53: 8,354.40
A54: ACL. ROTORES C/100 | B54: CJA. | C54: 3 | D54: 0 | E54: 2 | F54: 1 | G54: 9,004.80 | H54: 9,004.80
A55: AGAR CITRATO DE SIMMONS | B55: FCO. | C55: 1 | D55: 0 | E55: 1 | F55: 0 | G55: 1,650.00 | H55: 0.00
A56: AGAR MACCONKEY | B56: FCO. | C56: 1 | D56: 2 | E56: 2 | F56: 1 | G56: 2,820.00 | H56: 2,820.00
A57: AGAR MANITOL SALT | B57: FCO. | C57: 1 | D57: 5 | E57: 5 | F57: 1 | G57: 2,325.00 | H57: 2,325.00
